{"text_format":"1","workbook":"xlsx","n_sheets":9,"sheets":["SAPBEXqueriesDefunct","SAPBEXfiltersDefunct","BExRepositorySheet","Summary","Template","Query","FTE Query","JobFamily Template","JF Query"],"not_rendered":{"charts":0,"images":3,"macros":0,"external_links":1,"defined_names":721,"comments":0,"pivot_tables":0},"unopened":[],"bounds":{"document_bytes":16777216,"sheet_cells":100000,"rows_first":2000,"rows_last":500,"rows_between":2000,"halvings":0,"cell_chars":16384,"cell_head_chars":4096},"cells_cut":0,"cells_raw":0,"read":"whole","date_system":"1900"}

{"sheet":"SAPBEXqueriesDefunct","index":0,"n_rows":21225,"n_cols":233,"rows_kept":281,"cut":true,"hidden":true,"merged":[],"bounds":{"rows_first":125,"rows_last":31,"rows_between":125,"halvings":4}}
[9]
[42,null,null,null,null,null,null,null,null,null,null,null,null,null,null,null,null,null,null,null,null,null,null,null,null,null,null,null,null,null,408,null,null,null,null,null,null,null,null,null,null,null,null,null,null,null,null,null,null,null,null,null,null,null,null,null,null,null,null,null,null,null,null,null,null,null,null,null,null,null,null,null,null,null,null,null,null,null,null,null,null,null,null,null,null,null,null,null,null,null,1806,null,null,null,null,null,null,null,null,null,null,null,null,null,null,null,null,null,null,null,1400,null,null,null,null,null,null,null,null,null,null,null,null,null,null,null,null,null,null,null,21222,null,null,null,null,null,null,null,null,null,null,null,null,null,null,null,null,null,null,null,0,null,null,null,null,null,null,null,null,null,null,null,null,null,null,null,null,null,null,null,null,null,null,null,null,null,null,null,null,null,138,null,null,null,null,null,null,null,null,null,null,null,null,null,null,null,null,null,null,null,null,null,null,null,null,null,null,null,null,null,null,null,null,null,null,null,null,null,null,null,null,null,null,null,null,null,null,null,null,null,1290]
[24,null,null,null,null,null,null,null,null,null,null,null,null,null,null,null,null,null,null,null,null,null,null,null,null,null,null,null,null,null,59,null,null,null,null,null,null,null,null,null,null,null,null,null,null,null,null,null,null,null,null,null,null,null,null,null,null,null,null,null,null,null,null,null,null,null,null,null,null,null,null,null,null,null,null,null,null,null,null,null,null,null,null,null,null,null,null,null,null,null,13,null,null,null,null,null,null,null,null,null,null,null,null,null,null,null,null,null,null,null,14,null,null,null,null,null,null,null,null,null,null,null,null,null,null,null,null,null,null,null,13,null,null,null,null,null,null,null,null,null,null,null,null,null,null,null,null,null,null,null,11,null,null,null,null,null,null,null,null,null,null,null,null,null,null,null,null,null,null,null,null,null,null,null,null,null,null,null,null,null,21,null,null,null,null,null,null,null,null,null,null,null,null,null,null,null,null,null,null,null,null,null,null,null,null,null,null,null,null,null,null,null,null,null,null,null,null,null,null,null,null,null,null,null,null,null,null,null,null,null,2]
[null,0,"DB7KNG7ZEHU4RTWELJ3T28BG9",true,true,"SAPBEXq0016",2,2,false,null,null,true,false,null,true,false,0,null,5,true,true,null,null,false,false,false,null,null,null,null,17,"ZPERID","NI Number","X","","","0001","","","","","","","","2","00","","","","00000000","K","ZPERID","A","","","H","","","","","","00000000","0000","","0","","","","","1","1","1","0","0","","","2","","0","DBE5O9AE5IYQMYYFGPF1H8OAH","","","","","","","0000","","","",17,"D5ENPW16Z63T56VF4C1ESE4FT","D5ENPW16Z64KTT76FVH0UTIPL","Male Temp FT","0001","","S","","L","X","IOBJ","Z_EMP_HCT","","Employee Headcount",null,null,null,null,null,null,17,"0ORGUNIT","0BBPPURGRPX","Ind.Purchasing Group","0000","X","2","0","0","","","","","0000","",null,null,null,null,null,17,"D5ENPW16Z64KTT76FVH0UTIPL","D5B6FGJCS8BFQ1OMS1RP9IDIX","","","","","","00","X","0","0","","",null,null,null,null,null,null,null,null,null,null,null,null,null,null,null,null,null,null,null,null,null,null,null,null,null,null,null,null,null,null,null,null,null,null,null,null,17,"ZS_DT_1","1","P","I","EQ","20120331","31/03/2012","","","","0","","0","","0","Target date 1","60","","","ZEMP_STRT","20120331",null,null,null,null,null,null,null,null,null,null,null,null,null,null,null,null,null,null,null,null,null,null,null,null,null,null,null,null,17,"0000000100","X"]
[null,0,"DB7KNG7ZEHU4RTWELJ3T28BG9",true,true,"SAPBEXq0014",2,2,false,null,null,true,false,null,true,false,0,null,5,true,true,null,null,false,false,false,null,null,null,null,17,"ZPERSAREA","ZPersonal Area","X","","","0002","","Education","","","","","","5","00","","","","00000000","K","ZPERSAREA","A","","","H","","","","","","00000000","0000","","0","","1","","","1","1","1","0","0","","","2","","0","DBE5O9AE5IZIBLA6S8UNJO2K9","","","","","","","0000","","","",17,"D5B6FGJCS8AO1FCVGIC372Z95","D5B6FGJCS8BFQ1OMS1RP9IDIX","BS","0001","","S","","L","","","","","",null,null,null,null,null,null,17,"0ORGUNIT","0BBPPURORGX","Ind. Purchasing Org.","0000","X","2","0","0","","","","","0000","",null,null,null,null,null,17,"D5ENPW16Z64KTT76FVH0UTIPL","D5B6FGJCS8C7EO0E3L7BBXRSP","","","","","","00","X","0","0","","",null,null,null,null,null,null,null,null,null,null,null,null,null,null,null,null,null,null,null,null,null,null,null,null,null,null,null,null,null,null,null,null,null,null,null,null,17,"ZBUDH","1","P","I","EQ","20120331","31/03/2012","","","","0","","0","","0","Master Data Key Date","60","","","0DATE","20120331",null,null,null,null,null,null,null,null,null,null,null,null,null,null,null,null,null,null,null,null,null,null,null,null,null,null,null,null,17,"0000000108",""]
[null,0,"DB7KNG7ZEHU4RTWELJ3T28BG9",true,true,"SAPBEXq0019",2,2,false,null,null,true,false,null,true,false,0,null,5,true,true,null,null,false,false,false,null,null,null,null,17,"ZPRIM_ID","ZPrimary Employee ID","X","","","0003","","","","","","","","2","00","","","","00000000","K","ZPRIM_ID","A","","","H","","","","","","00000000","0000","","0","","","","","1","1","1","0","0","","","2","","0","DBE5O9AE5J0A07LY3SA9M3GU1","","","","","","","0000","","","",17,"D5ENPW16Z63T56VF4C1ESE4FT","D5ENPW16Z65CIFIXREWMX8WZD","Male Temp PT","0002","","S","","L","X","IOBJ","Z_EMP_HCT","","Employee Headcount",null,null,null,null,null,null,17,"0ORGUNIT","0BBP_BUYID","Buyer ID","0000","X","5","0","0","","","","","0000","",null,null,null,null,null,17,"D5ENPW16Z64KTT76FVH0UTIPL","D5B6FGJCS8CZ3AC5F4MXED62H","","","","","","00","X","0","0","","",null,null,null,null,null,null,null,null,null,null,null,null,null,null,null,null,null,null,null,null,null,null,null,null,null,null,null,null,null,null,null,null,null,null,null,null,17,"ZZPERAR","1","M","","","","","","","","0","","0","","0","ZPersonnel Area","60","","","ZPERSAREA","",null,null,null,null,null,null,null,null,null,null,null,null,null,null,null,null,null,null,null,null,null,null,null,null,null,null,null,null,17,"0000000101",""]
[null,0,"DB7KNG7ZEHU4RTWELJ3T28BG9",true,true,"SAPBEXq0020",2,2,false,null,null,true,false,null,true,false,0,null,5,true,true,null,null,false,false,false,null,null,null,null,17,"0EMPLGROUP","Employee Group","X","","","0004","","","","","","","","1","00","","","","00000000","K","0EMPLGROUP","A","","","H","","","","","","00000000","0000","","0","","","","","1","1","1","0","0","","","2","","0","DBE5O9AE5J11OTXPFBPVOIV3T","","","","","","","0000","","","",17,"D5B6FGJCS8AO1FCVGIC372Z95","D5B6FGJCS8C7EO0E3L7BBXRSP","CV","0002","","S","","L","","","","","",null,null,null,null,null,null,17,"0ORGUNIT","0BBP_ISCOMP","Organizational Unit is Company","0000","X","1","0","0","","","","","0000","",null,null,null,null,null,17,"D5ENPW16Z64KTT76FVH0UTIPL","D5B6FGJCS8DQRWNWQO2JGSKC9","","","","","","00","X","0","0","","",null,null,null,null,null,null,null,null,null,null,null,null,null,null,null,null,null,null,null,null,null,null,null,null,null,null,null,null,null,null,null,null,null,null,null,null,18,"ZS_DT_1","1","P","I","EQ","20120331","31/03/2012","","","","0","","0","","0","Target date 1","60","","","ZEMP_STRT","20120331",null,null,null,null,null,null,null,null,null,null,null,null,null,null,null,null,null,null,null,null,null,null,null,null,null,null,null,null,17,"0000000104","1"]
[null,0,"DB7KNG7ZEHU4RTWELJ3T28BG9",true,true,"SAPBEXq0022",2,2,false,null,null,true,false,null,true,false,0,null,5,true,true,null,null,false,false,false,null,null,null,null,17,"0PERS_SAREA","Personnel Subarea","X","","","0005","","","","","","","","1","00","","","","00000000","K","0PERS_SAREA","A","","","H","","","","","","00000000","0000","","0","","","","","1","1","1","0","0","","","2","","0","DBE5O9AE5J1TDG9GQV5HQY9DL","","","","","","","0000","","","",17,"D5ENPW16Z63T56VF4C1ESE4FT","D5ENPW16Z66471UP2YC8ZOB95","Male Perm FT","0003","","S","","L","X","IOBJ","Z_EMP_HCT","","Employee Headcount",null,null,null,null,null,null,17,"0ORGUNIT","0BUS_AREA","Business area","0000","X","0","0","0","","","","","0000","",null,null,null,null,null,17,"D5ENPW16Z64KTT76FVH0UTIPL","D5B6FGJCS8EIGIZO27I5J7YM1","","","","","","00","X","0","0","","",null,null,null,null,null,null,null,null,null,null,null,null,null,null,null,null,null,null,null,null,null,null,null,null,null,null,null,null,null,null,null,null,null,null,null,null,18,"ZBUDH","1","P","I","EQ","20120331","31/03/2012","","","","0","","0","","0","Master Data Key Date","60","","","0DATE","20120331",null,null,null,null,null,null,null,null,null,null,null,null,null,null,null,null,null,null,null,null,null,null,null,null,null,null,null,null,17,"0000000103",""]
[null,0,"DB7KNG7ZEHU4RTWELJ3T28BG9",true,true,"SAPBEXq0023",2,2,false,null,null,true,false,null,true,false,0,null,5,true,true,null,null,false,false,false,null,null,null,null,17,"0ORGUNIT","Organizational Unit","X","","","0006","","","","","","","U","1","02","X","ORGEH","000","20120331","K","0ORGUNIT","A","","","H","0ORGUNIT","A","","","","00000000","0000","","0","","","","2","1","1","1","0","0","","","","","0","DBE5O9AE5J2L22L82EL3TDNND","","","","","","","0000","","","",17,"D5B6FGJCS8AO1FCVGIC372Z95","D5B6FGJCS8CZ3AC5F4MXED62H","CA","0003","","S","","L","","","","","",null,null,null,null,null,null,17,"0ORGUNIT","0COMP_CODE","Company code","0000","X","0","0","0","","","","","0000","",null,null,null,null,null,17,"D5ENPW16Z64KTT76FVH0UTIPL","D5B6FGJCS8FA55BFDQXRLNCVT","","","","","","00","X","0","0","","",null,null,null,null,null,null,null,null,null,null,null,null,null,null,null,null,null,null,null,null,null,null,null,null,null,null,null,null,null,null,null,null,null,null,null,null,18,"ZZPERAR","1","M","","","","","","","","0","","0","","0","ZPersonnel Area","60","","","ZPERSAREA","",null,null,null,null,null,null,null,null,null,null,null,null,null,null,null,null,null,null,null,null,null,null,null,null,null,null,null,null,17,"0000000102","1"]
[null,0,"DB7KNG7ZEHU4RTWELJ3T28BG9",true,true,"SAPBEXq0024",2,2,false,null,null,true,false,null,true,false,0,null,5,true,true,null,null,false,false,false,null,null,null,null,17,"D5B6FGJCS8AO1FCVGIC372Z95","Job Families Incl Teach","","X","X","0001","","","","","","","U","","00","","","","","K","D5B6FGJCS8AO1FCVGIC372Z95","A","","","","","","","","","00000000","0000","","0","","","","","0","0","0","0","0","","","","","","D5B6FGJCS8AO1FCVGIC372Z95","","","","","","","0000","","","",17,"D5ENPW16Z63T56VF4C1ESE4FT","D5ENPW16Z66VVO6GEHRV23PIX","Male Perm PT","0004","","S","","L","X","IOBJ","Z_EMP_HCT","","Employee Headcount",null,null,null,null,null,null,17,"0ORGUNIT","0CO_MST_AR","Controlling Area of Master Cost Center","0000","X","0","0","0","","","","","0000","",null,null,null,null,null,17,"D5ENPW16Z64KTT76FVH0UTIPL","D5B6FGJCS8G1TRN6PADDO2R5L","","","","","","00","X","0","0","","",null,null,null,null,null,null,null,null,null,null,null,null,null,null,null,null,null,null,null,null,null,null,null,null,null,null,null,null,null,null,null,null,null,null,null,null,19,"ZS_DT_1","1","P","I","EQ","20120331","31/03/2012","","","","0","","0","","0","Target date 1","60","","","ZEMP_STRT","20120331",null,null,null,null,null,null,null,null,null,null,null,null,null,null,null,null,null,null,null,null,null,null,null,null,null,null,null,null,17,"0000009000",""]
[null,0,"DB7KNG7ZEHU4RTWELJ3T28BG9",true,true,"SAPBEXq0025",2,2,false,null,null,true,false,null,true,false,0,null,5,true,true,null,null,false,false,false,null,null,null,null,17,"D5ENPW16Z63T56VF4C1ESE4FT","Breakdown Gender Contract FTPT","","X","Y","0001","","","","","","","U","","00","","","","","K","D5ENPW16Z63T56VF4C1ESE4FT","A","","","","","","","","","00000000","0000","X","0","","","","","0","0","0","0","0","","","","","","D5ENPW16Z63T56VF4C1ESE4FT","","","","","","","0000","","","",17,"D5B6FGJCS8AO1FCVGIC372Z95","D5B6FGJCS8DQRWNWQO2JGSKC9","CF","0004","","S","","L","","","","","",null,null,null,null,null,null,17,"0ORGUNIT","0CRMSALGRPX","Sls Group: Indicator","0000","X","2","0","0","","","","","0000","",null,null,null,null,null,17,"D5ENPW16Z64KTT76FVH0UTIPL","D5B6FGJCS8GTIDYY0TSZQI5FD","","","","","","00","X","0","0","","",null,null,null,null,null,null,null,null,null,null,null,null,null,null,null,null,null,null,null,null,null,null,null,null,null,null,null,null,null,null,null,null,null,null,null,null,19,"ZBUDH","1","P","I","EQ","20120331","31/03/2012","","","","0","","0","","0","Master Data Key Date","60","","","0DATE","20120331",null,null,null,null,null,null,null,null,null,null,null,null,null,null,null,null,null,null,null,null,null,null,null,null,null,null,null,null,17,"0000000107","DBE5O9AE5IU4J8ZVJGTD2OANT"]
[null,0,"DB7L0YCWBK71PGE0BPAJH45IX",true,true,"SAPBEXq0027",2,2,false,null,null,true,false,null,true,false,0,null,5,true,true,null,null,false,false,false,null,null,null,null,18,"ZPERID","NI Number","X","","","0001","","","","","","","","2","00","","","","00000000","K","ZPERID","A","","","H","","","","","","00000000","0000","","0","","","","","1","1","1","0","0","","","2","","0","DBE5O9AE5IYQMYYFGPF1H8OAH","","","","","","","0000","","","",17,"D5B6FGJCS8AO1FCVGIC372Z95","D5B6FGJCS8EIGIZO27I5J7YM1","CU","0005","","S","","L","","","","","",null,null,null,null,null,null,17,"0ORGUNIT","0CRMSALOFFX","Sls Office:Indicator","0000","X","2","0","0","","","","","0000","",null,null,null,null,null,17,"D5ENPW16Z64KTT76FVH0UTIPL","D5B6FGJCS8HL70APCD8LSXJP5","","","","","","00","X","0","0","","",null,null,null,null,null,null,null,null,null,null,null,null,null,null,null,null,null,null,null,null,null,null,null,null,null,null,null,null,null,null,null,null,null,null,null,null,19,"ZZPERAR","1","M","","","","","","","","0","","0","","0","ZPersonnel Area","60","","","ZPERSAREA","",null,null,null,null,null,null,null,null,null,null,null,null,null,null,null,null,null,null,null,null,null,null,null,null,null,null,null,null,17,"0000010001","DBE5O9AE5J44FB8QPHGBY8G6X"]
[null,0,"DB8BHD5B47XQHOF5UNABGWLQ1",true,true,"SAPBEXq0001",2,2,false,null,null,true,false,null,true,false,0,null,5,true,true,null,null,false,false,false,null,null,null,null,18,"ZPERSAREA","ZPersonal Area","X","","","0002","","Financial","","","","","","5","00","","","","00000000","K","ZPERSAREA","A","","","H","","","","","","00000000","0000","","0","","1","","","1","1","1","0","0","","","2","","0","DBE5O9AE5IZIBLA6S8UNJO2K9","","","","","","","0000","","","",17,"D5ENPW16Z63T56VF4C1ESE4FT","D5ENPW16Z67NKAI7Q17H4J3SP","Female Temp FT","0005","","S","","L","X","IOBJ","Z_EMP_HCT","","Employee Headcount",null,null,null,null,null,null,17,"0ORGUNIT","0CRMSALORGX","Sales Org. Indicator","0000","X","2","0","0","","","","","0000","",null,null,null,null,null,17,"D5ENPW16Z64KTT76FVH0UTIPL","D5B6FGJCS8ICVMMGNWO7VCXYX","","","","","","00","X","0","0","","",null,null,null,null,null,null,null,null,null,null,null,null,null,null,null,null,null,null,null,null,null,null,null,null,null,null,null,null,null,null,null,null,null,null,null,null,20,"ZS_DT_1","1","P","I","EQ","20120331","31/03/2012","","","","0","","0","","0","Target date 1","60","","","ZEMP_STRT","20120331",null,null,null,null,null,null,null,null,null,null,null,null,null,null,null,null,null,null,null,null,null,null,null,null,null,null,null,null,17,"0000010003","ZPA_O07"]
[null,0,"DB8BI6XESAEDYAJVA6CRTMCJD",true,true,"SAPBEXq0008",0,0,false,null,null,true,false,null,true,false,0,null,5,true,true,null,null,false,false,false,null,null,null,null,18,"ZPRIM_ID","ZPrimary Employee ID","X","","","0003","","","","","","","","2","00","","","","00000000","K","ZPRIM_ID","A","","","H","","","","","","00000000","0000","","0","","","","","1","1","1","0","0","","","2","","0","DBE5O9AE5J0A07LY3SA9M3GU1","","","","","","","0000","","","",17,"D5ENPW16Z63T56VF4C1ESE4FT","D5ENPW16Z68F8WTZ1KN36YI2H","Female Temp PT","0006","","S","","L","X","IOBJ","Z_EMP_HCT","","Employee Headcount",null,null,null,null,null,null,17,"0ORGUNIT","0CRMSRVTGRP","Ex. CRM Service Org.","0000","X","1","0","0","","","","","0000","",null,null,null,null,null,17,"D5ENPW16Z64KTT76FVH0UTIPL","D5B6FGJCS8J4K8Y7ZG3TXSC8P","","","","","","00","X","0","0","","",null,null,null,null,null,null,null,null,null,null,null,null,null,null,null,null,null,null,null,null,null,null,null,null,null,null,null,null,null,null,null,null,null,null,null,null,20,"ZBUDH","1","P","I","EQ","20120331","31/03/2012","","","","0","","0","","0","Master Data Key Date","60","","","0DATE","20120331",null,null,null,null,null,null,null,null,null,null,null,null,null,null,null,null,null,null,null,null,null,null,null,null,null,null,null,null,17,"0000000010",""]
[null,0,"DBE5O9AE5J44FB8QPHGBY8G6X",true,true,"SAPBEXq0009",2,2,false,null,null,true,false,null,true,false,0,null,5,true,false,null,null,false,false,false,null,null,null,null,18,"0EMPLGROUP","Employee Group","X","","","0004","","","","","","","","1","00","","","","00000000","K","0EMPLGROUP","A","","","H","","","","","","00000000","0000","","0","","","","","1","1","1","0","0","","","2","","0","DBE5O9AE5J11OTXPFBPVOIV3T","","","","","","","0000","","","",17,"D5B6FGJCS8AO1FCVGIC372Z95","D5B6FGJCS8FA55BFDQXRLNCVT","CR","0006","","S","","L","","","","","",null,null,null,null,null,null,17,"0ORGUNIT","0CRM_SALGRP","CRM Sales Group","0000","X","1","0","0","","","","","0000","",null,null,null,null,null,17,"D5ENPW16Z64KTT76FVH0UTIPL","D5B6FGJCS8JW8V9ZAZJG07QIH","","","","","","00","X","0","0","","",null,null,null,null,null,null,null,null,null,null,null,null,null,null,null,null,null,null,null,null,null,null,null,null,null,null,null,null,null,null,null,null,null,null,null,null,20,"ZZPERAR","1","M","","","","","","","","0","","0","","0","ZPersonnel Area","60","","","ZPERSAREA","",null,null,null,null,null,null,null,null,null,null,null,null,null,null,null,null,null,null,null,null,null,null,null,null,null,null,null,null,17,"0000000109","0"]
[null,0,"DBE5O9AE5J44FB8QPHGBY8G6X",true,true,"SAPBEXq0010",2,2,false,null,null,true,false,null,true,false,0,null,5,true,false,null,null,false,false,false,null,null,null,null,18,"0PERS_SAREA","Personnel Subarea","X","","","0005","","","","","","","","1","00","","","","00000000","K","0PERS_SAREA","A","","","H","","","","","","00000000","0000","","0","","","","","1","1","1","0","0","","","2","","0","DBE5O9AE5J1TDG9GQV5HQY9DL","","","","","","","0000","","","",17,"D5ENPW16Z63T56VF4C1ESE4FT","D5ENPW16Z696XJ5QD42P9DWC9","Female Perm FT","0007","","S","","L","X","IOBJ","Z_EMP_HCT","","Employee Headcount",null,null,null,null,null,null,17,"0ORGUNIT","0CRM_SALOFF","CRM Sales Office","0000","X","1","0","0","","","","","0000","",null,null,null,null,null,17,"D5ENPW16Z64KTT76FVH0UTIPL","D5B6FGJCS8KNXHLQMIZ22N4S9","","","","","","00","X","0","0","","",null,null,null,null,null,null,null,null,null,null,null,null,null,null,null,null,null,null,null,null,null,null,null,null,null,null,null,null,null,null,null,null,null,null,null,null,15,"ZS_DT_1","1","P","I","EQ","20120930","30/09/2012","","","","0","","0","","0","Target date 1","60","","","ZEMP_STRT","20120930",null,null,null,null,null,null,null,null,null,null,null,null,null,null,null,null,null,null,null,null,null,null,null,null,null,null,null,null,17,"0000000113",""]
[null,0,"DBE5O9AE5J44FB8QPHGBY8G6X",true,true,"SAPBEXq0011",2,2,false,null,null,true,false,null,true,false,2,null,5,true,false,null,null,null,false,false,null,null,null,null,18,"0ORGUNIT","Organizational Unit","X","","","0006","","","","","","","U","1","02","X","ORGEH","000","20120331","K","0ORGUNIT","A","","","H","0ORGUNIT","A","","","","00000000","0000","","0","","","","2","1","1","1","0","0","","","","","0","DBE5O9AE5J2L22L82EL3TDNND","","","","","","","0000","","","",17,"D5B6FGJCS8AO1FCVGIC372Z95","D5B6FGJCS8G1TRN6PADDO2R5L","IP","0007","","S","","L","","","","","",null,null,null,null,null,null,17,"0ORGUNIT","0CRM_SALORG","CRM Sales Org.","0000","X","1","0","0","","","","","0000","",null,null,null,null,null,17,"D5ENPW16Z64KTT76FVH0UTIPL","D5B6FGJCS8LFM3XHY2EO52J21","","","","","","00","X","0","0","","",null,null,null,null,null,null,null,null,null,null,null,null,null,null,null,null,null,null,null,null,null,null,null,null,null,null,null,null,null,null,null,null,null,null,null,null,15,"ZBUDH","1","P","I","EQ","20120930","30/09/2012","","","","0","","0","","0","Master Data Key Date","60","","","0DATE","20120930",null,null,null,null,null,null,null,null,null,null,null,null,null,null,null,null,null,null,null,null,null,null,null,null,null,null,null,null,17,"0000000020",""]
[null,0,"DBE5O9AE5J44FB8QPHGBY8G6X",true,true,"SAPBEXq0012",2,2,false,null,null,true,false,null,true,false,2,null,5,true,false,null,null,null,false,false,null,null,null,null,18,"D5B6FGJCS8AO1FCVGIC372Z95","Job Families Incl Teach","","X","X","0001","","","","","","","U","","00","","","","","K","D5B6FGJCS8AO1FCVGIC372Z95","A","","","","","","","","","00000000","0000","","0","","","","","0","0","0","0","0","","","","","","D5B6FGJCS8AO1FCVGIC372Z95","","","","","","","0000","","","",17,"D5ENPW16Z63T56VF4C1ESE4FT","D5ENPW16Z69YM5HHONIBBTAM1","Female Perm PT","0008","","S","","L","X","IOBJ","Z_EMP_HCT","","Employee Headcount",null,null,null,null,null,null,17,"0ORGUNIT","0CRM_SRVORG","Service Org. CRM","0000","X","1","0","0","","","","","0000","",null,null,null,null,null,17,"D5ENPW16Z64KTT76FVH0UTIPL","D5B6FGJCS8M7AQ999LUA7HXBT","","","","","","00","X","0","0","","",null,null,null,null,null,null,null,null,null,null,null,null,null,null,null,null,null,null,null,null,null,null,null,null,null,null,null,null,null,null,null,null,null,null,null,null,15,"ZZPERAR","1","M","","","","","","","","0","","0","","0","ZPersonnel Area","60","","","ZPERSAREA","",null,null,null,null,null,null,null,null,null,null,null,null,null,null,null,null,null,null,null,null,null,null,null,null,null,null,null,null,17,"0000000030",""]
[null,0,"DBE5O9AE5J44FB8QPHGBY8G6X",true,true,"SAPBEXq0013",2,2,false,null,null,true,false,null,true,false,2,null,5,true,false,null,null,null,false,false,null,null,null,null,18,"D5ENPW16Z63T56VF4C1ESE4FT","Breakdown Gender Contract FTPT","","X","Y","0001","","","","","","","U","","00","","","","","K","D5ENPW16Z63T56VF4C1ESE4FT","A","","","","","","","","","00000000","0000","X","0","","","","","0","0","0","0","0","","","","","","D5ENPW16Z63T56VF4C1ESE4FT","","","","","","","0000","","","",17,"D5B6FGJCS8AO1FCVGIC372Z95","D5B6FGJCS8GTIDYY0TSZQI5FD","LS","0008","","S","","L","","","","","",null,null,null,null,null,null,17,"0ORGUNIT","0LOGSYS","Source System","0000","X","1","0","0","","","","","0000","",null,null,null,null,null,17,"D5ENPW16Z64KTT76FVH0UTIPL","D5B6FGJCS8MYZCL0L59W9XBLL","0","0","","","","00","X","0","0","","",null,null,null,null,null,null,null,null,null,null,null,null,null,null,null,null,null,null,null,null,null,null,null,null,null,null,null,null,null,null,null,null,null,null,null,null,16,"ZS_DT_1","1","P","I","EQ","20120930","30/09/2012","","","","0","","0","","0","Target date 1","60","","","ZEMP_STRT","20120930",null,null,null,null,null,null,null,null,null,null,null,null,null,null,null,null,null,null,null,null,null,null,null,null,null,null,null,null,17,"0000000040",""]
[null,0,"DBE5O9AE5J44FB8QPHGBY8G6X",true,true,"SAPBEXq0015",2,2,false,null,null,true,false,null,true,false,2,null,5,true,false,null,null,null,false,false,null,null,null,null,19,"ZPERID","NI Number","X","","","0001","","","","","","","","2","00","","","","00000000","K","ZPERID","A","","","H","","","","","","00000000","0000","","0","","","","","1","1","1","0","0","","","2","","0","DBE5O9AE5IYQMYYFGPF1H8OAH","","","","","","","0000","","","",17,"D5B6FGJCS8AO1FCVGIC372Z95","D5B6FGJCS8HL70APCD8LSXJP5","PC","0009","","S","","L","","","","","",null,null,null,null,null,null,17,"0ORGUNIT","0MAST_CCTR","Master Cost Center","0000","X","0","0","0","","","","","0000","",null,null,null,null,null,17,"D5ENPW16Z64KTT76FVH0UTIPL","D5B6FGJCS8NQNYWRWOPICCPVD","","","","","","00","X","0","0","","",null,null,null,null,null,null,null,null,null,null,null,null,null,null,null,null,null,null,null,null,null,null,null,null,null,null,null,null,null,null,null,null,null,null,null,null,16,"ZBUDH","1","P","I","EQ","20120930","30/09/2012","","","","0","","0","","0","Master Data Key Date","60","","","0DATE","20120930",null,null,null,null,null,null,null,null,null,null,null,null,null,null,null,null,null,null,null,null,null,null,null,null,null,null,null,null,17,"0000000041",""]
[null,0,"DE0LJZ6IGUGTDCE3K7214RMD5",true,true,"SAPBEXq0002",2,2,false,null,null,true,false,null,true,false,0,null,5,true,false,null,null,false,false,false,null,null,null,null,19,"ZPERSAREA","ZPersonal Area","X","","","0002","","Land and Environmental","","","","","","5","00","","","","00000000","K","ZPERSAREA","A","","","H","","","","","","00000000","0000","","0","","1","","","1","1","1","0","0","","","2","","0","DBE5O9AE5IZIBLA6S8UNJO2K9","","","","","","","0000","","","",17,"D5B6FGJCS8AO1FCVGIC372Z95","D5B6FGJCS8ICVMMGNWO7VCXYX","PH","0010","","S","","L","","","","","",null,null,null,null,null,null,17,"0ORGUNIT","0PERS_AREA","Personnel Area","0000","X","1","0","0","","","","","0000","",null,null,null,null,null,17,"D5ENPW16Z64KTT76FVH0UTIPL","D5B6FGJCS8OICL8J8854ES455","0","0","","","","00","X","0","0","","",null,null,null,null,null,null,null,null,null,null,null,null,null,null,null,null,null,null,null,null,null,null,null,null,null,null,null,null,null,null,null,null,null,null,null,null,16,"ZZPERAR","1","M","","","","","","","","0","","0","","0","ZPersonnel Area","60","","","ZPERSAREA","",null,null,null,null,null,null,null,null,null,null,null,null,null,null,null,null,null,null,null,null,null,null,null,null,null,null,null,null,17,"0000000042","00"]
[null,0,"DE0LR9Y5OPGMW2PREJBS9X8FT",true,true,"SAPBEXq0003",2,2,false,null,null,true,false,null,true,false,0,null,5,true,false,null,null,false,false,false,null,null,null,null,19,"ZPRIM_ID","ZPrimary Employee ID","X","","","0003","","","","","","","","2","00","","","","00000000","K","ZPRIM_ID","A","","","H","","","","","","00000000","0000","","0","","","","","1","1","1","0","0","","","2","","0","DBE5O9AE5J0A07LY3SA9M3GU1","","","","","","","0000","","","",17,"D5B6FGJCS8AO1FCVGIC372Z95","D5B6FGJCS8J4K8Y7ZG3TXSC8P","SE","0011","","S","","L","","","","","",null,null,null,null,null,null,17,"0ORGUNIT","0PERS_SAREA","Personnel Subarea","0000","X","1","0","0","","","","","0000","",null,null,null,null,null,17,"D5ENPW16Z65CIFIXREWMX8WZD","D5B6FGJCS8BFQ1OMS1RP9IDIX","","","","","","00","X","0","0","","",null,null,null,null,null,null,null,null,null,null,null,null,null,null,null,null,null,null,null,null,null,null,null,null,null,null,null,null,null,null,null,null,null,null,null,null,21,"ZS_DT_1","1","P","I","EQ","20120930","30/09/2012","","","","0","","0","","0","Target date 1","60","","","ZEMP_STRT","20120930",null,null,null,null,null,null,null,null,null,null,null,null,null,null,null,null,null,null,null,null,null,null,null,null,null,null,null,null,17,"0000000043","00"]
[null,0,"DE0LJZ6IGUGTDCE3K7214RMD5",true,true,"SAPBEXq0004",2,2,false,null,null,true,false,null,true,false,0,null,5,true,false,null,null,false,false,false,null,null,null,null,19,"0EMPLGROUP","Employee Group","X","","","0004","","","","","","","","1","00","","","","00000000","K","0EMPLGROUP","A","","","H","","","","","","00000000","0000","","0","","","","","1","1","1","0","0","","","2","","0","DBE5O9AE5J11OTXPFBPVOIV3T","","","","","","","0000","","","",17,"D5B6FGJCS8AO1FCVGIC372Z95","D5B6FGJCS8JW8V9ZAZJG07QIH","SR","0012","","S","","L","","","","","",null,null,null,null,null,null,17,"0ORGUNIT","0PLANT","Plant","0000","X","0","0","0","","","","","0000","",null,null,null,null,null,17,"D5ENPW16Z65CIFIXREWMX8WZD","D5B6FGJCS8C7EO0E3L7BBXRSP","","","","","","00","X","0","0","","",null,null,null,null,null,null,null,null,null,null,null,null,null,null,null,null,null,null,null,null,null,null,null,null,null,null,null,null,null,null,null,null,null,null,null,null,21,"ZBUDH","1","P","I","EQ","20120930","30/09/2012","","","","0","","0","","0","Master Data Key Date","60","","","0DATE","20120930",null,null,null,null,null,null,null,null,null,null,null,null,null,null,null,null,null,null,null,null,null,null,null,null,null,null,null,null,17,"0000000021",""]
[null,0,"DE0LJZ6IGUGTDCE3K7214RMD5",true,true,"SAPBEXq0005",2,2,false,null,null,true,false,null,true,false,0,null,5,true,false,null,null,false,false,false,null,null,null,null,19,"0PERS_SAREA","Personnel Subarea","X","","","0005","","","","","","","","1","00","","","","00000000","K","0PERS_SAREA","A","","","H","","","","","","00000000","0000","","0","","","","","1","1","1","0","0","","","2","","0","DBE5O9AE5J1TDG9GQV5HQY9DL","","","","","","","0000","","","",17,"D5B6FGJCS8AO1FCVGIC372Z95","D5B6FGJCS8KNXHLQMIZ22N4S9","TS","0013","","S","","L","","","","","",null,null,null,null,null,null,17,"0ORGUNIT","0PURCH_ORG","Purchasing org.","0000","X","0","0","0","","","","","0000","",null,null,null,null,null,17,"D5ENPW16Z65CIFIXREWMX8WZD","D5B6FGJCS8CZ3AC5F4MXED62H","","","","","","00","X","0","0","","",null,null,null,null,null,null,null,null,null,null,null,null,null,null,null,null,null,null,null,null,null,null,null,null,null,null,null,null,null,null,null,null,null,null,null,null,21,"ZZPERAR","1","M","","","","","","","","0","","0","","0","ZPersonnel Area","60","","","ZPERSAREA","",null,null,null,null,null,null,null,null,null,null,null,null,null,null,null,null,null,null,null,null,null,null,null,null,null,null,null,null,17,"0000000022",""]
[null,0,"DE0LJZ6IGUGTDCE3K7214RMD5",true,true,"SAPBEXq0006",2,2,false,null,null,true,false,null,true,false,0,null,5,true,false,null,null,false,false,false,null,null,null,null,19,"0ORGUNIT","Organizational Unit","X","","","0006","","Land & Environmental Serv Org Struct","","","","","U","1","02","X","ORGEH","000","20120331","K","0ORGUNIT","A","","","H","0ORGUNIT","A","","","","00000000","0000","","0","","1","","2","1","1","1","0","0","","","","","0","DBE5O9AE5J2L22L82EL3TDNND","","","","","","","0000","","","",17,"D5B6FGJCS8AO1FCVGIC372Z95","D5B6FGJCS8LFM3XHY2EO52J21","VE","0014","","S","","L","","","","","",null,null,null,null,null,null,17,"0ORGUNIT","0PUR_GROUP","Purchasing group","0000","X","0","0","0","","","","","0000","",null,null,null,null,null,17,"D5ENPW16Z65CIFIXREWMX8WZD","D5B6FGJCS8DQRWNWQO2JGSKC9","","","","","","00","X","0","0","","",null,null,null,null,null,null,null,null,null,null,null,null,null,null,null,null,null,null,null,null,null,null,null,null,null,null,null,null,null,null,null,null,null,null,null,null,32,"ZS_DT_1","1","P","I","EQ","20121231","31/12/2012","","","","0","","0","","0","Target date 1","60","","","ZEMP_STRT","20121231",null,null,null,null,null,null,null,null,null,null,null,null,null,null,null,null,null,null,null,null,null,null,null,null,null,null,null,null,17,"0000000023",""]
[null,0,"DE0LJZ6IGUGTDCE3K7214RMD5",true,true,"SAPBEXq0007",2,2,false,null,null,true,false,null,true,false,0,null,5,true,false,null,null,false,false,false,null,null,null,null,19,"D5B6FGJCS8AO1FCVGIC372Z95","Job Families Incl Teach","","X","X","0001","","","","","","","U","","00","","","","","K","D5B6FGJCS8AO1FCVGIC372Z95","A","","","","","","","","","00000000","0000","","0","","","","","0","0","0","0","0","","","","","","D5B6FGJCS8AO1FCVGIC372Z95","","","","","","","0000","","","",17,"D5B6FGJCS8AO1FCVGIC372Z95","D5B6FGJCS8M7AQ999LUA7HXBT","Teachers","0015","","S","","L","","","","","",null,null,null,null,null,null,17,"0ORGUNIT","0SALESORG","Sales Organization","0000","X","0","0","0","","","","","0000","",null,null,null,null,null,17,"D5ENPW16Z65CIFIXREWMX8WZD","D5B6FGJCS8EIGIZO27I5J7YM1","","","","","","00","X","0","0","","",null,null,null,null,null,null,null,null,null,null,null,null,null,null,null,null,null,null,null,null,null,null,null,null,null,null,null,null,null,null,null,null,null,null,null,null,32,"ZBUDH","1","P","I","EQ","20121231","31/12/2012","","","","0","","0","","0","Master Data Key Date","60","","","0DATE","20121231",null,null,null,null,null,null,null,null,null,null,null,null,null,null,null,null,null,null,null,null,null,null,null,null,null,null,null,null,17,"0000010002","DBE5O9AE5IU4J8ZVJGTD2OANT"]
[null,0,"DE0LJZ6IGUGTDCE3K7214RMD5",true,true,"SAPBEXq0017",2,2,false,null,null,true,false,null,true,false,0,null,5,true,false,null,null,false,false,false,null,null,null,null,19,"D5ENPW16Z63T56VF4C1ESE4FT","Breakdown Gender Contract FTPT","","X","Y","0001","","","","","","","U","","00","","","","","K","D5ENPW16Z63T56VF4C1ESE4FT","A","","","","","","","","","00000000","0000","X","0","","","","","0","0","0","0","0","","","","","","D5ENPW16Z63T56VF4C1ESE4FT","","","","","","","0000","","","",17,"D5B6FGJCS8AO1FCVGIC372Z95","D5B6FGJCS8MYZCL0L59W9XBLL","Total Employees","0016","","F","","L","","","","","",null,null,null,null,null,null,17,"0ORGUNIT","0SALES_GRP","Sales group","0000","X","0","0","0","","","","","0000","",null,null,null,null,null,17,"D5ENPW16Z65CIFIXREWMX8WZD","D5B6FGJCS8FA55BFDQXRLNCVT","","","","","","00","X","0","0","","",null,null,null,null,null,null,null,null,null,null,null,null,null,null,null,null,null,null,null,null,null,null,null,null,null,null,null,null,null,null,null,null,null,null,null,null,32,"ZZPERAR","1","M","","","","","","","","0","","0","","0","ZPersonnel Area","60","","","ZPERSAREA","",null,null,null,null,null,null,null,null,null,null,null,null,null,null,null,null,null,null,null,null,null,null,null,null,null,null,null,null,17,"0000000105",""]
[null,0,"DE0LJZ6IGUGTDCE3K7214RMD5",true,true,"SAPBEXq0018",2,2,false,null,null,true,false,null,true,false,0,null,5,true,false,null,null,false,false,false,null,null,null,null,20,"ZPERID","NI Number","X","","","0001","","","","","","","","2","00","","","","00000000","K","ZPERID","A","","","H","","","","","","00000000","0000","","0","","","","","1","1","1","0","0","","","2","","0","DBE5O9AE5IYQMYYFGPF1H8OAH","","","","","","","0000","","","",17,"D5B6FGJCS8AO1FCVGIC372Z95","D5B6FGJCS8NQNYWRWOPICCPVD","All Employees","0017","X","S","","L","","","","","",null,null,null,null,null,null,17,"0ORGUNIT","0SALES_OFF","Sales Office","0000","X","0","0","0","","","","","0000","",null,null,null,null,null,17,"D5ENPW16Z65CIFIXREWMX8WZD","D5B6FGJCS8G1TRN6PADDO2R5L","","","","","","00","X","0","0","","",null,null,null,null,null,null,null,null,null,null,null,null,null,null,null,null,null,null,null,null,null,null,null,null,null,null,null,null,null,null,null,null,null,null,null,null,31,"ZS_DT_1","1","P","I","EQ","20121231","31/12/2012","","","","0","","0","","0","Target date 1","60","","","ZEMP_STRT","20121231",null,null,null,null,null,null,null,null,null,null,null,null,null,null,null,null,null,null,null,null,null,null,null,null,null,null,null,null,17,"0000000106",""]
[null,0,"DE0LJZ6IGUGTDCE3K7214RMD5",true,true,"SAPBEXq0021",2,2,false,null,null,true,false,null,true,false,0,null,5,true,false,null,null,false,false,false,null,null,null,null,20,"ZPERSAREA","ZPersonal Area","X","","","0002","","Social Work","","","","","","5","00","","","","00000000","K","ZPERSAREA","A","","","H","","","","","","00000000","0000","","0","","1","","","1","1","1","0","0","","","2","","0","DBE5O9AE5IZIBLA6S8UNJO2K9","","","","","","","0000","","","",17,"D5B6FGJCS8AO1FCVGIC372Z95","D5B6FGJCS8OICL8J8854ES455","Non WPBR","0018","","F","","L","","","","","",null,null,null,null,null,null,18,"0ORGUNIT","0BBPPURGRPX","Ind.Purchasing Group","0000","X","2","0","0","","","","","0000","",null,null,null,null,null,17,"D5ENPW16Z65CIFIXREWMX8WZD","D5B6FGJCS8GTIDYY0TSZQI5FD","","","","","","00","X","0","0","","",null,null,null,null,null,null,null,null,null,null,null,null,null,null,null,null,null,null,null,null,null,null,null,null,null,null,null,null,null,null,null,null,null,null,null,null,31,"ZBUDH","1","P","I","EQ","20121231","31/12/2012","","","","0","","0","","0","Master Data Key Date","60","","","0DATE","20121231",null,null,null,null,null,null,null,null,null,null,null,null,null,null,null,null,null,null,null,null,null,null,null,null,null,null,null,null,17,"0000000112","0"]
[null,0,"DE0LJZ6IGUGTDCE3K7214RMD5",true,true,"SAPBEXq0026",2,2,false,null,null,true,false,null,true,false,0,null,5,true,false,null,null,false,false,false,null,null,null,null,20,"ZPRIM_ID","ZPrimary Employee ID","X","","","0003","","","","","","","","2","00","","","","00000000","K","ZPRIM_ID","A","","","H","","","","","","00000000","0000","","0","","","","","1","1","1","0","0","","","2","","0","DBE5O9AE5J0A07LY3SA9M3GU1","","","","","","","0000","","","",18,"D5ENPW16Z63T56VF4C1ESE4FT","D5ENPW16Z64KTT76FVH0UTIPL","Male Temp FT","0001","","S","","L","X","IOBJ","Z_EMP_HCT","","Employee Headcount",null,null,null,null,null,null,18,"0ORGUNIT","0BBPPURORGX","Ind. Purchasing Org.","0000","X","2","0","0","","","","","0000","",null,null,null,null,null,17,"D5ENPW16Z65CIFIXREWMX8WZD","D5B6FGJCS8HL70APCD8LSXJP5","","","","","","00","X","0","0","","",null,null,null,null,null,null,null,null,null,null,null,null,null,null,null,null,null,null,null,null,null,null,null,null,null,null,null,null,null,null,null,null,null,null,null,null,31,"ZZPERAR","1","M","","","","","","","","0","","0","","0","ZPersonnel Area","60","","","ZPERSAREA","",null,null,null,null,null,null,null,null,null,null,null,null,null,null,null,null,null,null,null,null,null,null,null,null,null,null,null,null,17,"0000000200","X"]
[null,0,"DBE5O9AE5J44FB8QPHGBY8G6X",true,true,"SAPBEXq0028",2,2,false,null,null,true,false,null,true,false,0,null,5,true,false,null,null,false,false,false,null,null,null,null,20,"0EMPLGROUP","Employee Group","X","","","0004","","","","","","","","1","00","","","","00000000","K","0EMPLGROUP","A","","","H","","","","","","00000000","0000","","0","","","","","1","1","1","0","0","","","2","","0","DBE5O9AE5J11OTXPFBPVOIV3T","","","","","","","0000","","","",18,"D5B6FGJCS8AO1FCVGIC372Z95","D5B6FGJCS8BFQ1OMS1RP9IDIX","BS","0001","","S","","L","","","","","",null,null,null,null,null,null,18,"0ORGUNIT","0BBP_BUYID","Buyer ID","0000","X","5","0","0","","","","","0000","",null,null,null,null,null,17,"D5ENPW16Z65CIFIXREWMX8WZD","D5B6FGJCS8ICVMMGNWO7VCXYX","","","","","","00","X","0","0","","",null,null,null,null,null,null,null,null,null,null,null,null,null,null,null,null,null,null,null,null,null,null,null,null,null,null,null,null,null,null,null,null,null,null,null,null,33,"ZS_DT_1","1","P","I","EQ","20121231","31/12/2012","","","","0","","0","","0","Target date 1","60","","","ZEMP_STRT","20121231",null,null,null,null,null,null,null,null,null,null,null,null,null,null,null,null,null,null,null,null,null,null,null,null,null,null,null,null,17,"0000004000","X"]
[null,0,"DBE5O9AE5J44FB8QPHGBY8G6X",true,true,"SAPBEXq0029",2,2,false,null,null,true,false,null,true,false,0,null,5,true,false,null,null,false,false,false,null,null,null,null,20,"0PERS_SAREA","Personnel Subarea","X","","","0005","","","","","","","","1","00","","","","00000000","K","0PERS_SAREA","A","","","H","","","","","","00000000","0000","","0","","","","","1","1","1","0","0","","","2","","0","DBE5O9AE5J1TDG9GQV5HQY9DL","","","","","","","0000","","","",18,"D5ENPW16Z63T56VF4C1ESE4FT","D5ENPW16Z65CIFIXREWMX8WZD","Male Temp PT","0002","","S","","L","X","IOBJ","Z_EMP_HCT","","Employee Headcount",null,null,null,null,null,null,18,"0ORGUNIT","0BBP_ISCOMP","Organizational Unit is Company","0000","X","1","0","0","","","","","0000","",null,null,null,null,null,17,"D5ENPW16Z65CIFIXREWMX8WZD","D5B6FGJCS8J4K8Y7ZG3TXSC8P","","","","","","00","X","0","0","","",null,null,null,null,null,null,null,null,null,null,null,null,null,null,null,null,null,null,null,null,null,null,null,null,null,null,null,null,null,null,null,null,null,null,null,null,33,"ZBUDH","1","P","I","EQ","20121231","31/12/2012","","","","0","","0","","0","Master Data Key Date","60","","","0DATE","20121231",null,null,null,null,null,null,null,null,null,null,null,null,null,null,null,null,null,null,null,null,null,null,null,null,null,null,null,null,17,"0000009001","QSW Breakdown By Job Family excl cas sess"]
[null,0,"DBE5O9AE5J44FB8QPHGBY8G6X",true,true,"SAPBEXq0030",2,2,false,null,null,true,false,null,true,false,0,null,5,true,false,null,null,false,false,false,null,null,null,null,20,"0ORGUNIT","Organizational Unit","X","","","0006","","","","","","","U","1","02","X","ORGEH","000","20120331","K","0ORGUNIT","A","","","H","0ORGUNIT","A","","","","00000000","0000","","0","","","","2","1","1","1","0","0","","","","","0","DBE5O9AE5J2L22L82EL3TDNND","","","","","","","0000","","","",18,"D5B6FGJCS8AO1FCVGIC372Z95","D5B6FGJCS8C7EO0E3L7BBXRSP","CV","0002","","S","","L","","","","","",null,null,null,null,null,null,18,"0ORGUNIT","0BUS_AREA","Business area","0000","X","0","0","0","","","","","0000","",null,null,null,null,null,17,"D5ENPW16Z65CIFIXREWMX8WZD","D5B6FGJCS8JW8V9ZAZJG07QIH","","","","","","00","X","0","0","","",null,null,null,null,null,null,null,null,null,null,null,null,null,null,null,null,null,null,null,null,null,null,null,null,null,null,null,null,null,null,null,null,null,null,null,null,33,"ZZPERAR","1","M","","","","","","","","0","","0","","0","ZPersonnel Area","60","","","ZPERSAREA","",null,null,null,null,null,null,null,null,null,null,null,null,null,null,null,null,null,null,null,null,null,null,null,null,null,null,null,null,17,"0000000114","1"]
[null,0,"DBE5O9AE5J44FB8QPHGBY8G6X",true,true,"SAPBEXq0031",2,2,false,null,null,true,false,null,true,false,0,null,5,true,false,null,null,false,false,false,null,null,null,null,20,"D5B6FGJCS8AO1FCVGIC372Z95","Job Families Incl Teach","","X","X","0001","","","","","","","U","","00","","","","","K","D5B6FGJCS8AO1FCVGIC372Z95","A","","","","","","","","","00000000","0000","","0","","","","","0","0","0","0","0","","","","","","D5B6FGJCS8AO1FCVGIC372Z95","","","","","","","0000","","","",18,"D5ENPW16Z63T56VF4C1ESE4FT","D5ENPW16Z66471UP2YC8ZOB95","Male Perm FT","0003","","S","","L","X","IOBJ","Z_EMP_HCT","","Employee Headcount",null,null,null,null,null,null,18,"0ORGUNIT","0COMP_CODE","Company code","0000","X","0","0","0","","","","","0000","",null,null,null,null,null,17,"D5ENPW16Z65CIFIXREWMX8WZD","D5B6FGJCS8KNXHLQMIZ22N4S9","","","","","","00","X","0","0","","",null,null,null,null,null,null,null,null,null,null,null,null,null,null,null,null,null,null,null,null,null,null,null,null,null,null,null,null,null,null,null,null,null,null,null,null,34,"ZS_DT_1","1","P","I","EQ","20121231","31/12/2012","","","","0","","0","","0","Target date 1","60","","","ZEMP_STRT","20121231",null,null,null,null,null,null,null,null,null,null,null,null,null,null,null,null,null,null,null,null,null,null,null,null,null,null,null,null,18,"0000000100","X"]
[null,0,"DBE5O9AE5J44FB8QPHGBY8G6X",true,true,"SAPBEXq0032",2,2,false,null,null,true,false,null,true,false,0,null,5,true,false,null,null,false,false,false,null,null,null,null,20,"D5ENPW16Z63T56VF4C1ESE4FT","Breakdown Gender Contract FTPT","","X","Y","0001","","","","","","","U","","00","","","","","K","D5ENPW16Z63T56VF4C1ESE4FT","A","","","","","","","","","00000000","0000","X","0","","","","","0","0","0","0","0","","","","","","D5ENPW16Z63T56VF4C1ESE4FT","","","","","","","0000","","","",18,"D5B6FGJCS8AO1FCVGIC372Z95","D5B6FGJCS8CZ3AC5F4MXED62H","CA","0003","","S","","L","","","","","",null,null,null,null,null,null,18,"0ORGUNIT","0CO_MST_AR","Controlling Area of Master Cost Center","0000","X","0","0","0","","","","","0000","",null,null,null,null,null,17,"D5ENPW16Z65CIFIXREWMX8WZD","D5B6FGJCS8LFM3XHY2EO52J21","","","","","","00","X","0","0","","",null,null,null,null,null,null,null,null,null,null,null,null,null,null,null,null,null,null,null,null,null,null,null,null,null,null,null,null,null,null,null,null,null,null,null,null,34,"ZBUDH","1","P","I","EQ","20121231","31/12/2012","","","","0","","0","","0","Master Data Key Date","60","","","0DATE","20121231",null,null,null,null,null,null,null,null,null,null,null,null,null,null,null,null,null,null,null,null,null,null,null,null,null,null,null,null,18,"0000000108",""]
[null,0,"DBE5O9AE5J44FB8QPHGBY8G6X",true,true,"SAPBEXq0033",2,2,false,null,null,true,false,null,true,false,0,null,5,true,false,null,null,false,false,false,null,null,null,null,15,"ZPERID","NI Number","X","","","0001","","","","","","","","2","00","","","","00000000","K","ZPERID","A","","","H","","","","","","00000000","0000","","0","","","","","1","1","1","0","0","","","2","","0","DBE5O9AE5IYQMYYFGPF1H8OAH","","","","","","","0000","","","",18,"D5ENPW16Z63T56VF4C1ESE4FT","D5ENPW16Z66VVO6GEHRV23PIX","Male Perm PT","0004","","S","","L","X","IOBJ","Z_EMP_HCT","","Employee Headcount",null,null,null,null,null,null,18,"0ORGUNIT","0CRMSALGRPX","Sls Group: Indicator","0000","X","2","0","0","","","","","0000","",null,null,null,null,null,17,"D5ENPW16Z65CIFIXREWMX8WZD","D5B6FGJCS8M7AQ999LUA7HXBT","","","","","","00","X","0","0","","",null,null,null,null,null,null,null,null,null,null,null,null,null,null,null,null,null,null,null,null,null,null,null,null,null,null,null,null,null,null,null,null,null,null,null,null,34,"ZZPERAR","1","M","","","","","","","","0","","0","","0","ZPersonnel Area","60","","","ZPERSAREA","",null,null,null,null,null,null,null,null,null,null,null,null,null,null,null,null,null,null,null,null,null,null,null,null,null,null,null,null,18,"0000000101",""]
[null,0,"DBE5O9AE5J44FB8QPHGBY8G6X",true,true,"SAPBEXq0034",2,2,false,null,null,true,false,null,true,false,0,null,5,true,false,null,null,false,false,false,null,null,null,null,15,"ZPERSAREA","ZPersonal Area","X","","","0002","","Chief Executive","","","","","","5","00","","","","00000000","K","ZPERSAREA","A","","","H","","","","","","00000000","0000","","0","","1","","","1","1","1","0","0","","","2","","0","DBE5O9AE5IZIBLA6S8UNJO2K9","","","","","","","0000","","","",18,"D5B6FGJCS8AO1FCVGIC372Z95","D5B6FGJCS8DQRWNWQO2JGSKC9","CF","0004","","S","","L","","","","","",null,null,null,null,null,null,18,"0ORGUNIT","0CRMSALOFFX","Sls Office:Indicator","0000","X","2","0","0","","","","","0000","",null,null,null,null,null,17,"D5ENPW16Z65CIFIXREWMX8WZD","D5B6FGJCS8MYZCL0L59W9XBLL","0","0","","","","00","X","0","0","","",null,null,null,null,null,null,null,null,null,null,null,null,null,null,null,null,null,null,null,null,null,null,null,null,null,null,null,null,null,null,null,null,null,null,null,null,35,"ZS_DT_1","1","P","I","EQ","20121231","31/12/2012","","","","0","","0","","0","Target date 1","60","","","ZEMP_STRT","20121231",null,null,null,null,null,null,null,null,null,null,null,null,null,null,null,null,null,null,null,null,null,null,null,null,null,null,null,null,18,"0000000104","1"]
[null,0,"DBE5O9AE5J44FB8QPHGBY8G6X",true,true,"SAPBEXq0035",2,2,false,null,null,true,false,null,true,false,0,null,5,true,false,null,null,false,false,false,null,null,null,null,15,"ZPRIM_ID","ZPrimary Employee ID","X","","","0003","","","","","","","","2","00","","","","00000000","K","ZPRIM_ID","A","","","H","","","","","","00000000","0000","","0","","","","","1","1","1","0","0","","","2","","0","DBE5O9AE5J0A07LY3SA9M3GU1","","","","","","","0000","","","",18,"D5B6FGJCS8AO1FCVGIC372Z95","D5B6FGJCS8EIGIZO27I5J7YM1","CU","0005","","S","","L","","","","","",null,null,null,null,null,null,18,"0ORGUNIT","0CRMSALORGX","Sales Org. Indicator","0000","X","2","0","0","","","","","0000","",null,null,null,null,null,17,"D5ENPW16Z65CIFIXREWMX8WZD","D5B6FGJCS8NQNYWRWOPICCPVD","","","","","","00","X","0","0","","",null,null,null,null,null,null,null,null,null,null,null,null,null,null,null,null,null,null,null,null,null,null,null,null,null,null,null,null,null,null,null,null,null,null,null,null,35,"ZBUDH","1","P","I","EQ","20121231","31/12/2012","","","","0","","0","","0","Master Data Key Date","60","","","0DATE","20121231",null,null,null,null,null,null,null,null,null,null,null,null,null,null,null,null,null,null,null,null,null,null,null,null,null,null,null,null,18,"0000000103",""]
[null,0,"DBE5O9AE5J44FB8QPHGBY8G6X",true,true,"SAPBEXq0036",2,2,false,null,null,true,false,null,true,false,0,null,5,true,false,null,null,false,false,false,null,null,null,null,15,"0EMPLGROUP","Employee Group","X","","","0004","","","","","","","","1","00","","","","00000000","K","0EMPLGROUP","A","","","H","","","","","","00000000","0000","","0","","","","","1","1","1","0","0","","","2","","0","DBE5O9AE5J11OTXPFBPVOIV3T","","","","","","","0000","","","",18,"D5ENPW16Z63T56VF4C1ESE4FT","D5ENPW16Z67NKAI7Q17H4J3SP","Female Temp FT","0005","","S","","L","X","IOBJ","Z_EMP_HCT","","Employee Headcount",null,null,null,null,null,null,18,"0ORGUNIT","0CRMSRVTGRP","Ex. CRM Service Org.","0000","X","1","0","0","","","","","0000","",null,null,null,null,null,17,"D5ENPW16Z65CIFIXREWMX8WZD","D5B6FGJCS8OICL8J8854ES455","0","0","","","","00","X","0","0","","",null,null,null,null,null,null,null,null,null,null,null,null,null,null,null,null,null,null,null,null,null,null,null,null,null,null,null,null,null,null,null,null,null,null,null,null,35,"ZZPERAR","1","M","","","","","","","","0","","0","","0","ZPersonnel Area","60","","","ZPERSAREA","",null,null,null,null,null,null,null,null,null,null,null,null,null,null,null,null,null,null,null,null,null,null,null,null,null,null,null,null,18,"0000000102","1"]
[null,0,"DBE5O9AE5J44FB8QPHGBY8G6X",true,true,"SAPBEXq0037",2,2,false,null,null,true,false,null,true,false,0,null,5,true,false,null,null,false,false,false,null,null,null,null,15,"0PERS_SAREA","Personnel Subarea","X","","","0005","","","","","","","","1","00","","","","00000000","K","0PERS_SAREA","A","","","H","","","","","","00000000","0000","","0","","","","","1","1","1","0","0","","","2","","0","DBE5O9AE5J1TDG9GQV5HQY9DL","","","","","","","0000","","","",18,"D5ENPW16Z63T56VF4C1ESE4FT","D5ENPW16Z68F8WTZ1KN36YI2H","Female Temp PT","0006","","S","","L","X","IOBJ","Z_EMP_HCT","","Employee Headcount",null,null,null,null,null,null,18,"0ORGUNIT","0CRM_SALGRP","CRM Sales Group","0000","X","1","0","0","","","","","0000","",null,null,null,null,null,17,"D5ENPW16Z66471UP2YC8ZOB95","D5B6FGJCS8BFQ1OMS1RP9IDIX","","","","","","00","X","0","0","","",null,null,null,null,null,null,null,null,null,null,null,null,null,null,null,null,null,null,null,null,null,null,null,null,null,null,null,null,null,null,null,null,null,null,null,null,36,"ZS_DT_1","1","P","I","EQ","20121231","31/12/2012","","","","0","","0","","0","Target date 1","60","","","ZEMP_STRT","20121231",null,null,null,null,null,null,null,null,null,null,null,null,null,null,null,null,null,null,null,null,null,null,null,null,null,null,null,null,18,"0000009000",""]
[null,0,"DBE5O9AE5J44FB8QPHGBY8G6X",true,true,"SAPBEXq0038",2,2,false,null,null,true,false,null,true,false,0,null,5,true,false,null,null,false,false,false,null,null,null,null,15,"0ORGUNIT","Organizational Unit","X","","","0006","","","","","","","U","1","02","X","ORGEH","000","20120930","K","0ORGUNIT","A","","","H","0ORGUNIT","A","","","","00000000","0000","","0","","","","2","1","1","1","0","0","","","","","0","DBE5O9AE5J2L22L82EL3TDNND","","","","","","","0000","","","",18,"D5B6FGJCS8AO1FCVGIC372Z95","D5B6FGJCS8FA55BFDQXRLNCVT","CR","0006","","S","","L","","","","","",null,null,null,null,null,null,18,"0ORGUNIT","0CRM_SALOFF","CRM Sales Office","0000","X","1","0","0","","","","","0000","",null,null,null,null,null,17,"D5ENPW16Z66471UP2YC8ZOB95","D5B6FGJCS8C7EO0E3L7BBXRSP","","","","","","00","X","0","0","","",null,null,null,null,null,null,null,null,null,null,null,null,null,null,null,null,null,null,null,null,null,null,null,null,null,null,null,null,null,null,null,null,null,null,null,null,36,"ZBUDH","1","P","I","EQ","20121231","31/12/2012","","","","0","","0","","0","Master Data Key Date","60","","","0DATE","20121231",null,null,null,null,null,null,null,null,null,null,null,null,null,null,null,null,null,null,null,null,null,null,null,null,null,null,null,null,18,"0000000107","DBE5O9AE5IU4J8ZVJGTD2OANT"]
[null,0,"DBE5O9AE5J44FB8QPHGBY8G6X",true,true,"SAPBEXq0039",2,2,false,null,null,true,false,null,true,false,0,null,5,true,false,null,null,false,false,false,null,null,null,null,15,"D5B6FGJCS8AO1FCVGIC372Z95","Job Families Incl Teach","","X","X","0001","","","","","","","U","","00","","","","","K","D5B6FGJCS8AO1FCVGIC372Z95","A","","","","","","","","","00000000","0000","","0","","","","","0","0","0","0","0","","","","","","D5B6FGJCS8AO1FCVGIC372Z95","","","","","","","0000","","","",18,"D5ENPW16Z63T56VF4C1ESE4FT","D5ENPW16Z696XJ5QD42P9DWC9","Female Perm FT","0007","","S","","L","X","IOBJ","Z_EMP_HCT","","Employee Headcount",null,null,null,null,null,null,18,"0ORGUNIT","0CRM_SALORG","CRM Sales Org.","0000","X","1","0","0","","","","","0000","",null,null,null,null,null,17,"D5ENPW16Z66471UP2YC8ZOB95","D5B6FGJCS8CZ3AC5F4MXED62H","","","","","","00","X","0","0","","",null,null,null,null,null,null,null,null,null,null,null,null,null,null,null,null,null,null,null,null,null,null,null,null,null,null,null,null,null,null,null,null,null,null,null,null,36,"ZZPERAR","1","M","","","","","","","","0","","0","","0","ZPersonnel Area","60","","","ZPERSAREA","",null,null,null,null,null,null,null,null,null,null,null,null,null,null,null,null,null,null,null,null,null,null,null,null,null,null,null,null,18,"0000010001","DBE5O9AE5J44FB8QPHGBY8G6X"]
[null,0,"DE0LR9Y5OPGMW2PREJBS9X8FT",true,true,"SAPBEXq0040",2,2,false,null,null,true,false,null,true,false,0,null,5,true,false,null,null,false,false,false,null,null,null,null,15,"D5ENPW16Z63T56VF4C1ESE4FT","Breakdown Gender Contract FTPT","","X","Y","0001","","","","","","","U","","00","","","","","K","D5ENPW16Z63T56VF4C1ESE4FT","A","","","","","","","","","00000000","0000","X","0","","","","","0","0","0","0","0","","","","","","D5ENPW16Z63T56VF4C1ESE4FT","","","","","","","0000","","","",18,"D5B6FGJCS8AO1FCVGIC372Z95","D5B6FGJCS8G1TRN6PADDO2R5L","IP","0007","","S","","L","","","","","",null,null,null,null,null,null,18,"0ORGUNIT","0CRM_SRVORG","Service Org. CRM","0000","X","1","0","0","","","","","0000","",null,null,null,null,null,17,"D5ENPW16Z66471UP2YC8ZOB95","D5B6FGJCS8DQRWNWQO2JGSKC9","","","","","","00","X","0","0","","",null,null,null,null,null,null,null,null,null,null,null,null,null,null,null,null,null,null,null,null,null,null,null,null,null,null,null,null,null,null,null,null,null,null,null,null,44,"ZS_DT_1","1","P","I","EQ","20130401","01/04/2013","","","","0","","0","","0","Target date 1","60","","","ZEMP_STRT","20130401",null,null,null,null,null,null,null,null,null,null,null,null,null,null,null,null,null,null,null,null,null,null,null,null,null,null,null,null,18,"0000010003","ZPA_O07"]
[null,0,"DE0LR9Y5OPGMW2PREJBS9X8FT",true,false,"SAPBEXq0041",0,0,false,null,null,true,false,null,true,false,2,null,5,true,false,null,null,null,false,null,null,null,null,null,16,"ZPERID","NI Number","X","","","0001","","","","","","","","2","00","","","","00000000","K","ZPERID","A","","","H","","","","","","00000000","0000","","0","","","","","1","1","1","0","0","","","2","","0","DBE5O9AE5IYQMYYFGPF1H8OAH","","","","","","","0000","","","",18,"D5ENPW16Z63T56VF4C1ESE4FT","D5ENPW16Z69YM5HHONIBBTAM1","Female Perm PT","0008","","S","","L","X","IOBJ","Z_EMP_HCT","","Employee Headcount",null,null,null,null,null,null,18,"0ORGUNIT","0LOGSYS","Source System","0000","X","1","0","0","","","","","0000","",null,null,null,null,null,17,"D5ENPW16Z66471UP2YC8ZOB95","D5B6FGJCS8EIGIZO27I5J7YM1","","","","","","00","X","0","0","","",null,null,null,null,null,null,null,null,null,null,null,null,null,null,null,null,null,null,null,null,null,null,null,null,null,null,null,null,null,null,null,null,null,null,null,null,44,"ZS_PSAR2","1","P","","","","","","","","0","","0","","0","Pers. Sub-Area - optional","60","","","0PERS_SAREA","",null,null,null,null,null,null,null,null,null,null,null,null,null,null,null,null,null,null,null,null,null,null,null,null,null,null,null,null,18,"0000000010",""]
[null,0,"DB7KNG7ZEHU4RTWELJ3T28BG9",true,true,"SAPBEXq0042",2,2,false,null,null,true,false,null,true,false,0,null,5,true,false,null,null,false,false,false,null,null,null,null,16,"ZPERSAREA","ZPersonal Area","X","","","0002","","Development and Regeneration","","","","","","5","00","","","","00000000","K","ZPERSAREA","A","","","H","","","","","","00000000","0000","","0","","1","","","1","1","1","0","0","","","2","","0","DBE5O9AE5IZIBLA6S8UNJO2K9","","","","","","","0000","","","",18,"D5B6FGJCS8AO1FCVGIC372Z95","D5B6FGJCS8GTIDYY0TSZQI5FD","LS","0008","","S","","L","","","","","",null,null,null,null,null,null,18,"0ORGUNIT","0MAST_CCTR","Master Cost Center","0000","X","0","0","0","","","","","0000","",null,null,null,null,null,17,"D5ENPW16Z66471UP2YC8ZOB95","D5B6FGJCS8FA55BFDQXRLNCVT","","","","","","00","X","0","0","","",null,null,null,null,null,null,null,null,null,null,null,null,null,null,null,null,null,null,null,null,null,null,null,null,null,null,null,null,null,null,null,null,null,null,null,null,44,"ZP_ORGUN","2","M","","","","","","","","0","","0","","0","Org Unit Hierarchy (Selection option, optional)","60","","","0ORGUNIT","",null,null,null,null,null,null,null,null,null,null,null,null,null,null,null,null,null,null,null,null,null,null,null,null,null,null,null,null,18,"0000000109","0"]
[null,null,null,null,null,null,null,null,null,null,null,null,null,null,null,null,null,null,null,null,null,null,null,null,null,false,null,null,null,null,16,"ZPRIM_ID","ZPrimary Employee ID","X","","","0003","","","","","","","","2","00","","","","00000000","K","ZPRIM_ID","A","","","H","","","","","","00000000","0000","","0","","","","","1","1","1","0","0","","","2","","0","DBE5O9AE5J0A07LY3SA9M3GU1","","","","","","","0000","","","",18,"D5B6FGJCS8AO1FCVGIC372Z95","D5B6FGJCS8HL70APCD8LSXJP5","PC","0009","","S","","L","","","","","",null,null,null,null,null,null,18,"0ORGUNIT","0PERS_AREA","Personnel Area","0000","X","1","0","0","","","","","0000","",null,null,null,null,null,17,"D5ENPW16Z66471UP2YC8ZOB95","D5B6FGJCS8G1TRN6PADDO2R5L","","","","","","00","X","0","0","","",null,null,null,null,null,null,null,null,null,null,null,null,null,null,null,null,null,null,null,null,null,null,null,null,null,null,null,null,null,null,null,null,null,null,null,null,44,"ZBUDH","1","P","I","EQ","20130401","01/04/2013","","","","0","","0","","0","Master Data Key Date","60","","","0DATE","20130401",null,null,null,null,null,null,null,null,null,null,null,null,null,null,null,null,null,null,null,null,null,null,null,null,null,null,null,null,18,"0000000113",""]
[null,null,null,null,null,null,null,null,null,null,null,null,null,null,null,null,null,null,null,null,null,null,null,null,null,null,null,null,null,null,16,"0EMPLGROUP","Employee Group","X","","","0004","","","","","","","","1","00","","","","00000000","K","0EMPLGROUP","A","","","H","","","","","","00000000","0000","","0","","","","","1","1","1","0","0","","","2","","0","DBE5O9AE5J11OTXPFBPVOIV3T","","","","","","","0000","","","",18,"D5B6FGJCS8AO1FCVGIC372Z95","D5B6FGJCS8ICVMMGNWO7VCXYX","PH","0010","","S","","L","","","","","",null,null,null,null,null,null,18,"0ORGUNIT","0PERS_SAREA","Personnel Subarea","0000","X","1","0","0","","","","","0000","",null,null,null,null,null,17,"D5ENPW16Z66471UP2YC8ZOB95","D5B6FGJCS8GTIDYY0TSZQI5FD","","","","","","00","X","0","0","","",null,null,null,null,null,null,null,null,null,null,null,null,null,null,null,null,null,null,null,null,null,null,null,null,null,null,null,null,null,null,null,null,null,null,null,null,44,"ZZPERAR","1","M","","","","","","","","0","","0","","0","ZPersonnel Area","60","","","ZPERSAREA","",null,null,null,null,null,null,null,null,null,null,null,null,null,null,null,null,null,null,null,null,null,null,null,null,null,null,null,null,18,"0000000020",""]
[null,null,null,null,null,null,null,null,null,null,null,null,null,null,null,null,null,null,null,null,null,null,null,null,null,null,null,null,null,null,16,"0PERS_SAREA","Personnel Subarea","X","","","0005","","","","","","","","1","00","","","","00000000","K","0PERS_SAREA","A","","","H","","","","","","00000000","0000","","0","","","","","1","1","1","0","0","","","2","","0","DBE5O9AE5J1TDG9GQV5HQY9DL","","","","","","","0000","","","",18,"D5B6FGJCS8AO1FCVGIC372Z95","D5B6FGJCS8J4K8Y7ZG3TXSC8P","SE","0011","","S","","L","","","","","",null,null,null,null,null,null,18,"0ORGUNIT","0PLANT","Plant","0000","X","0","0","0","","","","","0000","",null,null,null,null,null,17,"D5ENPW16Z66471UP2YC8ZOB95","D5B6FGJCS8HL70APCD8LSXJP5","","","","","","00","X","0","0","","",null,null,null,null,null,null,null,null,null,null,null,null,null,null,null,null,null,null,null,null,null,null,null,null,null,null,null,null,null,null,null,null,null,null,null,null,22,"ZS_DT_1","1","P","I","EQ","20130401","01/04/2013","","","","0","","0","","0","Target date 1","60","","","ZEMP_STRT","20130401",null,null,null,null,null,null,null,null,null,null,null,null,null,null,null,null,null,null,null,null,null,null,null,null,null,null,null,null,18,"0000000030",""]
[null,null,null,null,null,null,null,null,null,null,null,null,null,null,null,null,null,null,null,null,null,null,null,null,null,null,null,null,null,null,16,"0ORGUNIT","Organizational Unit","X","","","0006","","","","","","","U","1","02","X","ORGEH","000","20120930","K","0ORGUNIT","A","","","H","0ORGUNIT","A","","","","00000000","0000","","0","","","","2","1","1","1","0","0","","","","","0","DBE5O9AE5J2L22L82EL3TDNND","","","","","","","0000","","","",18,"D5B6FGJCS8AO1FCVGIC372Z95","D5B6FGJCS8JW8V9ZAZJG07QIH","SR","0012","","S","","L","","","","","",null,null,null,null,null,null,18,"0ORGUNIT","0PURCH_ORG","Purchasing org.","0000","X","0","0","0","","","","","0000","",null,null,null,null,null,17,"D5ENPW16Z66471UP2YC8ZOB95","D5B6FGJCS8ICVMMGNWO7VCXYX","","","","","","00","X","0","0","","",null,null,null,null,null,null,null,null,null,null,null,null,null,null,null,null,null,null,null,null,null,null,null,null,null,null,null,null,null,null,null,null,null,null,null,null,22,"ZS_PSAR2","1","P","","","","","","","","0","","0","","0","Pers. Sub-Area - optional","60","","","0PERS_SAREA","",null,null,null,null,null,null,null,null,null,null,null,null,null,null,null,null,null,null,null,null,null,null,null,null,null,null,null,null,18,"0000000040",""]
[null,null,null,null,null,null,null,null,null,null,null,null,null,null,null,null,null,null,null,null,null,null,null,null,null,null,null,null,null,null,16,"D5B6FGJCS8AO1FCVGIC372Z95","Job Families Incl Teach","","X","X","0001","","","","","","","U","","00","","","","","K","D5B6FGJCS8AO1FCVGIC372Z95","A","","","","","","","","","00000000","0000","","0","","","","","0","0","0","0","0","","","","","","D5B6FGJCS8AO1FCVGIC372Z95","","","","","","","0000","","","",18,"D5B6FGJCS8AO1FCVGIC372Z95","D5B6FGJCS8KNXHLQMIZ22N4S9","TS","0013","","S","","L","","","","","",null,null,null,null,null,null,18,"0ORGUNIT","0PUR_GROUP","Purchasing group","0000","X","0","0","0","","","","","0000","",null,null,null,null,null,17,"D5ENPW16Z66471UP2YC8ZOB95","D5B6FGJCS8J4K8Y7ZG3TXSC8P","","","","","","00","X","0","0","","",null,null,null,null,null,null,null,null,null,null,null,null,null,null,null,null,null,null,null,null,null,null,null,null,null,null,null,null,null,null,null,null,null,null,null,null,22,"ZP_ORGUN","2","M","","","","","","","","0","","0","","0","Org Unit Hierarchy (Selection option, optional)","60","","","0ORGUNIT","",null,null,null,null,null,null,null,null,null,null,null,null,null,null,null,null,null,null,null,null,null,null,null,null,null,null,null,null,18,"0000000041",""]
[null,null,null,null,null,null,null,null,null,null,null,null,null,null,null,null,null,null,null,null,null,null,null,null,null,null,null,null,null,null,16,"D5ENPW16Z63T56VF4C1ESE4FT","Breakdown Gender Contract FTPT","","X","Y","0001","","","","","","","U","","00","","","","","K","D5ENPW16Z63T56VF4C1ESE4FT","A","","","","","","","","","00000000","0000","X","0","","","","","0","0","0","0","0","","","","","","D5ENPW16Z63T56VF4C1ESE4FT","","","","","","","0000","","","",18,"D5B6FGJCS8AO1FCVGIC372Z95","D5B6FGJCS8LFM3XHY2EO52J21","VE","0014","","S","","L","","","","","",null,null,null,null,null,null,18,"0ORGUNIT","0SALESORG","Sales Organization","0000","X","0","0","0","","","","","0000","",null,null,null,null,null,17,"D5ENPW16Z66471UP2YC8ZOB95","D5B6FGJCS8JW8V9ZAZJG07QIH","","","","","","00","X","0","0","","",null,null,null,null,null,null,null,null,null,null,null,null,null,null,null,null,null,null,null,null,null,null,null,null,null,null,null,null,null,null,null,null,null,null,null,null,22,"ZBUDH","1","P","I","EQ","20130401","01/04/2013","","","","0","","0","","0","Master Data Key Date","60","","","0DATE","20130401",null,null,null,null,null,null,null,null,null,null,null,null,null,null,null,null,null,null,null,null,null,null,null,null,null,null,null,null,18,"0000000042","00"]
[null,null,null,null,null,null,null,null,null,null,null,null,null,null,null,null,null,null,null,null,null,null,null,null,null,null,null,null,null,null,21,"0PAYRL_AREA","Payroll Area","X","","","0001","","","","","","","","0","00","","","","00000000","K","0PAYRL_AREA","A","","","H","","","","","","00000000","0000","","0","","","","","1","1","1","0","0","","","2","","0","DE0LJZ6IGUANWDS0ZVL4LCG6X","","","","","","","0000","","","",18,"D5B6FGJCS8AO1FCVGIC372Z95","D5B6FGJCS8M7AQ999LUA7HXBT","Teachers","0015","","S","","L","","","","","",null,null,null,null,null,null,18,"0ORGUNIT","0SALES_GRP","Sales group","0000","X","0","0","0","","","","","0000","",null,null,null,null,null,17,"D5ENPW16Z66471UP2YC8ZOB95","D5B6FGJCS8KNXHLQMIZ22N4S9","","","","","","00","X","0","0","","",null,null,null,null,null,null,null,null,null,null,null,null,null,null,null,null,null,null,null,null,null,null,null,null,null,null,null,null,null,null,null,null,null,null,null,null,22,"ZZPERAR","1","M","","","","","","","","0","","0","","0","ZPersonnel Area","60","","","ZPERSAREA","",null,null,null,null,null,null,null,null,null,null,null,null,null,null,null,null,null,null,null,null,null,null,null,null,null,null,null,null,18,"0000000043","00"]
[null,null,null,null,null,null,null,null,null,null,null,null,null,null,null,null,null,null,null,null,null,null,null,null,null,null,null,null,null,null,21,"ZPERSAREA","ZPersonal Area","X","","","0002","","Chief Executive, Development and Regeneration, Education,...","","","","","","2","00","","","","00000000","K","ZPERSAREA","A","","","H","","","","","","00000000","0000","","0","","X","","","1","1","1","0","0","","","2","","0","DE0LJZ6IGUBFL03SBF0QNRUGP","","","","","","","0000","","","",18,"D5B6FGJCS8AO1FCVGIC372Z95","D5B6FGJCS8MYZCL0L59W9XBLL","Total Employees","0016","","F","","L","","","","","",null,null,null,null,null,null,18,"0ORGUNIT","0SALES_OFF","Sales Office","0000","X","0","0","0","","","","","0000","",null,null,null,null,null,17,"D5ENPW16Z66471UP2YC8ZOB95","D5B6FGJCS8LFM3XHY2EO52J21","","","","","","00","X","0","0","","",null,null,null,null,null,null,null,null,null,null,null,null,null,null,null,null,null,null,null,null,null,null,null,null,null,null,null,null,null,null,null,null,null,null,null,null,45,"ZS_DT_1","1","P","I","EQ","20130401","01/04/2013","","","","0","","0","","0","Target date 1","60","","","ZEMP_STRT","20130401",null,null,null,null,null,null,null,null,null,null,null,null,null,null,null,null,null,null,null,null,null,null,null,null,null,null,null,null,18,"0000000021",""]
[null,null,null,null,null,null,null,null,null,null,null,null,null,null,null,null,null,null,null,null,null,null,null,null,null,null,null,null,null,null,21,"0ORGUNIT","Organizational Unit","X","","","0003","","","","","","","","1","02","X","ORGEH","000","20120930","K","0ORGUNIT","A","","","H","0ORGUNIT","A","","","","00000000","0000","","0","","","","2","1","1","1","0","0","","","","","0","DE0LJZ6IGUC79MFJMYGCQ78QH","","","","","","","0000","","","",18,"D5B6FGJCS8AO1FCVGIC372Z95","D5B6FGJCS8NQNYWRWOPICCPVD","All Employees","0017","X","S","","L","","","","","",null,null,null,null,null,null,19,"0ORGUNIT","0BBPPURGRPX","Ind.Purchasing Group","0000","X","2","0","0","","","","","0000","",null,null,null,null,null,17,"D5ENPW16Z66471UP2YC8ZOB95","D5B6FGJCS8M7AQ999LUA7HXBT","","","","","","00","X","0","0","","",null,null,null,null,null,null,null,null,null,null,null,null,null,null,null,null,null,null,null,null,null,null,null,null,null,null,null,null,null,null,null,null,null,null,null,null,45,"ZBUDH","1","P","I","EQ","20130401","01/04/2013","","","","0","","0","","0","Master Data Key Date","60","","","0DATE","20130401",null,null,null,null,null,null,null,null,null,null,null,null,null,null,null,null,null,null,null,null,null,null,null,null,null,null,null,null,18,"0000000022",""]
[null,null,null,null,null,null,null,null,null,null,null,null,null,null,null,null,null,null,null,null,null,null,null,null,null,null,null,null,null,null,21,"0PERS_SAREA","Personnel Subarea","X","","","0004","","","","","","","U","1","00","","","","00000000","K","0PERS_SAREA","A","","","H","","","","","","00000000","0000","","0","","","","","1","1","1","0","0","","","2","","0","DE0LJZ6IGUCYY8RAYHVYSMN09","","","","","","","0000","","","",18,"D5B6FGJCS8AO1FCVGIC372Z95","D5B6FGJCS8OICL8J8854ES455","Non WPBR","0018","","F","","L","","","","","",null,null,null,null,null,null,19,"0ORGUNIT","0BBPPURORGX","Ind. Purchasing Org.","0000","X","2","0","0","","","","","0000","",null,null,null,null,null,17,"D5ENPW16Z66471UP2YC8ZOB95","D5B6FGJCS8MYZCL0L59W9XBLL","0","0","","","","00","X","0","0","","",null,null,null,null,null,null,null,null,null,null,null,null,null,null,null,null,null,null,null,null,null,null,null,null,null,null,null,null,null,null,null,null,null,null,null,null,45,"ZZPERAR","1","M","","","","","","","","0","","0","","0","ZPersonnel Area","60","","","ZPERSAREA","",null,null,null,null,null,null,null,null,null,null,null,null,null,null,null,null,null,null,null,null,null,null,null,null,null,null,null,null,18,"0000000023",""]
[null,null,null,null,null,null,null,null,null,null,null,null,null,null,null,null,null,null,null,null,null,null,null,null,null,null,null,null,null,null,21,"ZTEILK","Checkbox for Part-Ti","X","","","0005","","","","","","","","1","00","","","","00000000","K","ZTEILK","A","","","H","","","","","","00000000","0000","","0","","","","","1","1","1","0","0","","","2","","0","DE0LJZ6IGUDQMV32A1BKV21A1","","","","","","","0000","","","",19,"D5ENPW16Z63T56VF4C1ESE4FT","D5ENPW16Z64KTT76FVH0UTIPL","Male Temp FT","0001","","S","","L","X","IOBJ","Z_EMP_HCT","","Employee Headcount",null,null,null,null,null,null,19,"0ORGUNIT","0BBP_BUYID","Buyer ID","0000","X","5","0","0","","","","","0000","",null,null,null,null,null,17,"D5ENPW16Z66471UP2YC8ZOB95","D5B6FGJCS8NQNYWRWOPICCPVD","","","","","","00","X","0","0","","",null,null,null,null,null,null,null,null,null,null,null,null,null,null,null,null,null,null,null,null,null,null,null,null,null,null,null,null,null,null,null,null,null,null,null,null,14,"ZP_STPER","1","P","I","EQ","005","5","","","","0","","0","","0","Fiscal Period Start","60","","","0FISCPER3","005",null,null,null,null,null,null,null,null,null,null,null,null,null,null,null,null,null,null,null,null,null,null,null,null,null,null,null,null,18,"0000010002","DBE5O9AE5IU4J8ZVJGTD2OANT"]
[null,null,null,null,null,null,null,null,null,null,null,null,null,null,null,null,null,null,null,null,null,null,null,null,null,null,null,null,null,null,21,"ZPRIM_ID","ZPrimary Employee ID","X","","","0006","","","","","","","","2","00","","","","00000000","K","ZPRIM_ID","A","","","H","","","","","","00000000","0000","","0","","","","","1","1","1","0","0","","","2","","0","DE0LJZ6IGUEIBHETLKR6XHFJT","","","","","","","0000","","","",19,"D5B6FGJCS8AO1FCVGIC372Z95","D5B6FGJCS8BFQ1OMS1RP9IDIX","BS","0001","","S","","L","","","","","",null,null,null,null,null,null,19,"0ORGUNIT","0BBP_ISCOMP","Organizational Unit is Company","0000","X","1","0","0","","","","","0000","",null,null,null,null,null,17,"D5ENPW16Z66471UP2YC8ZOB95","D5B6FGJCS8OICL8J8854ES455","0","0","","","","00","X","0","0","","",null,null,null,null,null,null,null,null,null,null,null,null,null,null,null,null,null,null,null,null,null,null,null,null,null,null,null,null,null,null,null,null,null,null,null,null,14,"ZFYRGE","1","I","I","BT","2015","2015","2015","2015","","40","","40","","0","Fiscal Year Range","60","","","0FISCYEAR","",null,null,null,null,null,null,null,null,null,null,null,null,null,null,null,null,null,null,null,null,null,null,null,null,null,null,null,null,18,"0000000105",""]
[null,null,null,null,null,null,null,null,null,null,null,null,null,null,null,null,null,null,null,null,null,null,null,null,null,null,null,null,null,null,21,"0CNTRCTTYPE","Contract Type","X","","","0007","","","","","","","","1","00","","","","00000000","K","0CNTRCTTYPE","A","","","H","","","","","","00000000","0000","","0","","","","","1","1","1","0","0","","","2","","0","DE0LJZ6IGUFA03QKX46SZWTTL","","","","","","","0000","","","",19,"D5ENPW16Z63T56VF4C1ESE4FT","D5ENPW16Z65CIFIXREWMX8WZD","Male Temp PT","0002","","S","","L","X","IOBJ","Z_EMP_HCT","","Employee Headcount",null,null,null,null,null,null,19,"0ORGUNIT","0BUS_AREA","Business area","0000","X","0","0","0","","","","","0000","",null,null,null,null,null,17,"D5ENPW16Z66VVO6GEHRV23PIX","D5B6FGJCS8BFQ1OMS1RP9IDIX","","","","","","00","X","0","0","","",null,null,null,null,null,null,null,null,null,null,null,null,null,null,null,null,null,null,null,null,null,null,null,null,null,null,null,null,null,null,null,null,null,null,null,null,14,"ZPY_AREA","1","P","","","","","","","","0","","0","","0","Payroll Area, Selection Option, OPtional","60","","","0EMPLOYEE__0PAYRL_AREA","",null,null,null,null,null,null,null,null,null,null,null,null,null,null,null,null,null,null,null,null,null,null,null,null,null,null,null,null,18,"0000000106",""]
[null,null,null,null,null,null,null,null,null,null,null,null,null,null,null,null,null,null,null,null,null,null,null,null,null,null,null,null,null,null,21,"DE0LK3585BCRS1EYJA6653Z7D","WPBR Gender/Ethnicity Bandings FTE","","X","X","0001","","","","","","","U","","00","","","","","K","DE0LK3585BCRS1EYJA6653Z7D","A","","","","","","","","","00000000","0000","X","0","","","","","0","0","0","0","0","","","","","","DE0LK3585BCRS1EYJA6653Z7D","","","","","","","0000","","","",19,"D5B6FGJCS8AO1FCVGIC372Z95","D5B6FGJCS8C7EO0E3L7BBXRSP","CV","0002","","S","","L","","","","","",null,null,null,null,null,null,19,"0ORGUNIT","0COMP_CODE","Company code","0000","X","0","0","0","","","","","0000","",null,null,null,null,null,17,"D5ENPW16Z66VVO6GEHRV23PIX","D5B6FGJCS8C7EO0E3L7BBXRSP","","","","","","00","X","0","0","","",null,null,null,null,null,null,null,null,null,null,null,null,null,null,null,null,null,null,null,null,null,null,null,null,null,null,null,null,null,null,null,null,null,null,null,null,14,"ZCIRANGE","1","I","I","BT","100000","100000","699999","699999","","20","","20","","0","Commitment Item Range","60","","","0CMMT_ITEM","",null,null,null,null,null,null,null,null,null,null,null,null,null,null,null,null,null,null,null,null,null,null,null,null,null,null,null,null,18,"0000000112","0"]
[null,null,null,null,null,null,null,null,null,null,null,null,null,null,null,null,null,null,null,null,null,null,null,null,null,null,null,null,null,null,21,"D4O21W1IBUB3HEML1KWP5YGOP","WP Bandings","","X","Y","0001","","","","","","","U","","00","","","","","K","D4O21W1IBUB3HEML1KWP5YGOP","A","","","","","","","","","00000000","0000","","0","","","","","0","0","0","0","0","","","","","","D4O21W1IBUB3HEML1KWP5YGOP","","","","","","","0000","","","",19,"D5ENPW16Z63T56VF4C1ESE4FT","D5ENPW16Z66471UP2YC8ZOB95","Male Perm FT","0003","","S","","L","X","IOBJ","Z_EMP_HCT","","Employee Headcount",null,null,null,null,null,null,19,"0ORGUNIT","0CO_MST_AR","Controlling Area of Master Cost Center","0000","X","0","0","0","","","","","0000","",null,null,null,null,null,17,"D5ENPW16Z66VVO6GEHRV23PIX","D5B6FGJCS8CZ3AC5F4MXED62H","","","","","","00","X","0","0","","",null,null,null,null,null,null,null,null,null,null,null,null,null,null,null,null,null,null,null,null,null,null,null,null,null,null,null,null,null,null,null,null,null,null,null,null,14,"ZP_EDPER","1","P","I","EQ","007","7","","","","0","","0","","0","Fiscal Period End","60","","","0FISCPER3","007",null,null,null,null,null,null,null,null,null,null,null,null,null,null,null,null,null,null,null,null,null,null,null,null,null,null,null,null,18,"0000000200","X"]
[null,null,null,null,null,null,null,null,null,null,null,null,null,null,null,null,null,null,null,null,null,null,null,null,null,null,null,null,null,null,32,"ZPERID","NI Number","X","","","0001","","","","","","","","2","00","","","","00000000","K","ZPERID","A","","","H","","","","","","00000000","0000","","0","","","","","1","1","1","0","0","","","2","","0","DBE5O9AE5IYQMYYFGPF1H8OAH","","","","","","","0000","","","",19,"D5B6FGJCS8AO1FCVGIC372Z95","D5B6FGJCS8CZ3AC5F4MXED62H","CA","0003","","S","","L","","","","","",null,null,null,null,null,null,19,"0ORGUNIT","0CRMSALGRPX","Sls Group: Indicator","0000","X","2","0","0","","","","","0000","",null,null,null,null,null,17,"D5ENPW16Z66VVO6GEHRV23PIX","D5B6FGJCS8DQRWNWQO2JGSKC9","","","","","","00","X","0","0","","",null,null,null,null,null,null,null,null,null,null,null,null,null,null,null,null,null,null,null,null,null,null,null,null,null,null,null,null,null,null,null,null,null,null,null,null,13,"ZP_STPER","1","P","I","EQ","005","5","","","","0","","0","","0","Fiscal Period Start","60","","","0FISCPER3","005",null,null,null,null,null,null,null,null,null,null,null,null,null,null,null,null,null,null,null,null,null,null,null,null,null,null,null,null,18,"0000004000","X"]
[null,null,null,null,null,null,null,null,null,null,null,null,null,null,null,null,null,null,null,null,null,null,null,null,null,null,null,null,null,null,32,"ZPERSAREA","ZPersonal Area","X","","","0002","","Development and Regeneration","","","","","","5","00","","","","00000000","K","ZPERSAREA","A","","","H","","","","","","00000000","0000","","0","","1","","","1","1","1","0","0","","","2","","0","DBE5O9AE5IZIBLA6S8UNJO2K9","","","","","","","0000","","","",19,"D5ENPW16Z63T56VF4C1ESE4FT","D5ENPW16Z66VVO6GEHRV23PIX","Male Perm PT","0004","","S","","L","X","IOBJ","Z_EMP_HCT","","Employee Headcount",null,null,null,null,null,null,19,"0ORGUNIT","0CRMSALOFFX","Sls Office:Indicator","0000","X","2","0","0","","","","","0000","",null,null,null,null,null,17,"D5ENPW16Z66VVO6GEHRV23PIX","D5B6FGJCS8EIGIZO27I5J7YM1","","","","","","00","X","0","0","","",null,null,null,null,null,null,null,null,null,null,null,null,null,null,null,null,null,null,null,null,null,null,null,null,null,null,null,null,null,null,null,null,null,null,null,null,13,"ZFYRGE","1","I","I","BT","2015","2015","2015","2015","","40","","40","","0","Fiscal Year Range","60","","","0FISCYEAR","",null,null,null,null,null,null,null,null,null,null,null,null,null,null,null,null,null,null,null,null,null,null,null,null,null,null,null,null,18,"0000009001","QSW Breakdown By Job Family excl cas sess"]
[null,null,null,null,null,null,null,null,null,null,null,null,null,null,null,null,null,null,null,null,null,null,null,null,null,null,null,null,null,null,32,"ZPRIM_ID","ZPrimary Employee ID","X","","","0003","","","","","","","","2","00","","","","00000000","K","ZPRIM_ID","A","","","H","","","","","","00000000","0000","","0","","","","","1","1","1","0","0","","","2","","0","DBE5O9AE5J0A07LY3SA9M3GU1","","","","","","","0000","","","",19,"D5B6FGJCS8AO1FCVGIC372Z95","D5B6FGJCS8DQRWNWQO2JGSKC9","CF","0004","","S","","L","","","","","",null,null,null,null,null,null,19,"0ORGUNIT","0CRMSALORGX","Sales Org. Indicator","0000","X","2","0","0","","","","","0000","",null,null,null,null,null,17,"D5ENPW16Z66VVO6GEHRV23PIX","D5B6FGJCS8FA55BFDQXRLNCVT","","","","","","00","X","0","0","","",null,null,null,null,null,null,null,null,null,null,null,null,null,null,null,null,null,null,null,null,null,null,null,null,null,null,null,null,null,null,null,null,null,null,null,null,13,"ZPY_AREA","1","P","","","","","","","","0","","0","","0","Payroll Area, Selection Option, OPtional","60","","","0EMPLOYEE__0PAYRL_AREA","",null,null,null,null,null,null,null,null,null,null,null,null,null,null,null,null,null,null,null,null,null,null,null,null,null,null,null,null,18,"0000000114","1"]
[null,null,null,null,null,null,null,null,null,null,null,null,null,null,null,null,null,null,null,null,null,null,null,null,null,null,null,null,null,null,32,"0EMPLGROUP","Employee Group","X","","","0004","","","","","","","","1","00","","","","00000000","K","0EMPLGROUP","A","","","H","","","","","","00000000","0000","","0","","","","","1","1","1","0","0","","","2","","0","DBE5O9AE5J11OTXPFBPVOIV3T","","","","","","","0000","","","",19,"D5B6FGJCS8AO1FCVGIC372Z95","D5B6FGJCS8EIGIZO27I5J7YM1","CU","0005","","S","","L","","","","","",null,null,null,null,null,null,19,"0ORGUNIT","0CRMSRVTGRP","Ex. CRM Service Org.","0000","X","1","0","0","","","","","0000","",null,null,null,null,null,17,"D5ENPW16Z66VVO6GEHRV23PIX","D5B6FGJCS8G1TRN6PADDO2R5L","","","","","","00","X","0","0","","",null,null,null,null,null,null,null,null,null,null,null,null,null,null,null,null,null,null,null,null,null,null,null,null,null,null,null,null,null,null,null,null,null,null,null,null,13,"ZCIRANGE","1","I","I","BT","100000","100000","699999","699999","","20","","20","","0","Commitment Item Range","60","","","0CMMT_ITEM","",null,null,null,null,null,null,null,null,null,null,null,null,null,null,null,null,null,null,null,null,null,null,null,null,null,null,null,null,19,"0000000100","X"]
[null,null,null,null,null,null,null,null,null,null,null,null,null,null,null,null,null,null,null,null,null,null,null,null,null,null,null,null,null,null,32,"0PERS_SAREA","Personnel Subarea","X","","","0005","","","","","","","","1","00","","","","00000000","K","0PERS_SAREA","A","","","H","","","","","","00000000","0000","","0","","","","","1","1","1","0","0","","","2","","0","DBE5O9AE5J1TDG9GQV5HQY9DL","","","","","","","0000","","","",19,"D5ENPW16Z63T56VF4C1ESE4FT","D5ENPW16Z67NKAI7Q17H4J3SP","Female Temp FT","0005","","S","","L","X","IOBJ","Z_EMP_HCT","","Employee Headcount",null,null,null,null,null,null,19,"0ORGUNIT","0CRM_SALGRP","CRM Sales Group","0000","X","1","0","0","","","","","0000","",null,null,null,null,null,17,"D5ENPW16Z66VVO6GEHRV23PIX","D5B6FGJCS8GTIDYY0TSZQI5FD","","","","","","00","X","0","0","","",null,null,null,null,null,null,null,null,null,null,null,null,null,null,null,null,null,null,null,null,null,null,null,null,null,null,null,null,null,null,null,null,null,null,null,null,13,"ZP_EDPER","1","P","I","EQ","007","7","","","","0","","0","","0","Fiscal Period End","60","","","0FISCPER3","007",null,null,null,null,null,null,null,null,null,null,null,null,null,null,null,null,null,null,null,null,null,null,null,null,null,null,null,null,19,"0000000108",""]
[null,null,null,null,null,null,null,null,null,null,null,null,null,null,null,null,null,null,null,null,null,null,null,null,null,null,null,null,null,null,32,"0ORGUNIT","Organizational Unit","X","","","0006","","","","","","","U","1","02","X","ORGEH","000","20121231","K","0ORGUNIT","A","","","H","0ORGUNIT","A","","","","00000000","0000","","0","","","","2","1","1","1","0","0","","","","","0","DBE5O9AE5J2L22L82EL3TDNND","","","","","","","0000","","","",19,"D5ENPW16Z63T56VF4C1ESE4FT","D5ENPW16Z68F8WTZ1KN36YI2H","Female Temp PT","0006","","S","","L","X","IOBJ","Z_EMP_HCT","","Employee Headcount",null,null,null,null,null,null,19,"0ORGUNIT","0CRM_SALOFF","CRM Sales Office","0000","X","1","0","0","","","","","0000","",null,null,null,null,null,17,"D5ENPW16Z66VVO6GEHRV23PIX","D5B6FGJCS8HL70APCD8LSXJP5","","","","","","00","X","0","0","","",null,null,null,null,null,null,null,null,null,null,null,null,null,null,null,null,null,null,null,null,null,null,null,null,null,null,null,null,null,null,null,null,null,null,null,null,12,"ZS_DT_1","1","P","I","EQ","20150930","30/09/2015","","","","0","","0","","0","Target date 1","60","","","ZEMP_STRT","20150930",null,null,null,null,null,null,null,null,null,null,null,null,null,null,null,null,null,null,null,null,null,null,null,null,null,null,null,null,19,"0000000101",""]
[null,null,null,null,null,null,null,null,null,null,null,null,null,null,null,null,null,null,null,null,null,null,null,null,null,null,null,null,null,null,32,"D5B6FGJCS8AO1FCVGIC372Z95","Job Families Incl Teach","","X","X","0001","","","","","","","U","","00","","","","","K","D5B6FGJCS8AO1FCVGIC372Z95","A","","","","","","","","","00000000","0000","","0","","","","","0","0","0","0","0","","","","","","D5B6FGJCS8AO1FCVGIC372Z95","","","","","","","0000","","","",19,"D5B6FGJCS8AO1FCVGIC372Z95","D5B6FGJCS8FA55BFDQXRLNCVT","CR","0006","","S","","L","","","","","",null,null,null,null,null,null,19,"0ORGUNIT","0CRM_SALORG","CRM Sales Org.","0000","X","1","0","0","","","","","0000","",null,null,null,null,null,17,"D5ENPW16Z66VVO6GEHRV23PIX","D5B6FGJCS8ICVMMGNWO7VCXYX","","","","","","00","X","0","0","","",null,null,null,null,null,null,null,null,null,null,null,null,null,null,null,null,null,null,null,null,null,null,null,null,null,null,null,null,null,null,null,null,null,null,null,null,12,"ZS_PSAR2","1","P","","","","","","","","0","","0","","0","Pers. Sub-Area - optional","60","","","0PERS_SAREA","",null,null,null,null,null,null,null,null,null,null,null,null,null,null,null,null,null,null,null,null,null,null,null,null,null,null,null,null,19,"0000000104","1"]
[null,null,null,null,null,null,null,null,null,null,null,null,null,null,null,null,null,null,null,null,null,null,null,null,null,null,null,null,null,null,32,"D5ENPW16Z63T56VF4C1ESE4FT","Breakdown Gender Contract FTPT","","X","Y","0001","","","","","","","U","","00","","","","","K","D5ENPW16Z63T56VF4C1ESE4FT","A","","","","","","","","","00000000","0000","X","0","","","","","0","0","0","0","0","","","","","","D5ENPW16Z63T56VF4C1ESE4FT","","","","","","","0000","","","",19,"D5ENPW16Z63T56VF4C1ESE4FT","D5ENPW16Z696XJ5QD42P9DWC9","Female Perm FT","0007","","S","","L","X","IOBJ","Z_EMP_HCT","","Employee Headcount",null,null,null,null,null,null,19,"0ORGUNIT","0CRM_SRVORG","Service Org. CRM","0000","X","1","0","0","","","","","0000","",null,null,null,null,null,17,"D5ENPW16Z66VVO6GEHRV23PIX","D5B6FGJCS8J4K8Y7ZG3TXSC8P","","","","","","00","X","0","0","","",null,null,null,null,null,null,null,null,null,null,null,null,null,null,null,null,null,null,null,null,null,null,null,null,null,null,null,null,null,null,null,null,null,null,null,null,12,"ZP_ORGUN","2","M","","","","","","","","0","","0","","0","Org Unit Hierarchy (Selection option, optional)","60","","","0ORGUNIT","",null,null,null,null,null,null,null,null,null,null,null,null,null,null,null,null,null,null,null,null,null,null,null,null,null,null,null,null,19,"0000000103",""]
[null,null,null,null,null,null,null,null,null,null,null,null,null,null,null,null,null,null,null,null,null,null,null,null,null,null,null,null,null,null,31,"ZPERID","NI Number","X","","","0001","","","","","","","","2","00","","","","00000000","K","ZPERID","A","","","H","","","","","","00000000","0000","","0","","","","","1","1","1","0","0","","","2","","0","DBE5O9AE5IYQMYYFGPF1H8OAH","","","","","","","0000","","","",19,"D5B6FGJCS8AO1FCVGIC372Z95","D5B6FGJCS8G1TRN6PADDO2R5L","IP","0007","","S","","L","","","","","",null,null,null,null,null,null,19,"0ORGUNIT","0LOGSYS","Source System","0000","X","1","0","0","","","","","0000","",null,null,null,null,null,17,"D5ENPW16Z66VVO6GEHRV23PIX","D5B6FGJCS8JW8V9ZAZJG07QIH","","","","","","00","X","0","0","","",null,null,null,null,null,null,null,null,null,null,null,null,null,null,null,null,null,null,null,null,null,null,null,null,null,null,null,null,null,null,null,null,null,null,null,null,12,"ZBUDH","1","P","I","EQ","20150930","30/09/2015","","","","0","","0","","0","Master Data Key Date","60","","","0DATE","20150930",null,null,null,null,null,null,null,null,null,null,null,null,null,null,null,null,null,null,null,null,null,null,null,null,null,null,null,null,19,"0000000102","1"]
[null,null,null,null,null,null,null,null,null,null,null,null,null,null,null,null,null,null,null,null,null,null,null,null,null,null,null,null,null,null,31,"ZPERSAREA","ZPersonal Area","X","","","0002","","Chief Executive","","","","","","5","00","","","","00000000","K","ZPERSAREA","A","","","H","","","","","","00000000","0000","","0","","1","","","1","1","1","0","0","","","2","","0","DBE5O9AE5IZIBLA6S8UNJO2K9","","","","","","","0000","","","",19,"D5ENPW16Z63T56VF4C1ESE4FT","D5ENPW16Z69YM5HHONIBBTAM1","Female Perm PT","0008","","S","","L","X","IOBJ","Z_EMP_HCT","","Employee Headcount",null,null,null,null,null,null,19,"0ORGUNIT","0MAST_CCTR","Master Cost Center","0000","X","0","0","0","","","","","0000","",null,null,null,null,null,17,"D5ENPW16Z66VVO6GEHRV23PIX","D5B6FGJCS8KNXHLQMIZ22N4S9","","","","","","00","X","0","0","","",null,null,null,null,null,null,null,null,null,null,null,null,null,null,null,null,null,null,null,null,null,null,null,null,null,null,null,null,null,null,null,null,null,null,null,null,12,"ZZPERAR","1","M","","","","","","","","0","","0","","0","ZPersonnel Area","60","","","ZPERSAREA","",null,null,null,null,null,null,null,null,null,null,null,null,null,null,null,null,null,null,null,null,null,null,null,null,null,null,null,null,19,"0000009000",""]
[null,null,null,null,null,null,null,null,null,null,null,null,null,null,null,null,null,null,null,null,null,null,null,null,null,null,null,null,null,null,31,"ZPRIM_ID","ZPrimary Employee ID","X","","","0003","","","","","","","","2","00","","","","00000000","K","ZPRIM_ID","A","","","H","","","","","","00000000","0000","","0","","","","","1","1","1","0","0","","","2","","0","DBE5O9AE5J0A07LY3SA9M3GU1","","","","","","","0000","","","",19,"D5B6FGJCS8AO1FCVGIC372Z95","D5B6FGJCS8GTIDYY0TSZQI5FD","LS","0008","","S","","L","","","","","",null,null,null,null,null,null,19,"0ORGUNIT","0PERS_AREA","Personnel Area","0000","X","1","0","0","","","","","0000","",null,null,null,null,null,17,"D5ENPW16Z66VVO6GEHRV23PIX","D5B6FGJCS8LFM3XHY2EO52J21","","","","","","00","X","0","0","","",null,null,null,null,null,null,null,null,null,null,null,null,null,null,null,null,null,null,null,null,null,null,null,null,null,null,null,null,null,null,null,null,null,null,null,null,11,"ZS_DT_1","1","P","I","EQ","20150930","30/09/2015","","","","0","","0","","0","Target date 1","60","","","ZEMP_STRT","20150930",null,null,null,null,null,null,null,null,null,null,null,null,null,null,null,null,null,null,null,null,null,null,null,null,null,null,null,null,19,"0000000107","DBE5O9AE5IU4J8ZVJGTD2OANT"]
[null,null,null,null,null,null,null,null,null,null,null,null,null,null,null,null,null,null,null,null,null,null,null,null,null,null,null,null,null,null,31,"0EMPLGROUP","Employee Group","X","","","0004","","","","","","","","1","00","","","","00000000","K","0EMPLGROUP","A","","","H","","","","","","00000000","0000","","0","","","","","1","1","1","0","0","","","2","","0","DBE5O9AE5J11OTXPFBPVOIV3T","","","","","","","0000","","","",19,"D5B6FGJCS8AO1FCVGIC372Z95","D5B6FGJCS8HL70APCD8LSXJP5","PC","0009","","S","","L","","","","","",null,null,null,null,null,null,19,"0ORGUNIT","0PERS_SAREA","Personnel Subarea","0000","X","1","0","0","","","","","0000","",null,null,null,null,null,17,"D5ENPW16Z66VVO6GEHRV23PIX","D5B6FGJCS8M7AQ999LUA7HXBT","","","","","","00","X","0","0","","",null,null,null,null,null,null,null,null,null,null,null,null,null,null,null,null,null,null,null,null,null,null,null,null,null,null,null,null,null,null,null,null,null,null,null,null,11,"ZBUDH","1","P","I","EQ","20150930","30/09/2015","","","","0","","0","","0","Master Data Key Date","60","","","0DATE","20150930",null,null,null,null,null,null,null,null,null,null,null,null,null,null,null,null,null,null,null,null,null,null,null,null,null,null,null,null,19,"0000010001","DBE5O9AE5J44FB8QPHGBY8G6X"]
[null,null,null,null,null,null,null,null,null,null,null,null,null,null,null,null,null,null,null,null,null,null,null,null,null,null,null,null,null,null,31,"0PERS_SAREA","Personnel Subarea","X","","","0005","","","","","","","","1","00","","","","00000000","K","0PERS_SAREA","A","","","H","","","","","","00000000","0000","","0","","","","","1","1","1","0","0","","","2","","0","DBE5O9AE5J1TDG9GQV5HQY9DL","","","","","","","0000","","","",19,"D5B6FGJCS8AO1FCVGIC372Z95","D5B6FGJCS8ICVMMGNWO7VCXYX","PH","0010","","S","","L","","","","","",null,null,null,null,null,null,19,"0ORGUNIT","0PLANT","Plant","0000","X","0","0","0","","","","","0000","",null,null,null,null,null,17,"D5ENPW16Z66VVO6GEHRV23PIX","D5B6FGJCS8MYZCL0L59W9XBLL","0","0","","","","00","X","0","0","","",null,null,null,null,null,null,null,null,null,null,null,null,null,null,null,null,null,null,null,null,null,null,null,null,null,null,null,null,null,null,null,null,null,null,null,null,11,"ZZPERAR","1","M","","","","","","","","0","","0","","0","ZPersonnel Area","60","","","ZPERSAREA","",null,null,null,null,null,null,null,null,null,null,null,null,null,null,null,null,null,null,null,null,null,null,null,null,null,null,null,null,19,"0000010003","ZPA_O07"]
[null,null,null,null,null,null,null,null,null,null,null,null,null,null,null,null,null,null,null,null,null,null,null,null,null,null,null,null,null,null,31,"0ORGUNIT","Organizational Unit","X","","","0006","","","","","","","U","1","02","X","ORGEH","000","20121231","K","0ORGUNIT","A","","","H","0ORGUNIT","A","","","","00000000","0000","","0","","","","2","1","1","1","0","0","","","","","0","DBE5O9AE5J2L22L82EL3TDNND","","","","","","","0000","","","",19,"D5B6FGJCS8AO1FCVGIC372Z95","D5B6FGJCS8J4K8Y7ZG3TXSC8P","SE","0011","","S","","L","","","","","",null,null,null,null,null,null,19,"0ORGUNIT","0PURCH_ORG","Purchasing org.","0000","X","0","0","0","","","","","0000","",null,null,null,null,null,17,"D5ENPW16Z66VVO6GEHRV23PIX","D5B6FGJCS8NQNYWRWOPICCPVD","","","","","","00","X","0","0","","",null,null,null,null,null,null,null,null,null,null,null,null,null,null,null,null,null,null,null,null,null,null,null,null,null,null,null,null,null,null,null,null,null,null,null,null,10,"ZS_DT_1","1","P","I","EQ","20150930","30/09/2015","","","","0","","0","","0","Target date 1","60","","","ZEMP_STRT","20150930",null,null,null,null,null,null,null,null,null,null,null,null,null,null,null,null,null,null,null,null,null,null,null,null,null,null,null,null,19,"0000000010",""]
[null,null,null,null,null,null,null,null,null,null,null,null,null,null,null,null,null,null,null,null,null,null,null,null,null,null,null,null,null,null,31,"D5B6FGJCS8AO1FCVGIC372Z95","Job Families Incl Teach","","X","X","0001","","","","","","","U","","00","","","","","K","D5B6FGJCS8AO1FCVGIC372Z95","A","","","","","","","","","00000000","0000","","0","","","","","0","0","0","0","0","","","","","","D5B6FGJCS8AO1FCVGIC372Z95","","","","","","","0000","","","",19,"D5B6FGJCS8AO1FCVGIC372Z95","D5B6FGJCS8JW8V9ZAZJG07QIH","SR","0012","","S","","L","","","","","",null,null,null,null,null,null,19,"0ORGUNIT","0PUR_GROUP","Purchasing group","0000","X","0","0","0","","","","","0000","",null,null,null,null,null,17,"D5ENPW16Z66VVO6GEHRV23PIX","D5B6FGJCS8OICL8J8854ES455","0","0","","","","00","X","0","0","","",null,null,null,null,null,null,null,null,null,null,null,null,null,null,null,null,null,null,null,null,null,null,null,null,null,null,null,null,null,null,null,null,null,null,null,null,10,"ZBUDH","1","P","I","EQ","20150930","30/09/2015","","","","0","","0","","0","Master Data Key Date","60","","","0DATE","20150930",null,null,null,null,null,null,null,null,null,null,null,null,null,null,null,null,null,null,null,null,null,null,null,null,null,null,null,null,19,"0000000109","0"]
[null,null,null,null,null,null,null,null,null,null,null,null,null,null,null,null,null,null,null,null,null,null,null,null,null,null,null,null,null,null,31,"D5ENPW16Z63T56VF4C1ESE4FT","Breakdown Gender Contract FTPT","","X","Y","0001","","","","","","","U","","00","","","","","K","D5ENPW16Z63T56VF4C1ESE4FT","A","","","","","","","","","00000000","0000","X","0","","","","","0","0","0","0","0","","","","","","D5ENPW16Z63T56VF4C1ESE4FT","","","","","","","0000","","","",19,"D5B6FGJCS8AO1FCVGIC372Z95","D5B6FGJCS8KNXHLQMIZ22N4S9","TS","0013","","S","","L","","","","","",null,null,null,null,null,null,19,"0ORGUNIT","0SALESORG","Sales Organization","0000","X","0","0","0","","","","","0000","",null,null,null,null,null,17,"D5ENPW16Z67NKAI7Q17H4J3SP","D5B6FGJCS8BFQ1OMS1RP9IDIX","","","","","","00","X","0","0","","",null,null,null,null,null,null,null,null,null,null,null,null,null,null,null,null,null,null,null,null,null,null,null,null,null,null,null,null,null,null,null,null,null,null,null,null,10,"ZZPERAR","1","M","","","","","","","","0","","0","","0","ZPersonnel Area","60","","","ZPERSAREA","",null,null,null,null,null,null,null,null,null,null,null,null,null,null,null,null,null,null,null,null,null,null,null,null,null,null,null,null,19,"0000000113",""]
[null,null,null,null,null,null,null,null,null,null,null,null,null,null,null,null,null,null,null,null,null,null,null,null,null,null,null,null,null,null,33,"ZPERID","NI Number","X","","","0001","","","","","","","","2","00","","","","00000000","K","ZPERID","A","","","H","","","","","","00000000","0000","","0","","","","","1","1","1","0","0","","","2","","0","DBE5O9AE5IYQMYYFGPF1H8OAH","","","","","","","0000","","","",19,"D5B6FGJCS8AO1FCVGIC372Z95","D5B6FGJCS8LFM3XHY2EO52J21","VE","0014","","S","","L","","","","","",null,null,null,null,null,null,19,"0ORGUNIT","0SALES_GRP","Sales group","0000","X","0","0","0","","","","","0000","",null,null,null,null,null,17,"D5ENPW16Z67NKAI7Q17H4J3SP","D5B6FGJCS8C7EO0E3L7BBXRSP","","","","","","00","X","0","0","","",null,null,null,null,null,null,null,null,null,null,null,null,null,null,null,null,null,null,null,null,null,null,null,null,null,null,null,null,null,null,null,null,null,null,null,null,9,"ZS_DT_1","1","P","I","EQ","20150930","30/09/2015","","","","0","","0","","0","Target date 1","60","","","ZEMP_STRT","20150930",null,null,null,null,null,null,null,null,null,null,null,null,null,null,null,null,null,null,null,null,null,null,null,null,null,null,null,null,19,"0000000020",""]
[null,null,null,null,null,null,null,null,null,null,null,null,null,null,null,null,null,null,null,null,null,null,null,null,null,null,null,null,null,null,33,"ZPERSAREA","ZPersonal Area","X","","","0002","","Education","","","","","","5","00","","","","00000000","K","ZPERSAREA","A","","","H","","","","","","00000000","0000","","0","","1","","","1","1","1","0","0","","","2","","0","DBE5O9AE5IZIBLA6S8UNJO2K9","","","","","","","0000","","","",19,"D5B6FGJCS8AO1FCVGIC372Z95","D5B6FGJCS8M7AQ999LUA7HXBT","Teachers","0015","","S","","L","","","","","",null,null,null,null,null,null,19,"0ORGUNIT","0SALES_OFF","Sales Office","0000","X","0","0","0","","","","","0000","",null,null,null,null,null,17,"D5ENPW16Z67NKAI7Q17H4J3SP","D5B6FGJCS8CZ3AC5F4MXED62H","","","","","","00","X","0","0","","",null,null,null,null,null,null,null,null,null,null,null,null,null,null,null,null,null,null,null,null,null,null,null,null,null,null,null,null,null,null,null,null,null,null,null,null,9,"ZBUDH","1","P","I","EQ","20150930","30/09/2015","","","","0","","0","","0","Master Data Key Date","60","","","0DATE","20150930",null,null,null,null,null,null,null,null,null,null,null,null,null,null,null,null,null,null,null,null,null,null,null,null,null,null,null,null,19,"0000000030",""]
[null,null,null,null,null,null,null,null,null,null,null,null,null,null,null,null,null,null,null,null,null,null,null,null,null,null,null,null,null,null,33,"ZPRIM_ID","ZPrimary Employee ID","X","","","0003","","","","","","","","2","00","","","","00000000","K","ZPRIM_ID","A","","","H","","","","","","00000000","0000","","0","","","","","1","1","1","0","0","","","2","","0","DBE5O9AE5J0A07LY3SA9M3GU1","","","","","","","0000","","","",19,"D5B6FGJCS8AO1FCVGIC372Z95","D5B6FGJCS8MYZCL0L59W9XBLL","Total Employees","0016","","F","","L","","","","","",null,null,null,null,null,null,20,"0ORGUNIT","0BBPPURGRPX","Ind.Purchasing Group","0000","X","2","0","0","","","","","0000","",null,null,null,null,null,17,"D5ENPW16Z67NKAI7Q17H4J3SP","D5B6FGJCS8DQRWNWQO2JGSKC9","","","","","","00","X","0","0","","",null,null,null,null,null,null,null,null,null,null,null,null,null,null,null,null,null,null,null,null,null,null,null,null,null,null,null,null,null,null,null,null,null,null,null,null,9,"ZZPERAR","1","M","","","","","","","","0","","0","","0","ZPersonnel Area","60","","","ZPERSAREA","",null,null,null,null,null,null,null,null,null,null,null,null,null,null,null,null,null,null,null,null,null,null,null,null,null,null,null,null,19,"0000000040",""]
[null,null,null,null,null,null,null,null,null,null,null,null,null,null,null,null,null,null,null,null,null,null,null,null,null,null,null,null,null,null,33,"0EMPLGROUP","Employee Group","X","","","0004","","","","","","","","1","00","","","","00000000","K","0EMPLGROUP","A","","","H","","","","","","00000000","0000","","0","","","","","1","1","1","0","0","","","2","","0","DBE5O9AE5J11OTXPFBPVOIV3T","","","","","","","0000","","","",19,"D5B6FGJCS8AO1FCVGIC372Z95","D5B6FGJCS8NQNYWRWOPICCPVD","All Employees","0017","X","S","","L","","","","","",null,null,null,null,null,null,20,"0ORGUNIT","0BBPPURORGX","Ind. Purchasing Org.","0000","X","2","0","0","","","","","0000","",null,null,null,null,null,17,"D5ENPW16Z67NKAI7Q17H4J3SP","D5B6FGJCS8EIGIZO27I5J7YM1","","","","","","00","X","0","0","","",null,null,null,null,null,null,null,null,null,null,null,null,null,null,null,null,null,null,null,null,null,null,null,null,null,null,null,null,null,null,null,null,null,null,null,null,8,"ZS_DT_1","1","P","I","EQ","20150930","30/09/2015","","","","0","","0","","0","Target date 1","60","","","ZEMP_STRT","20150930",null,null,null,null,null,null,null,null,null,null,null,null,null,null,null,null,null,null,null,null,null,null,null,null,null,null,null,null,19,"0000000041",""]
[null,null,null,null,null,null,null,null,null,null,null,null,null,null,null,null,null,null,null,null,null,null,null,null,null,null,null,null,null,null,33,"0PERS_SAREA","Personnel Subarea","X","","","0005","","","","","","","","1","00","","","","00000000","K","0PERS_SAREA","A","","","H","","","","","","00000000","0000","","0","","","","","1","1","1","0","0","","","2","","0","DBE5O9AE5J1TDG9GQV5HQY9DL","","","","","","","0000","","","",19,"D5B6FGJCS8AO1FCVGIC372Z95","D5B6FGJCS8OICL8J8854ES455","Non WPBR","0018","","F","","L","","","","","",null,null,null,null,null,null,20,"0ORGUNIT","0BBP_BUYID","Buyer ID","0000","X","5","0","0","","","","","0000","",null,null,null,null,null,17,"D5ENPW16Z67NKAI7Q17H4J3SP","D5B6FGJCS8FA55BFDQXRLNCVT","","","","","","00","X","0","0","","",null,null,null,null,null,null,null,null,null,null,null,null,null,null,null,null,null,null,null,null,null,null,null,null,null,null,null,null,null,null,null,null,null,null,null,null,8,"ZBUDH","1","P","I","EQ","20150930","30/09/2015","","","","0","","0","","0","Master Data Key Date","60","","","0DATE","20150930",null,null,null,null,null,null,null,null,null,null,null,null,null,null,null,null,null,null,null,null,null,null,null,null,null,null,null,null,19,"0000000042","00"]
[null,null,null,null,null,null,null,null,null,null,null,null,null,null,null,null,null,null,null,null,null,null,null,null,null,null,null,null,null,null,33,"0ORGUNIT","Organizational Unit","X","","","0006","","","","","","","U","1","02","X","ORGEH","000","20121231","K","0ORGUNIT","A","","","H","0ORGUNIT","A","","","","00000000","0000","","0","","","","2","1","1","1","0","0","","","","","0","DBE5O9AE5J2L22L82EL3TDNND","","","","","","","0000","","","",20,"D5ENPW16Z63T56VF4C1ESE4FT","D5ENPW16Z64KTT76FVH0UTIPL","Male Temp FT","0001","","S","","L","X","IOBJ","Z_EMP_HCT","","Employee Headcount",null,null,null,null,null,null,20,"0ORGUNIT","0BBP_ISCOMP","Organizational Unit is Company","0000","X","1","0","0","","","","","0000","",null,null,null,null,null,17,"D5ENPW16Z67NKAI7Q17H4J3SP","D5B6FGJCS8G1TRN6PADDO2R5L","","","","","","00","X","0","0","","",null,null,null,null,null,null,null,null,null,null,null,null,null,null,null,null,null,null,null,null,null,null,null,null,null,null,null,null,null,null,null,null,null,null,null,null,8,"ZZPERAR","1","M","","","","","","","","0","","0","","0","ZPersonnel Area","60","","","ZPERSAREA","",null,null,null,null,null,null,null,null,null,null,null,null,null,null,null,null,null,null,null,null,null,null,null,null,null,null,null,null,19,"0000000043","00"]
[null,null,null,null,null,null,null,null,null,null,null,null,null,null,null,null,null,null,null,null,null,null,null,null,null,null,null,null,null,null,33,"D5B6FGJCS8AO1FCVGIC372Z95","Job Families Incl Teach","","X","X","0001","","","","","","","U","","00","","","","","K","D5B6FGJCS8AO1FCVGIC372Z95","A","","","","","","","","","00000000","0000","","0","","","","","0","0","0","0","0","","","","","","D5B6FGJCS8AO1FCVGIC372Z95","","","","","","","0000","","","",20,"D5B6FGJCS8AO1FCVGIC372Z95","D5B6FGJCS8BFQ1OMS1RP9IDIX","BS","0001","","S","","L","","","","","",null,null,null,null,null,null,20,"0ORGUNIT","0BUS_AREA","Business area","0000","X","0","0","0","","","","","0000","",null,null,null,null,null,17,"D5ENPW16Z67NKAI7Q17H4J3SP","D5B6FGJCS8GTIDYY0TSZQI5FD","","","","","","00","X","0","0","","",null,null,null,null,null,null,null,null,null,null,null,null,null,null,null,null,null,null,null,null,null,null,null,null,null,null,null,null,null,null,null,null,null,null,null,null,7,"ZS_DT_1","1","P","I","EQ","20150930","30/09/2015","","","","0","","0","","0","Target date 1","60","","","ZEMP_STRT","20150930",null,null,null,null,null,null,null,null,null,null,null,null,null,null,null,null,null,null,null,null,null,null,null,null,null,null,null,null,19,"0000000021",""]
[null,null,null,null,null,null,null,null,null,null,null,null,null,null,null,null,null,null,null,null,null,null,null,null,null,null,null,null,null,null,33,"D5ENPW16Z63T56VF4C1ESE4FT","Breakdown Gender Contract FTPT","","X","Y","0001","","","","","","","U","","00","","","","","K","D5ENPW16Z63T56VF4C1ESE4FT","A","","","","","","","","","00000000","0000","X","0","","","","","0","0","0","0","0","","","","","","D5ENPW16Z63T56VF4C1ESE4FT","","","","","","","0000","","","",20,"D5ENPW16Z63T56VF4C1ESE4FT","D5ENPW16Z65CIFIXREWMX8WZD","Male Temp PT","0002","","S","","L","X","IOBJ","Z_EMP_HCT","","Employee Headcount",null,null,null,null,null,null,20,"0ORGUNIT","0COMP_CODE","Company code","0000","X","0","0","0","","","","","0000","",null,null,null,null,null,17,"D5ENPW16Z67NKAI7Q17H4J3SP","D5B6FGJCS8HL70APCD8LSXJP5","","","","","","00","X","0","0","","",null,null,null,null,null,null,null,null,null,null,null,null,null,null,null,null,null,null,null,null,null,null,null,null,null,null,null,null,null,null,null,null,null,null,null,null,7,"ZBUDH","1","P","I","EQ","20150930","30/09/2015","","","","0","","0","","0","Master Data Key Date","60","","","0DATE","20150930",null,null,null,null,null,null,null,null,null,null,null,null,null,null,null,null,null,null,null,null,null,null,null,null,null,null,null,null,19,"0000000022",""]
[null,null,null,null,null,null,null,null,null,null,null,null,null,null,null,null,null,null,null,null,null,null,null,null,null,null,null,null,null,null,34,"ZPERID","NI Number","X","","","0001","","","","","","","","2","00","","","","00000000","K","ZPERID","A","","","H","","","","","","00000000","0000","","0","","","","","1","1","1","0","0","","","2","","0","DBE5O9AE5IYQMYYFGPF1H8OAH","","","","","","","0000","","","",20,"D5B6FGJCS8AO1FCVGIC372Z95","D5B6FGJCS8C7EO0E3L7BBXRSP","CV","0002","","S","","L","","","","","",null,null,null,null,null,null,20,"0ORGUNIT","0CO_MST_AR","Controlling Area of Master Cost Center","0000","X","0","0","0","","","","","0000","",null,null,null,null,null,17,"D5ENPW16Z67NKAI7Q17H4J3SP","D5B6FGJCS8ICVMMGNWO7VCXYX","","","","","","00","X","0","0","","",null,null,null,null,null,null,null,null,null,null,null,null,null,null,null,null,null,null,null,null,null,null,null,null,null,null,null,null,null,null,null,null,null,null,null,null,7,"ZZPERAR","1","M","","","","","","","","0","","0","","0","ZPersonnel Area","60","","","ZPERSAREA","",null,null,null,null,null,null,null,null,null,null,null,null,null,null,null,null,null,null,null,null,null,null,null,null,null,null,null,null,19,"0000000023",""]
[null,null,null,null,null,null,null,null,null,null,null,null,null,null,null,null,null,null,null,null,null,null,null,null,null,null,null,null,null,null,34,"ZPERSAREA","ZPersonal Area","X","","","0002","","Financial","","","","","","5","00","","","","00000000","K","ZPERSAREA","A","","","H","","","","","","00000000","0000","","0","","1","","","1","1","1","0","0","","","2","","0","DBE5O9AE5IZIBLA6S8UNJO2K9","","","","","","","0000","","","",20,"D5ENPW16Z63T56VF4C1ESE4FT","D5ENPW16Z66471UP2YC8ZOB95","Male Perm FT","0003","","S","","L","X","IOBJ","Z_EMP_HCT","","Employee Headcount",null,null,null,null,null,null,20,"0ORGUNIT","0CRMSALGRPX","Sls Group: Indicator","0000","X","2","0","0","","","","","0000","",null,null,null,null,null,17,"D5ENPW16Z67NKAI7Q17H4J3SP","D5B6FGJCS8J4K8Y7ZG3TXSC8P","","","","","","00","X","0","0","","",null,null,null,null,null,null,null,null,null,null,null,null,null,null,null,null,null,null,null,null,null,null,null,null,null,null,null,null,null,null,null,null,null,null,null,null,6,"ZS_DT_1","1","P","I","EQ","20150930","30/09/2015","","","","0","","0","","0","Target date 1","60","","","ZEMP_STRT","20150930",null,null,null,null,null,null,null,null,null,null,null,null,null,null,null,null,null,null,null,null,null,null,null,null,null,null,null,null,19,"0000010002","DBE5O9AE5IU4J8ZVJGTD2OANT"]
[null,null,null,null,null,null,null,null,null,null,null,null,null,null,null,null,null,null,null,null,null,null,null,null,null,null,null,null,null,null,34,"ZPRIM_ID","ZPrimary Employee ID","X","","","0003","","","","","","","","2","00","","","","00000000","K","ZPRIM_ID","A","","","H","","","","","","00000000","0000","","0","","","","","1","1","1","0","0","","","2","","0","DBE5O9AE5J0A07LY3SA9M3GU1","","","","","","","0000","","","",20,"D5B6FGJCS8AO1FCVGIC372Z95","D5B6FGJCS8CZ3AC5F4MXED62H","CA","0003","","S","","L","","","","","",null,null,null,null,null,null,20,"0ORGUNIT","0CRMSALOFFX","Sls Office:Indicator","0000","X","2","0","0","","","","","0000","",null,null,null,null,null,17,"D5ENPW16Z67NKAI7Q17H4J3SP","D5B6FGJCS8JW8V9ZAZJG07QIH","","","","","","00","X","0","0","","",null,null,null,null,null,null,null,null,null,null,null,null,null,null,null,null,null,null,null,null,null,null,null,null,null,null,null,null,null,null,null,null,null,null,null,null,6,"ZBUDH","1","P","I","EQ","20150930","30/09/2015","","","","0","","0","","0","Master Data Key Date","60","","","0DATE","20150930",null,null,null,null,null,null,null,null,null,null,null,null,null,null,null,null,null,null,null,null,null,null,null,null,null,null,null,null,19,"0000000105",""]
[null,null,null,null,null,null,null,null,null,null,null,null,null,null,null,null,null,null,null,null,null,null,null,null,null,null,null,null,null,null,34,"0EMPLGROUP","Employee Group","X","","","0004","","","","","","","","1","00","","","","00000000","K","0EMPLGROUP","A","","","H","","","","","","00000000","0000","","0","","","","","1","1","1","0","0","","","2","","0","DBE5O9AE5J11OTXPFBPVOIV3T","","","","","","","0000","","","",20,"D5ENPW16Z63T56VF4C1ESE4FT","D5ENPW16Z66VVO6GEHRV23PIX","Male Perm PT","0004","","S","","L","X","IOBJ","Z_EMP_HCT","","Employee Headcount",null,null,null,null,null,null,20,"0ORGUNIT","0CRMSALORGX","Sales Org. Indicator","0000","X","2","0","0","","","","","0000","",null,null,null,null,null,17,"D5ENPW16Z67NKAI7Q17H4J3SP","D5B6FGJCS8KNXHLQMIZ22N4S9","","","","","","00","X","0","0","","",null,null,null,null,null,null,null,null,null,null,null,null,null,null,null,null,null,null,null,null,null,null,null,null,null,null,null,null,null,null,null,null,null,null,null,null,6,"ZZPERAR","1","M","","","","","","","","0","","0","","0","ZPersonnel Area","60","","","ZPERSAREA","",null,null,null,null,null,null,null,null,null,null,null,null,null,null,null,null,null,null,null,null,null,null,null,null,null,null,null,null,19,"0000000106",""]
[null,null,null,null,null,null,null,null,null,null,null,null,null,null,null,null,null,null,null,null,null,null,null,null,null,null,null,null,null,null,34,"0PERS_SAREA","Personnel Subarea","X","","","0005","","","","","","","","1","00","","","","00000000","K","0PERS_SAREA","A","","","H","","","","","","00000000","0000","","0","","","","","1","1","1","0","0","","","2","","0","DBE5O9AE5J1TDG9GQV5HQY9DL","","","","","","","0000","","","",20,"D5B6FGJCS8AO1FCVGIC372Z95","D5B6FGJCS8DQRWNWQO2JGSKC9","CF","0004","","S","","L","","","","","",null,null,null,null,null,null,20,"0ORGUNIT","0CRMSRVTGRP","Ex. CRM Service Org.","0000","X","1","0","0","","","","","0000","",null,null,null,null,null,17,"D5ENPW16Z67NKAI7Q17H4J3SP","D5B6FGJCS8LFM3XHY2EO52J21","","","","","","00","X","0","0","","",null,null,null,null,null,null,null,null,null,null,null,null,null,null,null,null,null,null,null,null,null,null,null,null,null,null,null,null,null,null,null,null,null,null,null,null,5,"ZS_DT_1","1","P","I","EQ","20150930","30/09/2015","","","","0","","0","","0","Target date 1","60","","","ZEMP_STRT","20150930",null,null,null,null,null,null,null,null,null,null,null,null,null,null,null,null,null,null,null,null,null,null,null,null,null,null,null,null,19,"0000000112","0"]
[null,null,null,null,null,null,null,null,null,null,null,null,null,null,null,null,null,null,null,null,null,null,null,null,null,null,null,null,null,null,34,"0ORGUNIT","Organizational Unit","X","","","0006","","","","","","","U","1","02","X","ORGEH","000","20121231","K","0ORGUNIT","A","","","H","0ORGUNIT","A","","","","00000000","0000","","0","","","","2","1","1","1","0","0","","","","","0","DBE5O9AE5J2L22L82EL3TDNND","","","","","","","0000","","","",20,"D5B6FGJCS8AO1FCVGIC372Z95","D5B6FGJCS8EIGIZO27I5J7YM1","CU","0005","","S","","L","","","","","",null,null,null,null,null,null,20,"0ORGUNIT","0CRM_SALGRP","CRM Sales Group","0000","X","1","0","0","","","","","0000","",null,null,null,null,null,17,"D5ENPW16Z67NKAI7Q17H4J3SP","D5B6FGJCS8M7AQ999LUA7HXBT","","","","","","00","X","0","0","","",null,null,null,null,null,null,null,null,null,null,null,null,null,null,null,null,null,null,null,null,null,null,null,null,null,null,null,null,null,null,null,null,null,null,null,null,5,"ZBUDH","1","P","I","EQ","20150930","30/09/2015","","","","0","","0","","0","Master Data Key Date","60","","","0DATE","20150930",null,null,null,null,null,null,null,null,null,null,null,null,null,null,null,null,null,null,null,null,null,null,null,null,null,null,null,null,19,"0000000200","X"]
[null,null,null,null,null,null,null,null,null,null,null,null,null,null,null,null,null,null,null,null,null,null,null,null,null,null,null,null,null,null,34,"D5B6FGJCS8AO1FCVGIC372Z95","Job Families Incl Teach","","X","X","0001","","","","","","","U","","00","","","","","K","D5B6FGJCS8AO1FCVGIC372Z95","A","","","","","","","","","00000000","0000","","0","","","","","0","0","0","0","0","","","","","","D5B6FGJCS8AO1FCVGIC372Z95","","","","","","","0000","","","",20,"D5ENPW16Z63T56VF4C1ESE4FT","D5ENPW16Z67NKAI7Q17H4J3SP","Female Temp FT","0005","","S","","L","X","IOBJ","Z_EMP_HCT","","Employee Headcount",null,null,null,null,null,null,20,"0ORGUNIT","0CRM_SALOFF","CRM Sales Office","0000","X","1","0","0","","","","","0000","",null,null,null,null,null,17,"D5ENPW16Z67NKAI7Q17H4J3SP","D5B6FGJCS8MYZCL0L59W9XBLL","0","0","","","","00","X","0","0","","",null,null,null,null,null,null,null,null,null,null,null,null,null,null,null,null,null,null,null,null,null,null,null,null,null,null,null,null,null,null,null,null,null,null,null,null,5,"ZZPERAR","1","M","","","","","","","","0","","0","","0","ZPersonnel Area","60","","","ZPERSAREA","",null,null,null,null,null,null,null,null,null,null,null,null,null,null,null,null,null,null,null,null,null,null,null,null,null,null,null,null,19,"0000004000","X"]
[null,null,null,null,null,null,null,null,null,null,null,null,null,null,null,null,null,null,null,null,null,null,null,null,null,null,null,null,null,null,34,"D5ENPW16Z63T56VF4C1ESE4FT","Breakdown Gender Contract FTPT","","X","Y","0001","","","","","","","U","","00","","","","","K","D5ENPW16Z63T56VF4C1ESE4FT","A","","","","","","","","","00000000","0000","X","0","","","","","0","0","0","0","0","","","","","","D5ENPW16Z63T56VF4C1ESE4FT","","","","","","","0000","","","",20,"D5ENPW16Z63T56VF4C1ESE4FT","D5ENPW16Z68F8WTZ1KN36YI2H","Female Temp PT","0006","","S","","L","X","IOBJ","Z_EMP_HCT","","Employee Headcount",null,null,null,null,null,null,20,"0ORGUNIT","0CRM_SALORG","CRM Sales Org.","0000","X","1","0","0","","","","","0000","",null,null,null,null,null,17,"D5ENPW16Z67NKAI7Q17H4J3SP","D5B6FGJCS8NQNYWRWOPICCPVD","","","","","","00","X","0","0","","",null,null,null,null,null,null,null,null,null,null,null,null,null,null,null,null,null,null,null,null,null,null,null,null,null,null,null,null,null,null,null,null,null,null,null,null,4,"ZS_DT_1","1","P","I","EQ","20150930","30/09/2015","","","","0","","0","","0","Target date 1","60","","","ZEMP_STRT","20150930",null,null,null,null,null,null,null,null,null,null,null,null,null,null,null,null,null,null,null,null,null,null,null,null,null,null,null,null,19,"0000009001","QSW Breakdown By Job Family excl cas sess"]
[null,null,null,null,null,null,null,null,null,null,null,null,null,null,null,null,null,null,null,null,null,null,null,null,null,null,null,null,null,null,35,"ZPERID","NI Number","X","","","0001","","","","","","","","2","00","","","","00000000","K","ZPERID","A","","","H","","","","","","00000000","0000","","0","","","","","1","1","1","0","0","","","2","","0","DBE5O9AE5IYQMYYFGPF1H8OAH","","","","","","","0000","","","",20,"D5B6FGJCS8AO1FCVGIC372Z95","D5B6FGJCS8FA55BFDQXRLNCVT","CR","0006","","S","","L","","","","","",null,null,null,null,null,null,20,"0ORGUNIT","0CRM_SRVORG","Service Org. CRM","0000","X","1","0","0","","","","","0000","",null,null,null,null,null,17,"D5ENPW16Z67NKAI7Q17H4J3SP","D5B6FGJCS8OICL8J8854ES455","0","0","","","","00","X","0","0","","",null,null,null,null,null,null,null,null,null,null,null,null,null,null,null,null,null,null,null,null,null,null,null,null,null,null,null,null,null,null,null,null,null,null,null,null,4,"ZBUDH","1","P","I","EQ","20150930","30/09/2015","","","","0","","0","","0","Master Data Key Date","60","","","0DATE","20150930",null,null,null,null,null,null,null,null,null,null,null,null,null,null,null,null,null,null,null,null,null,null,null,null,null,null,null,null,19,"0000000114","1"]
[null,null,null,null,null,null,null,null,null,null,null,null,null,null,null,null,null,null,null,null,null,null,null,null,null,null,null,null,null,null,35,"ZPERSAREA","ZPersonal Area","X","","","0002","","Land and Environmental","","","","","","5","00","","","","00000000","K","ZPERSAREA","A","","","H","","","","","","00000000","0000","","0","","1","","","1","1","1","0","0","","","2","","0","DBE5O9AE5IZIBLA6S8UNJO2K9","","","","","","","0000","","","",20,"D5ENPW16Z63T56VF4C1ESE4FT","D5ENPW16Z696XJ5QD42P9DWC9","Female Perm FT","0007","","S","","L","X","IOBJ","Z_EMP_HCT","","Employee Headcount",null,null,null,null,null,null,20,"0ORGUNIT","0LOGSYS","Source System","0000","X","1","0","0","","","","","0000","",null,null,null,null,null,17,"D5ENPW16Z68F8WTZ1KN36YI2H","D5B6FGJCS8BFQ1OMS1RP9IDIX","","","","","","00","X","0","0","","",null,null,null,null,null,null,null,null,null,null,null,null,null,null,null,null,null,null,null,null,null,null,null,null,null,null,null,null,null,null,null,null,null,null,null,null,4,"ZZPERAR","1","M","","","","","","","","0","","0","","0","ZPersonnel Area","60","","","ZPERSAREA","",null,null,null,null,null,null,null,null,null,null,null,null,null,null,null,null,null,null,null,null,null,null,null,null,null,null,null,null,20,"0000000100","X"]
[null,null,null,null,null,null,null,null,null,null,null,null,null,null,null,null,null,null,null,null,null,null,null,null,null,null,null,null,null,null,35,"ZPRIM_ID","ZPrimary Employee ID","X","","","0003","","","","","","","","2","00","","","","00000000","K","ZPRIM_ID","A","","","H","","","","","","00000000","0000","","0","","","","","1","1","1","0","0","","","2","","0","DBE5O9AE5J0A07LY3SA9M3GU1","","","","","","","0000","","","",20,"D5B6FGJCS8AO1FCVGIC372Z95","D5B6FGJCS8G1TRN6PADDO2R5L","IP","0007","","S","","L","","","","","",null,null,null,null,null,null,20,"0ORGUNIT","0MAST_CCTR","Master Cost Center","0000","X","0","0","0","","","","","0000","",null,null,null,null,null,17,"D5ENPW16Z68F8WTZ1KN36YI2H","D5B6FGJCS8C7EO0E3L7BBXRSP","","","","","","00","X","0","0","","",null,null,null,null,null,null,null,null,null,null,null,null,null,null,null,null,null,null,null,null,null,null,null,null,null,null,null,null,null,null,null,null,null,null,null,null,28,"ZS_DT_1","1","P","I","EQ","20150930","30/09/2015","","","","0","","0","","0","Target date 1","60","","","ZEMP_STRT","20150930",null,null,null,null,null,null,null,null,null,null,null,null,null,null,null,null,null,null,null,null,null,null,null,null,null,null,null,null,20,"0000000108",""]
[null,null,null,null,null,null,null,null,null,null,null,null,null,null,null,null,null,null,null,null,null,null,null,null,null,null,null,null,null,null,35,"0EMPLGROUP","Employee Group","X","","","0004","","","","","","","","1","00","","","","00000000","K","0EMPLGROUP","A","","","H","","","","","","00000000","0000","","0","","","","","1","1","1","0","0","","","2","","0","DBE5O9AE5J11OTXPFBPVOIV3T","","","","","","","0000","","","",20,"D5ENPW16Z63T56VF4C1ESE4FT","D5ENPW16Z69YM5HHONIBBTAM1","Female Perm PT","0008","","S","","L","X","IOBJ","Z_EMP_HCT","","Employee Headcount",null,null,null,null,null,null,20,"0ORGUNIT","0PERS_AREA","Personnel Area","0000","X","1","0","0","","","","","0000","",null,null,null,null,null,17,"D5ENPW16Z68F8WTZ1KN36YI2H","D5B6FGJCS8CZ3AC5F4MXED62H","","","","","","00","X","0","0","","",null,null,null,null,null,null,null,null,null,null,null,null,null,null,null,null,null,null,null,null,null,null,null,null,null,null,null,null,null,null,null,null,null,null,null,null,28,"ZBUDH","1","P","I","EQ","20150930","30/09/2015","","","","0","","0","","0","Master Data Key Date","60","","","0DATE","20150930",null,null,null,null,null,null,null,null,null,null,null,null,null,null,null,null,null,null,null,null,null,null,null,null,null,null,null,null,20,"0000000101",""]
[null,null,null,null,null,null,null,null,null,null,null,null,null,null,null,null,null,null,null,null,null,null,null,null,null,null,null,null,null,null,35,"0PERS_SAREA","Personnel Subarea","X","","","0005","","","","","","","","1","00","","","","00000000","K","0PERS_SAREA","A","","","H","","","","","","00000000","0000","","0","","","","","1","1","1","0","0","","","2","","0","DBE5O9AE5J1TDG9GQV5HQY9DL","","","","","","","0000","","","",20,"D5B6FGJCS8AO1FCVGIC372Z95","D5B6FGJCS8GTIDYY0TSZQI5FD","LS","0008","","S","","L","","","","","",null,null,null,null,null,null,20,"0ORGUNIT","0PERS_SAREA","Personnel Subarea","0000","X","1","0","0","","","","","0000","",null,null,null,null,null,17,"D5ENPW16Z68F8WTZ1KN36YI2H","D5B6FGJCS8DQRWNWQO2JGSKC9","","","","","","00","X","0","0","","",null,null,null,null,null,null,null,null,null,null,null,null,null,null,null,null,null,null,null,null,null,null,null,null,null,null,null,null,null,null,null,null,null,null,null,null,28,"ZZPERAR","1","M","","","","","","","","0","","0","","0","ZPersonnel Area","60","","","ZPERSAREA","",null,null,null,null,null,null,null,null,null,null,null,null,null,null,null,null,null,null,null,null,null,null,null,null,null,null,null,null,20,"0000000104","1"]
[null,null,null,null,null,null,null,null,null,null,null,null,null,null,null,null,null,null,null,null,null,null,null,null,null,null,null,null,null,null,35,"0ORGUNIT","Organizational Unit","X","","","0006","","","","","","","U","1","02","X","ORGEH","000","20121231","K","0ORGUNIT","A","","","H","0ORGUNIT","A","","","","00000000","0000","","0","","","","2","1","1","1","0","0","","","","","0","DBE5O9AE5J2L22L82EL3TDNND","","","","","","","0000","","","",20,"D5B6FGJCS8AO1FCVGIC372Z95","D5B6FGJCS8HL70APCD8LSXJP5","PC","0009","","S","","L","","","","","",null,null,null,null,null,null,20,"0ORGUNIT","0PLANT","Plant","0000","X","0","0","0","","","","","0000","",null,null,null,null,null,17,"D5ENPW16Z68F8WTZ1KN36YI2H","D5B6FGJCS8EIGIZO27I5J7YM1","","","","","","00","X","0","0","","",null,null,null,null,null,null,null,null,null,null,null,null,null,null,null,null,null,null,null,null,null,null,null,null,null,null,null,null,null,null,null,null,null,null,null,null,29,"ZS_DT_1","1","P","I","EQ","20150930","30/09/2015","","","","0","","0","","0","Target date 1","60","","","ZEMP_STRT","20150930",null,null,null,null,null,null,null,null,null,null,null,null,null,null,null,null,null,null,null,null,null,null,null,null,null,null,null,null,20,"0000000103",""]
[null,null,null,null,null,null,null,null,null,null,null,null,null,null,null,null,null,null,null,null,null,null,null,null,null,null,null,null,null,null,35,"D5B6FGJCS8AO1FCVGIC372Z95","Job Families Incl Teach","","X","X","0001","","","","","","","U","","00","","","","","K","D5B6FGJCS8AO1FCVGIC372Z95","A","","","","","","","","","00000000","0000","","0","","","","","0","0","0","0","0","","","","","","D5B6FGJCS8AO1FCVGIC372Z95","","","","","","","0000","","","",20,"D5B6FGJCS8AO1FCVGIC372Z95","D5B6FGJCS8ICVMMGNWO7VCXYX","PH","0010","","S","","L","","","","","",null,null,null,null,null,null,20,"0ORGUNIT","0PURCH_ORG","Purchasing org.","0000","X","0","0","0","","","","","0000","",null,null,null,null,null,17,"D5ENPW16Z68F8WTZ1KN36YI2H","D5B6FGJCS8FA55BFDQXRLNCVT","","","","","","00","X","0","0","","",null,null,null,null,null,null,null,null,null,null,null,null,null,null,null,null,null,null,null,null,null,null,null,null,null,null,null,null,null,null,null,null,null,null,null,null,29,"ZBUDH","1","P","I","EQ","20150930","30/09/2015","","","","0","","0","","0","Master Data Key Date","60","","","0DATE","20150930",null,null,null,null,null,null,null,null,null,null,null,null,null,null,null,null,null,null,null,null,null,null,null,null,null,null,null,null,20,"0000000102","1"]
[null,null,null,null,null,null,null,null,null,null,null,null,null,null,null,null,null,null,null,null,null,null,null,null,null,null,null,null,null,null,35,"D5ENPW16Z63T56VF4C1ESE4FT","Breakdown Gender Contract FTPT","","X","Y","0001","","","","","","","U","","00","","","","","K","D5ENPW16Z63T56VF4C1ESE4FT","A","","","","","","","","","00000000","0000","X","0","","","","","0","0","0","0","0","","","","","","D5ENPW16Z63T56VF4C1ESE4FT","","","","","","","0000","","","",20,"D5B6FGJCS8AO1FCVGIC372Z95","D5B6FGJCS8J4K8Y7ZG3TXSC8P","SE","0011","","S","","L","","","","","",null,null,null,null,null,null,20,"0ORGUNIT","0PUR_GROUP","Purchasing group","0000","X","0","0","0","","","","","0000","",null,null,null,null,null,17,"D5ENPW16Z68F8WTZ1KN36YI2H","D5B6FGJCS8G1TRN6PADDO2R5L","","","","","","00","X","0","0","","",null,null,null,null,null,null,null,null,null,null,null,null,null,null,null,null,null,null,null,null,null,null,null,null,null,null,null,null,null,null,null,null,null,null,null,null,29,"ZZPERAR","1","M","","","","","","","","0","","0","","0","ZPersonnel Area","60","","","ZPERSAREA","",null,null,null,null,null,null,null,null,null,null,null,null,null,null,null,null,null,null,null,null,null,null,null,null,null,null,null,null,20,"0000009000",""]
[null,null,null,null,null,null,null,null,null,null,null,null,null,null,null,null,null,null,null,null,null,null,null,null,null,null,null,null,null,null,36,"ZPERID","NI Number","X","","","0001","","","","","","","","2","00","","","","00000000","K","ZPERID","A","","","H","","","","","","00000000","0000","","0","","","","","1","1","1","0","0","","","2","","0","DBE5O9AE5IYQMYYFGPF1H8OAH","","","","","","","0000","","","",20,"D5B6FGJCS8AO1FCVGIC372Z95","D5B6FGJCS8JW8V9ZAZJG07QIH","SR","0012","","S","","L","","","","","",null,null,null,null,null,null,20,"0ORGUNIT","0SALESORG","Sales Organization","0000","X","0","0","0","","","","","0000","",null,null,null,null,null,17,"D5ENPW16Z68F8WTZ1KN36YI2H","D5B6FGJCS8GTIDYY0TSZQI5FD","","","","","","00","X","0","0","","",null,null,null,null,null,null,null,null,null,null,null,null,null,null,null,null,null,null,null,null,null,null,null,null,null,null,null,null,null,null,null,null,null,null,null,null,30,"ZS_DT_1","1","P","I","EQ","20150930","30/09/2015","","","","0","","0","","0","Target date 1","60","","","ZEMP_STRT","20150930",null,null,null,null,null,null,null,null,null,null,null,null,null,null,null,null,null,null,null,null,null,null,null,null,null,null,null,null,20,"0000000107","DBE5O9AE5IU4J8ZVJGTD2OANT"]
[null,null,null,null,null,null,null,null,null,null,null,null,null,null,null,null,null,null,null,null,null,null,null,null,null,null,null,null,null,null,36,"ZPERSAREA","ZPersonal Area","X","","","0002","","Social Work","","","","","","5","00","","","","00000000","K","ZPERSAREA","A","","","H","","","","","","00000000","0000","","0","","1","","","1","1","1","0","0","","","2","","0","DBE5O9AE5IZIBLA6S8UNJO2K9","","","","","","","0000","","","",20,"D5B6FGJCS8AO1FCVGIC372Z95","D5B6FGJCS8KNXHLQMIZ22N4S9","TS","0013","","S","","L","","","","","",null,null,null,null,null,null,20,"0ORGUNIT","0SALES_GRP","Sales group","0000","X","0","0","0","","","","","0000","",null,null,null,null,null,17,"D5ENPW16Z68F8WTZ1KN36YI2H","D5B6FGJCS8HL70APCD8LSXJP5","","","","","","00","X","0","0","","",null,null,null,null,null,null,null,null,null,null,null,null,null,null,null,null,null,null,null,null,null,null,null,null,null,null,null,null,null,null,null,null,null,null,null,null,30,"ZBUDH","1","P","I","EQ","20150930","30/09/2015","","","","0","","0","","0","Master Data Key Date","60","","","0DATE","20150930",null,null,null,null,null,null,null,null,null,null,null,null,null,null,null,null,null,null,null,null,null,null,null,null,null,null,null,null,20,"0000010001","DBE5O9AE5J44FB8QPHGBY8G6X"]
[null,null,null,null,null,null,null,null,null,null,null,null,null,null,null,null,null,null,null,null,null,null,null,null,null,null,null,null,null,null,36,"ZPRIM_ID","ZPrimary Employee ID","X","","","0003","","","","","","","","2","00","","","","00000000","K","ZPRIM_ID","A","","","H","","","","","","00000000","0000","","0","","","","","1","1","1","0","0","","","2","","0","DBE5O9AE5J0A07LY3SA9M3GU1","","","","","","","0000","","","",20,"D5B6FGJCS8AO1FCVGIC372Z95","D5B6FGJCS8LFM3XHY2EO52J21","VE","0014","","S","","L","","","","","",null,null,null,null,null,null,20,"0ORGUNIT","0SALES_OFF","Sales Office","0000","X","0","0","0","","","","","0000","",null,null,null,null,null,17,"D5ENPW16Z68F8WTZ1KN36YI2H","D5B6FGJCS8ICVMMGNWO7VCXYX","","","","","","00","X","0","0","","",null,null,null,null,null,null,null,null,null,null,null,null,null,null,null,null,null,null,null,null,null,null,null,null,null,null,null,null,null,null,null,null,null,null,null,null,30,"ZZPERAR","1","M","","","","","","","","0","","0","","0","ZPersonnel Area","60","","","ZPERSAREA","",null,null,null,null,null,null,null,null,null,null,null,null,null,null,null,null,null,null,null,null,null,null,null,null,null,null,null,null,20,"0000010003","ZPA_O07"]
[null,null,null,null,null,null,null,null,null,null,null,null,null,null,null,null,null,null,null,null,null,null,null,null,null,null,null,null,null,null,36,"0EMPLGROUP","Employee Group","X","","","0004","","","","","","","","1","00","","","","00000000","K","0EMPLGROUP","A","","","H","","","","","","00000000","0000","","0","","","","","1","1","1","0","0","","","2","","0","DBE5O9AE5J11OTXPFBPVOIV3T","","","","","","","0000","","","",20,"D5B6FGJCS8AO1FCVGIC372Z95","D5B6FGJCS8M7AQ999LUA7HXBT","Teachers","0015","","S","","L","","","","","",null,null,null,null,null,null,15,"0ORGUNIT","0BBPPURGRPX","Ind.Purchasing Group","0000","X","2","0","0","","","","","0000","",null,null,null,null,null,17,"D5ENPW16Z68F8WTZ1KN36YI2H","D5B6FGJCS8J4K8Y7ZG3TXSC8P","","","","","","00","X","0","0","","",null,null,null,null,null,null,null,null,null,null,null,null,null,null,null,null,null,null,null,null,null,null,null,null,null,null,null,null,null,null,null,null,null,null,null,null,23,"ZS_DT_1","1","P","I","EQ","20150930","30/09/2015","","","","0","","0","","0","Target date 1","60","","","ZEMP_STRT","20150930",null,null,null,null,null,null,null,null,null,null,null,null,null,null,null,null,null,null,null,null,null,null,null,null,null,null,null,null,20,"0000000010",""]
[null,null,null,null,null,null,null,null,null,null,null,null,null,null,null,null,null,null,null,null,null,null,null,null,null,null,null,null,null,null,36,"0PERS_SAREA","Personnel Subarea","X","","","0005","","","","","","","","1","00","","","","00000000","K","0PERS_SAREA","A","","","H","","","","","","00000000","0000","","0","","","","","1","1","1","0","0","","","2","","0","DBE5O9AE5J1TDG9GQV5HQY9DL","","","","","","","0000","","","",20,"D5B6FGJCS8AO1FCVGIC372Z95","D5B6FGJCS8MYZCL0L59W9XBLL","Total Employees","0016","","F","","L","","","","","",null,null,null,null,null,null,15,"0ORGUNIT","0BBPPURORGX","Ind. Purchasing Org.","0000","X","2","0","0","","","","","0000","",null,null,null,null,null,17,"D5ENPW16Z68F8WTZ1KN36YI2H","D5B6FGJCS8JW8V9ZAZJG07QIH","","","","","","00","X","0","0","","",null,null,null,null,null,null,null,null,null,null,null,null,null,null,null,null,null,null,null,null,null,null,null,null,null,null,null,null,null,null,null,null,null,null,null,null,23,"ZBUDH","1","P","I","EQ","20150930","30/09/2015","","","","0","","0","","0","Master Data Key Date","60","","","0DATE","20150930",null,null,null,null,null,null,null,null,null,null,null,null,null,null,null,null,null,null,null,null,null,null,null,null,null,null,null,null,20,"0000000109","0"]
[null,null,null,null,null,null,null,null,null,null,null,null,null,null,null,null,null,null,null,null,null,null,null,null,null,null,null,null,null,null,36,"0ORGUNIT","Organizational Unit","X","","","0006","","","","","","","U","1","02","X","ORGEH","000","20121231","K","0ORGUNIT","A","","","H","0ORGUNIT","A","","","","00000000","0000","","0","","","","2","1","1","1","0","0","","","","","0","DBE5O9AE5J2L22L82EL3TDNND","","","","","","","0000","","","",20,"D5B6FGJCS8AO1FCVGIC372Z95","D5B6FGJCS8NQNYWRWOPICCPVD","All Employees","0017","X","S","","L","","","","","",null,null,null,null,null,null,15,"0ORGUNIT","0BBP_BUYID","Buyer ID","0000","X","5","0","0","","","","","0000","",null,null,null,null,null,17,"D5ENPW16Z68F8WTZ1KN36YI2H","D5B6FGJCS8KNXHLQMIZ22N4S9","","","","","","00","X","0","0","","",null,null,null,null,null,null,null,null,null,null,null,null,null,null,null,null,null,null,null,null,null,null,null,null,null,null,null,null,null,null,null,null,null,null,null,null,23,"ZZPERAR","1","M","","","","","","","","0","","0","","0","ZPersonnel Area","60","","","ZPERSAREA","",null,null,null,null,null,null,null,null,null,null,null,null,null,null,null,null,null,null,null,null,null,null,null,null,null,null,null,null,20,"0000000113",""]
[null,null,null,null,null,null,null,null,null,null,null,null,null,null,null,null,null,null,null,null,null,null,null,null,null,null,null,null,null,null,36,"D5B6FGJCS8AO1FCVGIC372Z95","Job Families Incl Teach","","X","X","0001","","","","","","","U","","00","","","","","K","D5B6FGJCS8AO1FCVGIC372Z95","A","","","","","","","","","00000000","0000","","0","","","","","0","0","0","0","0","","","","","","D5B6FGJCS8AO1FCVGIC372Z95","","","","","","","0000","","","",20,"D5B6FGJCS8AO1FCVGIC372Z95","D5B6FGJCS8OICL8J8854ES455","Non WPBR","0018","","F","","L","","","","","",null,null,null,null,null,null,15,"0ORGUNIT","0BBP_ISCOMP","Organizational Unit is Company","0000","X","1","0","0","","","","","0000","",null,null,null,null,null,17,"D5ENPW16Z68F8WTZ1KN36YI2H","D5B6FGJCS8LFM3XHY2EO52J21","","","","","","00","X","0","0","","",null,null,null,null,null,null,null,null,null,null,null,null,null,null,null,null,null,null,null,null,null,null,null,null,null,null,null,null,null,null,null,null,null,null,null,null,24,"ZS_DT_1","1","P","I","EQ","20150930","30/09/2015","","","","0","","0","","0","Target date 1","60","","","ZEMP_STRT","20150930",null,null,null,null,null,null,null,null,null,null,null,null,null,null,null,null,null,null,null,null,null,null,null,null,null,null,null,null,20,"0000000020",""]
[null,null,null,null,null,null,null,null,null,null,null,null,null,null,null,null,null,null,null,null,null,null,null,null,null,null,null,null,null,null,36,"D5ENPW16Z63T56VF4C1ESE4FT","Breakdown Gender Contract FTPT","","X","Y","0001","","","","","","","U","","00","","","","","K","D5ENPW16Z63T56VF4C1ESE4FT","A","","","","","","","","","00000000","0000","X","0","","","","","0","0","0","0","0","","","","","","D5ENPW16Z63T56VF4C1ESE4FT","","","","","","","0000","","","",15,"D5ENPW16Z63T56VF4C1ESE4FT","D5ENPW16Z64KTT76FVH0UTIPL","Male Temp FT","0001","","S","","L","X","IOBJ","Z_EMP_HCT","","Employee Headcount",null,null,null,null,null,null,15,"0ORGUNIT","0BUS_AREA","Business area","0000","X","0","0","0","","","","","0000","",null,null,null,null,null,17,"D5ENPW16Z68F8WTZ1KN36YI2H","D5B6FGJCS8M7AQ999LUA7HXBT","","","","","","00","X","0","0","","",null,null,null,null,null,null,null,null,null,null,null,null,null,null,null,null,null,null,null,null,null,null,null,null,null,null,null,null,null,null,null,null,null,null,null,null,24,"ZBUDH","1","P","I","EQ","20150930","30/09/2015","","","","0","","0","","0","Master Data Key Date","60","","","0DATE","20150930",null,null,null,null,null,null,null,null,null,null,null,null,null,null,null,null,null,null,null,null,null,null,null,null,null,null,null,null,20,"0000000030",""]
[null,null,null,null,null,null,null,null,null,null,null,null,null,null,null,null,null,null,null,null,null,null,null,null,null,null,null,null,null,null,44,"0PAYRL_AREA","Payroll Area","X","","","0001","","","","","","","","0","00","","","","00000000","K","0PAYRL_AREA","A","","","H","","","","","","00000000","0000","","0","","","","","1","1","1","0","0","","","2","","0","DE0LR9Y5OP9PQHRXIOF9O2NZT","","","","","","","0000","","","",15,"D5B6FGJCS8AO1FCVGIC372Z95","D5B6FGJCS8BFQ1OMS1RP9IDIX","BS","0001","","S","","L","","","","","",null,null,null,null,null,null,15,"0ORGUNIT","0COMP_CODE","Company code","0000","X","0","0","0","","","","","0000","",null,null,null,null,null,17,"D5ENPW16Z68F8WTZ1KN36YI2H","D5B6FGJCS8MYZCL0L59W9XBLL","0","0","","","","00","X","0","0","","",null,null,null,null,null,null,null,null,null,null,null,null,null,null,null,null,null,null,null,null,null,null,null,null,null,null,null,null,null,null,null,null,null,null,null,null,24,"ZZPERAR","1","M","","","","","","","","0","","0","","0","ZPersonnel Area","60","","","ZPERSAREA","",null,null,null,null,null,null,null,null,null,null,null,null,null,null,null,null,null,null,null,null,null,null,null,null,null,null,null,null,20,"0000000040",""]
[null,null,null,null,null,null,null,null,null,null,null,null,null,null,null,null,null,null,null,null,null,null,null,null,null,null,null,null,null,null,44,"ZPERSAREA","ZPersonal Area","X","","","0002","","","","","","","","2","00","","","","00000000","K","ZPERSAREA","A","","","H","","","","","","00000000","0000","","0","","","","","1","1","1","0","0","","","2","","0","DE0LR9Y5OPAHF43OU7UVQI29L","","","","","","","0000","","","",15,"D5ENPW16Z63T56VF4C1ESE4FT","D5ENPW16Z65CIFIXREWMX8WZD","Male Temp PT","0002","","S","","L","X","IOBJ","Z_EMP_HCT","","Employee Headcount",null,null,null,null,null,null,15,"0ORGUNIT","0CO_MST_AR","Controlling Area of Master Cost Center","0000","X","0","0","0","","","","","0000","",null,null,null,null,null,17,"D5ENPW16Z68F8WTZ1KN36YI2H","D5B6FGJCS8NQNYWRWOPICCPVD","","","","","","00","X","0","0","","",null,null,null,null,null,null,null,null,null,null,null,null,null,null,null,null,null,null,null,null,null,null,null,null,null,null,null,null,null,null,null,null,null,null,null,null,43,"ZS_DT_1","1","P","I","EQ","20150930","30/09/2015","","","","0","","0","","0","Target date 1","60","","","ZEMP_STRT","20150930",null,null,null,null,null,null,null,null,null,null,null,null,null,null,null,null,null,null,null,null,null,null,null,null,null,null,null,null,20,"0000000041",""]
[null,null,null,null,null,null,null,null,null,null,null,null,null,null,null,null,null,null,null,null,null,null,null,null,null,null,null,null,null,null,44,"0ORGUNIT","Organizational Unit","X","","","0003","","","","","","","","1","02","X","ORGEH","000","20130401","K","0ORGUNIT","A","","","H","0ORGUNIT","A","","","","00000000","0000","","0","","","","2","1","1","1","0","0","","","","","0","DE0LR9Y5OPB93QFG5RAHSXGJD","","","","","","","0000","","","",15,"D5B6FGJCS8AO1FCVGIC372Z95","D5B6FGJCS8C7EO0E3L7BBXRSP","CV","0002","","S","","L","","","","","",null,null,null,null,null,null,15,"0ORGUNIT","0CRMSALGRPX","Sls Group: Indicator","0000","X","2","0","0","","","","","0000","",null,null,null,null,null,17,"D5ENPW16Z68F8WTZ1KN36YI2H","D5B6FGJCS8OICL8J8854ES455","0","0","","","","00","X","0","0","","",null,null,null,null,null,null,null,null,null,null,null,null,null,null,null,null,null,null,null,null,null,null,null,null,null,null,null,null,null,null,null,null,null,null,null,null,43,"ZS_PSAR2","1","P","","","","","","","","0","","0","","0","Pers. Sub-Area - optional","60","","","0PERS_SAREA","",null,null,null,null,null,null,null,null,null,null,null,null,null,null,null,null,null,null,null,null,null,null,null,null,null,null,null,null,20,"0000000042","00"]
[null,null,null,null,null,null,null,null,null,null,null,null,null,null,null,null,null,null,null,null,null,null,null,null,null,null,null,null,null,null,44,"0PERS_SAREA","Personnel Subarea","X","","","0004","","","","","","","U","1","00","","","","00000000","K","0PERS_SAREA","A","","","H","","","","","","00000000","0000","","0","","","","","1","1","1","0","0","","","2","","0","DE0LR9Y5OPC0SCR7HAQ3VCUT5","","","","","","","0000","","","",15,"D5ENPW16Z63T56VF4C1ESE4FT","D5ENPW16Z66471UP2YC8ZOB95","Male Perm FT","0003","","S","","L","X","IOBJ","Z_EMP_HCT","","Employee Headcount",null,null,null,null,null,null,15,"0ORGUNIT","0CRMSALOFFX","Sls Office:Indicator","0000","X","2","0","0","","","","","0000","",null,null,null,null,null,17,"D5ENPW16Z696XJ5QD42P9DWC9","D5B6FGJCS8BFQ1OMS1RP9IDIX","","","","","","00","X","0","0","","",null,null,null,null,null,null,null,null,null,null,null,null,null,null,null,null,null,null,null,null,null,null,null,null,null,null,null,null,null,null,null,null,null,null,null,null,43,"ZP_ORGUN","2","M","","","","","","","","0","","0","","0","Org Unit Hierarchy (Selection option, optional)","60","","","0ORGUNIT","",null,null,null,null,null,null,null,null,null,null,null,null,null,null,null,null,null,null,null,null,null,null,null,null,null,null,null,null,20,"0000000043","00"]
[null,null,null,null,null,null,null,null,null,null,null,null,null,null,null,null,null,null,null,null,null,null,null,null,null,null,null,null,null,null,44,"ZTEILK","Checkbox for Part-Ti","X","","","0005","","","","","","","","1","00","","","","00000000","K","ZTEILK","A","","","H","","","","","","00000000","0000","","0","","","","","1","1","1","0","0","","","2","","0","DE0LR9Y5OPCSGZ2YSU5PXS92X","","","","","","","0000","","","",15,"D5B6FGJCS8AO1FCVGIC372Z95","D5B6FGJCS8CZ3AC5F4MXED62H","CA","0003","","S","","L","","","","","",null,null,null,null,null,null,15,"0ORGUNIT","0CRMSALORGX","Sales Org. Indicator","0000","X","2","0","0","","","","","0000","",null,null,null,null,null,17,"D5ENPW16Z696XJ5QD42P9DWC9","D5B6FGJCS8C7EO0E3L7BBXRSP","","","","","","00","X","0","0","","",null,null,null,null,null,null,null,null,null,null,null,null,null,null,null,null,null,null,null,null,null,null,null,null,null,null,null,null,null,null,null,null,null,null,null,null,43,"ZBUDH","1","P","I","EQ","20150930","30/09/2015","","","","0","","0","","0","Master Data Key Date","60","","","0DATE","20150930",null,null,null,null,null,null,null,null,null,null,null,null,null,null,null,null,null,null,null,null,null,null,null,null,null,null,null,null,20,"0000000021",""]
[null,null,null,null,null,null,null,null,null,null,null,null,null,null,null,null,null,null,null,null,null,null,null,null,null,null,null,null,null,null,44,"ZPRIM_ID","ZPrimary Employee ID","X","","","0006","","","","","","","","2","00","","","","00000000","K","ZPRIM_ID","A","","","H","","","","","","00000000","0000","","0","","","","","1","1","1","0","0","","","2","","0","DE0LR9Y5OPDK5LEQ4DLC07NCP","","","","","","","0000","","","",15,"D5ENPW16Z63T56VF4C1ESE4FT","D5ENPW16Z66VVO6GEHRV23PIX","Male Perm PT","0004","","S","","L","X","IOBJ","Z_EMP_HCT","","Employee Headcount",null,null,null,null,null,null,15,"0ORGUNIT","0CRMSRVTGRP","Ex. CRM Service Org.","0000","X","1","0","0","","","","","0000","",null,null,null,null,null,17,"D5ENPW16Z696XJ5QD42P9DWC9","D5B6FGJCS8CZ3AC5F4MXED62H","","","","","","00","X","0","0","","",null,null,null,null,null,null,null,null,null,null,null,null,null,null,null,null,null,null,null,null,null,null,null,null,null,null,null,null,null,null,null,null,null,null,null,null,43,"ZZPERAR","1","M","","","","","","","","0","","0","","0","ZPersonnel Area","60","","","ZPERSAREA","",null,null,null,null,null,null,null,null,null,null,null,null,null,null,null,null,null,null,null,null,null,null,null,null,null,null,null,null,20,"0000000022",""]
[null,null,null,null,null,null,null,null,null,null,null,null,null,null,null,null,null,null,null,null,null,null,null,null,null,null,null,null,null,null,44,"0CNTRCTTYPE","Contract Type","X","","","0007","","","","","","","","1","00","","","","00000000","K","0CNTRCTTYPE","A","","","H","","","","","","00000000","0000","","0","","","","","1","1","1","0","0","","","2","","0","DE0LR9Y5OPEBU7QHFX0Y2N1MH","","","","","","","0000","","","",15,"D5B6FGJCS8AO1FCVGIC372Z95","D5B6FGJCS8DQRWNWQO2JGSKC9","CF","0004","","S","","L","","","","","",null,null,null,null,null,null,15,"0ORGUNIT","0CRM_SALGRP","CRM Sales Group","0000","X","1","0","0","","","","","0000","",null,null,null,null,null,17,"D5ENPW16Z696XJ5QD42P9DWC9","D5B6FGJCS8DQRWNWQO2JGSKC9","","","","","","00","X","0","0","","",null,null,null,null,null,null,null,null,null,null,null,null,null,null,null,null,null,null,null,null,null,null,null,null,null,null,null,null,null,null,null,null,null,null,null,null,25,"ZS_DT_1","1","P","I","EQ","20150930","30/09/2015","","","","0","","0","","0","Target date 1","60","","","ZEMP_STRT","20150930",null,null,null,null,null,null,null,null,null,null,null,null,null,null,null,null,null,null,null,null,null,null,null,null,null,null,null,null,20,"0000000023",""]
[null,null,null,null,null,null,null,null,null,null,null,null,null,null,null,null,null,null,null,null,null,null,null,null,null,null,null,null,null,null,44,"0EMPLSGROUP","Employee Subgroup","X","","","0008","","","","","","","","1","00","","","","00000000","K","0EMPLSGROUP","A","","","H","","","","","","00000000","0000","","0","","","","","1","1","1","0","0","","","2","","0","DE0LR9Y5OPF3IU28RGGK52FW9","","","","","","","0000","","","",15,"D5B6FGJCS8AO1FCVGIC372Z95","D5B6FGJCS8EIGIZO27I5J7YM1","CU","0005","","S","","L","","","","","",null,null,null,null,null,null,15,"0ORGUNIT","0CRM_SALOFF","CRM Sales Office","0000","X","1","0","0","","","","","0000","",null,null,null,null,null,17,"D5ENPW16Z696XJ5QD42P9DWC9","D5B6FGJCS8EIGIZO27I5J7YM1","","","","","","00","X","0","0","","",null,null,null,null,null,null,null,null,null,null,null,null,null,null,null,null,null,null,null,null,null,null,null,null,null,null,null,null,null,null,null,null,null,null,null,null,25,"ZBUDH","1","P","I","EQ","20150930","30/09/2015","","","","0","","0","","0","Master Data Key Date","60","","","0DATE","20150930",null,null,null,null,null,null,null,null,null,null,null,null,null,null,null,null,null,null,null,null,null,null,null,null,null,null,null,null,20,"0000010002","DBE5O9AE5IU4J8ZVJGTD2OANT"]
[null,null,null,null,null,null,null,null,null,null,null,null,null,null,null,null,null,null,null,null,null,null,null,null,null,null,null,null,null,null,44,"DE0LRD9M7EHVH0HG0Z7CIIYNT","WPBR Gender/Ethnicity Bandings FTE","","X","X","0001","","*","","","","","U","","00","","","","","K","DE0LRD9M7EHVH0HG0Z7CIIYNT","A","","","","","","","","","00000000","0000","X","0","","X","","","0","0","0","0","0","","","","","","DE0LRD9M7EHVH0HG0Z7CIIYNT","","","","","","","0000","","","",15,"D5ENPW16Z63T56VF4C1ESE4FT","D5ENPW16Z67NKAI7Q17H4J3SP","Female Temp FT","0005","","S","","L","X","IOBJ","Z_EMP_HCT","","Employee Headcount",null,null,null,null,null,null,15,"0ORGUNIT","0CRM_SALORG","CRM Sales Org.","0000","X","1","0","0","","","","","0000","",null,null,null,null,null,17,"D5ENPW16Z696XJ5QD42P9DWC9","D5B6FGJCS8FA55BFDQXRLNCVT","","","","","","00","X","0","0","","",null,null,null,null,null,null,null,null,null,null,null,null,null,null,null,null,null,null,null,null,null,null,null,null,null,null,null,null,null,null,null,null,null,null,null,null,25,"ZZPERAR","1","M","","","","","","","","0","","0","","0","ZPersonnel Area","60","","","ZPERSAREA","",null,null,null,null,null,null,null,null,null,null,null,null,null,null,null,null,null,null,null,null,null,null,null,null,null,null,null,null,20,"0000000105",""]
[null,null,null,null,null,null,null,null,null,null,null,null,null,null,null,null,null,null,null,null,null,null,null,null,null,null,null,null,null,null,44,"D4O2P4A3SH8H6WZIVSYIIRP4P","WP Teachers Bandings","","X","Y","0001","","","","","","","U","","00","","","","","K","D4O2P4A3SH8H6WZIVSYIIRP4P","A","","","","","","","","","00000000","0000","","0","","","","","0","0","0","0","0","","","","","","D4O2P4A3SH8H6WZIVSYIIRP4P","","","","","","","0000","","","",15,"D5ENPW16Z63T56VF4C1ESE4FT","D5ENPW16Z68F8WTZ1KN36YI2H","Female Temp PT","0006","","S","","L","X","IOBJ","Z_EMP_HCT","","Employee Headcount",null,null,null,null,null,null,15,"0ORGUNIT","0CRM_SRVORG","Service Org. CRM","0000","X","1","0","0","","","","","0000","",null,null,null,null,null,17,"D5ENPW16Z696XJ5QD42P9DWC9","D5B6FGJCS8G1TRN6PADDO2R5L","","","","","","00","X","0","0","","",null,null,null,null,null,null,null,null,null,null,null,null,null,null,null,null,null,null,null,null,null,null,null,null,null,null,null,null,null,null,null,null,null,null,null,null,26,"ZS_DT_1","1","P","I","EQ","20150930","30/09/2015","","","","0","","0","","0","Target date 1","60","","","ZEMP_STRT","20150930",null,null,null,null,null,null,null,null,null,null,null,null,null,null,null,null,null,null,null,null,null,null,null,null,null,null,null,null,20,"0000000106",""]
[null,null,null,null,null,null,null,null,null,null,null,null,null,null,null,null,null,null,null,null,null,null,null,null,null,null,null,null,null,null,22,"0PAYRL_AREA","Payroll Area","X","","","0001","","","","","","","","0","03","","","","00000000","K","0PAYRL_AREA","A","","","H","","","","","","00000000","0000","","0","","","","","1","1","1","0","0","","","","","","DE0LR9Y5OP9PQHRXIOF9O2NZT","","","","","","","0000","","","",15,"D5B6FGJCS8AO1FCVGIC372Z95","D5B6FGJCS8FA55BFDQXRLNCVT","CR","0006","","S","","L","","","","","",null,null,null,null,null,null,15,"0ORGUNIT","0LOGSYS","Source System","0000","X","1","0","0","","","","","0000","",null,null,null,null,null,17,"D5ENPW16Z696XJ5QD42P9DWC9","D5B6FGJCS8GTIDYY0TSZQI5FD","","","","","","00","X","0","0","","",null,null,null,null,null,null,null,null,null,null,null,null,null,null,null,null,null,null,null,null,null,null,null,null,null,null,null,null,null,null,null,null,null,null,null,null,26,"ZBUDH","1","P","I","EQ","20150930","30/09/2015","","","","0","","0","","0","Master Data Key Date","60","","","0DATE","20150930",null,null,null,null,null,null,null,null,null,null,null,null,null,null,null,null,null,null,null,null,null,null,null,null,null,null,null,null,20,"0000000112","0"]
[null,null,null,null,null,null,null,null,null,null,null,null,null,null,null,null,null,null,null,null,null,null,null,null,null,null,null,null,null,null,22,"ZPERSAREA","ZPersonal Area","X","","","0002","","","","","","","","2","03","","","","00000000","K","ZPERSAREA","A","","","H","","","","","","00000000","0000","","0","","","","","1","1","1","0","0","","","","","","DE0LR9Y5OPAHF43OU7UVQI29L","","","","","","","0000","","","",15,"D5ENPW16Z63T56VF4C1ESE4FT","D5ENPW16Z696XJ5QD42P9DWC9","Female Perm FT","0007","","S","","L","X","IOBJ","Z_EMP_HCT","","Employee Headcount",null,null,null,null,null,null,15,"0ORGUNIT","0MAST_CCTR","Master Cost Center","0000","X","0","0","0","","","","","0000","",null,null,null,null,null,17,"D5ENPW16Z696XJ5QD42P9DWC9","D5B6FGJCS8HL70APCD8LSXJP5","","","","","","00","X","0","0","","",null,null,null,null,null,null,null,null,null,null,null,null,null,null,null,null,null,null,null,null,null,null,null,null,null,null,null,null,null,null,null,null,null,null,null,null,26,"ZZPERAR","1","M","","","","","","","","0","","0","","0","ZPersonnel Area","60","","","ZPERSAREA","",null,null,null,null,null,null,null,null,null,null,null,null,null,null,null,null,null,null,null,null,null,null,null,null,null,null,null,null,20,"0000000200","X"]
[null,null,null,null,null,null,null,null,null,null,null,null,null,null,null,null,null,null,null,null,null,null,null,null,null,null,null,null,null,null,22,"0ORGUNIT","Organizational Unit","X","","","0003","","","","","","","","1","03","X","ORGEH","000","20130401","K","0ORGUNIT","A","","","H","0ORGUNIT","A","","","","00000000","0000","","0","","","","2","1","1","1","0","0","","","","","","DE0LR9Y5OPB93QFG5RAHSXGJD","","","","","","","0000","","","",15,"D5B6FGJCS8AO1FCVGIC372Z95","D5B6FGJCS8G1TRN6PADDO2R5L","IP","0007","","S","","L","","","","","",null,null,null,null,null,null,15,"0ORGUNIT","0PERS_AREA","Personnel Area","0000","X","1","0","0","","","","","0000","",null,null,null,null,null,17,"D5ENPW16Z696XJ5QD42P9DWC9","D5B6FGJCS8ICVMMGNWO7VCXYX","","","","","","00","X","0","0","","",null,null,null,null,null,null,null,null,null,null,null,null,null,null,null,null,null,null,null,null,null,null,null,null,null,null,null,null,null,null,null,null,null,null,null,null,27,"ZS_DT_1","1","P","I","EQ","20150930","30/09/2015","","","","0","","0","","0","Target date 1","60","","","ZEMP_STRT","20150930",null,null,null,null,null,null,null,null,null,null,null,null,null,null,null,null,null,null,null,null,null,null,null,null,null,null,null,null,20,"0000004000","X"]
[null,null,null,null,null,null,null,null,null,null,null,null,null,null,null,null,null,null,null,null,null,null,null,null,null,null,null,null,null,null,22,"0PERS_SAREA","Personnel Subarea","X","","","0004","","","","","","","U","1","03","","","","00000000","K","0PERS_SAREA","A","","","H","","","","","","00000000","0000","","0","","","","","1","1","1","0","0","","","","","","DE0LR9Y5OPC0SCR7HAQ3VCUT5","","","","","","","0000","","","",15,"D5ENPW16Z63T56VF4C1ESE4FT","D5ENPW16Z69YM5HHONIBBTAM1","Female Perm PT","0008","","S","","L","X","IOBJ","Z_EMP_HCT","","Employee Headcount",null,null,null,null,null,null,15,"0ORGUNIT","0PERS_SAREA","Personnel Subarea","0000","X","1","0","0","","","","","0000","",null,null,null,null,null,17,"D5ENPW16Z696XJ5QD42P9DWC9","D5B6FGJCS8J4K8Y7ZG3TXSC8P","","","","","","00","X","0","0","","",null,null,null,null,null,null,null,null,null,null,null,null,null,null,null,null,null,null,null,null,null,null,null,null,null,null,null,null,null,null,null,null,null,null,null,null,27,"ZBUDH","1","P","I","EQ","20150930","30/09/2015","","","","0","","0","","0","Master Data Key Date","60","","","0DATE","20150930",null,null,null,null,null,null,null,null,null,null,null,null,null,null,null,null,null,null,null,null,null,null,null,null,null,null,null,null,20,"0000009001","QSW Breakdown By Job Family excl cas sess"]
[null,null,null,null,null,null,null,null,null,null,null,null,null,null,null,null,null,null,null,null,null,null,null,null,null,null,null,null,null,null,22,"ZTEILK","Checkbox for Part-Ti","X","","","0005","","","","","","","","1","03","","","","00000000","K","ZTEILK","A","","","H","","","","","","00000000","0000","","0","","","","","1","1","1","0","0","","","","","","DE0LR9Y5OPCSGZ2YSU5PXS92X","","","","","","","0000","","","",15,"D5B6FGJCS8AO1FCVGIC372Z95","D5B6FGJCS8GTIDYY0TSZQI5FD","LS","0008","","S","","L","","","","","",null,null,null,null,null,null,15,"0ORGUNIT","0PLANT","Plant","0000","X","0","0","0","","","","","0000","",null,null,null,null,null,17,"D5ENPW16Z696XJ5QD42P9DWC9","D5B6FGJCS8JW8V9ZAZJG07QIH","","","","","","00","X","0","0","","",null,null,null,null,null,null,null,null,null,null,null,null,null,null,null,null,null,null,null,null,null,null,null,null,null,null,null,null,null,null,null,null,null,null,null,null,27,"ZZPERAR","1","M","","","","","","","","0","","0","","0","ZPersonnel Area","60","","","ZPERSAREA","",null,null,null,null,null,null,null,null,null,null,null,null,null,null,null,null,null,null,null,null,null,null,null,null,null,null,null,null,20,"0000000114","1"]
[null,null,null,null,null,null,null,null,null,null,null,null,null,null,null,null,null,null,null,null,null,null,null,null,null,null,null,null,null,null,22,"ZPRIM_ID","ZPrimary Employee ID","X","","","0006","","","","","","","","2","03","","","","00000000","K","ZPRIM_ID","A","","","H","","","","","","00000000","0000","","0","","","","","1","1","1","0","0","","","","","","DE0LR9Y5OPDK5LEQ4DLC07NCP","","","","","","","0000","","","",15,"D5B6FGJCS8AO1FCVGIC372Z95","D5B6FGJCS8HL70APCD8LSXJP5","PC","0009","","S","","L","","","","","",null,null,null,null,null,null,15,"0ORGUNIT","0PURCH_ORG","Purchasing org.","0000","X","0","0","0","","","","","0000","",null,null,null,null,null,17,"D5ENPW16Z696XJ5QD42P9DWC9","D5B6FGJCS8KNXHLQMIZ22N4S9","","","","","","00","X","0","0","","",null,null,null,null,null,null,null,null,null,null,null,null,null,null,null,null,null,null,null,null,null,null,null,null,null,null,null,null,null,null,null,null,null,null,null,null,37,"ZS_DT_1","1","P","I","EQ","20150930","30/09/2015","","","","0","","0","","0","Target date 1","60","","","ZEMP_STRT","20150930",null,null,null,null,null,null,null,null,null,null,null,null,null,null,null,null,null,null,null,null,null,null,null,null,null,null,null,null,15,"0000000100","X"]
[null,null,null,null,null,null,null,null,null,null,null,null,null,null,null,null,null,null,null,null,null,null,null,null,null,null,null,null,null,null,22,"0CNTRCTTYPE","Contract Type","X","","","0007","","","","","","","","1","03","","","","00000000","K","0CNTRCTTYPE","A","","","H","","","","","","00000000","0000","","0","","","","","1","1","1","0","0","","","","","","DE0LR9Y5OPEBU7QHFX0Y2N1MH","","","","","","","0000","","","",15,"D5B6FGJCS8AO1FCVGIC372Z95","D5B6FGJCS8ICVMMGNWO7VCXYX","PH","0010","","S","","L","","","","","",null,null,null,null,null,null,15,"0ORGUNIT","0PUR_GROUP","Purchasing group","0000","X","0","0","0","","","","","0000","",null,null,null,null,null,17,"D5ENPW16Z696XJ5QD42P9DWC9","D5B6FGJCS8LFM3XHY2EO52J21","","","","","","00","X","0","0","","",null,null,null,null,null,null,null,null,null,null,null,null,null,null,null,null,null,null,null,null,null,null,null,null,null,null,null,null,null,null,null,null,null,null,null,null,37,"ZBUDH","1","P","I","EQ","20150930","30/09/2015","","","","0","","0","","0","Master Data Key Date","60","","","0DATE","20150930",null,null,null,null,null,null,null,null,null,null,null,null,null,null,null,null,null,null,null,null,null,null,null,null,null,null,null,null,15,"0000000108",""]
[null,null,null,null,null,null,null,null,null,null,null,null,null,null,null,null,null,null,null,null,null,null,null,null,null,null,null,null,null,null,12,"0EMPLSGROUP","Employee Subgroup","X","","","0008","","","","","","","","1","03","","","","00000000","K","0EMPLSGROUP","A","","","H","","","","","","00000000","0000","","0","","","","","1","1","1","0","0","","","","","","DBCSI574ZNLYEU5G8TB3RB189","","","","","","","0000","","","",21,"D4O21W1IBUB3HEML1KWP5YGOP","D4O21W1IBV5UU7OXV697V2BJT","Total Teaching Staff","0024","","S","","L","","","","","",null,null,null,null,null,null,31,"0ORGUNIT","0BBP_BUYID","Buyer ID","0000","X","5","0","0","","","","","0000","",null,null,null,null,null,18,"D5ENPW16Z66VVO6GEHRV23PIX","D5B6FGJCS8FA55BFDQXRLNCVT","","","","","","00","X","0","0","","",null,null,null,null,null,null,null,null,null,null,null,null,null,null,null,null,null,null,null,null,null,null,null,null,null,null,null,null,null,null,null,null,null,null,null,null,null,null,null,null,null,null,null,null,null,null,null,null,null,null,null,null,null,null,null,null,null,null,null,null,null,null,null,null,null,null,null,null,null,null,null,null,null,null,null,null,null,null,null,null,null,null,null,null,null,null,21,"0000010002","DE0LJZ6IGU3QQSU740OLZHVQX"]
[null,null,null,null,null,null,null,null,null,null,null,null,null,null,null,null,null,null,null,null,null,null,null,null,null,null,null,null,null,null,39,"0EMPLGROUP","Employee Group","X","","","0004","","","","","","","","1","03","","","","00000000","K","0EMPLGROUP","A","","","H","","","","","","00000000","0000","","0","","","","","1","1","1","0","0","","","","","","DBE5O9AE5J11OTXPFBPVOIV3T","","","","","","","0000","","","",44,"D4O2P4A3SH8H6WZIVSYIIRP4P","D4O2P4A3SHEMNVLLG4FF26VAX","Principal Teacher F/T","0004","","S","","L","","","","","",null,null,null,null,null,null,45,"0ORGUNIT","0BBPPURORGX","Ind. Purchasing Org.","0000","X","2","0","0","","","","","0000","",null,null,null,null,null,19,"D5ENPW16Z68F8WTZ1KN36YI2H","D5B6FGJCS8C7EO0E3L7BBXRSP","","","","","","00","X","0","0","","",null,null,null,null,null,null,null,null,null,null,null,null,null,null,null,null,null,null,null,null,null,null,null,null,null,null,null,null,null,null,null,null,null,null,null,null,null,null,null,null,null,null,null,null,null,null,null,null,null,null,null,null,null,null,null,null,null,null,null,null,null,null,null,null,null,null,null,null,null,null,null,null,null,null,null,null,null,null,null,null,null,null,null,null,null,null,36,"0000000021",""]
[null,null,null,null,null,null,null,null,null,null,null,null,null,null,null,null,null,null,null,null,null,null,null,null,null,null,null,null,null,null,null,null,null,null,null,null,null,null,null,null,null,null,null,null,null,null,null,null,null,null,null,null,null,null,null,null,null,null,null,null,null,null,null,null,null,null,null,null,null,null,null,null,null,null,null,null,null,null,null,null,null,null,null,null,null,null,null,null,null,null,13,"DB7KZPYTLLMSBJ9WJSIXR3FUH","DB7L29JCIUGIZ9EE17PAJ01DL","Total Other Ethnic Females","0008","","S","","L","","","","","",null,null,null,null,null,null,14,"0EMPLOYEE","ZHR_PSUSR","Pension Scheme Chang","0000","X","1","0","0","","","","","0000","",null,null,null,null,null,20,"D5ENPW16Z69YM5HHONIBBTAM1","D5B6FGJCS8NQNYWRWOPICCPVD","","","","","","00","X","0","0","","",null,null,null,null,null,null,null,null,null,null,null,null,null,null,null,null,null,null,null,null,null,null,null,null,null,null,null,null,null,null,null,null,null,null,null,null,null,null,null,null,null,null,null,null,null,null,null,null,null,null,null,null,null,null,null,null,null,null,null,null,null,null,null,null,null,null,null,null,null,null,null,null,null,null,null,null,null,null,null,null,null,null,null,null,null,null,12,"0000009001","Workforce Profile Gender Grade Teach Excl Cas & Ses(2011)"]
[null,null,null,null,null,null,null,null,null,null,null,null,null,null,null,null,null,null,null,null,null,null,null,null,null,null,null,null,null,null,null,null,null,null,null,null,null,null,null,null,null,null,null,null,null,null,null,null,null,null,null,null,null,null,null,null,null,null,null,null,null,null,null,null,null,null,null,null,null,null,null,null,null,null,null,null,null,null,null,null,null,null,null,null,null,null,null,null,null,null,9,"D4O21W1IBUB3HEML1KWP5YGOP","D4O21W1IBUKBOUJOW241Z37Y1","Grade 1 - 4 P/T","0002","","S","","L","","","","","",null,null,null,null,null,null,13,"0EMPLOYEE","ZMD_CHGE","Reason for MD Change","0000","X","0","0","0","","","","","0000","",null,null,null,null,null,16,"D5ENPW16Z66471UP2YC8ZOB95","D5B6FGJCS8ICVMMGNWO7VCXYX","","","","","","00","X","0","0","","",null,null,null,null,null,null,null,null,null,null,null,null,null,null,null,null,null,null,null,null,null,null,null,null,null,null,null,null,null,null,null,null,null,null,null,null,null,null,null,null,null,null,null,null,null,null,null,null,null,null,null,null,null,null,null,null,null,null,null,null,null,null,null,null,null,null,null,null,null,null,null,null,null,null,null,null,null,null,null,null,null,null,null,null,null,null,5,"0000000104","1"]
[null,null,null,null,null,null,null,null,null,null,null,null,null,null,null,null,null,null,null,null,null,null,null,null,null,null,null,null,null,null,null,null,null,null,null,null,null,null,null,null,null,null,null,null,null,null,null,null,null,null,null,null,null,null,null,null,null,null,null,null,null,null,null,null,null,null,null,null,null,null,null,null,null,null,null,null,null,null,null,null,null,null,null,null,null,null,null,null,null,null,6,"D4O21W1IBUB3HEML1KWP5YGOP","D4O21W1IBUKBOUJOW241Z37Y1","Grade 1 - 4 P/T","0002","","S","","L","","","","","",null,null,null,null,null,null,6,"0ORGUNIT","0CRMSALGRPX","Sls Group: Indicator","0000","X","2","0","0","","","","","0000","",null,null,null,null,null,21,"D4O21W1IBUE67VXMBQN5FO1RT","DE0LK3585BDJGNQPUTLS7JDH5","","","","","","00","X","0","0","","",null,null,null,null,null,null,null,null,null,null,null,null,null,null,null,null,null,null,null,null,null,null,null,null,null,null,null,null,null,null,null,null,null,null,null,null,null,null,null,null,null,null,null,null,null,null,null,null,null,null,null,null,null,null,null,null,null,null,null,null,null,null,null,null,null,null,null,null,null,null,null,null,null,null,null,null,null,null,null,null,null,null,null,null,null,null,23,"0000004000","X"]
[null,null,null,null,null,null,null,null,null,null,null,null,null,null,null,null,null,null,null,null,null,null,null,null,null,null,null,null,null,null,null,null,null,null,null,null,null,null,null,null,null,null,null,null,null,null,null,null,null,null,null,null,null,null,null,null,null,null,null,null,null,null,null,null,null,null,null,null,null,null,null,null,null,null,null,null,null,null,null,null,null,null,null,null,null,null,null,null,null,null,5,"DB7KOHJ1H6H6QQEI6SQMPWNW9","DB7KOHJ1H6VSQILXA1ZA01721","Total Non-Declared","0019","","S","","L","X","","","","",null,null,null,null,null,null,28,"0ORGUNIT","0SALESORG","Sales Organization","0000","X","0","0","0","","","","","0000","",null,null,null,null,null,21,"D4O21W1IBUGH9QWWACXZMY8L5","DE0LK3585BMRO3NTPAT50O4QH","","","","","","00","X","0","0","","",null,null,null,null,null,null,null,null,null,null,null,null,null,null,null,null,null,null,null,null,null,null,null,null,null,null,null,null,null,null,null,null,null,null,null,null,null,null,null,null,null,null,null,null,null,null,null,null,null,null,null,null,null,null,null,null,null,null,null,null,null,null,null,null,null,null,null,null,null,null,null,null,null,null,null,null,null,null,null,null,null,null,null,null,null,null,25,"0000000200","X"]
[null,null,null,null,null,null,null,null,null,null,null,null,null,null,null,null,null,null,null,null,null,null,null,null,null,null,null,null,null,null,null,null,null,null,null,null,null,null,null,null,null,null,null,null,null,null,null,null,null,null,null,null,null,null,null,null,null,null,null,null,null,null,null,null,null,null,null,null,null,null,null,null,null,null,null,null,null,null,null,null,null,null,null,null,null,null,null,null,null,null,28,"DE0LK3585BCRS1EYJA6653Z7D","DE0LK3585BNJCPZL0U8R33J09","Total Black Females","0014","Y","S","","L","X","","","","",null,null,null,null,null,null,43,"0ORGUNIT","0BBP_BUYID","Buyer ID","0000","X","5","0","0","","","","","0000","",null,null,null,null,null,21,"D4O21W1IBUJK087XKIOFWNTO9","DE0LK3585BOB1CBCCDOD5IXA1","","0","","","","00","X","0","0","","",null,null,null,null,null,null,null,null,null,null,null,null,null,null,null,null,null,null,null,null,null,null,null,null,null,null,null,null,null,null,null,null,null,null,null,null,null,null,null,null,null,null,null,null,null,null,null,null,null,null,null,null,null,null,null,null,null,null,null,null,null,null,null,null,null,null,null,null,null,null,null,null,null,null,null,null,null,null,null,null,null,null,null,null,null,null,38,"0000000030",""]
[null,null,null,null,null,null,null,null,null,null,null,null,null,null,null,null,null,null,null,null,null,null,null,null,null,null,null,null,null,null,null,null,null,null,null,null,null,null,null,null,null,null,null,null,null,null,null,null,null,null,null,null,null,null,null,null,null,null,null,null,null,null,null,null,null,null,null,null,null,null,null,null,null,null,null,null,null,null,null,null,null,null,null,null,null,null,null,null,null,null,43,"DE0LRD9M7EHVH0HG0Z7CIIYNT","DE0LRD9M7EJEU94YO22KNDR7D","Total White Females","0002","Y","S","","L","X","","","","",null,null,null,null,null,null,null,null,null,null,null,null,null,null,null,null,null,null,null,null,null,null,null,null,null,null,21,"D4O21W1IBUY600FCNRX36SCU1","DE0LK3585BSX529W9MA1K3AWP","","","","","","00","X","0","0","",""]
[null,null,null,null,null,null,null,null,null,null,null,null,null,null,null,null,null,null,null,null,null,null,null,null,null,null,null,null,null,null,null,null,null,null,null,null,null,null,null,null,null,null,null,null,null,null,null,null,null,null,null,null,null,null,null,null,null,null,null,null,null,null,null,null,null,null,null,null,null,null,null,null,null,null,null,null,null,null,null,null,null,null,null,null,null,null,null,null,null,null,25,"DE0LK3585BCRS1EYJA6653Z7D","DE0LK3585BSX529W9MA1K3AWP","Total Male Employees","0025","","S","","L","X","","","","",null,null,null,null,null,null,null,null,null,null,null,null,null,null,null,null,null,null,null,null,null,null,null,null,null,null,21,"D4O21W1IBV18QHQDXXNJGHXX5","DE0LK3585BIX90113LN2OJ5DL","","","","","","00","X","0","0","",""]
[null,null,null,null,null,null,null,null,null,null,null,null,null,null,null,null,null,null,null,null,null,null,null,null,null,null,null,null,null,null,null,null,null,null,null,null,null,null,null,null,null,null,null,null,null,null,null,null,null,null,null,null,null,null,null,null,null,null,null,null,null,null,null,null,null,null,null,null,null,null,null,null,null,null,null,null,null,null,null,null,null,null,null,null,null,null,null,null,null,null,27,"DE0LK3585BCRS1EYJA6653Z7D","DE0LK3585BUGIAXEWP59OY3G9","Total Female Employees","0026","","S","","L","X","","","","",null,null,null,null,null,null,null,null,null,null,null,null,null,null,null,null,null,null,null,null,null,null,null,null,null,null,21,"D4O21W1IBV4BGZ1F83DZQ7J09","DE0LK3585BTOTOLNL5PNMIP6H","","2","","","","00","X","0","0","",""]
[null,null,null,null,null,null,null,null,null,null,null,null,null,null,null,null,null,null,null,null,null,null,null,null,null,null,null,null,null,null,null,null,null,null,null,null,null,null,null,null,null,null,null,null,null,null,null,null,null,null,null,null,null,null,null,null,null,null,null,null,null,null,null,null,null,null,null,null,null,null,null,null,null,null,null,null,null,null,null,null,null,null,null,null,null,null,null,null,null,null,null,null,null,null,null,null,null,null,null,null,null,null,null,null,null,null,null,null,null,null,null,null,null,null,null,null,null,null,null,null,null,null,null,null,null,null,null,null,null,null,31,"D5ENPW16Z66471UP2YC8ZOB95","D5B6FGJCS8KNXHLQMIZ22N4S9","","","","","","00","X","0","0","",""]
[null,null,null,null,null,null,null,null,null,null,null,null,null,null,null,null,null,null,null,null,null,null,null,null,null,null,null,null,null,null,null,null,null,null,null,null,null,null,null,null,null,null,null,null,null,null,null,null,null,null,null,null,null,null,null,null,null,null,null,null,null,null,null,null,null,null,null,null,null,null,null,null,null,null,null,null,null,null,null,null,null,null,null,null,null,null,null,null,null,null,null,null,null,null,null,null,null,null,null,null,null,null,null,null,null,null,null,null,null,null,null,null,null,null,null,null,null,null,null,null,null,null,null,null,null,null,null,null,null,null,33,"D5ENPW16Z67NKAI7Q17H4J3SP","D5B6FGJCS8C7EO0E3L7BBXRSP","","","","","","00","X","0","0","",""]
[null,null,null,null,null,null,null,null,null,null,null,null,null,null,null,null,null,null,null,null,null,null,null,null,null,null,null,null,null,null,null,null,null,null,null,null,null,null,null,null,null,null,null,null,null,null,null,null,null,null,null,null,null,null,null,null,null,null,null,null,null,null,null,null,null,null,null,null,null,null,null,null,null,null,null,null,null,null,null,null,null,null,null,null,null,null,null,null,null,null,null,null,null,null,null,null,null,null,null,null,null,null,null,null,null,null,null,null,null,null,null,null,null,null,null,null,null,null,null,null,null,null,null,null,null,null,null,null,null,null,33,"D5ENPW16Z696XJ5QD42P9DWC9","D5B6FGJCS8LFM3XHY2EO52J21","","","","","","00","X","0","0","",""]
[null,null,null,null,null,null,null,null,null,null,null,null,null,null,null,null,null,null,null,null,null,null,null,null,null,null,null,null,null,null,null,null,null,null,null,null,null,null,null,null,null,null,null,null,null,null,null,null,null,null,null,null,null,null,null,null,null,null,null,null,null,null,null,null,null,null,null,null,null,null,null,null,null,null,null,null,null,null,null,null,null,null,null,null,null,null,null,null,null,null,null,null,null,null,null,null,null,null,null,null,null,null,null,null,null,null,null,null,null,null,null,null,null,null,null,null,null,null,null,null,null,null,null,null,null,null,null,null,null,null,35,"D5ENPW16Z66VVO6GEHRV23PIX","D5B6FGJCS8M7AQ999LUA7HXBT","","","","","","00","X","0","0","",""]
[null,null,null,null,null,null,null,null,null,null,null,null,null,null,null,null,null,null,null,null,null,null,null,null,null,null,null,null,null,null,null,null,null,null,null,null,null,null,null,null,null,null,null,null,null,null,null,null,null,null,null,null,null,null,null,null,null,null,null,null,null,null,null,null,null,null,null,null,null,null,null,null,null,null,null,null,null,null,null,null,null,null,null,null,null,null,null,null,null,null,null,null,null,null,null,null,null,null,null,null,null,null,null,null,null,null,null,null,null,null,null,null,null,null,null,null,null,null,null,null,null,null,null,null,null,null,null,null,null,null,36,"D5ENPW16Z67NKAI7Q17H4J3SP","D5B6FGJCS8DQRWNWQO2JGSKC9","","","","","","00","X","0","0","",""]
[null,null,null,null,null,null,null,null,null,null,null,null,null,null,null,null,null,null,null,null,null,null,null,null,null,null,null,null,null,null,null,null,null,null,null,null,null,null,null,null,null,null,null,null,null,null,null,null,null,null,null,null,null,null,null,null,null,null,null,null,null,null,null,null,null,null,null,null,null,null,null,null,null,null,null,null,null,null,null,null,null,null,null,null,null,null,null,null,null,null,null,null,null,null,null,null,null,null,null,null,null,null,null,null,null,null,null,null,null,null,null,null,null,null,null,null,null,null,null,null,null,null,null,null,null,null,null,null,null,null,44,"D4O2P4A3SHQXLSTQKRD8517ND","DE0LRD9M7EUY3K1CH5KRNSPA1","","0","","","","00","X","0","0","",""]
[null,null,null,null,null,null,null,null,null,null,null,null,null,null,null,null,null,null,null,null,null,null,null,null,null,null,null,null,null,null,null,null,null,null,null,null,null,null,null,null,null,null,null,null,null,null,null,null,null,null,null,null,null,null,null,null,null,null,null,null,null,null,null,null,null,null,null,null,null,null,null,null,null,null,null,null,null,null,null,null,null,null,null,null,null,null,null,null,null,null,null,null,null,null,null,null,null,null,null,null,null,null,null,null,null,null,null,null,null,null,null,null,null,null,null,null,null,null,null,null,null,null,null,null,null,null,null,null,null,null,44,"DEN9FTLAHQ2ORKU273O4BL0QH","DE0LRD9M7EY0U1CDRBB7XIAD5","","","","","","00","X","0","0","",""]
[null,null,null,null,null,null,null,null,null,null,null,null,null,null,null,null,null,null,null,null,null,null,null,null,null,null,null,null,null,null,null,null,null,null,null,null,null,null,null,null,null,null,null,null,null,null,null,null,null,null,null,null,null,null,null,null,null,null,null,null,null,null,null,null,null,null,null,null,null,null,null,null,null,null,null,null,null,null,null,null,null,null,null,null,null,null,null,null,null,null,null,null,null,null,null,null,null,null,null,null,null,null,null,null,null,null,null,null,null,null,null,null,null,null,null,null,null,null,null,null,null,null,null,null,null,null,null,null,null,null,44,"DEN9GQ7MCHE3D4088BPWXA0HL","DE0LRD9M7EPKB7R18DJH6SXDL","","","","","","00","X","0","0","",""]
[null,null,null,null,null,null,null,null,null,null,null,null,null,null,null,null,null,null,null,null,null,null,null,null,null,null,null,null,null,null,null,null,null,null,null,null,null,null,null,null,null,null,null,null,null,null,null,null,null,null,null,null,null,null,null,null,null,null,null,null,null,null,null,null,null,null,null,null,null,null,null,null,null,null,null,null,null,null,null,null,null,null,null,null,null,null,null,null,null,null,null,null,null,null,null,null,null,null,null,null,null,null,null,null,null,null,null,null,null,null,null,null,null,null,null,null,null,null,null,null,null,null,null,null,null,null,null,null,null,null,22,"D4O2P4A3SHBJXEAK5YOYSHA7T","DE0LRD9M7F0BVWBNPXM24SH6H","","2","","","","00","X","0","0","",""]
[null,null,null,null,null,null,null,null,null,null,null,null,null,null,null,null,null,null,null,null,null,null,null,null,null,null,null,null,null,null,null,null,null,null,null,null,null,null,null,null,null,null,null,null,null,null,null,null,null,null,null,null,null,null,null,null,null,null,null,null,null,null,null,null,null,null,null,null,null,null,null,null,null,null,null,null,null,null,null,null,null,null,null,null,null,null,null,null,null,null,null,null,null,null,null,null,null,null,null,null,null,null,null,null,null,null,null,null,null,null,null,null,null,null,null,null,null,null,null,null,null,null,null,null,null,null,null,null,null,null,22,"DEN9FTLAHQ1X2YIAVK8I95MGP","DE0LRD9M7EKY7HSHB4XSS8JQX","","","","","","00","X","0","0","",""]
[null,null,null,null,null,null,null,null,null,null,null,null,null,null,null,null,null,null,null,null,null,null,null,null,null,null,null,null,null,null,null,null,null,null,null,null,null,null,null,null,null,null,null,null,null,null,null,null,null,null,null,null,null,null,null,null,null,null,null,null,null,null,null,null,null,null,null,null,null,null,null,null,null,null,null,null,null,null,null,null,null,null,null,null,null,null,null,null,null,null,null,null,null,null,null,null,null,null,null,null,null,null,null,null,null,null,null,null,null,null,null,null,null,null,null,null,null,null,null,null,null,null,null,null,null,null,null,null,null,null,22,"DEN9GQ7MCHA8Y0DFMMJUL514P","DE0LRD9M7EN99CRR9R8MZIQK9","","","","","","00","X","0","0","",""]
[null,null,null,null,null,null,null,null,null,null,null,null,null,null,null,null,null,null,null,null,null,null,null,null,null,null,null,null,null,null,null,null,null,null,null,null,null,null,null,null,null,null,null,null,null,null,null,null,null,null,null,null,null,null,null,null,null,null,null,null,null,null,null,null,null,null,null,null,null,null,null,null,null,null,null,null,null,null,null,null,null,null,null,null,null,null,null,null,null,null,null,null,null,null,null,null,null,null,null,null,null,null,null,null,null,null,null,null,null,null,null,null,null,null,null,null,null,null,null,null,null,null,null,null,null,null,null,null,null,null,22,"DEN9GQ7MCHDBOHOGWSAAUUM7T","DE0LRD9M7ELPW448MODEUNY0P","","","","","","00","X","0","0","",""]
[null,null,null,null,null,null,null,null,null,null,null,null,null,null,null,null,null,null,null,null,null,null,null,null,null,null,null,null,null,null,null,null,null,null,null,null,null,null,null,null,null,null,null,null,null,null,null,null,null,null,null,null,null,null,null,null,null,null,null,null,null,null,null,null,null,null,null,null,null,null,null,null,null,null,null,null,null,null,null,null,null,null,null,null,null,null,null,null,null,null,null,null,null,null,null,null,null,null,null,null,null,null,null,null,null,null,null,null,null,null,null,null,null,null,null,null,null,null,null,null,null,null,null,null,null,null,null,null,null,null,45,"D4O21W1IBUKBOUJOW241Z37Y1","DB7KOHJ1H71Y7H7ZUDG6JGD89","","","","","","00","X","0","0","",""]
[null,null,null,null,null,null,null,null,null,null,null,null,null,null,null,null,null,null,null,null,null,null,null,null,null,null,null,null,null,null,null,null,null,null,null,null,null,null,null,null,null,null,null,null,null,null,null,null,null,null,null,null,null,null,null,null,null,null,null,null,null,null,null,null,null,null,null,null,null,null,null,null,null,null,null,null,null,null,null,null,null,null,null,null,null,null,null,null,null,null,null,null,null,null,null,null,null,null,null,null,null,null,null,null,null,null,null,null,null,null,null,null,null,null,null,null,null,null,null,null,null,null,null,null,null,null,null,null,null,null,45,"D4O21W1IBUXEBE3LC8HH4CYK9","DB7KOHJ1H6SQ01AVZW8TQBLYX","","0","","","","00","X","0","0","",""]
[null,null,null,null,null,null,null,null,null,null,null,null,null,null,null,null,null,null,null,null,null,null,null,null,null,null,null,null,null,null,null,null,null,null,null,null,null,null,null,null,null,null,null,null,null,null,null,null,null,null,null,null,null,null,null,null,null,null,null,null,null,null,null,null,null,null,null,null,null,null,null,null,null,null,null,null,null,null,null,null,null,null,null,null,null,null,null,null,null,null,null,null,null,null,null,null,null,null,null,null,null,null,null,null,null,null,null,null,null,null,null,null,null,null,null,null,null,null,null,null,null,null,null,null,null,null,null,null,null,null,45,"DEN03PYIT5FSSAA2U7ST53H15","DB7KOHJ1H6WKF4XOLLEW2GLBT","","2","","","","00","X","0","0","",""]
[null,null,null,null,null,null,null,null,null,null,null,null,null,null,null,null,null,null,null,null,null,null,null,null,null,null,null,null,null,null,null,null,null,null,null,null,null,null,null,null,null,null,null,null,null,null,null,null,null,null,null,null,null,null,null,null,null,null,null,null,null,null,null,null,null,null,null,null,null,null,null,null,null,null,null,null,null,null,null,null,null,null,null,null,null,null,null,null,null,null,null,null,null,null,null,null,null,null,null,null,null,null,null,null,null,null,null,null,null,null,null,null,null,null,null,null,null,null,null,null,null,null,null,null,null,null,null,null,null,null,45,"DEN04FDC1K04NBJW47LA7T915","DB7KOHJ1H6THONMNBFOFSR08P","","0","","","","00","X","0","0","",""]
[null,null,null,null,null,null,null,null,null,null,null,null,null,null,null,null,null,null,null,null,null,null,null,null,null,null,null,null,null,null,null,null,null,null,null,null,null,null,null,null,null,null,null,null,null,null,null,null,null,null,null,null,null,null,null,null,null,null,null,null,null,null,null,null,null,null,null,null,null,null,null,null,null,null,null,null,null,null,null,null,null,null,null,null,null,null,null,null,null,null,null,null,null,null,null,null,null,null,null,null,null,null,null,null,null,null,null,null,null,null,null,null,null,null,null,null,null,null,null,null,null,null,null,null,null,null,null,null,null,null,45,"DEN0OSIFULDRI056PS9TTR4S9","DB7KOHJ1H6LSUGD241CB4H1IX","","0","","","","00","X","0","0","",""]
[null,null,null,null,null,null,null,null,null,null,null,null,null,null,null,null,null,null,null,null,null,null,null,null,null,null,null,null,null,null,null,null,null,null,null,null,null,null,null,null,null,null,null,null,null,null,null,null,null,null,null,null,null,null,null,null,null,null,null,null,null,null,null,null,null,null,null,null,null,null,null,null,null,null,null,null,null,null,null,null,null,null,null,null,null,null,null,null,null,null,null,null,null,null,null,null,null,null,null,null,null,null,null,null,null,null,null,null,null,null,null,null,null,null,null,null,null,null,null,null,null,null,null,null,null,null,null,null,null,null,14,"DB7L29JCIUKDED16MWVCV50QH","DB7LWSDLAPC4ZWB6DDONB0ET5","","","","","","00","X","0","0","",""]
[null,null,null,null,null,null,null,null,null,null,null,null,null,null,null,null,null,null,null,null,null,null,null,null,null,null,null,null,null,null,null,null,null,null,null,null,null,null,null,null,null,null,null,null,null,null,null,null,null,null,null,null,null,null,null,null,null,null,null,null,null,null,null,null,null,null,null,null,null,null,null,null,null,null,null,null,null,null,null,null,null,null,null,null,null,null,null,null,null,null,null,null,null,null,null,null,null,null,null,null,null,null,null,null,null,null,null,null,null,null,null,null,null,null,null,null,null,null,null,null,null,null,null,null,null,null,null,null,null,null,13,"DB7L29JCIUHANVQ5CR4WLFFND","DB7LWSDLAPALMNNNQATF65M9L","","","","","","00","X","0","0","",""]
[null,null,null,null,null,null,null,null,null,null,null,null,null,null,null,null,null,null,null,null,null,null,null,null,null,null,null,null,null,null,null,null,null,null,null,null,null,null,null,null,null,null,null,null,null,null,null,null,null,null,null,null,null,null,null,null,null,null,null,null,null,null,null,null,null,null,null,null,null,null,null,null,null,null,null,null,null,null,null,null,null,null,null,null,null,null,null,null,null,null,null,null,null,null,null,null,null,null,null,null,null,null,null,null,null,null,null,null,null,null,null,null,null,null,null,null,null,null,null,null,null,null,null,null,null,null,null,null,null,null,12,"D4O2P4A3SHQXLSTQKRD8517ND","DB7KOHJ1H6OVKXO3E72RE6MM1","","","","","","00","X","0","0","",""]
[null,null,null,null,null,null,null,null,null,null,null,null,null,null,null,null,null,null,null,null,null,null,null,null,null,null,null,null,null,null,null,null,null,null,null,null,null,null,null,null,null,null,null,null,null,null,null,null,null,null,null,null,null,null,null,null,null,null,null,null,null,null,null,null,null,null,null,null,null,null,null,null,null,null,null,null,null,null,null,null,null,null,null,null,null,null,null,null,null,null,null,null,null,null,null,null,null,null,null,null,null,null,null,null,null,null,null,null,null,null,null,null,null,null,null,null,null,null,null,null,null,null,null,null,null,null,null,null,null,null,12,"DEN9FTLAHQ1X2YIAVK8I95MGP","DB7KOHJ1H6MKJ2OTFKRX6WFSP","","","","","","00","X","0","0","",""]
[null,null,null,null,null,null,null,null,null,null,null,null,null,null,null,null,null,null,null,null,null,null,null,null,null,null,null,null,null,null,null,null,null,null,null,null,null,null,null,null,null,null,null,null,null,null,null,null,null,null,null,null,null,null,null,null,null,null,null,null,null,null,null,null,null,null,null,null,null,null,null,null,null,null,null,null,null,null,null,null,null,null,null,null,null,null,null,null,null,null,null,null,null,null,null,null,null,null,null,null,null,null,null,null,null,null,null,null,null,null,null,null,null,null,null,null,null,null,null,null,null,null,null,null,null,null,null,null,null,null,12,"DEN9GQ7MCHB0MMP6Y5ZGNKFEH","DB7KOHJ1H6YVGZWYK7PQ9QS55","","","","","","00","X","0","0","",""]
[null,null,null,null,null,null,null,null,null,null,null,null,null,null,null,null,null,null,null,null,null,null,null,null,null,null,null,null,null,null,null,null,null,null,null,null,null,null,null,null,null,null,null,null,null,null,null,null,null,null,null,null,null,null,null,null,null,null,null,null,null,null,null,null,null,null,null,null,null,null,null,null,null,null,null,null,null,null,null,null,null,null,null,null,null,null,null,null,null,null,null,null,null,null,null,null,null,null,null,null,null,null,null,null,null,null,null,null,null,null,null,null,null,null,null,null,null,null,null,null,null,null,null,null,null,null,null,null,null,null,11,"D4O21W1IBUFPL4L4YTIDKIUBD","DB7KOHJ1H6SQ01AVZW8TQBLYX","","0","","","","00","X","0","0","",""]
[null,null,null,null,null,null,null,null,null,null,null,null,null,null,null,null,null,null,null,null,null,null,null,null,null,null,null,null,null,null,null,null,null,null,null,null,null,null,null,null,null,null,null,null,null,null,null,null,null,null,null,null,null,null,null,null,null,null,null,null,null,null,null,null,null,null,null,null,null,null,null,null,null,null,null,null,null,null,null,null,null,null,null,null,null,null,null,null,null,null,null,null,null,null,null,null,null,null,null,null,null,null,null,null,null,null,null,null,null,null,null,null,null,null,null,null,null,null,null,null,null,null,null,null,null,null,null,null,null,null,11,"D4O21W1IBULV2377J4ZA3Y0HL","DB7KOHJ1H6THONMNBFOFSR08P","","0","","","","00","X","0","0","",""]
[null,null,null,null,null,null,null,null,null,null,null,null,null,null,null,null,null,null,null,null,null,null,null,null,null,null,null,null,null,null,null,null,null,null,null,null,null,null,null,null,null,null,null,null,null,null,null,null,null,null,null,null,null,null,null,null,null,null,null,null,null,null,null,null,null,null,null,null,null,null,null,null,null,null,null,null,null,null,null,null,null,null,null,null,null,null,null,null,null,null,null,null,null,null,null,null,null,null,null,null,null,null,null,null,null,null,null,null,null,null,null,null,null,null,null,null,null,null,null,null,null,null,null,null,null,null,null,null,null,null,11,"D4O21W1IBUXEBE3LC8HH4CYK9","DB7KOHJ1H6V11WA5YIJNXLSS9","","0","","","","00","X","0","0","",""]
[null,null,null,null,null,null,null,null,null,null,null,null,null,null,null,null,null,null,null,null,null,null,null,null,null,null,null,null,null,null,null,null,null,null,null,null,null,null,null,null,null,null,null,null,null,null,null,null,null,null,null,null,null,null,null,null,null,null,null,null,null,null,null,null,null,null,null,null,null,null,null,null,null,null,null,null,null,null,null,null,null,null,null,null,null,null,null,null,null,null,null,null,null,null,null,null,null,null,null,null,null,null,null,null,null,null,null,null,null,null,null,null,null,null,null,null,null,null,null,null,null,null,null,null,null,null,null,null,null,null,11,"DEN07Y1DTSNAWTLQYCBLILED5","DB7KOHJ1H6O3WBCC2NN5BR8C9","","0","","","","00","X","0","0","",""]
[null,null,null,null,null,null,null,null,null,null,null,null,null,null,null,null,null,null,null,null,null,null,null,null,null,null,null,null,null,null,null,null,null,null,null,null,null,null,null,null,null,null,null,null,null,null,null,null,null,null,null,null,null,null,null,null,null,null,null,null,null,null,null,null,null,null,null,null,null,null,null,null,null,null,null,null,null,null,null,null,null,null,null,null,null,null,null,null,null,null,null,null,null,null,null,null,null,null,null,null,null,null,null,null,null,null,null,null,null,null,null,null,null,null,null,null,null,null,null,null,null,null,null,null,null,null,null,null,null,null,11,"DEN07Y1DTSR5BX8JK1HNUQDQ1","DB7KOHJ1H716IUW8IU0KH0YYH","","2","","","","00","X","0","0","",""]
[null,null,null,null,null,null,null,null,null,null,null,null,null,null,null,null,null,null,null,null,null,null,null,null,null,null,null,null,null,null,null,null,null,null,null,null,null,null,null,null,null,null,null,null,null,null,null,null,null,null,null,null,null,null,null,null,null,null,null,null,null,null,null,null,null,null,null,null,null,null,null,null,null,null,null,null,null,null,null,null,null,null,null,null,null,null,null,null,null,null,null,null,null,null,null,null,null,null,null,null,null,null,null,null,null,null,null,null,null,null,null,null,null,null,null,null,null,null,null,null,null,null,null,null,null,null,null,null,null,null,10,"D4O21W1IBUFPL4L4YTIDKIUBD","DB7KOHJ1H6IQ3Z20TVLUURGFT","","","","","","00","X","0","0","",""]
[null,null,null,null,null,null,null,null,null,null,null,null,null,null,null,null,null,null,null,null,null,null,null,null,null,null,null,null,null,null,null,null,null,null,null,null,null,null,null,null,null,null,null,null,null,null,null,null,null,null,null,null,null,null,null,null,null,null,null,null,null,null,null,null,null,null,null,null,null,null,null,null,null,null,null,null,null,null,null,null,null,null,null,null,null,null,null,null,null,null,null,null,null,null,null,null,null,null,null,null,null,null,null,null,null,null,null,null,null,null,null,null,null,null,null,null,null,null,null,null,null,null,null,null,null,null,null,null,null,null,10,"D4O21W1IBUMMQPIYUOEW6DERD","DB7KOHJ1H6MKJ2OTFKRX6WFSP","","","","","","00","X","0","0","",""]
[null,null,null,null,null,null,null,null,null,null,null,null,null,null,null,null,null,null,null,null,null,null,null,null,null,null,null,null,null,null,null,null,null,null,null,null,null,null,null,null,null,null,null,null,null,null,null,null,null,null,null,null,null,null,null,null,null,null,null,null,null,null,null,null,null,null,null,null,null,null,null,null,null,null,null,null,null,null,null,null,null,null,null,null,null,null,null,null,null,null,null,null,null,null,null,null,null,null,null,null,null,null,null,null,null,null,null,null,null,null,null,null,null,null,null,null,null,null,null,null,null,null,null,null,null,null,null,null,null,null,10,"D4O21W1IBUY600FCNRX36SCU1","DB7KOHJ1H6O3WBCC2NN5BR8C9","","0","","","","00","X","0","0","",""]
[null,null,null,null,null,null,null,null,null,null,null,null,null,null,null,null,null,null,null,null,null,null,null,null,null,null,null,null,null,null,null,null,null,null,null,null,null,null,null,null,null,null,null,null,null,null,null,null,null,null,null,null,null,null,null,null,null,null,null,null,null,null,null,null,null,null,null,null,null,null,null,null,null,null,null,null,null,null,null,null,null,null,null,null,null,null,null,null,null,null,null,null,null,null,null,null,null,null,null,null,null,null,null,null,null,null,null,null,null,null,null,null,null,null,null,null,null,null,null,null,null,null,null,null,null,null,null,null,null,null,10,"DEMAFDB5LZ4S252XBVM7GJP4P","DB7KOHJ1H716IUW8IU0KH0YYH","","2","","","","00","X","0","0","",""]
[null,null,null,null,null,null,null,null,null,null,null,null,null,null,null,null,null,null,null,null,null,null,null,null,null,null,null,null,null,null,null,null,null,null,null,null,null,null,null,null,null,null,null,null,null,null,null,null,null,null,null,null,null,null,null,null,null,null,null,null,null,null,null,null,null,null,null,null,null,null,null,null,null,null,null,null,null,null,null,null,null,null,null,null,null,null,null,null,null,null,null,null,null,null,null,null,null,null,null,null,null,null,null,null,null,null,null,null,null,null,null,null,null,null,null,null,null,null,null,null,null,null,null,null,null,null,null,null,null,null,10,"DEN07Y1DTSRX0JKAVKX9X5RZT","DB7KOHJ1H6U9D9YEMZ41V6EIH","","0","","","","00","X","0","0","",""]
[null,null,null,null,null,null,null,null,null,null,null,null,null,null,null,null,null,null,null,null,null,null,null,null,null,null,null,null,null,null,null,null,null,null,null,null,null,null,null,null,null,null,null,null,null,null,null,null,null,null,null,null,null,null,null,null,null,null,null,null,null,null,null,null,null,null,null,null,null,null,null,null,null,null,null,null,null,null,null,null,null,null,null,null,null,null,null,null,null,null,null,null,null,null,null,null,null,null,null,null,null,null,null,null,null,null,null,null,null,null,null,null,null,null,null,null,null,null,null,null,null,null,null,null,null,null,null,null,null,null,10,"DEN0OSIFULEJ6MGY1BPFW6J21","DB7KOHJ1H6VSQILXA1ZA01721","","","","","","00","X","0","0","",""]
[null,null,null,null,null,null,null,null,null,null,null,null,null,null,null,null,null,null,null,null,null,null,null,null,null,null,null,null,null,null,null,null,null,null,null,null,null,null,null,null,null,null,null,null,null,null,null,null,null,null,null,null,null,null,null,null,null,null,null,null,null,null,null,null,null,null,null,null,null,null,null,null,null,null,null,null,null,null,null,null,null,null,null,null,null,null,null,null,null,null,null,null,null,null,null,null,null,null,null,null,null,null,null,null,null,null,null,null,null,null,null,null,null,null,null,null,null,null,null,null,null,null,null,null,null,null,null,null,null,null,9,"D4O21W1IBUFPL4L4YTIDKIUBD","DB7KOHJ1H6V11WA5YIJNXLSS9","","0","","","","00","X","0","0","",""]
[null,null,null,null,null,null,null,null,null,null,null,null,null,null,null,null,null,null,null,null,null,null,null,null,null,null,null,null,null,null,null,null,null,null,null,null,null,null,null,null,null,null,null,null,null,null,null,null,null,null,null,null,null,null,null,null,null,null,null,null,null,null,null,null,null,null,null,null,null,null,null,null,null,null,null,null,null,null,null,null,null,null,null,null,null,null,null,null,null,null,null,null,null,null,null,null,null,null,null,null,null,null,null,null,null,null,null,null,null,null,null,null,null,null,null,null,null,null,null,null,null,null,null,null,null,null,null,null,null,null,9,"D4O21W1IBUNEFBUQ67UI8ST15","DB7KOHJ1H6L15U1ASHWP21N95","","","","","","00","X","0","0","",""]
[null,null,null,null,null,null,null,null,null,null,null,null,null,null,null,null,null,null,null,null,null,null,null,null,null,null,null,null,null,null,null,null,null,null,null,null,null,null,null,null,null,null,null,null,null,null,null,null,null,null,null,null,null,null,null,null,null,null,null,null,null,null,null,null,null,null,null,null,null,null,null,null,null,null,null,null,null,null,null,null,null,null,null,null,null,null,null,null,null,null,null,null,null,null,null,null,null,null,null,null,null,null,null,null,null,null,null,null,null,null,null,null,null,null,null,null,null,null,null,null,null,null,null,null,null,null,null,null,null,null,9,"D4O21W1IBV8XKOZZ5BZO4RWMX","DB7KOHJ1H716IUW8IU0KH0YYH","","2","","","","00","X","0","0","",""]
[null,null,null,null,null,null,null,null,null,null,null,null,null,null,null,null,null,null,null,null,null,null,null,null,null,null,null,null,null,null,null,null,null,null,null,null,null,null,null,null,null,null,null,null,null,null,null,null,null,null,null,null,null,null,null,null,null,null,null,null,null,null,null,null,null,null,null,null,null,null,null,null,null,null,null,null,null,null,null,null,null,null,null,null,null,null,null,null,null,null,null,null,null,null,null,null,null,null,null,null,null,null,null,null,null,null,null,null,null,null,null,null,null,null,null,null,null,null,null,null,null,null,null,null,null,null,null,null,null,null,9,"DEN07Y1DTSO2LFXI9VR7L0SMX","DB7KOHJ1H70EU8KH7AKYELKOP","","0","","","","00","X","0","0","",""]
[null,null,null,null,null,null,null,null,null,null,null,null,null,null,null,null,null,null,null,null,null,null,null,null,null,null,null,null,null,null,null,null,null,null,null,null,null,null,null,null,null,null,null,null,null,null,null,null,null,null,null,null,null,null,null,null,null,null,null,null,null,null,null,null,null,null,null,null,null,null,null,null,null,null,null,null,null,null,null,null,null,null,null,null,null,null,null,null,null,null,null,null,null,null,null,null,null,null,null,null,null,null,null,null,null,null,null,null,null,null,null,null,null,null,null,null,null,null,null,null,null,null,null,null,null,null,null,null,null,null,9,"DEN07Y1DTSRX0JKAVKX9X5RZT","DB7KOHJ1H6IQ3Z20TVLUURGFT","","","","","","00","X","0","0","",""]
[null,null,null,null,null,null,null,null,null,null,null,null,null,null,null,null,null,null,null,null,null,null,null,null,null,null,null,null,null,null,null,null,null,null,null,null,null,null,null,null,null,null,null,null,null,null,null,null,null,null,null,null,null,null,null,null,null,null,null,null,null,null,null,null,null,null,null,null,null,null,null,null,null,null,null,null,null,null,null,null,null,null,null,null,null,null,null,null,null,null,null,null,null,null,null,null,null,null,null,null,null,null,null,null,null,null,null,null,null,null,null,null,null,null,null,null,null,null,null,null,null,null,null,null,null,null,null,null,null,null,8,"D4O21W1IBUGH9QWWACXZMY8L5","DB7KOHJ1H6O3WBCC2NN5BR8C9","","0","","","","00","X","0","0","",""]
[null,null,null,null,null,null,null,null,null,null,null,null,null,null,null,null,null,null,null,null,null,null,null,null,null,null,null,null,null,null,null,null,null,null,null,null,null,null,null,null,null,null,null,null,null,null,null,null,null,null,null,null,null,null,null,null,null,null,null,null,null,null,null,null,null,null,null,null,null,null,null,null,null,null,null,null,null,null,null,null,null,null,null,null,null,null,null,null,null,null,null,null,null,null,null,null,null,null,null,null,null,null,null,null,null,null,null,null,null,null,null,null,null,null,null,null,null,null,null,null,null,null,null,null,null,null,null,null,null,null,8,"D4O21W1IBUKBOUJOW241Z37Y1","DB7KOHJ1H6Y3SDL78OA47BDVD","","2","","","","00","X","0","0","",""]
[null,null,null,null,null,null,null,null,null,null,null,null,null,null,null,null,null,null,null,null,null,null,null,null,null,null,null,null,null,null,null,null,null,null,null,null,null,null,null,null,null,null,null,null,null,null,null,null,null,null,null,null,null,null,null,null,null,null,null,null,null,null,null,null,null,null,null,null,null,null,null,null,null,null,null,null,null,null,null,null,null,null,null,null,null,null,null,null,null,null,null,null,null,null,null,null,null,null,null,null,null,null,null,null,null,null,null,null,null,null,null,null,null,null,null,null,null,null,null,null,null,null,null,null,null,null,null,null,null,null,8,"DEMAFDB5LZ4S252XBVM7GJP4P","DB7KOHJ1H6U9D9YEMZ41V6EIH","","0","","","","00","X","0","0","",""]
[null,null,null,null,null,null,null,null,null,null,null,null,null,null,null,null,null,null,null,null,null,null,null,null,null,null,null,null,null,null,null,null,null,null,null,null,null,null,null,null,null,null,null,null,null,null,null,null,null,null,null,null,null,null,null,null,null,null,null,null,null,null,null,null,null,null,null,null,null,null,null,null,null,null,null,null,null,null,null,null,null,null,null,null,null,null,null,null,null,null,null,null,null,null,null,null,null,null,null,null,null,null,null,null,null,null,null,null,null,null,null,null,null,null,null,null,null,null,null,null,null,null,null,null,null,null,null,null,null,null,8,"DEN03PYIT5FSSAA2U7ST53H15","DB7KOHJ1H6SQ01AVZW8TQBLYX","","0","","","","00","X","0","0","",""]
[null,null,null,null,null,null,null,null,null,null,null,null,null,null,null,null,null,null,null,null,null,null,null,null,null,null,null,null,null,null,null,null,null,null,null,null,null,null,null,null,null,null,null,null,null,null,null,null,null,null,null,null,null,null,null,null,null,null,null,null,null,null,null,null,null,null,null,null,null,null,null,null,null,null,null,null,null,null,null,null,null,null,null,null,null,null,null,null,null,null,null,null,null,null,null,null,null,null,null,null,null,null,null,null,null,null,null,null,null,null,null,null,null,null,null,null,null,null,null,null,null,null,null,null,null,null,null,null,null,null,8,"DEN07Y1DTSRX0JKAVKX9X5RZT","DB7KOHJ1H6WKF4XOLLEW2GLBT","","2","","","","00","X","0","0","",""]
[null,null,null,null,null,null,null,null,null,null,null,null,null,null,null,null,null,null,null,null,null,null,null,null,null,null,null,null,null,null,null,null,null,null,null,null,null,null,null,null,null,null,null,null,null,null,null,null,null,null,null,null,null,null,null,null,null,null,null,null,null,null,null,null,null,null,null,null,null,null,null,null,null,null,null,null,null,null,null,null,null,null,null,null,null,null,null,null,null,null,null,null,null,null,null,null,null,null,null,null,null,null,null,null,null,null,null,null,null,null,null,null,null,null,null,null,null,null,null,null,null,null,null,null,null,null,null,null,null,null,7,"D4O21W1IBUE67VXMBQN5FO1RT","DB7KOHJ1H6NC7P0KR47J9BU2H","","","","","","00","X","0","0","",""]
[null,null,null,null,null,null,null,null,null,null,null,null,null,null,null,null,null,null,null,null,null,null,null,null,null,null,null,null,null,null,null,null,null,null,null,null,null,null,null,null,null,null,null,null,null,null,null,null,null,null,null,null,null,null,null,null,null,null,null,null,null,null,null,null,null,null,null,null,null,null,null,null,null,null,null,null,null,null,null,null,null,null,null,null,null,null,null,null,null,null,null,null,null,null,null,null,null,null,null,null,null,null,null,null,null,null,null,null,null,null,null,null,null,null,null,null,null,null,null,null,null,null,null,null,null,null,null,null,null,null,7,"D4O21W1IBUNEFBUQ67UI8ST15","DB7KOHJ1H6HYFCQ9IC68SC261","","","","","","00","X","0","0","",""]
[null,null,null,null,null,null,null,null,null,null,null,null,null,null,null,null,null,null,null,null,null,null,null,null,null,null,null,null,null,null,null,null,null,null,null,null,null,null,null,null,null,null,null,null,null,null,null,null,null,null,null,null,null,null,null,null,null,null,null,null,null,null,null,null,null,null,null,null,null,null,null,null,null,null,null,null,null,null,null,null,null,null,null,null,null,null,null,null,null,null,null,null,null,null,null,null,null,null,null,null,null,null,null,null,null,null,null,null,null,null,null,null,null,null,null,null,null,null,null,null,null,null,null,null,null,null,null,null,null,null,7,"D4O21W1IBV0H1VEMME7XE2JND","DB7KOHJ1H6HYFCQ9IC68SC261","","","","","","00","X","0","0","",""]
[null,null,null,null,null,null,null,null,null,null,null,null,null,null,null,null,null,null,null,null,null,null,null,null,null,null,null,null,null,null,null,null,null,null,null,null,null,null,null,null,null,null,null,null,null,null,null,null,null,null,null,null,null,null,null,null,null,null,null,null,null,null,null,null,null,null,null,null,null,null,null,null,null,null,null,null,null,null,null,null,null,null,null,null,null,null,null,null,null,null,null,null,null,null,null,null,null,null,null,null,null,null,null,null,null,null,null,null,null,null,null,null,null,null,null,null,null,null,null,null,null,null,null,null,null,null,null,null,null,null,7,"DEMAFDB5LZ4S252XBVM7GJP4P","DB7KOHJ1H6IQ3Z20TVLUURGFT","","","","","","00","X","0","0","",""]
[null,null,null,null,null,null,null,null,null,null,null,null,null,null,null,null,null,null,null,null,null,null,null,null,null,null,null,null,null,null,null,null,null,null,null,null,null,null,null,null,null,null,null,null,null,null,null,null,null,null,null,null,null,null,null,null,null,null,null,null,null,null,null,null,null,null,null,null,null,null,null,null,null,null,null,null,null,null,null,null,null,null,null,null,null,null,null,null,null,null,null,null,null,null,null,null,null,null,null,null,null,null,null,null,null,null,null,null,null,null,null,null,null,null,null,null,null,null,null,null,null,null,null,null,null,null,null,null,null,null,7,"DEN07Y1DTSSOP5W274CVZL69L","DB7KOHJ1H6PN9JZUPQIDGM0VT","","","","","","00","X","0","0","",""]
[null,null,null,null,null,null,null,null,null,null,null,null,null,null,null,null,null,null,null,null,null,null,null,null,null,null,null,null,null,null,null,null,null,null,null,null,null,null,null,null,null,null,null,null,null,null,null,null,null,null,null,null,null,null,null,null,null,null,null,null,null,null,null,null,null,null,null,null,null,null,null,null,null,null,null,null,null,null,null,null,null,null,null,null,null,null,null,null,null,null,null,null,null,null,null,null,null,null,null,null,null,null,null,null,null,null,null,null,null,null,null,null,null,null,null,null,null,null,null,null,null,null,null,null,null,null,null,null,null,null,7,"DEN0OSIFULCZTDTFE8U7RBQIH","DB7KOHJ1H70EU8KH7AKYELKOP","","2","","","","00","X","0","0","",""]
[null,null,null,null,null,null,null,null,null,null,null,null,null,null,null,null,null,null,null,null,null,null,null,null,null,null,null,null,null,null,null,null,null,null,null,null,null,null,null,null,null,null,null,null,null,null,null,null,null,null,null,null,null,null,null,null,null,null,null,null,null,null,null,null,null,null,null,null,null,null,null,null,null,null,null,null,null,null,null,null,null,null,null,null,null,null,null,null,null,null,null,null,null,null,null,null,null,null,null,null,null,null,null,null,null,null,null,null,null,null,null,null,null,null,null,null,null,null,null,null,null,null,null,null,null,null,null,null,null,null,6,"D4O21W1IBUGH9QWWACXZMY8L5","DB7KOHJ1H6QEY6BM19XZJ1F5L","","0","","","","00","X","0","0","",""]
[null,null,null,null,null,null,null,null,null,null,null,null,null,null,null,null,null,null,null,null,null,null,null,null,null,null,null,null,null,null,null,null,null,null,null,null,null,null,null,null,null,null,null,null,null,null,null,null,null,null,null,null,null,null,null,null,null,null,null,null,null,null,null,null,null,null,null,null,null,null,null,null,null,null,null,null,null,null,null,null,null,null,null,null,null,null,null,null,null,null,null,null,null,null,null,null,null,null,null,null,null,null,null,null,null,null,null,null,null,null,null,null,null,null,null,null,null,null,null,null,null,null,null,null,null,null,null,null,null,null,6,"D4O21W1IBUY600FCNRX36SCU1","DB7KOHJ1H6U9D9YEMZ41V6EIH","","0","","","","00","X","0","0","",""]
[null,null,null,null,null,null,null,null,null,null,null,null,null,null,null,null,null,null,null,null,null,null,null,null,null,null,null,null,null,null,null,null,null,null,null,null,null,null,null,null,null,null,null,null,null,null,null,null,null,null,null,null,null,null,null,null,null,null,null,null,null,null,null,null,null,null,null,null,null,null,null,null,null,null,null,null,null,null,null,null,null,null,null,null,null,null,null,null,null,null,null,null,null,null,null,null,null,null,null,null,null,null,null,null,null,null,null,null,null,null,null,null,null,null,null,null,null,null,null,null,null,null,null,null,null,null,null,null,null,null,6,"DEMAFDB5LZ4S252XBVM7GJP4P","DB7KOHJ1H6WKF4XOLLEW2GLBT","","2","","","","00","X","0","0","",""]
[null,null,null,null,null,null,null,null,null,null,null,null,null,null,null,null,null,null,null,null,null,null,null,null,null,null,null,null,null,null,null,null,null,null,null,null,null,null,null,null,null,null,null,null,null,null,null,null,null,null,null,null,null,null,null,null,null,null,null,null,null,null,null,null,null,null,null,null,null,null,null,null,null,null,null,null,null,null,null,null,null,null,null,null,null,null,null,null,null,null,null,null,null,null,null,null,null,null,null,null,null,null,null,null,null,null,null,null,null,null,null,null,null,null,null,null,null,null,null,null,null,null,null,null,null,null,null,null,null,null,6,"DEN07Y1DTSNAWTLQYCBLILED5","DB7KOHJ1H6K9H7PJGYH2ZM8ZD","","0","","","","00","X","0","0","",""]
[null,null,null,null,null,null,null,null,null,null,null,null,null,null,null,null,null,null,null,null,null,null,null,null,null,null,null,null,null,null,null,null,null,null,null,null,null,null,null,null,null,null,null,null,null,null,null,null,null,null,null,null,null,null,null,null,null,null,null,null,null,null,null,null,null,null,null,null,null,null,null,null,null,null,null,null,null,null,null,null,null,null,null,null,null,null,null,null,null,null,null,null,null,null,null,null,null,null,null,null,null,null,null,null,null,null,null,null,null,null,null,null,null,null,null,null,null,null,null,null,null,null,null,null,null,null,null,null,null,null,5,"D4O21W1IBUDEJ9LV077JD8NI1","DB7KOHJ1H6HYFCQ9IC68SC261","","","","","","00","X","0","0","",""]
[null,null,null,null,null,null,null,null,null,null,null,null,null,null,null,null,null,null,null,null,null,null,null,null,null,null,null,null,null,null,null,null,null,null,null,null,null,null,null,null,null,null,null,null,null,null,null,null,null,null,null,null,null,null,null,null,null,null,null,null,null,null,null,null,null,null,null,null,null,null,null,null,null,null,null,null,null,null,null,null,null,null,null,null,null,null,null,null,null,null,null,null,null,null,null,null,null,null,null,null,null,null,null,null,null,null,null,null,null,null,null,null,null,null,null,null,null,null,null,null,null,null,null,null,null,null,null,null,null,null,5,"D4O21W1IBUEXWI9DNA2RI3G1L","DB7KOHJ1H6ZN5M8PVR5CC66EX","","2","","","","00","X","0","0","",""]
[null,null,null,null,null,null,null,null,null,null,null,null,null,null,null,null,null,null,null,null,null,null,null,null,null,null,null,null,null,null,null,null,null,null,null,null,null,null,null,null,null,null,null,null,null,null,null,null,null,null,null,null,null,null,null,null,null,null,null,null,null,null,null,null,null,null,null,null,null,null,null,null,null,null,null,null,null,null,null,null,null,null,null,null,null,null,null,null,null,null,null,null,null,null,null,null,null,null,null,null,null,null,null,null,null,null,null,null,null,null,null,null,null,null,null,null,null,null,null,null,null,null,null,null,null,null,null,null,null,null,5,"D4O21W1IBUNEFBUQ67UI8ST15","DB7KOHJ1H6K9H7PJGYH2ZM8ZD","","","","","","00","X","0","0","",""]
[null,null,null,null,null,null,null,null,null,null,null,null,null,null,null,null,null,null,null,null,null,null,null,null,null,null,null,null,null,null,null,null,null,null,null,null,null,null,null,null,null,null,null,null,null,null,null,null,null,null,null,null,null,null,null,null,null,null,null,null,null,null,null,null,null,null,null,null,null,null,null,null,null,null,null,null,null,null,null,null,null,null,null,null,null,null,null,null,null,null,null,null,null,null,null,null,null,null,null,null,null,null,null,null,null,null,null,null,null,null,null,null,null,null,null,null,null,null,null,null,null,null,null,null,null,null,null,null,null,null,5,"D4O21W1IBV18QHQDXXNJGHXX5","DB7KOHJ1H6U9D9YEMZ41V6EIH","","0","","","","00","X","0","0","",""]
[null,null,null,null,null,null,null,null,null,null,null,null,null,null,null,null,null,null,null,null,null,null,null,null,null,null,null,null,null,null,null,null,null,null,null,null,null,null,null,null,null,null,null,null,null,null,null,null,null,null,null,null,null,null,null,null,null,null,null,null,null,null,null,null,null,null,null,null,null,null,null,null,null,null,null,null,null,null,null,null,null,null,null,null,null,null,null,null,null,null,null,null,null,null,null,null,null,null,null,null,null,null,null,null,null,null,null,null,null,null,null,null,null,null,null,null,null,null,null,null,null,null,null,null,null,null,null,null,null,null,5,"DEN07Y1DTSOUA299LF6TNG6WP","DB7KOHJ1H6QEY6BM19XZJ1F5L","","0","","","","00","X","0","0","",""]
[null,null,null,null,null,null,null,null,null,null,null,null,null,null,null,null,null,null,null,null,null,null,null,null,null,null,null,null,null,null,null,null,null,null,null,null,null,null,null,null,null,null,null,null,null,null,null,null,null,null,null,null,null,null,null,null,null,null,null,null,null,null,null,null,null,null,null,null,null,null,null,null,null,null,null,null,null,null,null,null,null,null,null,null,null,null,null,null,null,null,null,null,null,null,null,null,null,null,null,null,null,null,null,null,null,null,null,null,null,null,null,null,null,null,null,null,null,null,null,null,null,null,null,null,null,null,null,null,null,null,5,"DEN07Y1DTSSOP5W274CVZL69L","DB7KOHJ1H6RYBEZ4OCT7NW7P5","","","","","","00","X","0","0","",""]
[null,null,null,null,null,null,null,null,null,null,null,null,null,null,null,null,null,null,null,null,null,null,null,null,null,null,null,null,null,null,null,null,null,null,null,null,null,null,null,null,null,null,null,null,null,null,null,null,null,null,null,null,null,null,null,null,null,null,null,null,null,null,null,null,null,null,null,null,null,null,null,null,null,null,null,null,null,null,null,null,null,null,null,null,null,null,null,null,null,null,null,null,null,null,null,null,null,null,null,null,null,null,null,null,null,null,null,null,null,null,null,null,null,null,null,null,null,null,null,null,null,null,null,null,null,null,null,null,null,null,5,"DEN0OSIFULEJ6MGY1BPFW6J21","DB7KOHJ1H6RYBEZ4OCT7NW7P5","","","","","","00","X","0","0","",""]
[null,null,null,null,null,null,null,null,null,null,null,null,null,null,null,null,null,null,null,null,null,null,null,null,null,null,null,null,null,null,null,null,null,null,null,null,null,null,null,null,null,null,null,null,null,null,null,null,null,null,null,null,null,null,null,null,null,null,null,null,null,null,null,null,null,null,null,null,null,null,null,null,null,null,null,null,null,null,null,null,null,null,null,null,null,null,null,null,null,null,null,null,null,null,null,null,null,null,null,null,null,null,null,null,null,null,null,null,null,null,null,null,null,null,null,null,null,null,null,null,null,null,null,null,null,null,null,null,null,null,4,"D4O21W1IBUNEFBUQ67UI8ST15","DB7KOHJ1H6Y3SDL78OA47BDVD","","2","","","","00","X","0","0","",""]
[null,null,null,null,null,null,null,null,null,null,null,null,null,null,null,null,null,null,null,null,null,null,null,null,null,null,null,null,null,null,null,null,null,null,null,null,null,null,null,null,null,null,null,null,null,null,null,null,null,null,null,null,null,null,null,null,null,null,null,null,null,null,null,null,null,null,null,null,null,null,null,null,null,null,null,null,null,null,null,null,null,null,null,null,null,null,null,null,null,null,null,null,null,null,null,null,null,null,null,null,null,null,null,null,null,null,null,null,null,null,null,null,null,null,null,null,null,null,null,null,null,null,null,null,null,null,null,null,null,null,4,"D4O21W1IBUXEBE3LC8HH4CYK9","DB7KOHJ1H6MKJ2OTFKRX6WFSP","","0","","","","00","X","0","0","",""]
[null,null,null,null,null,null,null,null,null,null,null,null,null,null,null,null,null,null,null,null,null,null,null,null,null,null,null,null,null,null,null,null,null,null,null,null,null,null,null,null,null,null,null,null,null,null,null,null,null,null,null,null,null,null,null,null,null,null,null,null,null,null,null,null,null,null,null,null,null,null,null,null,null,null,null,null,null,null,null,null,null,null,null,null,null,null,null,null,null,null,null,null,null,null,null,null,null,null,null,null,null,null,null,null,null,null,null,null,null,null,null,null,null,null,null,null,null,null,null,null,null,null,null,null,null,null,null,null,null,null,4,"DEMAFDB5LZ4S252XBVM7GJP4P","DB7KOHJ1H6YVGZWYK7PQ9QS55","","","","","","00","X","0","0","",""]
[null,null,null,null,null,null,null,null,null,null,null,null,null,null,null,null,null,null,null,null,null,null,null,null,null,null,null,null,null,null,null,null,null,null,null,null,null,null,null,null,null,null,null,null,null,null,null,null,null,null,null,null,null,null,null,null,null,null,null,null,null,null,null,null,null,null,null,null,null,null,null,null,null,null,null,null,null,null,null,null,null,null,null,null,null,null,null,null,null,null,null,null,null,null,null,null,null,null,null,null,null,null,null,null,null,null,null,null,null,null,null,null,null,null,null,null,null,null,null,null,null,null,null,null,null,null,null,null,null,null,4,"DEN07Y1DTSSOP5W274CVZL69L","DB7KOHJ1H716IUW8IU0KH0YYH","","2","","","","00","X","0","0","",""]
[null,null,null,null,null,null,null,null,null,null,null,null,null,null,null,null,null,null,null,null,null,null,null,null,null,null,null,null,null,null,null,null,null,null,null,null,null,null,null,null,null,null,null,null,null,null,null,null,null,null,null,null,null,null,null,null,null,null,null,null,null,null,null,null,null,null,null,null,null,null,null,null,null,null,null,null,null,null,null,null,null,null,null,null,null,null,null,null,null,null,null,null,null,null,null,null,null,null,null,null,null,null,null,null,null,null,null,null,null,null,null,null,null,null,null,null,null,null,null,null,null,null,null,null,null,null,null,null,null,null,28,"D4O21W1IBUDEJ9LV077JD8NI1","DE0LK3585BFUIIPZTFWMETKAH","","","","","","00","X","0","0","",""]
[null,null,null,null,null,null,null,null,null,null,null,null,null,null,null,null,null,null,null,null,null,null,null,null,null,null,null,null,null,null,null,null,null,null,null,null,null,null,null,null,null,null,null,null,null,null,null,null,null,null,null,null,null,null,null,null,null,null,null,null,null,null,null,null,null,null,null,null,null,null,null,null,null,null,null,null,null,null,null,null,null,null,null,null,null,null,null,null,null,null,null,null,null,null,null,null,null,null,null,null,null,null,null,null,null,null,null,null,null,null,null,null,null,null,null,null,null,null,null,null,null,null,null,null,null,null,null,null,null,null,28,"D4O21W1IBUGH9QWWACXZMY8L5","DE0LK3585BMRO3NTPAT50O4QH","","","","","","00","X","0","0","",""]
[null,null,null,null,null,null,null,null,null,null,null,null,null,null,null,null,null,null,null,null,null,null,null,null,null,null,null,null,null,null,null,null,null,null,null,null,null,null,null,null,null,null,null,null,null,null,null,null,null,null,null,null,null,null,null,null,null,null,null,null,null,null,null,null,null,null,null,null,null,null,null,null,null,null,null,null,null,null,null,null,null,null,null,null,null,null,null,null,null,null,null,null,null,null,null,null,null,null,null,null,null,null,null,null,null,null,null,null,null,null,null,null,null,null,null,null,null,null,null,null,null,null,null,null,null,null,null,null,null,null,28,"D4O21W1IBUY600FCNRX36SCU1","DE0LK3585BLZZHC2DRDIY8QGP","","0","","","","00","X","0","0","",""]
[null,null,null,null,null,null,null,null,null,null,null,null,null,null,null,null,null,null,null,null,null,null,null,null,null,null,null,null,null,null,null,null,null,null,null,null,null,null,null,null,null,null,null,null,null,null,null,null,null,null,null,null,null,null,null,null,null,null,null,null,null,null,null,null,null,null,null,null,null,null,null,null,null,null,null,null,null,null,null,null,null,null,null,null,null,null,null,null,null,null,null,null,null,null,null,null,null,null,null,null,null,null,null,null,null,null,null,null,null,null,null,null,null,null,null,null,null,null,null,null,null,null,null,null,null,null,null,null,null,null,28,"DEMAGSP8VDTMCQ2Z9KSRG7UGP","DE0LK3585BNJCPZL0U8R33J09","","","","","","00","X","0","0","",""]
[null,null,null,null,null,null,null,null,null,null,null,null,null,null,null,null,null,null,null,null,null,null,null,null,null,null,null,null,null,null,null,null,null,null,null,null,null,null,null,null,null,null,null,null,null,null,null,null,null,null,null,null,null,null,null,null,null,null,null,null,null,null,null,null,null,null,null,null,null,null,null,null,null,null,null,null,null,null,null,null,null,null,null,null,null,null,null,null,null,null,null,null,null,null,null,null,null,null,null,null,null,null,null,null,null,null,null,null,null,null,null,null,null,null,null,null,null,null,null,null,null,null,null,null,null,null,null,null,null,null,28,"DEN07Y1DTSQDNAWS8I21SAZG9","DE0LK3585BP2PYN3NX3Z7YBJT","","0","","","","00","X","0","0","",""]
[null,null,null,null,null,null,null,null,null,null,null,null,null,null,null,null,null,null,null,null,null,null,null,null,null,null,null,null,null,null,null,null,null,null,null,null,null,null,null,null,null,null,null,null,null,null,null,null,null,null,null,null,null,null,null,null,null,null,null,null,null,null,null,null,null,null,null,null,null,null,null,null,null,null,null,null,null,null,null,null,null,null,null,null,null,null,null,null,null,null,null,null,null,null,null,null,null,null,null,null,null,null,null,null,null,null,null,null,null,null,null,null,null,null,null,null,null,null,null,null,null,null,null,null,null,null,null,null,null,null,29,"D4O21W1IBUDEJ9LV077JD8NI1","DE0LK3585BTOTOLNL5PNMIP6H","","2","","","","00","X","0","0","",""]
[null,null,null,null,null,null,null,null,null,null,null,null,null,null,null,null,null,null,null,null,null,null,null,null,null,null,null,null,null,null,null,null,null,null,null,null,null,null,null,null,null,null,null,null,null,null,null,null,null,null,null,null,null,null,null,null,null,null,null,null,null,null,null,null,null,null,null,null,null,null,null,null,null,null,null,null,null,null,null,null,null,null,null,null,null,null,null,null,null,null,null,null,null,null,null,null,null,null,null,null,null,null,null,null,null,null,null,null,null,null,null,null,null,null,null,null,null,null,null,null,null,null,null,null,null,null,null,null,null,null,29,"D4O21W1IBUL3DGVG7LJO1IM7T","DE0LK3585BJOXMCSF52OQYJND","","0","","","","00","X","0","0","",""]
[null,null,null,null,null,null,null,null,null,null,null,null,null,null,null,null,null,null,null,null,null,null,null,null,null,null,null,null,null,null,null,null,null,null,null,null,null,null,null,null,null,null,null,null,null,null,null,null,null,null,null,null,null,null,null,null,null,null,null,null,null,null,null,null,null,null,null,null,null,null,null,null,null,null,null,null,null,null,null,null,null,null,null,null,null,null,null,null,null,null,null,null,null,null,null,null,null,null,null,null,null,null,null,null,null,null,null,null,null,null,null,null,null,null,null,null,null,null,null,null,null,null,null,null,null,null,null,null,null,null,29,"D4O21W1IBUNEFBUQ67UI8ST15","DE0LK3585BVZVJKXJS0HTSVZT","","2","","","","00","X","0","0","",""]
[null,null,null,null,null,null,null,null,null,null,null,null,null,null,null,null,null,null,null,null,null,null,null,null,null,null,null,null,null,null,null,null,null,null,null,null,null,null,null,null,null,null,null,null,null,null,null,null,null,null,null,null,null,null,null,null,null,null,null,null,null,null,null,null,null,null,null,null,null,null,null,null,null,null,null,null,null,null,null,null,null,null,null,null,null,null,null,null,null,null,null,null,null,null,null,null,null,null,null,null,null,null,null,null,null,null,null,null,null,null,null,null,null,null,null,null,null,null,null,null,null,null,null,null,null,null,null,null,null,null,29,"D4O21W1IBUY600FCNRX36SCU1","DE0LK3585BUGIAXEWP59OY3G9","","","","","","00","X","0","0","",""]
[null,null,null,null,null,null,null,null,null,null,null,null,null,null,null,null,null,null,null,null,null,null,null,null,null,null,null,null,null,null,null,null,null,null,null,null,null,null,null,null,null,null,null,null,null,null,null,null,null,null,null,null,null,null,null,null,null,null,null,null,null,null,null,null,null,null,null,null,null,null,null,null,null,null,null,null,null,null,null,null,null,null,null,null,null,null,null,null,null,null,null,null,null,null,null,null,null,null,null,null,null,null,null,null,null,null,null,null,null,null,null,null,null,null,null,null,null,null,null,null,null,null,null,null,null,null,null,null,null,null,29,"DEN07Y1DTSPLYOL0WYMFPVL6H","DE0LK3585BHDVRDIGIRUJOCU1","","0","","","","00","X","0","0","",""]
[null,null,null,null,null,null,null,null,null,null,null,null,null,null,null,null,null,null,null,null,null,null,null,null,null,null,null,null,null,null,null,null,null,null,null,null,null,null,null,null,null,null,null,null,null,null,null,null,null,null,null,null,null,null,null,null,null,null,null,null,null,null,null,null,null,null,null,null,null,null,null,null,null,null,null,null,null,null,null,null,null,null,null,null,null,null,null,null,null,null,null,null,null,null,null,null,null,null,null,null,null,null,null,null,null,null,null,null,null,null,null,null,null,null,null,null,null,null,null,null,null,null,null,null,null,null,null,null,null,null,29,"DEN07Y1DTSRX0JKAVKX9X5RZT","DE0LK3585BP2PYN3NX3Z7YBJT","","0","","","","00","X","0","0","",""]
[null,null,null,null,null,null,null,null,null,null,null,null,null,null,null,null,null,null,null,null,null,null,null,null,null,null,null,null,null,null,null,null,null,null,null,null,null,null,null,null,null,null,null,null,null,null,null,null,null,null,null,null,null,null,null,null,null,null,null,null,null,null,null,null,null,null,null,null,null,null,null,null,null,null,null,null,null,null,null,null,null,null,null,null,null,null,null,null,null,null,null,null,null,null,null,null,null,null,null,null,null,null,null,null,null,null,null,null,null,null,null,null,null,null,null,null,null,null,null,null,null,null,null,null,null,null,null,null,null,null,30,"D4O21W1IBUDEJ9LV077JD8NI1","DE0LK3585BI5KDP9S27GM3R3T","","","","","","00","X","0","0","",""]
[null,null,null,null,null,null,null,null,null,null,null,null,null,null,null,null,null,null,null,null,null,null,null,null,null,null,null,null,null,null,null,null,null,null,null,null,null,null,null,null,null,null,null,null,null,null,null,null,null,null,null,null,null,null,null,null,null,null,null,null,null,null,null,null,null,null,null,null,null,null,null,null,null,null,null,null,null,null,null,null,null,null,null,null,null,null,null,null,null,null,null,null,null,null,null,null,null,null,null,null,null,null,null,null,null,null,null,null,null,null,null,null,null,null,null,null,null,null,null,null,null,null,null,null,null,null,null,null,null,null,30,"D4O21W1IBUO63Y6HHRA4B87AX","DE0LK3585BP2PYN3NX3Z7YBJT","","0","","","","00","X","0","0","",""]
[null,null,null,null,null,null,null,null,null,null,null,null,null,null,null,null,null,null,null,null,null,null,null,null,null,null,null,null,null,null,null,null,null,null,null,null,null,null,null,null,null,null,null,null,null,null,null,null,null,null,null,null,null,null,null,null,null,null,null,null,null,null,null,null,null,null,null,null,null,null,null,null,null,null,null,null,null,null,null,null,null,null,null,null,null,null,null,null,null,null,null,null,null,null,null,null,null,null,null,null,null,null,null,null,null,null,null,null,null,null,null,null,null,null,null,null,null,null,null,null,null,null,null,null,null,null,null,null,null,null,30,"D4O21W1IBV8XKOZZ5BZO4RWMX","DE0LK3585BRDRTMDMJETF8ID5","","","","","","00","X","0","0","",""]
[null,null,null,null,null,null,null,null,null,null,null,null,null,null,null,null,null,null,null,null,null,null,null,null,null,null,null,null,null,null,null,null,null,null,null,null,null,null,null,null,null,null,null,null,null,null,null,null,null,null,null,null,null,null,null,null,null,null,null,null,null,null,null,null,null,null,null,null,null,null,null,null,null,null,null,null,null,null,null,null,null,null,null,null,null,null,null,null,null,null,null,null,null,null,null,null,null,null,null,null,null,null,null,null,null,null,null,null,null,null,null,null,null,null,null,null,null,null,null,null,null,null,null,null,null,null,null,null,null,null,30,"DEMAGSP8VDTMCQ2Z9KSRG7UGP","DE0LK3585BPUEKYUZGJLADPTL","","0","","","","00","X","0","0","",""]
[null,null,null,null,null,null,null,null,null,null,null,null,null,null,null,null,null,null,null,null,null,null,null,null,null,null,null,null,null,null,null,null,null,null,null,null,null,null,null,null,null,null,null,null,null,null,null,null,null,null,null,null,null,null,null,null,null,null,null,null,null,null,null,null,null,null,null,null,null,null,null,null,null,null,null,null,null,null,null,null,null,null,null,null,null,null,null,null,null,null,null,null,null,null,null,null,null,null,null,null,null,null,null,null,null,null,null,null,null,null,null,null,null,null,null,null,null,null,null,null,null,null,null,null,null,null,null,null,null,null,30,"DEN07Y1DTSRX0JKAVKX9X5RZT","DE0LK3585BGM751R4ZC8H8YK9","","","","","","00","X","0","0","",""]
[null,null,null,null,null,null,null,null,null,null,null,null,null,null,null,null,null,null,null,null,null,null,null,null,null,null,null,null,null,null,null,null,null,null,null,null,null,null,null,null,null,null,null,null,null,null,null,null,null,null,null,null,null,null,null,null,null,null,null,null,null,null,null,null,null,null,null,null,null,null,null,null,null,null,null,null,null,null,null,null,null,null,null,null,null,null,null,null,null,null,null,null,null,null,null,null,null,null,null,null,null,null,null,null,null,null,null,null,null,null,null,null,null,null,null,null,null,null,null,null,null,null,null,null,null,null,null,null,null,null,23,"D4O21W1IBUDEJ9LV077JD8NI1","DE0LK3585BVZVJKXJS0HTSVZT","","2","","","","00","X","0","0","",""]
[null,null,null,null,null,null,null,null,null,null,null,null,null,null,null,null,null,null,null,null,null,null,null,null,null,null,null,null,null,null,null,null,null,null,null,null,null,null,null,null,null,null,null,null,null,null,null,null,null,null,null,null,null,null,null,null,null,null,null,null,null,null,null,null,null,null,null,null,null,null,null,null,null,null,null,null,null,null,null,null,null,null,null,null,null,null,null,null,null,null,null,null,null,null,null,null,null,null,null,null,null,null,null,null,null,null,null,null,null,null,null,null,null,null,null,null,null,null,null,null,null,null,null,null,null,null,null,null,null,null,23,"D4O21W1IBULV2377J4ZA3Y0HL","DE0LK3585BVZVJKXJS0HTSVZT","","2","","","","00","X","0","0","",""]
[null,null,null,null,null,null,null,null,null,null,null,null,null,null,null,null,null,null,null,null,null,null,null,null,null,null,null,null,null,null,null,null,null,null,null,null,null,null,null,null,null,null,null,null,null,null,null,null,null,null,null,null,null,null,null,null,null,null,null,null,null,null,null,null,null,null,null,null,null,null,null,null,null,null,null,null,null,null,null,null,null,null,null,null,null,null,null,null,null,null,null,null,null,null,null,null,null,null,null,null,null,null,null,null,null,null,null,null,null,null,null,null,null,null,null,null,null,null,null,null,null,null,null,null,null,null,null,null,null,null,23,"D4O21W1IBV0H1VEMME7XE2JND","DE0LK3585BHDVRDIGIRUJOCU1","","0","","","","00","X","0","0","",""]
[null,null,null,null,null,null,null,null,null,null,null,null,null,null,null,null,null,null,null,null,null,null,null,null,null,null,null,null,null,null,null,null,null,null,null,null,null,null,null,null,null,null,null,null,null,null,null,null,null,null,null,null,null,null,null,null,null,null,null,null,null,null,null,null,null,null,null,null,null,null,null,null,null,null,null,null,null,null,null,null,null,null,null,null,null,null,null,null,null,null,null,null,null,null,null,null,null,null,null,null,null,null,null,null,null,null,null,null,null,null,null,null,null,null,null,null,null,null,null,null,null,null,null,null,null,null,null,null,null,null,23,"DEN07Y1DTSNAWTLQYCBLILED5","DE0LK3585BQM37AMAZZ7CT43D","","0","","","","00","X","0","0","",""]
[null,null,null,null,null,null,null,null,null,null,null,null,null,null,null,null,null,null,null,null,null,null,null,null,null,null,null,null,null,null,null,null,null,null,null,null,null,null,null,null,null,null,null,null,null,null,null,null,null,null,null,null,null,null,null,null,null,null,null,null,null,null,null,null,null,null,null,null,null,null,null,null,null,null,null,null,null,null,null,null,null,null,null,null,null,null,null,null,null,null,null,null,null,null,null,null,null,null,null,null,null,null,null,null,null,null,null,null,null,null,null,null,null,null,null,null,null,null,null,null,null,null,null,null,null,null,null,null,null,null,23,"DEN07Y1DTSPLYOL0WYMFPVL6H","DE0LK3585BJOXMCSF52OQYJND","","0","","","","00","X","0","0","",""]
[null,null,null,null,null,null,null,null,null,null,null,null,null,null,null,null,null,null,null,null,null,null,null,null,null,null,null,null,null,null,null,null,null,null,null,null,null,null,null,null,null,null,null,null,null,null,null,null,null,null,null,null,null,null,null,null,null,null,null,null,null,null,null,null,null,null,null,null,null,null,null,null,null,null,null,null,null,null,null,null,null,null,null,null,null,null,null,null,null,null,null,null,null,null,null,null,null,null,null,null,null,null,null,null,null,null,null,null,null,null,null,null,null,null,null,null,null,null,null,null,null,null,null,null,null,null,null,null,null,null,23,"DEN0OSIFULCZTDTFE8U7RBQIH","DE0LK3585BGM751R4ZC8H8YK9","","","","","","00","X","0","0","",""]
[null,null,null,null,null,null,null,null,null,null,null,null,null,null,null,null,null,null,null,null,null,null,null,null,null,null,null,null,null,null,null,null,null,null,null,null,null,null,null,null,null,null,null,null,null,null,null,null,null,null,null,null,null,null,null,null,null,null,null,null,null,null,null,null,null,null,null,null,null,null,null,null,null,null,null,null,null,null,null,null,null,null,null,null,null,null,null,null,null,null,null,null,null,null,null,null,null,null,null,null,null,null,null,null,null,null,null,null,null,null,null,null,null,null,null,null,null,null,null,null,null,null,null,null,null,null,null,null,null,null,24,"D4O21W1IBUKBOUJOW241Z37Y1","DE0LK3585BPUEKYUZGJLADPTL","","0","","","","00","X","0","0","",""]
[null,null,null,null,null,null,null,null,null,null,null,null,null,null,null,null,null,null,null,null,null,null,null,null,null,null,null,null,null,null,null,null,null,null,null,null,null,null,null,null,null,null,null,null,null,null,null,null,null,null,null,null,null,null,null,null,null,null,null,null,null,null,null,null,null,null,null,null,null,null,null,null,null,null,null,null,null,null,null,null,null,null,null,null,null,null,null,null,null,null,null,null,null,null,null,null,null,null,null,null,null,null,null,null,null,null,null,null,null,null,null,null,null,null,null,null,null,null,null,null,null,null,null,null,null,null,null,null,null,null,24,"D4O21W1IBUMMQPIYUOEW6DERD","DE0LK3585BPUEKYUZGJLADPTL","","0","","","","00","X","0","0","",""]
[null,null,null,null,null,null,null,null,null,null,null,null,null,null,null,null,null,null,null,null,null,null,null,null,null,null,null,null,null,null,null,null,null,null,null,null,null,null,null,null,null,null,null,null,null,null,null,null,null,null,null,null,null,null,null,null,null,null,null,null,null,null,null,null,null,null,null,null,null,null,null,null,null,null,null,null,null,null,null,null,null,null,null,null,null,null,null,null,null,null,null,null,null,null,null,null,null,null,null,null,null,null,null,null,null,null,null,null,null,null,null,null,null,null,null,null,null,null,null,null,null,null,null,null,null,null,null,null,null,null,24,"DEMAGSP8VDTMCQ2Z9KSRG7UGP","DE0LK3585BIX90113LN2OJ5DL","","","","","","00","X","0","0","",""]
[null,null,null,null,null,null,null,null,null,null,null,null,null,null,null,null,null,null,null,null,null,null,null,null,null,null,null,null,null,null,null,null,null,null,null,null,null,null,null,null,null,null,null,null,null,null,null,null,null,null,null,null,null,null,null,null,null,null,null,null,null,null,null,null,null,null,null,null,null,null,null,null,null,null,null,null,null,null,null,null,null,null,null,null,null,null,null,null,null,null,null,null,null,null,null,null,null,null,null,null,null,null,null,null,null,null,null,null,null,null,null,null,null,null,null,null,null,null,null,null,null,null,null,null,null,null,null,null,null,null,24,"DEN07Y1DTSPLYOL0WYMFPVL6H","DE0LK3585BXJ8S8G6UVPYNOJD","","0","","","","00","X","0","0","",""]
[null,null,null,null,null,null,null,null,null,null,null,null,null,null,null,null,null,null,null,null,null,null,null,null,null,null,null,null,null,null,null,null,null,null,null,null,null,null,null,null,null,null,null,null,null,null,null,null,null,null,null,null,null,null,null,null,null,null,null,null,null,null,null,null,null,null,null,null,null,null,null,null,null,null,null,null,null,null,null,null,null,null,null,null,null,null,null,null,null,null,null,null,null,null,null,null,null,null,null,null,null,null,null,null,null,null,null,null,null,null,null,null,null,null,null,null,null,null,null,null,null,null,null,null,null,null,null,null,null,null,43,"D4O2P4A3SHBJXEAK5YOYSHA7T","DE0LRD9M7EIN5MT7CIMYKYCXL","","","","","","00","X","0","0","",""]
[null,null,null,null,null,null,null,null,null,null,null,null,null,null,null,null,null,null,null,null,null,null,null,null,null,null,null,null,null,null,null,null,null,null,null,null,null,null,null,null,null,null,null,null,null,null,null,null,null,null,null,null,null,null,null,null,null,null,null,null,null,null,null,null,null,null,null,null,null,null,null,null,null,null,null,null,null,null,null,null,null,null,null,null,null,null,null,null,null,null,null,null,null,null,null,null,null,null,null,null,null,null,null,null,null,null,null,null,null,null,null,null,null,null,null,null,null,null,null,null,null,null,null,null,null,null,null,null,null,null,43,"D4O2P4A3SHEMNVLLG4FF26VAX","DE0LRD9M7EIN5MT7CIMYKYCXL","","","","","","00","X","0","0","",""]
[null,null,null,null,null,null,null,null,null,null,null,null,null,null,null,null,null,null,null,null,null,null,null,null,null,null,null,null,null,null,null,null,null,null,null,null,null,null,null,null,null,null,null,null,null,null,null,null,null,null,null,null,null,null,null,null,null,null,null,null,null,null,null,null,null,null,null,null,null,null,null,null,null,null,null,null,null,null,null,null,null,null,null,null,null,null,null,null,null,null,null,null,null,null,null,null,null,null,null,null,null,null,null,null,null,null,null,null,null,null,null,null,null,null,null,null,null,null,null,null,null,null,null,null,null,null,null,null,null,null,43,"DEN9FTLAHQ1X2YIAVK8I95MGP","DE0LRD9M7ESN1P22IJ9XGIIGP","","","","","","00","X","0","0","",""]
[null,null,null,null,null,null,null,null,null,null,null,null,null,null,null,null,null,null,null,null,null,null,null,null,null,null,null,null,null,null,null,null,null,null,null,null,null,null,null,null,null,null,null,null,null,null,null,null,null,null,null,null,null,null,null,null,null,null,null,null,null,null,null,null,null,null,null,null,null,null,null,null,null,null,null,null,null,null,null,null,null,null,null,null,null,null,null,null,null,null,null,null,null,null,null,null,null,null,null,null,null,null,null,null,null,null,null,null,null,null,null,null,null,null,null,null,null,null,null,null,null,null,null,null,null,null,null,null,null,null,43,"DEN9GQ7MCHB0MMP6Y5ZGNKFEH","DE0LRD9M7EOSMLF9WU3V4DJ3T","","0","","","","00","X","0","0","",""]
[null,null,null,null,null,null,null,null,null,null,null,null,null,null,null,null,null,null,null,null,null,null,null,null,null,null,null,null,null,null,null,null,null,null,null,null,null,null,null,null,null,null,null,null,null,null,null,null,null,null,null,null,null,null,null,null,null,null,null,null,null,null,null,null,null,null,null,null,null,null,null,null,null,null,null,null,null,null,null,null,null,null,null,null,null,null,null,null,null,null,null,null,null,null,null,null,null,null,null,null,null,null,null,null,null,null,null,null,null,null,null,null,null,null,null,null,null,null,null,null,null,null,null,null,null,null,null,null,null,null,25,"D4O21W1IBUFPL4L4YTIDKIUBD","DE0LK3585BI5KDP9S27GM3R3T","","","","","","00","X","0","0","",""]
[null,null,null,null,null,null,null,null,null,null,null,null,null,null,null,null,null,null,null,null,null,null,null,null,null,null,null,null,null,null,null,null,null,null,null,null,null,null,null,null,null,null,null,null,null,null,null,null,null,null,null,null,null,null,null,null,null,null,null,null,null,null,null,null,null,null,null,null,null,null,null,null,null,null,null,null,null,null,null,null,null,null,null,null,null,null,null,null,null,null,null,null,null,null,null,null,null,null,null,null,null,null,null,null,null,null,null,null,null,null,null,null,null,null,null,null,null,null,null,null,null,null,null,null,null,null,null,null,null,null,25,"D4O21W1IBULV2377J4ZA3Y0HL","DE0LK3585BPUEKYUZGJLADPTL","","0","","","","00","X","0","0","",""]
[null,null,null,null,null,null,null,null,null,null,null,null,null,null,null,null,null,null,null,null,null,null,null,null,null,null,null,null,null,null,null,null,null,null,null,null,null,null,null,null,null,null,null,null,null,null,null,null,null,null,null,null,null,null,null,null,null,null,null,null,null,null,null,null,null,null,null,null,null,null,null,null,null,null,null,null,null,null,null,null,null,null,null,null,null,null,null,null,null,null,null,null,null,null,null,null,null,null,null,null,null,null,null,null,null,null,null,null,null,null,null,null,null,null,null,null,null,null,null,null,null,null,null,null,null,null,null,null,null,null,25,"D4O21W1IBUXEBE3LC8HH4CYK9","DE0LK3585BRDRTMDMJETF8ID5","","0","","","","00","X","0","0","",""]
[null,null,null,null,null,null,null,null,null,null,null,null,null,null,null,null,null,null,null,null,null,null,null,null,null,null,null,null,null,null,null,null,null,null,null,null,null,null,null,null,null,null,null,null,null,null,null,null,null,null,null,null,null,null,null,null,null,null,null,null,null,null,null,null,null,null,null,null,null,null,null,null,null,null,null,null,null,null,null,null,null,null,null,null,null,null,null,null,null,null,null,null,null,null,null,null,null,null,null,null,null,null,null,null,null,null,null,null,null,null,null,null,null,null,null,null,null,null,null,null,null,null,null,null,null,null,null,null,null,null,25,"DEMAGSP8VDTMCQ2Z9KSRG7UGP","DE0LK3585BFUIIPZTFWMETKAH","","","","","","00","X","0","0","",""]
[null,null,null,null,null,null,null,null,null,null,null,null,null,null,null,null,null,null,null,null,null,null,null,null,null,null,null,null,null,null,null,null,null,null,null,null,null,null,null,null,null,null,null,null,null,null,null,null,null,null,null,null,null,null,null,null,null,null,null,null,null,null,null,null,null,null,null,null,null,null,null,null,null,null,null,null,null,null,null,null,null,null,null,null,null,null,null,null,null,null,null,null,null,null,null,null,null,null,null,null,null,null,null,null,null,null,null,null,null,null,null,null,null,null,null,null,null,null,null,null,null,null,null,null,null,null,null,null,null,null,25,"DEN07Y1DTSR5BX8JK1HNUQDQ1","DE0LK3585BXJ8S8G6UVPYNOJD","","","","","","00","X","0","0","",""]
[null,null,null,null,null,null,null,null,null,null,null,null,null,null,null,null,null,null,null,null,null,null,null,null,null,null,null,null,null,null,null,null,null,null,null,null,null,null,null,null,null,null,null,null,null,null,null,null,null,null,null,null,null,null,null,null,null,null,null,null,null,null,null,null,null,null,null,null,null,null,null,null,null,null,null,null,null,null,null,null,null,null,null,null,null,null,null,null,null,null,null,null,null,null,null,null,null,null,null,null,null,null,null,null,null,null,null,null,null,null,null,null,null,null,null,null,null,null,null,null,null,null,null,null,null,null,null,null,null,null,25,"DEN0OSIFULEJ6MGY1BPFW6J21","DE0LK3585BV86X9688KVRDHQ1","","2","","","","00","X","0","0","",""]
[null,null,null,null,null,null,null,null,null,null,null,null,null,null,null,null,null,null,null,null,null,null,null,null,null,null,null,null,null,null,null,null,null,null,null,null,null,null,null,null,null,null,null,null,null,null,null,null,null,null,null,null,null,null,null,null,null,null,null,null,null,null,null,null,null,null,null,null,null,null,null,null,null,null,null,null,null,null,null,null,null,null,null,null,null,null,null,null,null,null,null,null,null,null,null,null,null,null,null,null,null,null,null,null,null,null,null,null,null,null,null,null,null,null,null,null,null,null,null,null,null,null,null,null,null,null,null,null,null,null,26,"D4O21W1IBUMMQPIYUOEW6DERD","DE0LK3585BIX90113LN2OJ5DL","","","","","","00","X","0","0","",""]
[null,null,null,null,null,null,null,null,null,null,null,null,null,null,null,null,null,null,null,null,null,null,null,null,null,null,null,null,null,null,null,null,null,null,null,null,null,null,null,null,null,null,null,null,null,null,null,null,null,null,null,null,null,null,null,null,null,null,null,null,null,null,null,null,null,null,null,null,null,null,null,null,null,null,null,null,null,null,null,null,null,null,null,null,null,null,null,null,null,null,null,null,null,null,null,null,null,null,null,null,null,null,null,null,null,null,null,null,null,null,null,null,null,null,null,null,null,null,null,null,null,null,null,null,null,null,null,null,null,null,26,"D4O21W1IBUXEBE3LC8HH4CYK9","DE0LK3585BPUEKYUZGJLADPTL","","0","","","","00","X","0","0","",""]
[null,null,null,null,null,null,null,null,null,null,null,null,null,null,null,null,null,null,null,null,null,null,null,null,null,null,null,null,null,null,null,null,null,null,null,null,null,null,null,null,null,null,null,null,null,null,null,null,null,null,null,null,null,null,null,null,null,null,null,null,null,null,null,null,null,null,null,null,null,null,null,null,null,null,null,null,null,null,null,null,null,null,null,null,null,null,null,null,null,null,null,null,null,null,null,null,null,null,null,null,null,null,null,null,null,null,null,null,null,null,null,null,null,null,null,null,null,null,null,null,null,null,null,null,null,null,null,null,null,null,26,"DEMAGSP8VDTMCQ2Z9KSRG7UGP","DE0LK3585BL8AV0B27XWVTC6X","","","","","","00","X","0","0","",""]
[null,null,null,null,null,null,null,null,null,null,null,null,null,null,null,null,null,null,null,null,null,null,null,null,null,null,null,null,null,null,null,null,null,null,null,null,null,null,null,null,null,null,null,null,null,null,null,null,null,null,null,null,null,null,null,null,null,null,null,null,null,null,null,null,null,null,null,null,null,null,null,null,null,null,null,null,null,null,null,null,null,null,null,null,null,null,null,null,null,null,null,null,null,null,null,null,null,null,null,null,null,null,null,null,null,null,null,null,null,null,null,null,null,null,null,null,null,null,null,null,null,null,null,null,null,null,null,null,null,null,26,"DEN07Y1DTSR5BX8JK1HNUQDQ1","DE0LK3585BKGM8OJQOIATDXX5","","","","","","00","X","0","0","",""]
[null,null,null,null,null,null,null,null,null,null,null,null,null,null,null,null,null,null,null,null,null,null,null,null,null,null,null,null,null,null,null,null,null,null,null,null,null,null,null,null,null,null,null,null,null,null,null,null,null,null,null,null,null,null,null,null,null,null,null,null,null,null,null,null,null,null,null,null,null,null,null,null,null,null,null,null,null,null,null,null,null,null,null,null,null,null,null,null,null,null,null,null,null,null,null,null,null,null,null,null,null,null,null,null,null,null,null,null,null,null,null,null,null,null,null,null,null,null,null,null,null,null,null,null,null,null,null,null,null,null,27,"D4O21W1IBUDEJ9LV077JD8NI1","DE0LK3585BRDRTMDMJETF8ID5","","","","","","00","X","0","0","",""]
[null,null,null,null,null,null,null,null,null,null,null,null,null,null,null,null,null,null,null,null,null,null,null,null,null,null,null,null,null,null,null,null,null,null,null,null,null,null,null,null,null,null,null,null,null,null,null,null,null,null,null,null,null,null,null,null,null,null,null,null,null,null,null,null,null,null,null,null,null,null,null,null,null,null,null,null,null,null,null,null,null,null,null,null,null,null,null,null,null,null,null,null,null,null,null,null,null,null,null,null,null,null,null,null,null,null,null,null,null,null,null,null,null,null,null,null,null,null,null,null,null,null,null,null,null,null,null,null,null,null,27,"D4O21W1IBUH8YD8NLWDLPDMUX","DE0LK3585BSX529W9MA1K3AWP","","","","","","00","X","0","0","",""]
[null,null,null,null,null,null,null,null,null,null,null,null,null,null,null,null,null,null,null,null,null,null,null,null,null,null,null,null,null,null,null,null,null,null,null,null,null,null,null,null,null,null,null,null,null,null,null,null,null,null,null,null,null,null,null,null,null,null,null,null,null,null,null,null,null,null,null,null,null,null,null,null,null,null,null,null,null,null,null,null,null,null,null,null,null,null,null,null,null,null,null,null,null,null,null,null,null,null,null,null,null,null,null,null,null,null,null,null,null,null,null,null,null,null,null,null,null,null,null,null,null,null,null,null,null,null,null,null,null,null,27,"D4O21W1IBUNEFBUQ67UI8ST15","DE0LK3585BI5KDP9S27GM3R3T","","","","","","00","X","0","0","",""]
[null,null,null,null,null,null,null,null,null,null,null,null,null,null,null,null,null,null,null,null,null,null,null,null,null,null,null,null,null,null,null,null,null,null,null,null,null,null,null,null,null,null,null,null,null,null,null,null,null,null,null,null,null,null,null,null,null,null,null,null,null,null,null,null,null,null,null,null,null,null,null,null,null,null,null,null,null,null,null,null,null,null,null,null,null,null,null,null,null,null,null,null,null,null,null,null,null,null,null,null,null,null,null,null,null,null,null,null,null,null,null,null,null,null,null,null,null,null,null,null,null,null,null,null,null,null,null,null,null,null,27,"DEN03PYIT5FSSAA2U7ST53H15","DE0LK3585BEB5A2H6D1E9YRQX","","","","","","00","X","0","0","",""]
[null,null,null,null,null,null,null,null,null,null,null,null,null,null,null,null,null,null,null,null,null,null,null,null,null,null,null,null,null,null,null,null,null,null,null,null,null,null,null,null,null,null,null,null,null,null,null,null,null,null,null,null,null,null,null,null,null,null,null,null,null,null,null,null,null,null,null,null,null,null,null,null,null,null,null,null,null,null,null,null,null,null,null,null,null,null,null,null,null,null,null,null,null,null,null,null,null,null,null,null,null,null,null,null,null,null,null,null,null,null,null,null,null,null,null,null,null,null,null,null,null,null,null,null,null,null,null,null,null,null,27,"DEN07Y1DTSO2LFXI9VR7L0SMX","DE0LK3585BXJ8S8G6UVPYNOJD","","0","","","","00","X","0","0","",""]
[null,null,null,null,null,null,null,null,null,null,null,null,null,null,null,null,null,null,null,null,null,null,null,null,null,null,null,null,null,null,null,null,null,null,null,null,null,null,null,null,null,null,null,null,null,null,null,null,null,null,null,null,null,null,null,null,null,null,null,null,null,null,null,null,null,null,null,null,null,null,null,null,null,null,null,null,null,null,null,null,null,null,null,null,null,null,null,null,null,null,null,null,null,null,null,null,null,null,null,null,null,null,null,null,null,null,null,null,null,null,null,null,null,null,null,null,null,null,null,null,null,null,null,null,null,null,null,null,null,null,27,"DEN07Y1DTSRX0JKAVKX9X5RZT","DE0LK3585BF2TWE8HWH0CE60P","","0","","","","00","X","0","0","",""]
[null,null,null,null,null,null,null,null,null,null,null,null,null,null,null,null,null,null,null,null,null,null,null,null,null,null,null,null,null,null,null,null,null,null,null,null,null,null,null,null,null,null,null,null,null,null,null,null,null,null,null,null,null,null,null,null,null,null,null,null,null,null,null,null,null,null,null,null,null,null,null,null,null,null,null,null,null,null,null,null,null,null,null,null,null,null,null,null,null,null,null,null,null,null,null,null,null,null,null,null,null,null,null,null,null,null,null,null,null,null,null,null,null,null,null,null,null,null,null,null,null,null,null,null,null,null,null,null,null,null,37,"D5ENPW16Z66471UP2YC8ZOB95","D5B6FGJCS8DQRWNWQO2JGSKC9","","","","","","00","X","0","0","",""]
[null,null,null,null,null,null,null,null,null,null,null,null,null,null,null,null,null,null,null,null,null,null,null,null,null,null,null,null,null,null,null,null,null,null,null,null,null,null,null,null,null,null,null,null,null,null,null,null,null,null,null,null,null,null,null,null,null,null,null,null,null,null,null,null,null,null,null,null,null,null,null,null,null,null,null,null,null,null,null,null,null,null,null,null,null,null,null,null,null,null,null,null,null,null,null,null,null,null,null,null,null,null,null,null,null,null,null,null,null,null,null,null,null,null,null,null,null,null,null,null,null,null,null,null,null,null,null,null,null,null,38,"D5ENPW16Z696XJ5QD42P9DWC9","D5B6FGJCS8C7EO0E3L7BBXRSP","","","","","","00","X","0","0","",""]
[null,null,null,null,null,null,null,null,null,null,null,null,null,null,null,null,null,null,null,null,null,null,null,null,null,null,null,null,null,null,null,null,null,null,null,null,null,null,null,null,null,null,null,null,null,null,null,null,null,null,null,null,null,null,null,null,null,null,null,null,null,null,null,null,null,null,null,null,null,null,null,null,null,null,null,null,null,null,null,null,null,null,null,null,null,null,null,null,null,null,null,null,null,null,null,null,null,null,null,null,null,null,null,null,null,null,null,null,null,null,null,null,null,null,null,null,null,null,null,null,null,null,null,null,null,null,null,null,null,null,39,"D5ENPW16Z696XJ5QD42P9DWC9","D5B6FGJCS8M7AQ999LUA7HXBT","","","","","","00","X","0","0","",""]
[null,null,null,null,null,null,null,null,null,null,null,null,null,null,null,null,null,null,null,null,null,null,null,null,null,null,null,null,null,null,null,null,null,null,null,null,null,null,null,null,null,null,null,null,null,null,null,null,null,null,null,null,null,null,null,null,null,null,null,null,null,null,null,null,null,null,null,null,null,null,null,null,null,null,null,null,null,null,null,null,null,null,null,null,null,null,null,null,null,null,null,null,null,null,null,null,null,null,null,null,null,null,null,null,null,null,null,null,null,null,null,null,null,null,null,null,null,null,null,null,null,null,null,null,null,null,null,null,null,null,40,"D5ENPW16Z68F8WTZ1KN36YI2H","D5B6FGJCS8EIGIZO27I5J7YM1","","","","","","00","X","0","0","",""]
[null,null,null,null,null,null,null,null,null,null,null,null,null,null,null,null,null,null,null,null,null,null,null,null,null,null,null,null,null,null,null,null,null,null,null,null,null,null,null,null,null,null,null,null,null,null,null,null,null,null,null,null,null,null,null,null,null,null,null,null,null,null,null,null,null,null,null,null,null,null,null,null,null,null,null,null,null,null,null,null,null,null,null,null,null,null,null,null,null,null,null,null,null,null,null,null,null,null,null,null,null,null,null,null,null,null,null,null,null,null,null,null,null,null,null,null,null,null,null,null,null,null,null,null,null,null,null,null,null,null,42,"D5ENPW16Z66VVO6GEHRV23PIX","D5B6FGJCS8CZ3AC5F4MXED62H","","","","","","00","X","0","0","",""]
[null,null,null,null,null,null,null,null,null,null,null,null,null,null,null,null,null,null,null,null,null,null,null,null,null,null,null,null,null,null,null,null,null,null,null,null,null,null,null,null,null,null,null,null,null,null,null,null,null,null,null,null,null,null,null,null,null,null,null,null,null,null,null,null,null,null,null,null,null,null,null,null,null,null,null,null,null,null,null,null,null,null,null,null,null,null,null,null,null,null,null,null,null,null,null,null,null,null,null,null,null,null,null,null,null,null,null,null,null,null,null,null,null,null,null,null,null,null,null,null,null,null,null,null,null,null,null,null,null,null,42,"D5ENPW16Z696XJ5QD42P9DWC9","D5B6FGJCS8FA55BFDQXRLNCVT","","","","","","00","X","0","0","",""]
[null,null,null,null,null,null,null,null,null,null,null,null,null,null,null,null,null,null,null,null,null,null,null,null,null,null,null,null,null,null,null,null,null,null,null,null,null,null,null,null,null,null,null,null,null,null,null,null,null,null,null,null,null,null,null,null,null,null,null,null,null,null,null,null,null,null,null,null,null,null,null,null,null,null,null,null,null,null,null,null,null,null,null,null,null,null,null,null,null,null,null,null,null,null,null,null,null,null,null,null,null,null,null,null,null,null,null,null,null,null,null,null,null,null,null,null,null,null,null,null,null,null,null,null,null,null,null,null,null,null,42,"D5ENPW16Z696XJ5QD42P9DWC9","D5B6FGJCS8G1TRN6PADDO2R5L","","","","","","00","X","0","0","",""]
[null,null,null,null,null,null,null,null,null,null,null,null,null,null,null,null,null,null,null,null,null,null,null,null,null,null,null,null,null,null,null,null,null,null,null,null,null,null,null,null,null,null,null,null,null,null,null,null,null,null,null,null,null,null,null,null,null,null,null,null,null,null,null,null,null,null,null,null,null,null,null,null,null,null,null,null,null,null,null,null,null,null,null,null,null,null,null,null,null,null,null,null,null,null,null,null,null,null,null,null,null,null,null,null,null,null,null,null,null,null,null,null,null,null,null,null,null,null,null,null,null,null,null,null,null,null,null,null,null,null,42,"D5ENPW16Z696XJ5QD42P9DWC9","D5B6FGJCS8GTIDYY0TSZQI5FD","","","","","","00","X","0","0","",""]
[null,null,null,null,null,null,null,null,null,null,null,null,null,null,null,null,null,null,null,null,null,null,null,null,null,null,null,null,null,null,null,null,null,null,null,null,null,null,null,null,null,null,null,null,null,null,null,null,null,null,null,null,null,null,null,null,null,null,null,null,null,null,null,null,null,null,null,null,null,null,null,null,null,null,null,null,null,null,null,null,null,null,null,null,null,null,null,null,null,null,null,null,null,null,null,null,null,null,null,null,null,null,null,null,null,null,null,null,null,null,null,null,null,null,null,null,null,null,null,null,null,null,null,null,null,null,null,null,null,null,42,"D5ENPW16Z696XJ5QD42P9DWC9","D5B6FGJCS8HL70APCD8LSXJP5","","","","","","00","X","0","0","",""]
[null,null,null,null,null,null,null,null,null,null,null,null,null,null,null,null,null,null,null,null,null,null,null,null,null,null,null,null,null,null,null,null,null,null,null,null,null,null,null,null,null,null,null,null,null,null,null,null,null,null,null,null,null,null,null,null,null,null,null,null,null,null,null,null,null,null,null,null,null,null,null,null,null,null,null,null,null,null,null,null,null,null,null,null,null,null,null,null,null,null,null,null,null,null,null,null,null,null,null,null,null,null,null,null,null,null,null,null,null,null,null,null,null,null,null,null,null,null,null,null,null,null,null,null,null,null,null,null,null,null,42,"D5ENPW16Z696XJ5QD42P9DWC9","D5B6FGJCS8ICVMMGNWO7VCXYX","","","","","","00","X","0","0","",""]
[null,null,null,null,null,null,null,null,null,null,null,null,null,null,null,null,null,null,null,null,null,null,null,null,null,null,null,null,null,null,null,null,null,null,null,null,null,null,null,null,null,null,null,null,null,null,null,null,null,null,null,null,null,null,null,null,null,null,null,null,null,null,null,null,null,null,null,null,null,null,null,null,null,null,null,null,null,null,null,null,null,null,null,null,null,null,null,null,null,null,null,null,null,null,null,null,null,null,null,null,null,null,null,null,null,null,null,null,null,null,null,null,null,null,null,null,null,null,null,null,null,null,null,null,null,null,null,null,null,null,42,"D5ENPW16Z696XJ5QD42P9DWC9","D5B6FGJCS8J4K8Y7ZG3TXSC8P","","","","","","00","X","0","0","",""]
[null,null,null,null,null,null,null,null,null,null,null,null,null,null,null,null,null,null,null,null,null,null,null,null,null,null,null,null,null,null,null,null,null,null,null,null,null,null,null,null,null,null,null,null,null,null,null,null,null,null,null,null,null,null,null,null,null,null,null,null,null,null,null,null,null,null,null,null,null,null,null,null,null,null,null,null,null,null,null,null,null,null,null,null,null,null,null,null,null,null,null,null,null,null,null,null,null,null,null,null,null,null,null,null,null,null,null,null,null,null,null,null,null,null,null,null,null,null,null,null,null,null,null,null,null,null,null,null,null,null,42,"D5ENPW16Z696XJ5QD42P9DWC9","D5B6FGJCS8JW8V9ZAZJG07QIH","","","","","","00","X","0","0","",""]
[null,null,null,null,null,null,null,null,null,null,null,null,null,null,null,null,null,null,null,null,null,null,null,null,null,null,null,null,null,null,null,null,null,null,null,null,null,null,null,null,null,null,null,null,null,null,null,null,null,null,null,null,null,null,null,null,null,null,null,null,null,null,null,null,null,null,null,null,null,null,null,null,null,null,null,null,null,null,null,null,null,null,null,null,null,null,null,null,null,null,null,null,null,null,null,null,null,null,null,null,null,null,null,null,null,null,null,null,null,null,null,null,null,null,null,null,null,null,null,null,null,null,null,null,null,null,null,null,null,null,42,"D5ENPW16Z696XJ5QD42P9DWC9","D5B6FGJCS8KNXHLQMIZ22N4S9","","","","","","00","X","0","0","",""]
[null,null,null,null,null,null,null,null,null,null,null,null,null,null,null,null,null,null,null,null,null,null,null,null,null,null,null,null,null,null,null,null,null,null,null,null,null,null,null,null,null,null,null,null,null,null,null,null,null,null,null,null,null,null,null,null,null,null,null,null,null,null,null,null,null,null,null,null,null,null,null,null,null,null,null,null,null,null,null,null,null,null,null,null,null,null,null,null,null,null,null,null,null,null,null,null,null,null,null,null,null,null,null,null,null,null,null,null,null,null,null,null,null,null,null,null,null,null,null,null,null,null,null,null,null,null,null,null,null,null,42,"D5ENPW16Z696XJ5QD42P9DWC9","D5B6FGJCS8LFM3XHY2EO52J21","","","","","","00","X","0","0","",""]
[null,null,null,null,null,null,null,null,null,null,null,null,null,null,null,null,null,null,null,null,null,null,null,null,null,null,null,null,null,null,null,null,null,null,null,null,null,null,null,null,null,null,null,null,null,null,null,null,null,null,null,null,null,null,null,null,null,null,null,null,null,null,null,null,null,null,null,null,null,null,null,null,null,null,null,null,null,null,null,null,null,null,null,null,null,null,null,null,null,null,null,null,null,null,null,null,null,null,null,null,null,null,null,null,null,null,null,null,null,null,null,null,null,null,null,null,null,null,null,null,null,null,null,null,null,null,null,null,null,null,42,"D5ENPW16Z696XJ5QD42P9DWC9","D5B6FGJCS8M7AQ999LUA7HXBT","","","","","","00","X","0","0","",""]
[null,null,null,null,null,null,null,null,null,null,null,null,null,null,null,null,null,null,null,null,null,null,null,null,null,null,null,null,null,null,null,null,null,null,null,null,null,null,null,null,null,null,null,null,null,null,null,null,null,null,null,null,null,null,null,null,null,null,null,null,null,null,null,null,null,null,null,null,null,null,null,null,null,null,null,null,null,null,null,null,null,null,null,null,null,null,null,null,null,null,null,null,null,null,null,null,null,null,null,null,null,null,null,null,null,null,null,null,null,null,null,null,null,null,null,null,null,null,null,null,null,null,null,null,null,null,null,null,null,null,42,"D5ENPW16Z696XJ5QD42P9DWC9","D5B6FGJCS8MYZCL0L59W9XBLL","0","0","","","","00","X","0","0","",""]
[null,null,null,null,null,null,null,null,null,null,null,null,null,null,null,null,null,null,null,null,null,null,null,null,null,null,null,null,null,null,null,null,null,null,null,null,null,null,null,null,null,null,null,null,null,null,null,null,null,null,null,null,null,null,null,null,null,null,null,null,null,null,null,null,null,null,null,null,null,null,null,null,null,null,null,null,null,null,null,null,null,null,null,null,null,null,null,null,null,null,null,null,null,null,null,null,null,null,null,null,null,null,null,null,null,null,null,null,null,null,null,null,null,null,null,null,null,null,null,null,null,null,null,null,null,null,null,null,null,null,42,"D5ENPW16Z696XJ5QD42P9DWC9","D5B6FGJCS8NQNYWRWOPICCPVD","","","","","","00","X","0","0","",""]
[null,null,null,null,null,null,null,null,null,null,null,null,null,null,null,null,null,null,null,null,null,null,null,null,null,null,null,null,null,null,null,null,null,null,null,null,null,null,null,null,null,null,null,null,null,null,null,null,null,null,null,null,null,null,null,null,null,null,null,null,null,null,null,null,null,null,null,null,null,null,null,null,null,null,null,null,null,null,null,null,null,null,null,null,null,null,null,null,null,null,null,null,null,null,null,null,null,null,null,null,null,null,null,null,null,null,null,null,null,null,null,null,null,null,null,null,null,null,null,null,null,null,null,null,null,null,null,null,null,null,42,"D5ENPW16Z696XJ5QD42P9DWC9","D5B6FGJCS8OICL8J8854ES455","0","0","","","","00","X","0","0","",""]
[null,null,null,null,null,null,null,null,null,null,null,null,null,null,null,null,null,null,null,null,null,null,null,null,null,null,null,null,null,null,null,null,null,null,null,null,null,null,null,null,null,null,null,null,null,null,null,null,null,null,null,null,null,null,null,null,null,null,null,null,null,null,null,null,null,null,null,null,null,null,null,null,null,null,null,null,null,null,null,null,null,null,null,null,null,null,null,null,null,null,null,null,null,null,null,null,null,null,null,null,null,null,null,null,null,null,null,null,null,null,null,null,null,null,null,null,null,null,null,null,null,null,null,null,null,null,null,null,null,null,42,"D5ENPW16Z69YM5HHONIBBTAM1","D5B6FGJCS8BFQ1OMS1RP9IDIX","","","","","","00","X","0","0","",""]
[null,null,null,null,null,null,null,null,null,null,null,null,null,null,null,null,null,null,null,null,null,null,null,null,null,null,null,null,null,null,null,null,null,null,null,null,null,null,null,null,null,null,null,null,null,null,null,null,null,null,null,null,null,null,null,null,null,null,null,null,null,null,null,null,null,null,null,null,null,null,null,null,null,null,null,null,null,null,null,null,null,null,null,null,null,null,null,null,null,null,null,null,null,null,null,null,null,null,null,null,null,null,null,null,null,null,null,null,null,null,null,null,null,null,null,null,null,null,null,null,null,null,null,null,null,null,null,null,null,null,42,"D5ENPW16Z69YM5HHONIBBTAM1","D5B6FGJCS8C7EO0E3L7BBXRSP","","","","","","00","X","0","0","",""]
[null,null,null,null,null,null,null,null,null,null,null,null,null,null,null,null,null,null,null,null,null,null,null,null,null,null,null,null,null,null,null,null,null,null,null,null,null,null,null,null,null,null,null,null,null,null,null,null,null,null,null,null,null,null,null,null,null,null,null,null,null,null,null,null,null,null,null,null,null,null,null,null,null,null,null,null,null,null,null,null,null,null,null,null,null,null,null,null,null,null,null,null,null,null,null,null,null,null,null,null,null,null,null,null,null,null,null,null,null,null,null,null,null,null,null,null,null,null,null,null,null,null,null,null,null,null,null,null,null,null,42,"D5ENPW16Z69YM5HHONIBBTAM1","D5B6FGJCS8CZ3AC5F4MXED62H","","","","","","00","X","0","0","",""]
[null,null,null,null,null,null,null,null,null,null,null,null,null,null,null,null,null,null,null,null,null,null,null,null,null,null,null,null,null,null,null,null,null,null,null,null,null,null,null,null,null,null,null,null,null,null,null,null,null,null,null,null,null,null,null,null,null,null,null,null,null,null,null,null,null,null,null,null,null,null,null,null,null,null,null,null,null,null,null,null,null,null,null,null,null,null,null,null,null,null,null,null,null,null,null,null,null,null,null,null,null,null,null,null,null,null,null,null,null,null,null,null,null,null,null,null,null,null,null,null,null,null,null,null,null,null,null,null,null,null,42,"D5ENPW16Z69YM5HHONIBBTAM1","D5B6FGJCS8DQRWNWQO2JGSKC9","","","","","","00","X","0","0","",""]
[null,null,null,null,null,null,null,null,null,null,null,null,null,null,null,null,null,null,null,null,null,null,null,null,null,null,null,null,null,null,null,null,null,null,null,null,null,null,null,null,null,null,null,null,null,null,null,null,null,null,null,null,null,null,null,null,null,null,null,null,null,null,null,null,null,null,null,null,null,null,null,null,null,null,null,null,null,null,null,null,null,null,null,null,null,null,null,null,null,null,null,null,null,null,null,null,null,null,null,null,null,null,null,null,null,null,null,null,null,null,null,null,null,null,null,null,null,null,null,null,null,null,null,null,null,null,null,null,null,null,42,"D5ENPW16Z69YM5HHONIBBTAM1","D5B6FGJCS8EIGIZO27I5J7YM1","","","","","","00","X","0","0","",""]
[null,null,null,null,null,null,null,null,null,null,null,null,null,null,null,null,null,null,null,null,null,null,null,null,null,null,null,null,null,null,null,null,null,null,null,null,null,null,null,null,null,null,null,null,null,null,null,null,null,null,null,null,null,null,null,null,null,null,null,null,null,null,null,null,null,null,null,null,null,null,null,null,null,null,null,null,null,null,null,null,null,null,null,null,null,null,null,null,null,null,null,null,null,null,null,null,null,null,null,null,null,null,null,null,null,null,null,null,null,null,null,null,null,null,null,null,null,null,null,null,null,null,null,null,null,null,null,null,null,null,42,"D5ENPW16Z69YM5HHONIBBTAM1","D5B6FGJCS8FA55BFDQXRLNCVT","","","","","","00","X","0","0","",""]
[null,null,null,null,null,null,null,null,null,null,null,null,null,null,null,null,null,null,null,null,null,null,null,null,null,null,null,null,null,null,null,null,null,null,null,null,null,null,null,null,null,null,null,null,null,null,null,null,null,null,null,null,null,null,null,null,null,null,null,null,null,null,null,null,null,null,null,null,null,null,null,null,null,null,null,null,null,null,null,null,null,null,null,null,null,null,null,null,null,null,null,null,null,null,null,null,null,null,null,null,null,null,null,null,null,null,null,null,null,null,null,null,null,null,null,null,null,null,null,null,null,null,null,null,null,null,null,null,null,null,42,"D5ENPW16Z69YM5HHONIBBTAM1","D5B6FGJCS8G1TRN6PADDO2R5L","","","","","","00","X","0","0","",""]
[null,null,null,null,null,null,null,null,null,null,null,null,null,null,null,null,null,null,null,null,null,null,null,null,null,null,null,null,null,null,null,null,null,null,null,null,null,null,null,null,null,null,null,null,null,null,null,null,null,null,null,null,null,null,null,null,null,null,null,null,null,null,null,null,null,null,null,null,null,null,null,null,null,null,null,null,null,null,null,null,null,null,null,null,null,null,null,null,null,null,null,null,null,null,null,null,null,null,null,null,null,null,null,null,null,null,null,null,null,null,null,null,null,null,null,null,null,null,null,null,null,null,null,null,null,null,null,null,null,null,42,"D5ENPW16Z69YM5HHONIBBTAM1","D5B6FGJCS8GTIDYY0TSZQI5FD","","","","","","00","X","0","0","",""]
[null,null,null,null,null,null,null,null,null,null,null,null,null,null,null,null,null,null,null,null,null,null,null,null,null,null,null,null,null,null,null,null,null,null,null,null,null,null,null,null,null,null,null,null,null,null,null,null,null,null,null,null,null,null,null,null,null,null,null,null,null,null,null,null,null,null,null,null,null,null,null,null,null,null,null,null,null,null,null,null,null,null,null,null,null,null,null,null,null,null,null,null,null,null,null,null,null,null,null,null,null,null,null,null,null,null,null,null,null,null,null,null,null,null,null,null,null,null,null,null,null,null,null,null,null,null,null,null,null,null,42,"D5ENPW16Z69YM5HHONIBBTAM1","D5B6FGJCS8HL70APCD8LSXJP5","","","","","","00","X","0","0","",""]
[null,null,null,null,null,null,null,null,null,null,null,null,null,null,null,null,null,null,null,null,null,null,null,null,null,null,null,null,null,null,null,null,null,null,null,null,null,null,null,null,null,null,null,null,null,null,null,null,null,null,null,null,null,null,null,null,null,null,null,null,null,null,null,null,null,null,null,null,null,null,null,null,null,null,null,null,null,null,null,null,null,null,null,null,null,null,null,null,null,null,null,null,null,null,null,null,null,null,null,null,null,null,null,null,null,null,null,null,null,null,null,null,null,null,null,null,null,null,null,null,null,null,null,null,null,null,null,null,null,null,42,"D5ENPW16Z69YM5HHONIBBTAM1","D5B6FGJCS8ICVMMGNWO7VCXYX","","","","","","00","X","0","0","",""]
[null,null,null,null,null,null,null,null,null,null,null,null,null,null,null,null,null,null,null,null,null,null,null,null,null,null,null,null,null,null,null,null,null,null,null,null,null,null,null,null,null,null,null,null,null,null,null,null,null,null,null,null,null,null,null,null,null,null,null,null,null,null,null,null,null,null,null,null,null,null,null,null,null,null,null,null,null,null,null,null,null,null,null,null,null,null,null,null,null,null,null,null,null,null,null,null,null,null,null,null,null,null,null,null,null,null,null,null,null,null,null,null,null,null,null,null,null,null,null,null,null,null,null,null,null,null,null,null,null,null,42,"D5ENPW16Z69YM5HHONIBBTAM1","D5B6FGJCS8J4K8Y7ZG3TXSC8P","","","","","","00","X","0","0","",""]
[null,null,null,null,null,null,null,null,null,null,null,null,null,null,null,null,null,null,null,null,null,null,null,null,null,null,null,null,null,null,null,null,null,null,null,null,null,null,null,null,null,null,null,null,null,null,null,null,null,null,null,null,null,null,null,null,null,null,null,null,null,null,null,null,null,null,null,null,null,null,null,null,null,null,null,null,null,null,null,null,null,null,null,null,null,null,null,null,null,null,null,null,null,null,null,null,null,null,null,null,null,null,null,null,null,null,null,null,null,null,null,null,null,null,null,null,null,null,null,null,null,null,null,null,null,null,null,null,null,null,42,"D5ENPW16Z69YM5HHONIBBTAM1","D5B6FGJCS8JW8V9ZAZJG07QIH","","","","","","00","X","0","0","",""]
[null,null,null,null,null,null,null,null,null,null,null,null,null,null,null,null,null,null,null,null,null,null,null,null,null,null,null,null,null,null,null,null,null,null,null,null,null,null,null,null,null,null,null,null,null,null,null,null,null,null,null,null,null,null,null,null,null,null,null,null,null,null,null,null,null,null,null,null,null,null,null,null,null,null,null,null,null,null,null,null,null,null,null,null,null,null,null,null,null,null,null,null,null,null,null,null,null,null,null,null,null,null,null,null,null,null,null,null,null,null,null,null,null,null,null,null,null,null,null,null,null,null,null,null,null,null,null,null,null,null,42,"D5ENPW16Z69YM5HHONIBBTAM1","D5B6FGJCS8KNXHLQMIZ22N4S9","","","","","","00","X","0","0","",""]
[null,null,null,null,null,null,null,null,null,null,null,null,null,null,null,null,null,null,null,null,null,null,null,null,null,null,null,null,null,null,null,null,null,null,null,null,null,null,null,null,null,null,null,null,null,null,null,null,null,null,null,null,null,null,null,null,null,null,null,null,null,null,null,null,null,null,null,null,null,null,null,null,null,null,null,null,null,null,null,null,null,null,null,null,null,null,null,null,null,null,null,null,null,null,null,null,null,null,null,null,null,null,null,null,null,null,null,null,null,null,null,null,null,null,null,null,null,null,null,null,null,null,null,null,null,null,null,null,null,null,42,"D5ENPW16Z69YM5HHONIBBTAM1","D5B6FGJCS8LFM3XHY2EO52J21","","","","","","00","X","0","0","",""]
[null,null,null,null,null,null,null,null,null,null,null,null,null,null,null,null,null,null,null,null,null,null,null,null,null,null,null,null,null,null,null,null,null,null,null,null,null,null,null,null,null,null,null,null,null,null,null,null,null,null,null,null,null,null,null,null,null,null,null,null,null,null,null,null,null,null,null,null,null,null,null,null,null,null,null,null,null,null,null,null,null,null,null,null,null,null,null,null,null,null,null,null,null,null,null,null,null,null,null,null,null,null,null,null,null,null,null,null,null,null,null,null,null,null,null,null,null,null,null,null,null,null,null,null,null,null,null,null,null,null,42,"D5ENPW16Z69YM5HHONIBBTAM1","D5B6FGJCS8M7AQ999LUA7HXBT","","","","","","00","X","0","0","",""]
[null,null,null,null,null,null,null,null,null,null,null,null,null,null,null,null,null,null,null,null,null,null,null,null,null,null,null,null,null,null,null,null,null,null,null,null,null,null,null,null,null,null,null,null,null,null,null,null,null,null,null,null,null,null,null,null,null,null,null,null,null,null,null,null,null,null,null,null,null,null,null,null,null,null,null,null,null,null,null,null,null,null,null,null,null,null,null,null,null,null,null,null,null,null,null,null,null,null,null,null,null,null,null,null,null,null,null,null,null,null,null,null,null,null,null,null,null,null,null,null,null,null,null,null,null,null,null,null,null,null,42,"D5ENPW16Z69YM5HHONIBBTAM1","D5B6FGJCS8MYZCL0L59W9XBLL","0","0","","","","00","X","0","0","",""]
[null,null,null,null,null,null,null,null,null,null,null,null,null,null,null,null,null,null,null,null,null,null,null,null,null,null,null,null,null,null,null,null,null,null,null,null,null,null,null,null,null,null,null,null,null,null,null,null,null,null,null,null,null,null,null,null,null,null,null,null,null,null,null,null,null,null,null,null,null,null,null,null,null,null,null,null,null,null,null,null,null,null,null,null,null,null,null,null,null,null,null,null,null,null,null,null,null,null,null,null,null,null,null,null,null,null,null,null,null,null,null,null,null,null,null,null,null,null,null,null,null,null,null,null,null,null,null,null,null,null,42,"D5ENPW16Z69YM5HHONIBBTAM1","D5B6FGJCS8NQNYWRWOPICCPVD","","","","","","00","X","0","0","",""]
[null,null,null,null,null,null,null,null,null,null,null,null,null,null,null,null,null,null,null,null,null,null,null,null,null,null,null,null,null,null,null,null,null,null,null,null,null,null,null,null,null,null,null,null,null,null,null,null,null,null,null,null,null,null,null,null,null,null,null,null,null,null,null,null,null,null,null,null,null,null,null,null,null,null,null,null,null,null,null,null,null,null,null,null,null,null,null,null,null,null,null,null,null,null,null,null,null,null,null,null,null,null,null,null,null,null,null,null,null,null,null,null,null,null,null,null,null,null,null,null,null,null,null,null,null,null,null,null,null,null,42,"D5ENPW16Z69YM5HHONIBBTAM1","D5B6FGJCS8OICL8J8854ES455","0","0","","","","00","X","0","0","",""]

{"sheet":"SAPBEXfiltersDefunct","index":1,"n_rows":63,"n_cols":237,"rows_kept":63,"cut":false,"hidden":true,"merged":[]}
[]
[null,null,null,null,null,null,null,null,null,null,null,null,null,null,null,null,null,null,null,null,null,null,null,null,null,null,null,null,null,null,null,null,null,null,null,null,null,null,null,null,null,null,null,null,null,null,null,null,null,null,null,null,null,null,null,null,null,null,null,null,null,null,null,null,null,null,null,null,null,null,null,null,null,null,null,null,null,null,null,null,null,null,null,null,null,null,null,null,null,null,null,null,null,null,null,null,null,null,null,null,0,null,null,null,null,null,null,null,null,null,null,null,null,null,null,null,null,null,null,null,null,null,null,null,null,null,null,null,null,null,null,null,null,null,null,null,null,null,null,null,null,null,null,null,null,null,null,null,null,null,null,null,null,null,null,37,null,null,null,null,null,null,null,null,null,null,null,null,null,null,null,null,null,null,null,null,null,null,null,null,null,null,null,null,null,null,null,null,null,null,null,null,null,null,null,null,null,null,null,null,null,null,null,null,null,60]
[null,null,null,null,null,null,null,null,null,null,null,null,null,null,null,null,null,null,null,null,null,null,null,null,null,null,null,null,null,null,null,null,null,null,null,null,null,null,null,null,null,null,null,null,null,null,null,null,null,null,null,null,null,null,null,null,null,null,null,null,null,null,null,null,null,null,null,null,null,null,null,null,null,null,null,null,null,null,null,null,null,null,null,null,null,null,null,null,null,null,null,null,null,null,null,null,null,null,null,null,8,null,null,null,null,null,null,null,null,null,null,null,null,null,null,null,null,null,null,null,null,null,null,null,null,null,null,null,null,null,null,null,null,null,null,null,null,null,null,null,null,null,null,null,null,null,null,null,null,null,null,null,null,null,null,12,null,null,null,null,null,null,null,null,null,null,null,null,null,null,null,null,null,null,null,null,null,null,null,null,null,null,null,null,null,null,null,null,null,null,null,null,null,null,null,null,null,null,null,null,null,null,null,null,null,31]
[null,null,null,null,null,null,null,null,null,null,null,null,null,null,null,null,null,null,null,null,null,null,null,null,null,null,null,null,null,null,null,null,null,null,null,null,null,null,null,null,null,null,null,null,null,null,null,null,null,null,null,null,null,null,null,null,null,null,null,null,null,null,null,null,null,null,null,null,null,null,null,null,null,null,null,null,null,null,null,null,null,null,null,null,null,null,null,null,null,null,null,null,null,null,null,null,null,null,null,null,null,null,null,null,null,null,null,null,null,null,null,null,null,null,null,null,null,null,null,null,null,null,null,null,null,null,null,null,null,null,null,null,null,null,null,null,null,null,null,null,null,null,null,null,null,null,null,null,null,null,null,null,null,null,null,17,"DCKU25NTW15RTEULQPU2RWQNT","","X","3","0","ZPERSAREA","","","0","","","",null,null,null,null,null,null,null,null,null,null,null,null,null,null,null,null,null,null,null,null,null,null,null,null,null,null,null,null,null,null,null,null,null,null,null,null,null,17,"DCKU25NTW15RTEULQPU2RWQNT","","","0001","0001","0","0000","I","EQ","0051","","0051","","1","","0","","Education","","","","","0","","","0","","0","","","00"]
[null,null,null,null,null,null,null,null,null,null,null,null,null,null,null,null,null,null,null,null,null,null,null,null,null,null,null,null,null,null,null,null,null,null,null,null,null,null,null,null,null,null,null,null,null,null,null,null,null,null,null,null,null,null,null,null,null,null,null,null,null,null,null,null,null,null,null,null,null,null,null,null,null,null,null,null,null,null,null,null,null,null,null,null,null,null,null,null,null,null,null,null,null,null,null,null,null,null,null,null,null,null,null,null,null,null,null,null,null,null,null,null,null,null,null,null,null,null,null,null,null,null,null,null,null,null,null,null,null,null,null,null,null,null,null,null,null,null,null,null,null,null,null,null,null,null,null,null,null,null,null,null,null,null,null,18,"DCKU27L5DQ8HXIIVBSYFF0QNT","","X","3","0","ZPERSAREA","","","0","","","",null,null,null,null,null,null,null,null,null,null,null,null,null,null,null,null,null,null,null,null,null,null,null,null,null,null,null,null,null,null,null,null,null,null,null,null,null,18,"DCKU27L5DQ8HXIIVBSYFF0QNT","","","0001","0001","0","0000","I","EQ","0071","","0071","","1","","0","","Financial","","","","","0","","","0","","0","","","00"]
[null,null,null,null,null,null,null,null,null,null,null,null,null,null,null,null,null,null,null,null,null,null,null,null,null,null,null,null,null,null,null,null,null,null,null,null,null,null,null,null,null,null,null,null,null,null,null,null,null,null,null,null,null,null,null,null,null,null,null,null,null,null,null,null,null,null,null,null,null,null,null,null,null,null,null,null,null,null,null,null,null,null,null,null,null,null,null,null,null,null,null,null,null,null,null,null,null,null,null,null,null,null,null,null,null,null,null,null,null,null,null,null,null,null,null,null,null,null,null,null,null,null,null,null,null,null,null,null,null,null,null,null,null,null,null,null,null,null,null,null,null,null,null,null,null,null,null,null,null,null,null,null,null,null,null,19,"DCKU297UH05P1I6EPRZ9SBRW9","","X","3","0","0ORGUNIT","","","0","","","",null,null,null,null,null,null,null,null,null,null,null,null,null,null,null,null,null,null,null,null,null,null,null,null,null,null,null,null,null,null,null,null,null,null,null,null,null,19,"DCKU297UH05P1I6EPRZ9SBRW9","","","0001","0001","0","0000","I","EQ","50184707","0ORGUNIT","50184707","","1","","4","","Land & Environmental Serv Org Struct","","","","ORGEH","1","","000","1","20120331","1","","","00"]
[null,null,null,null,null,null,null,null,null,null,null,null,null,null,null,null,null,null,null,null,null,null,null,null,null,null,null,null,null,null,null,null,null,null,null,null,null,null,null,null,null,null,null,null,null,null,null,null,null,null,null,null,null,null,null,null,null,null,null,null,null,null,null,null,null,null,null,null,null,null,null,null,null,null,null,null,null,null,null,null,null,null,null,null,null,null,null,null,null,null,null,null,null,null,null,null,null,null,null,null,null,null,null,null,null,null,null,null,null,null,null,null,null,null,null,null,null,null,null,null,null,null,null,null,null,null,null,null,null,null,null,null,null,null,null,null,null,null,null,null,null,null,null,null,null,null,null,null,null,null,null,null,null,null,null,19,"DCKU297UH06GQ4I61BEVUR661","","X","3","0","ZPERSAREA","","","0","","","",null,null,null,null,null,null,null,null,null,null,null,null,null,null,null,null,null,null,null,null,null,null,null,null,null,null,null,null,null,null,null,null,null,null,null,null,null,19,"DCKU297UH06GQ4I61BEVUR661","","","0001","0001","0","0000","I","EQ","0081","","0081","","1","","0","","Land and Environmental","","","","","0","","","0","","0","","","00"]
[null,null,null,null,null,null,null,null,null,null,null,null,null,null,null,null,null,null,null,null,null,null,null,null,null,null,null,null,null,null,null,null,null,null,null,null,null,null,null,null,null,null,null,null,null,null,null,null,null,null,null,null,null,null,null,null,null,null,null,null,null,null,null,null,null,null,null,null,null,null,null,null,null,null,null,null,null,null,null,null,null,null,null,null,null,null,null,null,null,null,null,null,null,null,null,null,null,null,null,null,null,null,null,null,null,null,null,null,null,null,null,null,null,null,null,null,null,null,null,null,null,null,null,null,null,null,null,null,null,null,null,null,null,null,null,null,null,null,null,null,null,null,null,null,null,null,null,null,null,null,null,null,null,null,null,20,"DCKU2AHOEBKQN50QWNF8JZ0U1","","X","3","0","ZPERSAREA","","","0","","","",null,null,null,null,null,null,null,null,null,null,null,null,null,null,null,null,null,null,null,null,null,null,null,null,null,null,null,null,null,null,null,null,null,null,null,null,null,20,"DCKU2AHOEBKQN50QWNF8JZ0U1","","","0001","0001","0","0000","I","EQ","0091","","0091","","1","","0","","Social Work","","","","","0","","","0","","0","","","00"]
[null,null,null,null,null,null,null,null,null,null,null,null,null,null,null,null,null,null,null,null,null,null,null,null,null,null,null,null,null,null,null,null,null,null,null,null,null,null,null,null,null,null,null,null,null,null,null,null,null,null,null,null,null,null,null,null,null,null,null,null,null,null,null,null,null,null,null,null,null,null,null,null,null,null,null,null,null,null,null,null,null,null,null,null,null,null,null,null,null,null,null,null,null,null,null,null,null,null,null,null,null,null,null,null,null,null,null,null,null,null,null,null,null,null,null,null,null,null,null,null,null,null,null,null,null,null,null,null,null,null,null,null,null,null,null,null,null,null,null,null,null,null,null,null,null,null,null,null,null,null,null,null,null,null,null,15,"DDS4Q154E53TLI00IZ398XNND","","X","3","0","ZPERSAREA","","","0","","","",null,null,null,null,null,null,null,null,null,null,null,null,null,null,null,null,null,null,null,null,null,null,null,null,null,null,null,null,null,null,null,null,null,null,null,null,null,15,"DDS4Q154E53TLI00IZ398XNND","","","0001","0001","0","0000","I","EQ","0001","","0001","","1","","0","","Chief Executive","","","","","0","","","0","","0","","","00"]
[null,null,null,null,null,null,null,null,null,null,null,null,null,null,null,null,null,null,null,null,null,null,null,null,null,null,null,null,null,null,null,null,null,null,null,null,null,null,null,null,null,null,null,null,null,null,null,null,null,null,null,null,null,null,null,null,null,null,null,null,null,null,null,null,null,null,null,null,null,null,null,null,null,null,null,null,null,null,null,null,null,null,null,null,null,null,null,null,null,null,null,null,null,null,null,null,null,null,null,null,null,null,null,null,null,null,null,null,null,null,null,null,null,null,null,null,null,null,null,null,null,null,null,null,null,null,null,null,null,null,null,null,null,null,null,null,null,null,null,null,null,null,null,null,null,null,null,null,null,null,null,null,null,null,null,16,"DDS4Q59SCILFA8DSTCWQT14HL","","X","3","0","ZPERSAREA","","","0","","","",null,null,null,null,null,null,null,null,null,null,null,null,null,null,null,null,null,null,null,null,null,null,null,null,null,null,null,null,null,null,null,null,null,null,null,null,null,16,"DDS4Q59SCILFA8DSTCWQT14HL","","","0001","0001","0","0000","I","EQ","0031","","0031","","1","","0","","Development and Regeneration","","","","","0","","","0","","0","","","00"]
[null,null,null,null,null,null,null,null,null,null,null,null,null,null,null,null,null,null,null,null,null,null,null,null,null,null,null,null,null,null,null,null,null,null,null,null,null,null,null,null,null,null,null,null,null,null,null,null,null,null,null,null,null,null,null,null,null,null,null,null,null,null,null,null,null,null,null,null,null,null,null,null,null,null,null,null,null,null,null,null,null,null,null,null,null,null,null,null,null,null,null,null,null,null,null,null,null,null,null,null,null,null,null,null,null,null,null,null,null,null,null,null,null,null,null,null,null,null,null,null,null,null,null,null,null,null,null,null,null,null,null,null,null,null,null,null,null,null,null,null,null,null,null,null,null,null,null,null,null,null,null,null,null,null,null,21,"DE0LM1DV6WVAAY94SXA1ZPIPL","","X","3","0","ZPERSAREA","","","0","","","",null,null,null,null,null,null,null,null,null,null,null,null,null,null,null,null,null,null,null,null,null,null,null,null,null,null,null,null,null,null,null,null,null,null,null,null,null,21,"DE0LM1DV6WVAAY94SXA1ZPIPL","","","0001","0001","0","0001","I","EQ","0001","","0001","","1","0","0","0","Chief Executive","","","","","0","","","0","","0","","","00"]
[null,null,null,null,null,null,null,null,null,null,null,null,null,null,null,null,null,null,null,null,null,null,null,null,null,null,null,null,null,null,null,null,null,null,null,null,null,null,null,null,null,null,null,null,null,null,null,null,null,null,null,null,null,null,null,null,null,null,null,null,null,null,null,null,null,null,null,null,null,null,null,null,null,null,null,null,null,null,null,null,null,null,null,null,null,null,null,null,null,null,null,null,null,null,null,null,null,null,null,null,null,null,null,null,null,null,null,null,null,null,null,null,null,null,null,null,null,null,null,null,null,null,null,null,null,null,null,null,null,null,null,null,null,null,null,null,null,null,null,null,null,null,null,null,null,null,null,null,null,null,null,null,null,null,null,32,"DEEQE3A7DFMLFDBTFN6936WOP","","X","3","0","ZPERSAREA","","","0","","","",null,null,null,null,null,null,null,null,null,null,null,null,null,null,null,null,null,null,null,null,null,null,null,null,null,null,null,null,null,null,null,null,null,null,null,null,null,21,"DE0LM1DV6WVAAY94SXA1ZPIPL","","","0001","0001","0","0002","I","EQ","0031","","0031","","1","0","0","0","Development and Regeneration","","","","","0","","","0","","0","","","00"]
[null,null,null,null,null,null,null,null,null,null,null,null,null,null,null,null,null,null,null,null,null,null,null,null,null,null,null,null,null,null,null,null,null,null,null,null,null,null,null,null,null,null,null,null,null,null,null,null,null,null,null,null,null,null,null,null,null,null,null,null,null,null,null,null,null,null,null,null,null,null,null,null,null,null,null,null,null,null,null,null,null,null,null,null,null,null,null,null,null,null,null,null,null,null,null,null,null,null,null,null,null,null,null,null,null,null,null,null,null,null,null,null,null,null,null,null,null,null,null,null,null,null,null,null,null,null,null,null,null,null,null,null,null,null,null,null,null,null,null,null,null,null,null,null,null,null,null,null,null,null,null,null,null,null,null,31,"DEEQDY4Q4XX7IUCXXV7VSWD15","","X","3","0","ZPERSAREA","","","0","","","",null,null,null,null,null,null,null,null,null,null,null,null,null,null,null,null,null,null,null,null,null,null,null,null,null,null,null,null,null,null,null,null,null,null,null,null,null,21,"DE0LM1DV6WVAAY94SXA1ZPIPL","","","0001","0001","0","0003","I","EQ","0051","","0051","","1","0","0","0","Education","","","","","0","","","0","","0","","","00"]
[null,null,null,null,null,null,null,null,null,null,null,null,null,null,null,null,null,null,null,null,null,null,null,null,null,null,null,null,null,null,null,null,null,null,null,null,null,null,null,null,null,null,null,null,null,null,null,null,null,null,null,null,null,null,null,null,null,null,null,null,null,null,null,null,null,null,null,null,null,null,null,null,null,null,null,null,null,null,null,null,null,null,null,null,null,null,null,null,null,null,null,null,null,null,null,null,null,null,null,null,null,null,null,null,null,null,null,null,null,null,null,null,null,null,null,null,null,null,null,null,null,null,null,null,null,null,null,null,null,null,null,null,null,null,null,null,null,null,null,null,null,null,null,null,null,null,null,null,null,null,null,null,null,null,null,33,"DEEQEFBKGYM5L0ZTEE8PJRPQ1","","X","3","0","ZPERSAREA","","","0","","","",null,null,null,null,null,null,null,null,null,null,null,null,null,null,null,null,null,null,null,null,null,null,null,null,null,null,null,null,null,null,null,null,null,null,null,null,null,21,"DE0LM1DV6WVAAY94SXA1ZPIPL","","","0001","0001","0","0004","I","EQ","0071","","0071","","1","0","0","0","Financial","","","","","0","","","0","","0","","","00"]
[null,null,null,null,null,null,null,null,null,null,null,null,null,null,null,null,null,null,null,null,null,null,null,null,null,null,null,null,null,null,null,null,null,null,null,null,null,null,null,null,null,null,null,null,null,null,null,null,null,null,null,null,null,null,null,null,null,null,null,null,null,null,null,null,null,null,null,null,null,null,null,null,null,null,null,null,null,null,null,null,null,null,null,null,null,null,null,null,null,null,null,null,null,null,null,null,null,null,null,null,null,null,null,null,null,null,null,null,null,null,null,null,null,null,null,null,null,null,null,null,null,null,null,null,null,null,null,null,null,null,null,null,null,null,null,null,null,null,null,null,null,null,null,null,null,null,null,null,null,null,null,null,null,null,null,34,"DEEQEKCU2CEE2C0ZQOC7OSLX5","","X","3","0","ZPERSAREA","","","0","","","",null,null,null,null,null,null,null,null,null,null,null,null,null,null,null,null,null,null,null,null,null,null,null,null,null,null,null,null,null,null,null,null,null,null,null,null,null,21,"DE0LM1DV6WVAAY94SXA1ZPIPL","","","0001","0001","0","0005","I","EQ","0081","","0081","","1","0","0","0","Land and Environmental","","","","","0","","","0","","0","","","00"]
[null,null,null,null,null,null,null,null,null,null,null,null,null,null,null,null,null,null,null,null,null,null,null,null,null,null,null,null,null,null,null,null,null,null,null,null,null,null,null,null,null,null,null,null,null,null,null,null,null,null,null,null,null,null,null,null,null,null,null,null,null,null,null,null,null,null,null,null,null,null,null,null,null,null,null,null,null,null,null,null,null,null,null,null,null,null,null,null,null,null,null,null,null,null,null,null,null,null,null,null,null,null,null,null,null,null,null,null,null,null,null,null,null,null,null,null,null,null,null,null,null,null,null,null,null,null,null,null,null,null,null,null,null,null,null,null,null,null,null,null,null,null,null,null,null,null,null,null,null,null,null,null,null,null,null,35,"DEEQEPRU5AHENUKU8CSRNZDH5","","X","3","0","ZPERSAREA","","","0","","","",null,null,null,null,null,null,null,null,null,null,null,null,null,null,null,null,null,null,null,null,null,null,null,null,null,null,null,null,null,null,null,null,null,null,null,null,null,21,"DE0LM1DV6WVAAY94SXA1ZPIPL","","","0001","0001","0","0006","I","EQ","0091","","0091","","1","0","0","0","Social Work","","","","","0","","","0","","0","","","00"]
[null,null,null,null,null,null,null,null,null,null,null,null,null,null,null,null,null,null,null,null,null,null,null,null,null,null,null,null,null,null,null,null,null,null,null,null,null,null,null,null,null,null,null,null,null,null,null,null,null,null,null,null,null,null,null,null,null,null,null,null,null,null,null,null,null,null,null,null,null,null,null,null,null,null,null,null,null,null,null,null,null,null,null,null,null,null,null,null,null,null,null,null,null,null,null,null,null,null,null,null,null,null,null,null,null,null,null,null,null,null,null,null,null,null,null,null,null,null,null,null,null,null,null,null,null,null,null,null,null,null,null,null,null,null,null,null,null,null,null,null,null,null,null,null,null,null,null,null,null,null,null,null,null,null,null,36,"DEEQEUG59UP8AUPDCAARGBJ7D","","X","3","0","ZPERSAREA","","","0","","","",null,null,null,null,null,null,null,null,null,null,null,null,null,null,null,null,null,null,null,null,null,null,null,null,null,null,null,null,null,null,null,null,null,null,null,null,null,32,"DEEQE3A7DFMLFDBTFN6936WOP","","","0001","0001","0","0000","I","EQ","0031","","0031","","1","","0","","Development and Regeneration","","","","","0","","","0","","0","","","00"]
[null,null,null,null,null,null,null,null,null,null,null,null,null,null,null,null,null,null,null,null,null,null,null,null,null,null,null,null,null,null,null,null,null,null,null,null,null,null,null,null,null,null,null,null,null,null,null,null,null,null,null,null,null,null,null,null,null,null,null,null,null,null,null,null,null,null,null,null,null,null,null,null,null,null,null,null,null,null,null,null,null,null,null,null,null,null,null,null,null,null,null,null,null,null,null,null,null,null,null,null,null,null,null,null,null,null,null,null,null,null,null,null,null,null,null,null,null,null,null,null,null,null,null,null,null,null,null,null,null,null,null,null,null,null,null,null,null,null,null,null,null,null,null,null,null,null,null,null,null,null,null,null,null,null,null,45,"DEYRPPP765AW6KE1M4S6O9UD5","","X","3","0","ZPERSAREA","","","0","","","",null,null,null,null,null,null,null,null,null,null,null,null,null,null,null,null,null,null,null,null,null,null,null,null,null,null,null,null,null,null,null,null,null,null,null,null,null,31,"DEEQDY4Q4XX7IUCXXV7VSWD15","","","0001","0001","0","0001","I","EQ","0001","","0001","","1","0","0","0","Chief Executive","","","","","0","","","0","","0","","","00"]
[null,null,null,null,null,null,null,null,null,null,null,null,null,null,null,null,null,null,null,null,null,null,null,null,null,null,null,null,null,null,null,null,null,null,null,null,null,null,null,null,null,null,null,null,null,null,null,null,null,null,null,null,null,null,null,null,null,null,null,null,null,null,null,null,null,null,null,null,null,null,null,null,null,null,null,null,null,null,null,null,null,null,null,null,null,null,null,null,null,null,null,null,null,null,null,null,null,null,null,null,null,null,null,null,null,null,null,null,null,null,null,null,null,null,null,null,null,null,null,null,null,null,null,null,null,null,null,null,null,null,null,null,null,null,null,null,null,null,null,null,null,null,null,null,null,null,null,null,null,null,null,null,null,null,null,11,"DKYHHARYD8IY73WXCU96VZJ09","","X","3","0","0ORGUNIT","","","0","","","",null,null,null,null,null,null,null,null,null,null,null,null,null,null,null,null,null,null,null,null,null,null,null,null,null,null,null,null,null,null,null,null,null,null,null,null,null,33,"DEEQEFBKGYM5L0ZTEE8PJRPQ1","","","0001","0001","0","0001","I","EQ","0051","","0051","","1","0","0","0","Education","","","","","0","","","0","","0","","","00"]
[null,null,null,null,null,null,null,null,null,null,null,null,null,null,null,null,null,null,null,null,null,null,null,null,null,null,null,null,null,null,null,null,null,null,null,null,null,null,null,null,null,null,null,null,null,null,null,null,null,null,null,null,null,null,null,null,null,null,null,null,null,null,null,null,null,null,null,null,null,null,null,null,null,null,null,null,null,null,null,null,null,null,null,null,null,null,null,null,null,null,null,null,null,null,null,null,null,null,null,null,null,null,null,null,null,null,null,null,null,null,null,null,null,null,null,null,null,null,null,null,null,null,null,null,null,null,null,null,null,null,null,null,null,null,null,null,null,null,null,null,null,null,null,null,null,null,null,null,null,null,null,null,null,null,null,10,"DKYHHC2NLYSP51B3BKJ3Z50QH","","X","3","0","0ORGUNIT","","","0","","","",null,null,null,null,null,null,null,null,null,null,null,null,null,null,null,null,null,null,null,null,null,null,null,null,null,null,null,null,null,null,null,null,null,null,null,null,null,34,"DEEQEKCU2CEE2C0ZQOC7OSLX5","","","0001","0001","0","0001","I","EQ","0071","","0071","","1","0","0","0","Financial","","","","","0","","","0","","0","","","00"]
[null,null,null,null,null,null,null,null,null,null,null,null,null,null,null,null,null,null,null,null,null,null,null,null,null,null,null,null,null,null,null,null,null,null,null,null,null,null,null,null,null,null,null,null,null,null,null,null,null,null,null,null,null,null,null,null,null,null,null,null,null,null,null,null,null,null,null,null,null,null,null,null,null,null,null,null,null,null,null,null,null,null,null,null,null,null,null,null,null,null,null,null,null,null,null,null,null,null,null,null,null,null,null,null,null,null,null,null,null,null,null,null,null,null,null,null,null,null,null,null,null,null,null,null,null,null,null,null,null,null,null,null,null,null,null,null,null,null,null,null,null,null,null,null,null,null,null,null,null,null,null,null,null,null,null,9,"DKYHHC2NLZ8UI2611WMZE4CFT","","X","3","0","ZPERSAREA","","","0","","","",null,null,null,null,null,null,null,null,null,null,null,null,null,null,null,null,null,null,null,null,null,null,null,null,null,null,null,null,null,null,null,null,null,null,null,null,null,35,"DEEQEPRU5AHENUKU8CSRNZDH5","","","0001","0001","0","0001","I","EQ","0081","","0081","","1","0","0","0","Land and Environmental","","","","","0","","","0","","0","","","00"]
[null,null,null,null,null,null,null,null,null,null,null,null,null,null,null,null,null,null,null,null,null,null,null,null,null,null,null,null,null,null,null,null,null,null,null,null,null,null,null,null,null,null,null,null,null,null,null,null,null,null,null,null,null,null,null,null,null,null,null,null,null,null,null,null,null,null,null,null,null,null,null,null,null,null,null,null,null,null,null,null,null,null,null,null,null,null,null,null,null,null,null,null,null,null,null,null,null,null,null,null,null,null,null,null,null,null,null,null,null,null,null,null,null,null,null,null,null,null,null,null,null,null,null,null,null,null,null,null,null,null,null,null,null,null,null,null,null,null,null,null,null,null,null,null,null,null,null,null,null,null,null,null,null,null,null,8,"DKYHHDERY6E7WFO4H9LPX1WXL","","X","3","0","0ORGUNIT","","","0","","","",null,null,null,null,null,null,null,null,null,null,null,null,null,null,null,null,null,null,null,null,null,null,null,null,null,null,null,null,null,null,null,null,null,null,null,null,null,36,"DEEQEUG59UP8AUPDCAARGBJ7D","","","0001","0001","0","0001","I","EQ","0091","","0091","","1","0","0","0","Social Work","","","","","0","","","0","","0","","","00"]
[null,null,null,null,null,null,null,null,null,null,null,null,null,null,null,null,null,null,null,null,null,null,null,null,null,null,null,null,null,null,null,null,null,null,null,null,null,null,null,null,null,null,null,null,null,null,null,null,null,null,null,null,null,null,null,null,null,null,null,null,null,null,null,null,null,null,null,null,null,null,null,null,null,null,null,null,null,null,null,null,null,null,null,null,null,null,null,null,null,null,null,null,null,null,null,null,null,null,null,null,null,null,null,null,null,null,null,null,null,null,null,null,null,null,null,null,null,null,null,null,null,null,null,null,null,null,null,null,null,null,null,null,null,null,null,null,null,null,null,null,null,null,null,null,null,null,null,null,null,null,null,null,null,null,null,7,"DKYHHDERY6YZD6HM4UB9QLM9L","","X","3","0","ZPERSAREA","","","0","","","",null,null,null,null,null,null,null,null,null,null,null,null,null,null,null,null,null,null,null,null,null,null,null,null,null,null,null,null,null,null,null,null,null,null,null,null,null,45,"DEYRPPP765AW6KE1M4S6O9UD5","","","0001","0001","0","0001","I","EQ","0051","","0051","","1","0","0","0","Education","","","","","0","","","0","","0","","","00"]
[null,null,null,null,null,null,null,null,null,null,null,null,null,null,null,null,null,null,null,null,null,null,null,null,null,null,null,null,null,null,null,null,null,null,null,null,null,null,null,null,null,null,null,null,null,null,null,null,null,null,null,null,null,null,null,null,null,null,null,null,null,null,null,null,null,null,null,null,null,null,null,null,null,null,null,null,null,null,null,null,null,null,null,null,null,null,null,null,null,null,null,null,null,null,null,null,null,null,null,null,null,null,null,null,null,null,null,null,null,null,null,null,null,null,null,null,null,null,null,null,null,null,null,null,null,null,null,null,null,null,null,null,null,null,null,null,null,null,null,null,null,null,null,null,null,null,null,null,null,null,null,null,null,null,null,6,"DKYHHEOVRIN6QVIKAFSEO77JT","","X","3","0","ZPERSAREA","","","0","","","",null,null,null,null,null,null,null,null,null,null,null,null,null,null,null,null,null,null,null,null,null,null,null,null,null,null,null,null,null,null,null,null,null,null,null,null,null,11,"DKYHHARYD8IY73WXCU96VZJ09","","","0001","0001","0","0000","I","EQ","50004880","0ORGUNIT","50004880","","1","","4","","Corporate Services","","","","ORGEH","1","","000","1","20150930","1","","","00"]
[null,null,null,null,null,null,null,null,null,null,null,null,null,null,null,null,null,null,null,null,null,null,null,null,null,null,null,null,null,null,null,null,null,null,null,null,null,null,null,null,null,null,null,null,null,null,null,null,null,null,null,null,null,null,null,null,null,null,null,null,null,null,null,null,null,null,null,null,null,null,null,null,null,null,null,null,null,null,null,null,null,null,null,null,null,null,null,null,null,null,null,null,null,null,null,null,null,null,null,null,null,null,null,null,null,null,null,null,null,null,null,null,null,null,null,null,null,null,null,null,null,null,null,null,null,null,null,null,null,null,null,null,null,null,null,null,null,null,null,null,null,null,null,null,null,null,null,null,null,null,null,null,null,null,null,5,"DKYHHG0JMCFYVLW37V8MO0D15","","X","3","0","ZPERSAREA","","","0","","","",null,null,null,null,null,null,null,null,null,null,null,null,null,null,null,null,null,null,null,null,null,null,null,null,null,null,null,null,null,null,null,null,null,null,null,null,null,10,"DKYHHC2NLYSP51B3BKJ3Z50QH","","","0001","0001","0","0000","I","EQ","50004878","","50004878","","1","","0","","Chief Executive Srv","","","","","0","","","0","","0","","","00"]
[null,null,null,null,null,null,null,null,null,null,null,null,null,null,null,null,null,null,null,null,null,null,null,null,null,null,null,null,null,null,null,null,null,null,null,null,null,null,null,null,null,null,null,null,null,null,null,null,null,null,null,null,null,null,null,null,null,null,null,null,null,null,null,null,null,null,null,null,null,null,null,null,null,null,null,null,null,null,null,null,null,null,null,null,null,null,null,null,null,null,null,null,null,null,null,null,null,null,null,null,null,null,null,null,null,null,null,null,null,null,null,null,null,null,null,null,null,null,null,null,null,null,null,null,null,null,null,null,null,null,null,null,null,null,null,null,null,null,null,null,null,null,null,null,null,null,null,null,null,null,null,null,null,null,null,4,"DKYHHG0JMCW48MR0Y7CI2ZOQH","","X","3","0","ZPERSAREA","","","0","","","",null,null,null,null,null,null,null,null,null,null,null,null,null,null,null,null,null,null,null,null,null,null,null,null,null,null,null,null,null,null,null,null,null,null,null,null,null,10,"DKYHHC2NLYSP51B3BKJ3Z50QH","","","0002","0001","0","0000","I","EQ","50216527","0ORGUNIT","50216527","","1","","4","","Chief Executive's Office","","","","ORGEH","1","","000","1","20150930","1","","","00"]
[null,null,null,null,null,null,null,null,null,null,null,null,null,null,null,null,null,null,null,null,null,null,null,null,null,null,null,null,null,null,null,null,null,null,null,null,null,null,null,null,null,null,null,null,null,null,null,null,null,null,null,null,null,null,null,null,null,null,null,null,null,null,null,null,null,null,null,null,null,null,null,null,null,null,null,null,null,null,null,null,null,null,null,null,null,null,null,null,null,null,null,null,null,null,null,null,null,null,null,null,null,null,null,null,null,null,null,null,null,null,null,null,null,null,null,null,null,null,null,null,null,null,null,null,null,null,null,null,null,null,null,null,null,null,null,null,null,null,null,null,null,null,null,null,null,null,null,null,null,null,null,null,null,null,null,28,"DKYHIGO9K30TROFHWV99F1NUH","","X","3","0","0ORGUNIT","","","0","","","",null,null,null,null,null,null,null,null,null,null,null,null,null,null,null,null,null,null,null,null,null,null,null,null,null,null,null,null,null,null,null,null,null,null,null,null,null,10,"DKYHHC2NLYSP51B3BKJ3Z50QH","","","0003","0001","0","0000","I","EQ","50004939","0ORGUNIT","50004939","","1","","4","","Communication & Organisation Development","","","","ORGEH","1","","000","1","20150930","1","","","00"]
[null,null,null,null,null,null,null,null,null,null,null,null,null,null,null,null,null,null,null,null,null,null,null,null,null,null,null,null,null,null,null,null,null,null,null,null,null,null,null,null,null,null,null,null,null,null,null,null,null,null,null,null,null,null,null,null,null,null,null,null,null,null,null,null,null,null,null,null,null,null,null,null,null,null,null,null,null,null,null,null,null,null,null,null,null,null,null,null,null,null,null,null,null,null,null,null,null,null,null,null,null,null,null,null,null,null,null,null,null,null,null,null,null,null,null,null,null,null,null,null,null,null,null,null,null,null,null,null,null,null,null,null,null,null,null,null,null,null,null,null,null,null,null,null,null,null,null,null,null,null,null,null,null,null,null,29,"DKYHIJQQUM15YCM8U042H4VLL","","X","3","0","0ORGUNIT","","","0","","","",null,null,null,null,null,null,null,null,null,null,null,null,null,null,null,null,null,null,null,null,null,null,null,null,null,null,null,null,null,null,null,null,null,null,null,null,null,10,"DKYHHC2NLYSP51B3BKJ3Z50QH","","","0004","0001","0","0000","I","EQ","50258124","0ORGUNIT","50258124","","1","","4","","CE Corporate Policy","","","","ORGEH","1","","000","1","20150930","1","","","00"]
[null,null,null,null,null,null,null,null,null,null,null,null,null,null,null,null,null,null,null,null,null,null,null,null,null,null,null,null,null,null,null,null,null,null,null,null,null,null,null,null,null,null,null,null,null,null,null,null,null,null,null,null,null,null,null,null,null,null,null,null,null,null,null,null,null,null,null,null,null,null,null,null,null,null,null,null,null,null,null,null,null,null,null,null,null,null,null,null,null,null,null,null,null,null,null,null,null,null,null,null,null,null,null,null,null,null,null,null,null,null,null,null,null,null,null,null,null,null,null,null,null,null,null,null,null,null,null,null,null,null,null,null,null,null,null,null,null,null,null,null,null,null,null,null,null,null,null,null,null,null,null,null,null,null,null,30,"DKYHIMFMLQU8K6O8OHC8MKP2X","","X","3","0","0ORGUNIT","","","0","","","",null,null,null,null,null,null,null,null,null,null,null,null,null,null,null,null,null,null,null,null,null,null,null,null,null,null,null,null,null,null,null,null,null,null,null,null,null,9,"DKYHHC2NLZ8UI2611WMZE4CFT","","","0001","0001","0","0000","I","EQ","0031","","0031","","1","","0","","Development and Regeneration","","","","","0","","","0","","0","","","00"]
[null,null,null,null,null,null,null,null,null,null,null,null,null,null,null,null,null,null,null,null,null,null,null,null,null,null,null,null,null,null,null,null,null,null,null,null,null,null,null,null,null,null,null,null,null,null,null,null,null,null,null,null,null,null,null,null,null,null,null,null,null,null,null,null,null,null,null,null,null,null,null,null,null,null,null,null,null,null,null,null,null,null,null,null,null,null,null,null,null,null,null,null,null,null,null,null,null,null,null,null,null,null,null,null,null,null,null,null,null,null,null,null,null,null,null,null,null,null,null,null,null,null,null,null,null,null,null,null,null,null,null,null,null,null,null,null,null,null,null,null,null,null,null,null,null,null,null,null,null,null,null,null,null,null,null,23,"DKYHINZ2O1WOOEW2YIWNM2A61","","X","3","0","ZPERSAREA","","","0","","","",null,null,null,null,null,null,null,null,null,null,null,null,null,null,null,null,null,null,null,null,null,null,null,null,null,null,null,null,null,null,null,null,null,null,null,null,null,8,"DKYHHDERY6E7WFO4H9LPX1WXL","","","0001","0001","0","0000","I","EQ","50004878","","50004878","","1","","0","","Chief Executive Srv","","","","","0","","","0","","0","","","00"]
[null,null,null,null,null,null,null,null,null,null,null,null,null,null,null,null,null,null,null,null,null,null,null,null,null,null,null,null,null,null,null,null,null,null,null,null,null,null,null,null,null,null,null,null,null,null,null,null,null,null,null,null,null,null,null,null,null,null,null,null,null,null,null,null,null,null,null,null,null,null,null,null,null,null,null,null,null,null,null,null,null,null,null,null,null,null,null,null,null,null,null,null,null,null,null,null,null,null,null,null,null,null,null,null,null,null,null,null,null,null,null,null,null,null,null,null,null,null,null,null,null,null,null,null,null,null,null,null,null,null,null,null,null,null,null,null,null,null,null,null,null,null,null,null,null,null,null,null,null,null,null,null,null,null,null,24,"DKYHIP4BRKA62O8QYH7PVHJW9","","X","3","0","ZPERSAREA","","","0","","","",null,null,null,null,null,null,null,null,null,null,null,null,null,null,null,null,null,null,null,null,null,null,null,null,null,null,null,null,null,null,null,null,null,null,null,null,null,8,"DKYHHDERY6E7WFO4H9LPX1WXL","","","0002","0001","0","0000","I","EQ","50004879","0ORGUNIT","50004879","","1","","4","","Chief Executive Organisation Structure","","","","ORGEH","1","","000","1","20150930","1","","","00"]
[null,null,null,null,null,null,null,null,null,null,null,null,null,null,null,null,null,null,null,null,null,null,null,null,null,null,null,null,null,null,null,null,null,null,null,null,null,null,null,null,null,null,null,null,null,null,null,null,null,null,null,null,null,null,null,null,null,null,null,null,null,null,null,null,null,null,null,null,null,null,null,null,null,null,null,null,null,null,null,null,null,null,null,null,null,null,null,null,null,null,null,null,null,null,null,null,null,null,null,null,null,null,null,null,null,null,null,null,null,null,null,null,null,null,null,null,null,null,null,null,null,null,null,null,null,null,null,null,null,null,null,null,null,null,null,null,null,null,null,null,null,null,null,null,null,null,null,null,null,null,null,null,null,null,null,25,"DKYHIUMKSYR8DGXC0XFPN9VCP","","X","3","0","ZPERSAREA","","","0","","","",null,null,null,null,null,null,null,null,null,null,null,null,null,null,null,null,null,null,null,null,null,null,null,null,null,null,null,null,null,null,null,null,null,null,null,null,null,8,"DKYHHDERY6E7WFO4H9LPX1WXL","","","0003","0001","0","0000","I","EQ","50004880","0ORGUNIT","50004880","","1","","4","","Corporate Services","","","","ORGEH","1","","000","1","20150930","1","","","00"]
[null,null,null,null,null,null,null,null,null,null,null,null,null,null,null,null,null,null,null,null,null,null,null,null,null,null,null,null,null,null,null,null,null,null,null,null,null,null,null,null,null,null,null,null,null,null,null,null,null,null,null,null,null,null,null,null,null,null,null,null,null,null,null,null,null,null,null,null,null,null,null,null,null,null,null,null,null,null,null,null,null,null,null,null,null,null,null,null,null,null,null,null,null,null,null,null,null,null,null,null,null,null,null,null,null,null,null,null,null,null,null,null,null,null,null,null,null,null,null,null,null,null,null,null,null,null,null,null,null,null,null,null,null,null,null,null,null,null,null,null,null,null,null,null,null,null,null,null,null,null,null,null,null,null,null,26,"DKYHIVX8ED9KUVX81T909ECXL","","X","3","0","ZPERSAREA","","","0","","","",null,null,null,null,null,null,null,null,null,null,null,null,null,null,null,null,null,null,null,null,null,null,null,null,null,null,null,null,null,null,null,null,null,null,null,null,null,8,"DKYHHDERY6E7WFO4H9LPX1WXL","","","0004","0001","0","0000","I","EQ","50004939","0ORGUNIT","50004939","","1","","4","","Communication & Organisation Development","","","","ORGEH","1","","000","1","20150930","1","","","00"]
[null,null,null,null,null,null,null,null,null,null,null,null,null,null,null,null,null,null,null,null,null,null,null,null,null,null,null,null,null,null,null,null,null,null,null,null,null,null,null,null,null,null,null,null,null,null,null,null,null,null,null,null,null,null,null,null,null,null,null,null,null,null,null,null,null,null,null,null,null,null,null,null,null,null,null,null,null,null,null,null,null,null,null,null,null,null,null,null,null,null,null,null,null,null,null,null,null,null,null,null,null,null,null,null,null,null,null,null,null,null,null,null,null,null,null,null,null,null,null,null,null,null,null,null,null,null,null,null,null,null,null,null,null,null,null,null,null,null,null,null,null,null,null,null,null,null,null,null,null,null,null,null,null,null,null,27,"DKYHIXL9AGI2528MDN66ZKO3D","","X","3","0","ZPERSAREA","","","0","","","",null,null,null,null,null,null,null,null,null,null,null,null,null,null,null,null,null,null,null,null,null,null,null,null,null,null,null,null,null,null,null,null,null,null,null,null,null,8,"DKYHHDERY6E7WFO4H9LPX1WXL","","","0005","0001","0","0000","I","EQ","50258124","0ORGUNIT","50258124","","1","","4","","CE Corporate Policy","","","","ORGEH","1","","000","1","20150930","1","","","00"]
[null,null,null,null,null,null,null,null,null,null,null,null,null,null,null,null,null,null,null,null,null,null,null,null,null,null,null,null,null,null,null,null,null,null,null,null,null,null,null,null,null,null,null,null,null,null,null,null,null,null,null,null,null,null,null,null,null,null,null,null,null,null,null,null,null,null,null,null,null,null,null,null,null,null,null,null,null,null,null,null,null,null,null,null,null,null,null,null,null,null,null,null,null,null,null,null,null,null,null,null,null,null,null,null,null,null,null,null,null,null,null,null,null,null,null,null,null,null,null,null,null,null,null,null,null,null,null,null,null,null,null,null,null,null,null,null,null,null,null,null,null,null,null,null,null,null,null,null,null,null,null,null,null,null,null,37,"DKYHJ4YJENULPKR0QTGA5RY0P","","X","3","0","0ORGUNIT","","","0","","","",null,null,null,null,null,null,null,null,null,null,null,null,null,null,null,null,null,null,null,null,null,null,null,null,null,null,null,null,null,null,null,null,null,null,null,null,null,7,"DKYHHDERY6YZD6HM4UB9QLM9L","","","0001","0001","0","0000","I","EQ","0051","","0051","","1","","0","","Education","","","","","0","","","0","","0","","","00"]
[null,null,null,null,null,null,null,null,null,null,null,null,null,null,null,null,null,null,null,null,null,null,null,null,null,null,null,null,null,null,null,null,null,null,null,null,null,null,null,null,null,null,null,null,null,null,null,null,null,null,null,null,null,null,null,null,null,null,null,null,null,null,null,null,null,null,null,null,null,null,null,null,null,null,null,null,null,null,null,null,null,null,null,null,null,null,null,null,null,null,null,null,null,null,null,null,null,null,null,null,null,null,null,null,null,null,null,null,null,null,null,null,null,null,null,null,null,null,null,null,null,null,null,null,null,null,null,null,null,null,null,null,null,null,null,null,null,null,null,null,null,null,null,null,null,null,null,null,null,null,null,null,null,null,null,38,"DKYHJEJT2BNPWGJDVWYC7BWU1","","X","3","0","ZPERSAREA","","","0","","","",null,null,null,null,null,null,null,null,null,null,null,null,null,null,null,null,null,null,null,null,null,null,null,null,null,null,null,null,null,null,null,null,null,null,null,null,null,6,"DKYHHEOVRIN6QVIKAFSEO77JT","","","0001","0001","0","0000","I","EQ","0091","","0091","","1","","0","","Social Work","","","","","0","","","0","","0","","","00"]
[null,null,null,null,null,null,null,null,null,null,null,null,null,null,null,null,null,null,null,null,null,null,null,null,null,null,null,null,null,null,null,null,null,null,null,null,null,null,null,null,null,null,null,null,null,null,null,null,null,null,null,null,null,null,null,null,null,null,null,null,null,null,null,null,null,null,null,null,null,null,null,null,null,null,null,null,null,null,null,null,null,null,null,null,null,null,null,null,null,null,null,null,null,null,null,null,null,null,null,null,null,null,null,null,null,null,null,null,null,null,null,null,null,null,null,null,null,null,null,null,null,null,null,null,null,null,null,null,null,null,null,null,null,null,null,null,null,null,null,null,null,null,null,null,null,null,null,null,null,null,null,null,null,null,null,39,"DKYHJITTV9I0J7UCXUDTKO73T","","X","3","0","ZPERSAREA","","","0","","","",null,null,null,null,null,null,null,null,null,null,null,null,null,null,null,null,null,null,null,null,null,null,null,null,null,null,null,null,null,null,null,null,null,null,null,null,null,5,"DKYHHG0JMCFYVLW37V8MO0D15","","","0001","0001","0","0000","I","EQ","0081","","0081","","1","","0","","Land and Environmental","","","","","0","","","0","","0","","","00"]
[null,null,null,null,null,null,null,null,null,null,null,null,null,null,null,null,null,null,null,null,null,null,null,null,null,null,null,null,null,null,null,null,null,null,null,null,null,null,null,null,null,null,null,null,null,null,null,null,null,null,null,null,null,null,null,null,null,null,null,null,null,null,null,null,null,null,null,null,null,null,null,null,null,null,null,null,null,null,null,null,null,null,null,null,null,null,null,null,null,null,null,null,null,null,null,null,null,null,null,null,null,null,null,null,null,null,null,null,null,null,null,null,null,null,null,null,null,null,null,null,null,null,null,null,null,null,null,null,null,null,null,null,null,null,null,null,null,null,null,null,null,null,null,null,null,null,null,null,null,null,null,null,null,null,null,40,"DKYHJOFLTPJF95PIY0YWNEWAH","","X","3","0","ZPERSAREA","","","0","","","",null,null,null,null,null,null,null,null,null,null,null,null,null,null,null,null,null,null,null,null,null,null,null,null,null,null,null,null,null,null,null,null,null,null,null,null,null,4,"DKYHHG0JMCW48MR0Y7CI2ZOQH","","","0001","0001","0","0000","I","EQ","0071","","0071","","1","","0","","Financial","","","","","0","","","0","","0","","","00"]
[null,null,null,null,null,null,null,null,null,null,null,null,null,null,null,null,null,null,null,null,null,null,null,null,null,null,null,null,null,null,null,null,null,null,null,null,null,null,null,null,null,null,null,null,null,null,null,null,null,null,null,null,null,null,null,null,null,null,null,null,null,null,null,null,null,null,null,null,null,null,null,null,null,null,null,null,null,null,null,null,null,null,null,null,null,null,null,null,null,null,null,null,null,null,null,null,null,null,null,null,null,null,null,null,null,null,null,null,null,null,null,null,null,null,null,null,null,null,null,null,null,null,null,null,null,null,null,null,null,null,null,null,null,null,null,null,null,null,null,null,null,null,null,null,null,null,null,null,null,null,null,null,null,null,null,41,"DKYHJSK1JF06NZHO9ERBZZQWP","","X","3","0","ZPERSAREA","","","0","","","",null,null,null,null,null,null,null,null,null,null,null,null,null,null,null,null,null,null,null,null,null,null,null,null,null,null,null,null,null,null,null,null,null,null,null,null,null,28,"DKYHIGO9K30TROFHWV99F1NUH","","","0001","0001","0","0000","I","EQ","50004878","","50004878","","1","","0","","Chief Executive Srv","","","","","0","","","0","","0","","","00"]
[null,null,null,null,null,null,null,null,null,null,null,null,null,null,null,null,null,null,null,null,null,null,null,null,null,null,null,null,null,null,null,null,null,null,null,null,null,null,null,null,null,null,null,null,null,null,null,null,null,null,null,null,null,null,null,null,null,null,null,null,null,null,null,null,null,null,null,null,null,null,null,null,null,null,null,null,null,null,null,null,null,null,null,null,null,null,null,null,null,null,null,null,null,null,null,null,null,null,null,null,null,null,null,null,null,null,null,null,null,null,null,null,null,null,null,null,null,null,null,null,null,null,null,null,null,null,null,null,null,null,null,null,null,null,null,null,null,null,null,null,null,null,null,null,null,null,null,null,null,null,null,null,null,null,null,42,"DKYHJTZQFZTLVXSROZHLDR1MH","","X","3","0","ZPERSAREA","","","0","","","",null,null,null,null,null,null,null,null,null,null,null,null,null,null,null,null,null,null,null,null,null,null,null,null,null,null,null,null,null,null,null,null,null,null,null,null,null,28,"DKYHIGO9K30TROFHWV99F1NUH","","","0002","0001","0","0000","I","EQ","50004879","0ORGUNIT","50004879","","1","","4","","Chief Executive Organisation Structure","","","","ORGEH","1","","000","1","20150930","1","","","00"]
[null,null,null,null,null,null,null,null,null,null,null,null,null,null,null,null,null,null,null,null,null,null,null,null,null,null,null,null,null,null,null,null,null,null,null,null,null,null,null,null,null,null,null,null,null,null,null,null,null,null,null,null,null,null,null,null,null,null,null,null,null,null,null,null,null,null,null,null,null,null,null,null,null,null,null,null,null,null,null,null,null,null,null,null,null,null,null,null,null,null,null,null,null,null,null,null,null,null,null,null,null,null,null,null,null,null,null,null,null,null,null,null,null,null,null,null,null,null,null,null,null,null,null,null,null,null,null,null,null,null,null,null,null,null,null,null,null,null,null,null,null,null,null,null,null,null,null,null,null,null,null,null,null,null,null,null,null,null,null,null,null,null,null,null,null,null,null,null,null,null,null,null,null,null,null,null,null,null,null,null,null,null,null,null,null,null,null,null,null,null,null,null,null,null,null,null,null,null,null,null,null,null,null,null,null,28,"DKYHIGO9K30TROFHWV99F1NUH","","","0003","0001","0","0000","I","EQ","50004939","0ORGUNIT","50004939","","1","","4","","Communication & Organisation Development","","","","ORGEH","1","","000","1","20150930","1","","","00"]
[null,null,null,null,null,null,null,null,null,null,null,null,null,null,null,null,null,null,null,null,null,null,null,null,null,null,null,null,null,null,null,null,null,null,null,null,null,null,null,null,null,null,null,null,null,null,null,null,null,null,null,null,null,null,null,null,null,null,null,null,null,null,null,null,null,null,null,null,null,null,null,null,null,null,null,null,null,null,null,null,null,null,null,null,null,null,null,null,null,null,null,null,null,null,null,null,null,null,null,null,null,null,null,null,null,null,null,null,null,null,null,null,null,null,null,null,null,null,null,null,null,null,null,null,null,null,null,null,null,null,null,null,null,null,null,null,null,null,null,null,null,null,null,null,null,null,null,null,null,null,null,null,null,null,null,null,null,null,null,null,null,null,null,null,null,null,null,null,null,null,null,null,null,null,null,null,null,null,null,null,null,null,null,null,null,null,null,null,null,null,null,null,null,null,null,null,null,null,null,null,null,null,null,null,null,28,"DKYHIGO9K30TROFHWV99F1NUH","","","0004","0001","0","0000","I","EQ","50258124","0ORGUNIT","50258124","","1","","4","","CE Corporate Policy","","","","ORGEH","1","","000","1","20150930","1","","","00"]
[null,null,null,null,null,null,null,null,null,null,null,null,null,null,null,null,null,null,null,null,null,null,null,null,null,null,null,null,null,null,null,null,null,null,null,null,null,null,null,null,null,null,null,null,null,null,null,null,null,null,null,null,null,null,null,null,null,null,null,null,null,null,null,null,null,null,null,null,null,null,null,null,null,null,null,null,null,null,null,null,null,null,null,null,null,null,null,null,null,null,null,null,null,null,null,null,null,null,null,null,null,null,null,null,null,null,null,null,null,null,null,null,null,null,null,null,null,null,null,null,null,null,null,null,null,null,null,null,null,null,null,null,null,null,null,null,null,null,null,null,null,null,null,null,null,null,null,null,null,null,null,null,null,null,null,null,null,null,null,null,null,null,null,null,null,null,null,null,null,null,null,null,null,null,null,null,null,null,null,null,null,null,null,null,null,null,null,null,null,null,null,null,null,null,null,null,null,null,null,null,null,null,null,null,null,28,"DKYHIGO9K30TROFHWV99F1NUH","","","0005","0001","0","0000","I","EQ","50004880","0ORGUNIT","50004880","","1","","4","","Corporate Services","","","","ORGEH","1","","000","1","20150930","1","","","00"]
[null,null,null,null,null,null,null,null,null,null,null,null,null,null,null,null,null,null,null,null,null,null,null,null,null,null,null,null,null,null,null,null,null,null,null,null,null,null,null,null,null,null,null,null,null,null,null,null,null,null,null,null,null,null,null,null,null,null,null,null,null,null,null,null,null,null,null,null,null,null,null,null,null,null,null,null,null,null,null,null,null,null,null,null,null,null,null,null,null,null,null,null,null,null,null,null,null,null,null,null,null,null,null,null,null,null,null,null,null,null,null,null,null,null,null,null,null,null,null,null,null,null,null,null,null,null,null,null,null,null,null,null,null,null,null,null,null,null,null,null,null,null,null,null,null,null,null,null,null,null,null,null,null,null,null,null,null,null,null,null,null,null,null,null,null,null,null,null,null,null,null,null,null,null,null,null,null,null,null,null,null,null,null,null,null,null,null,null,null,null,null,null,null,null,null,null,null,null,null,null,null,null,null,null,null,29,"DKYHIJQQUM15YCM8U042H4VLL","","","0001","0001","0","0000","I","EQ","50004878","","50004878","","1","","0","","Chief Executive Srv","","","","","0","","","0","","0","","","00"]
[null,null,null,null,null,null,null,null,null,null,null,null,null,null,null,null,null,null,null,null,null,null,null,null,null,null,null,null,null,null,null,null,null,null,null,null,null,null,null,null,null,null,null,null,null,null,null,null,null,null,null,null,null,null,null,null,null,null,null,null,null,null,null,null,null,null,null,null,null,null,null,null,null,null,null,null,null,null,null,null,null,null,null,null,null,null,null,null,null,null,null,null,null,null,null,null,null,null,null,null,null,null,null,null,null,null,null,null,null,null,null,null,null,null,null,null,null,null,null,null,null,null,null,null,null,null,null,null,null,null,null,null,null,null,null,null,null,null,null,null,null,null,null,null,null,null,null,null,null,null,null,null,null,null,null,null,null,null,null,null,null,null,null,null,null,null,null,null,null,null,null,null,null,null,null,null,null,null,null,null,null,null,null,null,null,null,null,null,null,null,null,null,null,null,null,null,null,null,null,null,null,null,null,null,null,29,"DKYHIJQQUM15YCM8U042H4VLL","","","0002","0001","0","0000","I","EQ","50004879","0ORGUNIT","50004879","","1","","4","","Chief Executive Organisation Structure","","","","ORGEH","1","","000","1","20150930","1","","","00"]
[null,null,null,null,null,null,null,null,null,null,null,null,null,null,null,null,null,null,null,null,null,null,null,null,null,null,null,null,null,null,null,null,null,null,null,null,null,null,null,null,null,null,null,null,null,null,null,null,null,null,null,null,null,null,null,null,null,null,null,null,null,null,null,null,null,null,null,null,null,null,null,null,null,null,null,null,null,null,null,null,null,null,null,null,null,null,null,null,null,null,null,null,null,null,null,null,null,null,null,null,null,null,null,null,null,null,null,null,null,null,null,null,null,null,null,null,null,null,null,null,null,null,null,null,null,null,null,null,null,null,null,null,null,null,null,null,null,null,null,null,null,null,null,null,null,null,null,null,null,null,null,null,null,null,null,null,null,null,null,null,null,null,null,null,null,null,null,null,null,null,null,null,null,null,null,null,null,null,null,null,null,null,null,null,null,null,null,null,null,null,null,null,null,null,null,null,null,null,null,null,null,null,null,null,null,29,"DKYHIJQQUM15YCM8U042H4VLL","","","0003","0001","0","0000","I","EQ","50004939","0ORGUNIT","50004939","","1","","4","","Communication & Organisation Development","","","","ORGEH","1","","000","1","20150930","1","","","00"]
[null,null,null,null,null,null,null,null,null,null,null,null,null,null,null,null,null,null,null,null,null,null,null,null,null,null,null,null,null,null,null,null,null,null,null,null,null,null,null,null,null,null,null,null,null,null,null,null,null,null,null,null,null,null,null,null,null,null,null,null,null,null,null,null,null,null,null,null,null,null,null,null,null,null,null,null,null,null,null,null,null,null,null,null,null,null,null,null,null,null,null,null,null,null,null,null,null,null,null,null,null,null,null,null,null,null,null,null,null,null,null,null,null,null,null,null,null,null,null,null,null,null,null,null,null,null,null,null,null,null,null,null,null,null,null,null,null,null,null,null,null,null,null,null,null,null,null,null,null,null,null,null,null,null,null,null,null,null,null,null,null,null,null,null,null,null,null,null,null,null,null,null,null,null,null,null,null,null,null,null,null,null,null,null,null,null,null,null,null,null,null,null,null,null,null,null,null,null,null,null,null,null,null,null,null,29,"DKYHIJQQUM15YCM8U042H4VLL","","","0004","0001","0","0000","I","EQ","50258124","0ORGUNIT","50258124","","1","","4","","CE Corporate Policy","","","","ORGEH","1","","000","1","20150930","1","","","00"]
[null,null,null,null,null,null,null,null,null,null,null,null,null,null,null,null,null,null,null,null,null,null,null,null,null,null,null,null,null,null,null,null,null,null,null,null,null,null,null,null,null,null,null,null,null,null,null,null,null,null,null,null,null,null,null,null,null,null,null,null,null,null,null,null,null,null,null,null,null,null,null,null,null,null,null,null,null,null,null,null,null,null,null,null,null,null,null,null,null,null,null,null,null,null,null,null,null,null,null,null,null,null,null,null,null,null,null,null,null,null,null,null,null,null,null,null,null,null,null,null,null,null,null,null,null,null,null,null,null,null,null,null,null,null,null,null,null,null,null,null,null,null,null,null,null,null,null,null,null,null,null,null,null,null,null,null,null,null,null,null,null,null,null,null,null,null,null,null,null,null,null,null,null,null,null,null,null,null,null,null,null,null,null,null,null,null,null,null,null,null,null,null,null,null,null,null,null,null,null,null,null,null,null,null,null,30,"DKYHIMFMLQU8K6O8OHC8MKP2X","","","0001","0001","0","0000","I","EQ","50004880","0ORGUNIT","50004880","","1","","4","","Corporate Services","","","","ORGEH","1","","000","1","20150930","1","","","00"]
[null,null,null,null,null,null,null,null,null,null,null,null,null,null,null,null,null,null,null,null,null,null,null,null,null,null,null,null,null,null,null,null,null,null,null,null,null,null,null,null,null,null,null,null,null,null,null,null,null,null,null,null,null,null,null,null,null,null,null,null,null,null,null,null,null,null,null,null,null,null,null,null,null,null,null,null,null,null,null,null,null,null,null,null,null,null,null,null,null,null,null,null,null,null,null,null,null,null,null,null,null,null,null,null,null,null,null,null,null,null,null,null,null,null,null,null,null,null,null,null,null,null,null,null,null,null,null,null,null,null,null,null,null,null,null,null,null,null,null,null,null,null,null,null,null,null,null,null,null,null,null,null,null,null,null,null,null,null,null,null,null,null,null,null,null,null,null,null,null,null,null,null,null,null,null,null,null,null,null,null,null,null,null,null,null,null,null,null,null,null,null,null,null,null,null,null,null,null,null,null,null,null,null,null,null,23,"DKYHINZ2O1WOOEW2YIWNM2A61","","","0001","0001","0","0000","I","EQ","0031","","0031","","1","","0","","Development and Regeneration","","","","","0","","","0","","0","","","00"]
[null,null,null,null,null,null,null,null,null,null,null,null,null,null,null,null,null,null,null,null,null,null,null,null,null,null,null,null,null,null,null,null,null,null,null,null,null,null,null,null,null,null,null,null,null,null,null,null,null,null,null,null,null,null,null,null,null,null,null,null,null,null,null,null,null,null,null,null,null,null,null,null,null,null,null,null,null,null,null,null,null,null,null,null,null,null,null,null,null,null,null,null,null,null,null,null,null,null,null,null,null,null,null,null,null,null,null,null,null,null,null,null,null,null,null,null,null,null,null,null,null,null,null,null,null,null,null,null,null,null,null,null,null,null,null,null,null,null,null,null,null,null,null,null,null,null,null,null,null,null,null,null,null,null,null,null,null,null,null,null,null,null,null,null,null,null,null,null,null,null,null,null,null,null,null,null,null,null,null,null,null,null,null,null,null,null,null,null,null,null,null,null,null,null,null,null,null,null,null,null,null,null,null,null,null,24,"DKYHIP4BRKA62O8QYH7PVHJW9","","","0001","0001","0","0000","I","EQ","0051","","0051","","1","","0","","Education","","","","","0","","","0","","0","","","00"]
[null,null,null,null,null,null,null,null,null,null,null,null,null,null,null,null,null,null,null,null,null,null,null,null,null,null,null,null,null,null,null,null,null,null,null,null,null,null,null,null,null,null,null,null,null,null,null,null,null,null,null,null,null,null,null,null,null,null,null,null,null,null,null,null,null,null,null,null,null,null,null,null,null,null,null,null,null,null,null,null,null,null,null,null,null,null,null,null,null,null,null,null,null,null,null,null,null,null,null,null,null,null,null,null,null,null,null,null,null,null,null,null,null,null,null,null,null,null,null,null,null,null,null,null,null,null,null,null,null,null,null,null,null,null,null,null,null,null,null,null,null,null,null,null,null,null,null,null,null,null,null,null,null,null,null,null,null,null,null,null,null,null,null,null,null,null,null,null,null,null,null,null,null,null,null,null,null,null,null,null,null,null,null,null,null,null,null,null,null,null,null,null,null,null,null,null,null,null,null,null,null,null,null,null,null,25,"DKYHIUMKSYR8DGXC0XFPN9VCP","","","0001","0001","0","0000","I","EQ","0071","","0071","","1","","0","","Financial","","","","","0","","","0","","0","","","00"]
[null,null,null,null,null,null,null,null,null,null,null,null,null,null,null,null,null,null,null,null,null,null,null,null,null,null,null,null,null,null,null,null,null,null,null,null,null,null,null,null,null,null,null,null,null,null,null,null,null,null,null,null,null,null,null,null,null,null,null,null,null,null,null,null,null,null,null,null,null,null,null,null,null,null,null,null,null,null,null,null,null,null,null,null,null,null,null,null,null,null,null,null,null,null,null,null,null,null,null,null,null,null,null,null,null,null,null,null,null,null,null,null,null,null,null,null,null,null,null,null,null,null,null,null,null,null,null,null,null,null,null,null,null,null,null,null,null,null,null,null,null,null,null,null,null,null,null,null,null,null,null,null,null,null,null,null,null,null,null,null,null,null,null,null,null,null,null,null,null,null,null,null,null,null,null,null,null,null,null,null,null,null,null,null,null,null,null,null,null,null,null,null,null,null,null,null,null,null,null,null,null,null,null,null,null,26,"DKYHIVX8ED9KUVX81T909ECXL","","","0001","0001","0","0000","I","EQ","0081","","0081","","1","","0","","Land and Environmental","","","","","0","","","0","","0","","","00"]
[null,null,null,null,null,null,null,null,null,null,null,null,null,null,null,null,null,null,null,null,null,null,null,null,null,null,null,null,null,null,null,null,null,null,null,null,null,null,null,null,null,null,null,null,null,null,null,null,null,null,null,null,null,null,null,null,null,null,null,null,null,null,null,null,null,null,null,null,null,null,null,null,null,null,null,null,null,null,null,null,null,null,null,null,null,null,null,null,null,null,null,null,null,null,null,null,null,null,null,null,null,null,null,null,null,null,null,null,null,null,null,null,null,null,null,null,null,null,null,null,null,null,null,null,null,null,null,null,null,null,null,null,null,null,null,null,null,null,null,null,null,null,null,null,null,null,null,null,null,null,null,null,null,null,null,null,null,null,null,null,null,null,null,null,null,null,null,null,null,null,null,null,null,null,null,null,null,null,null,null,null,null,null,null,null,null,null,null,null,null,null,null,null,null,null,null,null,null,null,null,null,null,null,null,null,27,"DKYHIXL9AGI2528MDN66ZKO3D","","","0001","0001","0","0000","I","EQ","0091","","0091","","1","","0","","Social Work","","","","","0","","","0","","0","","","00"]
[null,null,null,null,null,null,null,null,null,null,null,null,null,null,null,null,null,null,null,null,null,null,null,null,null,null,null,null,null,null,null,null,null,null,null,null,null,null,null,null,null,null,null,null,null,null,null,null,null,null,null,null,null,null,null,null,null,null,null,null,null,null,null,null,null,null,null,null,null,null,null,null,null,null,null,null,null,null,null,null,null,null,null,null,null,null,null,null,null,null,null,null,null,null,null,null,null,null,null,null,null,null,null,null,null,null,null,null,null,null,null,null,null,null,null,null,null,null,null,null,null,null,null,null,null,null,null,null,null,null,null,null,null,null,null,null,null,null,null,null,null,null,null,null,null,null,null,null,null,null,null,null,null,null,null,null,null,null,null,null,null,null,null,null,null,null,null,null,null,null,null,null,null,null,null,null,null,null,null,null,null,null,null,null,null,null,null,null,null,null,null,null,null,null,null,null,null,null,null,null,null,null,null,null,null,37,"DKYHJ4YJENULPKR0QTGA5RY0P","","","0001","0001","0","0000","I","EQ","50004879","","50004879","","1","","0","","Chief Executive Organisation Structure","","","","","0","","","0","","0","","","00"]
[null,null,null,null,null,null,null,null,null,null,null,null,null,null,null,null,null,null,null,null,null,null,null,null,null,null,null,null,null,null,null,null,null,null,null,null,null,null,null,null,null,null,null,null,null,null,null,null,null,null,null,null,null,null,null,null,null,null,null,null,null,null,null,null,null,null,null,null,null,null,null,null,null,null,null,null,null,null,null,null,null,null,null,null,null,null,null,null,null,null,null,null,null,null,null,null,null,null,null,null,null,null,null,null,null,null,null,null,null,null,null,null,null,null,null,null,null,null,null,null,null,null,null,null,null,null,null,null,null,null,null,null,null,null,null,null,null,null,null,null,null,null,null,null,null,null,null,null,null,null,null,null,null,null,null,null,null,null,null,null,null,null,null,null,null,null,null,null,null,null,null,null,null,null,null,null,null,null,null,null,null,null,null,null,null,null,null,null,null,null,null,null,null,null,null,null,null,null,null,null,null,null,null,null,null,37,"DKYHJ4YJENULPKR0QTGA5RY0P","","","0002","0001","0","0000","I","EQ","50216527","0ORGUNIT","50216527","","1","","4","","Chief Executive's Office","","","","ORGEH","1","","000","1","20150930","1","","","00"]
[null,null,null,null,null,null,null,null,null,null,null,null,null,null,null,null,null,null,null,null,null,null,null,null,null,null,null,null,null,null,null,null,null,null,null,null,null,null,null,null,null,null,null,null,null,null,null,null,null,null,null,null,null,null,null,null,null,null,null,null,null,null,null,null,null,null,null,null,null,null,null,null,null,null,null,null,null,null,null,null,null,null,null,null,null,null,null,null,null,null,null,null,null,null,null,null,null,null,null,null,null,null,null,null,null,null,null,null,null,null,null,null,null,null,null,null,null,null,null,null,null,null,null,null,null,null,null,null,null,null,null,null,null,null,null,null,null,null,null,null,null,null,null,null,null,null,null,null,null,null,null,null,null,null,null,null,null,null,null,null,null,null,null,null,null,null,null,null,null,null,null,null,null,null,null,null,null,null,null,null,null,null,null,null,null,null,null,null,null,null,null,null,null,null,null,null,null,null,null,null,null,null,null,null,null,37,"DKYHJ4YJENULPKR0QTGA5RY0P","","","0003","0001","0","0000","I","EQ","50004880","0ORGUNIT","50004880","","1","","4","","Corporate Services","","","","ORGEH","1","","000","1","20150930","1","","","00"]
[null,null,null,null,null,null,null,null,null,null,null,null,null,null,null,null,null,null,null,null,null,null,null,null,null,null,null,null,null,null,null,null,null,null,null,null,null,null,null,null,null,null,null,null,null,null,null,null,null,null,null,null,null,null,null,null,null,null,null,null,null,null,null,null,null,null,null,null,null,null,null,null,null,null,null,null,null,null,null,null,null,null,null,null,null,null,null,null,null,null,null,null,null,null,null,null,null,null,null,null,null,null,null,null,null,null,null,null,null,null,null,null,null,null,null,null,null,null,null,null,null,null,null,null,null,null,null,null,null,null,null,null,null,null,null,null,null,null,null,null,null,null,null,null,null,null,null,null,null,null,null,null,null,null,null,null,null,null,null,null,null,null,null,null,null,null,null,null,null,null,null,null,null,null,null,null,null,null,null,null,null,null,null,null,null,null,null,null,null,null,null,null,null,null,null,null,null,null,null,null,null,null,null,null,null,37,"DKYHJ4YJENULPKR0QTGA5RY0P","","","0004","0001","0","0000","I","EQ","50004939","0ORGUNIT","50004939","","1","","4","","Communication & Organisation Development","","","","ORGEH","1","","000","1","20150930","1","","","00"]
[null,null,null,null,null,null,null,null,null,null,null,null,null,null,null,null,null,null,null,null,null,null,null,null,null,null,null,null,null,null,null,null,null,null,null,null,null,null,null,null,null,null,null,null,null,null,null,null,null,null,null,null,null,null,null,null,null,null,null,null,null,null,null,null,null,null,null,null,null,null,null,null,null,null,null,null,null,null,null,null,null,null,null,null,null,null,null,null,null,null,null,null,null,null,null,null,null,null,null,null,null,null,null,null,null,null,null,null,null,null,null,null,null,null,null,null,null,null,null,null,null,null,null,null,null,null,null,null,null,null,null,null,null,null,null,null,null,null,null,null,null,null,null,null,null,null,null,null,null,null,null,null,null,null,null,null,null,null,null,null,null,null,null,null,null,null,null,null,null,null,null,null,null,null,null,null,null,null,null,null,null,null,null,null,null,null,null,null,null,null,null,null,null,null,null,null,null,null,null,null,null,null,null,null,null,37,"DKYHJ4YJENULPKR0QTGA5RY0P","","","0005","0001","0","0000","I","EQ","50258124","0ORGUNIT","50258124","","1","","4","","CE Corporate Policy","","","","ORGEH","1","","000","1","20150930","1","","","00"]
[null,null,null,null,null,null,null,null,null,null,null,null,null,null,null,null,null,null,null,null,null,null,null,null,null,null,null,null,null,null,null,null,null,null,null,null,null,null,null,null,null,null,null,null,null,null,null,null,null,null,null,null,null,null,null,null,null,null,null,null,null,null,null,null,null,null,null,null,null,null,null,null,null,null,null,null,null,null,null,null,null,null,null,null,null,null,null,null,null,null,null,null,null,null,null,null,null,null,null,null,null,null,null,null,null,null,null,null,null,null,null,null,null,null,null,null,null,null,null,null,null,null,null,null,null,null,null,null,null,null,null,null,null,null,null,null,null,null,null,null,null,null,null,null,null,null,null,null,null,null,null,null,null,null,null,null,null,null,null,null,null,null,null,null,null,null,null,null,null,null,null,null,null,null,null,null,null,null,null,null,null,null,null,null,null,null,null,null,null,null,null,null,null,null,null,null,null,null,null,null,null,null,null,null,null,38,"DKYHJEJT2BNPWGJDVWYC7BWU1","","","0001","0001","0","0000","I","EQ","0031","","0031","","1","","0","","Development and Regeneration","","","","","0","","","0","","0","","","00"]
[null,null,null,null,null,null,null,null,null,null,null,null,null,null,null,null,null,null,null,null,null,null,null,null,null,null,null,null,null,null,null,null,null,null,null,null,null,null,null,null,null,null,null,null,null,null,null,null,null,null,null,null,null,null,null,null,null,null,null,null,null,null,null,null,null,null,null,null,null,null,null,null,null,null,null,null,null,null,null,null,null,null,null,null,null,null,null,null,null,null,null,null,null,null,null,null,null,null,null,null,null,null,null,null,null,null,null,null,null,null,null,null,null,null,null,null,null,null,null,null,null,null,null,null,null,null,null,null,null,null,null,null,null,null,null,null,null,null,null,null,null,null,null,null,null,null,null,null,null,null,null,null,null,null,null,null,null,null,null,null,null,null,null,null,null,null,null,null,null,null,null,null,null,null,null,null,null,null,null,null,null,null,null,null,null,null,null,null,null,null,null,null,null,null,null,null,null,null,null,null,null,null,null,null,null,39,"DKYHJITTV9I0J7UCXUDTKO73T","","","0001","0001","0","0000","I","EQ","0051","","0051","","1","","0","","Education","","","","","0","","","0","","0","","","00"]
[null,null,null,null,null,null,null,null,null,null,null,null,null,null,null,null,null,null,null,null,null,null,null,null,null,null,null,null,null,null,null,null,null,null,null,null,null,null,null,null,null,null,null,null,null,null,null,null,null,null,null,null,null,null,null,null,null,null,null,null,null,null,null,null,null,null,null,null,null,null,null,null,null,null,null,null,null,null,null,null,null,null,null,null,null,null,null,null,null,null,null,null,null,null,null,null,null,null,null,null,null,null,null,null,null,null,null,null,null,null,null,null,null,null,null,null,null,null,null,null,null,null,null,null,null,null,null,null,null,null,null,null,null,null,null,null,null,null,null,null,null,null,null,null,null,null,null,null,null,null,null,null,null,null,null,null,null,null,null,null,null,null,null,null,null,null,null,null,null,null,null,null,null,null,null,null,null,null,null,null,null,null,null,null,null,null,null,null,null,null,null,null,null,null,null,null,null,null,null,null,null,null,null,null,null,40,"DKYHJOFLTPJF95PIY0YWNEWAH","","","0001","0001","0","0000","I","EQ","0071","","0071","","1","","0","","Financial","","","","","0","","","0","","0","","","00"]
[null,null,null,null,null,null,null,null,null,null,null,null,null,null,null,null,null,null,null,null,null,null,null,null,null,null,null,null,null,null,null,null,null,null,null,null,null,null,null,null,null,null,null,null,null,null,null,null,null,null,null,null,null,null,null,null,null,null,null,null,null,null,null,null,null,null,null,null,null,null,null,null,null,null,null,null,null,null,null,null,null,null,null,null,null,null,null,null,null,null,null,null,null,null,null,null,null,null,null,null,null,null,null,null,null,null,null,null,null,null,null,null,null,null,null,null,null,null,null,null,null,null,null,null,null,null,null,null,null,null,null,null,null,null,null,null,null,null,null,null,null,null,null,null,null,null,null,null,null,null,null,null,null,null,null,null,null,null,null,null,null,null,null,null,null,null,null,null,null,null,null,null,null,null,null,null,null,null,null,null,null,null,null,null,null,null,null,null,null,null,null,null,null,null,null,null,null,null,null,null,null,null,null,null,null,41,"DKYHJSK1JF06NZHO9ERBZZQWP","","","0001","0001","0","0000","I","EQ","0081","","0081","","1","","0","","Land and Environmental","","","","","0","","","0","","0","","","00"]
[null,null,null,null,null,null,null,null,null,null,null,null,null,null,null,null,null,null,null,null,null,null,null,null,null,null,null,null,null,null,null,null,null,null,null,null,null,null,null,null,null,null,null,null,null,null,null,null,null,null,null,null,null,null,null,null,null,null,null,null,null,null,null,null,null,null,null,null,null,null,null,null,null,null,null,null,null,null,null,null,null,null,null,null,null,null,null,null,null,null,null,null,null,null,null,null,null,null,null,null,null,null,null,null,null,null,null,null,null,null,null,null,null,null,null,null,null,null,null,null,null,null,null,null,null,null,null,null,null,null,null,null,null,null,null,null,null,null,null,null,null,null,null,null,null,null,null,null,null,null,null,null,null,null,null,null,null,null,null,null,null,null,null,null,null,null,null,null,null,null,null,null,null,null,null,null,null,null,null,null,null,null,null,null,null,null,null,null,null,null,null,null,null,null,null,null,null,null,null,null,null,null,null,null,null,42,"DKYHJTZQFZTLVXSROZHLDR1MH","","","0001","0001","0","0000","I","EQ","0091","","0091","","1","","0","","Social Work","","","","","0","","","0","","0","","","00"]

{"sheet":"BExRepositorySheet","index":2,"n_rows":1,"n_cols":1,"rows_kept":1,"cut":false,"hidden":true,"merged":[]}
[7]

{"sheet":"Summary","index":3,"n_rows":28,"n_cols":9,"rows_kept":28,"cut":false,"hidden":false,"merged":[[9,8,10,8],[11,0,11,1],[12,0,12,1],[13,0,13,1],[14,0,14,1],[3,2,5,7],[25,0,25,1],[26,0,26,1],[27,0,27,1],[18,0,18,1],[19,0,19,1],[20,0,20,1],[21,0,21,1],[23,0,23,1],[24,0,24,1],[17,0,17,1],[9,0,10,1],[9,2,10,3],[9,5,10,6],[15,0,15,1],[16,0,16,1]]}
["WORKFORCE PROFILE BY GENDER "]
["GLASGOW LIFE"]
["2017-09-01"]
[null,null,"The table below has been simplified to provide a summary of the Company's workforce by Gender.  The detailed information to support this is provided on Page 2"]
[]
[]
[]
[]
[]
[null,null,"Male",null,null,"Female",null,null,"Total Workforce"]
[]
["GRADE & GENDER",null,"Number","%",null,"Number","%",null,"Number"]
[]
["Grade 1-4 Total",null,{"$f":"Template!AJ6","v":825},{"$f":"C14/I14","v":0.51600000000000001},null,{"$f":"Template!AK6","v":775},{"$f":"F14/I14","v":0.48399999999999999},null,{"$f":"Template!AL6","v":1600}]
[null,null," "]
["Grade 5-7 Total",null,{"$f":"Template!AJ10","v":326},{"$f":"C16/I16","v":0.41299999999999998},null,{"$f":"Template!AK10","v":463},{"$f":"F16/I16","v":0.58699999999999997},null,{"$f":"Template!AL10","v":789}]
[null,null,null," "]
["Grade 8 Total",null,{"$f":"Template!AJ14","v":23},{"$f":"C18/I18","v":0.42599999999999999},null,{"$f":"Template!AK14","v":31},{"$f":"F18/I18","v":0.57399999999999995},null,{"$f":"Template!AL14","v":54}]
[null,null,null," "]
["Grade 9-15 Total",null,{"$f":"Template!AJ22+Template!AJ26","v":16},{"$f":"C20/I20","v":0.51600000000000001},null,{"$f":"Template!AK22+Template!AK26","v":15},{"$f":"F20/I20","v":0.48399999999999999},null,{"$f":"Template!AN22+Template!AN26","v":31}]
[]
["Other Non Pay & Grading Structure Total",null,{"$f":"Template!AJ30","v":23},{"$f":"C22/I22","v":0.28000000000000003},null,{"$f":"Template!AK30","v":59},{"$f":"F22/I22","v":0.72},null,{"$f":"Template!AL30","v":82}]
[null,null,null,null,null," "]
["Total Workforce F/T",null,{"$f":"Template!AJ32","v":926},{"$f":"C24/I24","v":0.55000000000000004},null,{"$f":"Template!AK32","v":758},{"$f":"F24/I24","v":0.45},null,{"$f":"Template!AL32","v":1684}]
[]
["Total Workforce P/T",null,{"$f":"Template!AJ34","v":287},{"$f":"C26/I26","v":0.32900000000000001},null,{"$f":"Template!AK34","v":585},{"$f":"F26/I26","v":0.67100000000000004},null,{"$f":"Template!AL34","v":872}]
[null,null,null,null,null,null," "]
["Total Workforce",null,{"$f":"Template!AJ36","v":1213},{"$f":"C28/I28","v":0.47499999999999998},null,{"$f":"Template!AK36","v":1343},{"$f":"F28/I28","v":0.52500000000000002},null,{"$f":"Template!AL36","v":2556}]

{"sheet":"Template","index":4,"n_rows":37,"n_cols":40,"rows_kept":37,"cut":false,"hidden":false,"merged":[[0,0,0,1]]}
[]
["GLASGOW LIFE OVERALL BY GRADE & GENDER","Total White Males","Total White Females","Total White Employees",null,"Total Mixed Males","Total Mixed Females","Total Mixed Employees",null,"Total Other Ethnic Background Males","Total Other Ethnic Background Females","Total Other Ethnic Background",null,"Total Asian Males","Total Asian Females","Total Asian Employees",null,"Total Black Males","Total Black Females","Total Black Employees",null,"Total Black & Minority Ethnic Males","Total Black & Minority Ethnic Females","Total Black & Minority Ethnic Employees",null,"Total Non-Disclosed",null,"Total White Male Employees %","Total White Female Employees %",null,"Total BME Male Employees %","Total BME Female Employees %",null,"Total Non-Disclosed Employees %",null,"Total Male Employees","Total Female Employees","Total Head Count of Workforce",null,"Total FTE of Workforce"]
[]
["Grade 1-4 F/T",{"$f":"Query!B23","v":471},{"$f":"Query!C23","v":272},{"$f":"SUM(B4:C4)","v":743},null,{"$f":"Query!E23","v":2},{"$f":"Query!F23","v":0},{"$f":"SUM(F4:G4)","v":2},null,{"$f":"Query!H23","v":1},{"$f":"Query!I23","v":0},{"$f":"SUM(J4:K4)","v":1},null,{"$f":"Query!K23","v":6},{"$f":"Query!L23","v":2},{"$f":"SUM(N4:O4)","v":8},null,{"$f":"Query!N23","v":3},{"$f":"Query!O23","v":0},{"$f":"SUM(R4:S4)","v":3},null,{"$f":"Query!Q23","v":12},{"$f":"Query!R23","v":2},{"$f":"SUM(V4:W4)","v":14},null,{"$f":"Query!T23","v":128},null,{"$f":"SUM(B4/AJ4)","v":0.83799999999999997},0.84199999999999997,null,{"$f":"SUM(V4/AJ4)","v":2.1000000000000001E-2},6.0000000000000001E-3,null,{"$f":"SUM(Z4/AL4)","v":0.14499999999999999},null,{"$f":"Query!Z23","v":562},{"$f":"Query!AA23","v":323},{"$f":"SUM(AJ4:AK4)","v":885},null,{"$f":"'FTE Query'!D23","v":883.44}]
["Grade 1-4 P/T",{"$f":"Query!B24","v":191},{"$f":"Query!C24","v":362},{"$f":"SUM(B5:C5)","v":553},null,{"$f":"Query!E24","v":1},{"$f":"Query!F24","v":1},{"$f":"SUM(F5:G5)","v":2},null,{"$f":"Query!H24","v":0},{"$f":"Query!I24","v":3},{"$f":"SUM(J5:K5)","v":3},null,{"$f":"Query!K24","v":8},{"$f":"Query!L24","v":6},{"$f":"SUM(N5:O5)","v":14},null,{"$f":"Query!N24","v":2},{"$f":"Query!O24","v":2},{"$f":"SUM(R5:S5)","v":4},null,{"$f":"Query!Q24","v":11},{"$f":"Query!R24","v":12},{"$f":"SUM(V5:W5)","v":23},null,{"$f":"Query!T24","v":139},null,0.72599999999999998,0.80100000000000005,null,4.2000000000000003E-2,2.7E-2,null,{"$f":"SUM(Z5/AL5)","v":0.19400000000000001},null,{"$f":"Query!Z24","v":263},{"$f":"Query!AA24","v":452},{"$f":"SUM(AJ5:AK5)","v":715},null,{"$f":"'FTE Query'!D24","v":349.81}]
["Grade 1-4 Total",{"$f":"SUM(B4:B5)","v":662},{"$f":"SUM(C4:C5)","v":634},{"$f":"SUM(D4:D5)","v":1296},null,{"$f":"SUM(F4:F5)","v":3},{"$f":"SUM(G4:G5)","v":1},{"$f":"SUM(H4:H5)","v":4},null,{"$f":"SUM(J4:J5)","v":1},{"$f":"SUM(K4:K5)","v":3},{"$f":"SUM(L4:L5)","v":4},null,{"$f":"SUM(N4:N5)","v":14},{"$f":"SUM(O4:O5)","v":8},{"$f":"SUM(P4:P5)","v":22},null,{"$f":"SUM(R4:R5)","v":5},{"$f":"SUM(S4:S5)","v":2},{"$f":"SUM(T4:T5)","v":7},null,{"$f":"SUM(V4:V5)","v":23},{"$f":"SUM(W4:W5)","v":14},{"$f":"SUM(X4:X5)","v":37},null,{"$f":"SUM(Z4:Z5)","v":267},null,0.80200000000000005,0.81799999999999995,null,2.8000000000000001E-2,1.7999999999999999E-2,null,{"$f":"SUM(Z6/AL6)","v":0.16700000000000001},null,{"$f":"SUM(AJ4:AJ5)","v":825},{"$f":"SUM(AK4:AK5)","v":775},{"$f":"SUM(AL4:AL5)","v":1600},null,{"$f":"SUM(AN4:AN5)","v":1233.25}]
[]
["Grade 5-7 F/T",{"$f":"Query!B26","v":244},{"$f":"Query!C26","v":295},{"$f":"SUM(B8:C8)","v":539},null,{"$f":"Query!E26","v":2},{"$f":"Query!F26","v":1},{"$f":"SUM(F8:G8)","v":3},null,{"$f":"Query!H26","v":0},{"$f":"Query!I26","v":2},{"$f":"SUM(J8:K8)","v":2},null,{"$f":"Query!K26","v":5},{"$f":"Query!L26","v":4},{"$f":"SUM(N8:O8)","v":9},null,{"$f":"Query!N26","v":0},{"$f":"Query!O26","v":0},{"$f":"SUM(R8:S8)","v":0},null,{"$f":"Query!Q26","v":7},{"$f":"Query!R26","v":7},{"$f":"SUM(V8:W8)","v":14},null,{"$f":"Query!T26","v":95},null,{"$f":"SUM(B8/AJ8)","v":0.80800000000000005},0.85299999999999998,null,{"$f":"SUM(V8/AJ8)","v":2.3E-2},0.02,null,{"$f":"SUM(Z8/AL8)","v":0.14699999999999999},null,{"$f":"Query!Z26","v":302},{"$f":"Query!AA26","v":346},{"$f":"SUM(AJ8:AK8)","v":648},null,{"$f":"'FTE Query'!D26","v":648}]
["Grade 5-7 P/T",{"$f":"Query!B27","v":19},{"$f":"Query!C27","v":94},{"$f":"SUM(B9:C9)","v":113},null,{"$f":"Query!E27","v":0},{"$f":"Query!F27","v":3},{"$f":"SUM(F9:G9)","v":3},null,{"$f":"Query!H27","v":0},{"$f":"Query!I27","v":0},{"$f":"SUM(J9:K9)","v":0},null,{"$f":"Query!K27","v":0},{"$f":"Query!L27","v":1},{"$f":"SUM(N9:O9)","v":1},null,{"$f":"Query!N27","v":0},{"$f":"Query!O27","v":0},{"$f":"SUM(R9:S9)","v":0},null,{"$f":"Query!Q27","v":0},{"$f":"Query!R27","v":4},{"$f":"SUM(V9:W9)","v":4},null,{"$f":"Query!T27","v":24},null,0.79200000000000004,0.80300000000000005,null,0,3.4000000000000002E-2,null,{"$f":"SUM(Z9/AL9)","v":0.17},null,{"$f":"Query!Z27","v":24},{"$f":"Query!AA27","v":117},{"$f":"SUM(AJ9:AK9)","v":141},null,{"$f":"'FTE Query'!D27","v":76.959999999999994}]
["Grade 5-7 Total",{"$f":"SUM(B8:B9)","v":263},{"$f":"SUM(C8:C9)","v":389},{"$f":"SUM(D8:D9)","v":652},null,{"$f":"SUM(F8:F9)","v":2},{"$f":"SUM(G8:G9)","v":4},{"$f":"SUM(H8:H9)","v":6},null,{"$f":"SUM(J8:J9)","v":0},{"$f":"SUM(K8:K9)","v":2},{"$f":"SUM(L8:L9)","v":2},null,{"$f":"SUM(N8:N9)","v":5},{"$f":"SUM(O8:O9)","v":5},{"$f":"SUM(P8:P9)","v":10},null,{"$f":"SUM(R8:R9)","v":0},{"$f":"SUM(S8:S9)","v":0},{"$f":"SUM(T8:T9)","v":0},null,{"$f":"SUM(V8:V9)","v":7},{"$f":"SUM(W8:W9)","v":11},{"$f":"SUM(X8:X9)","v":18},null,{"$f":"SUM(Z8:Z9)","v":119},null,0.80700000000000005,0.84,null,2.1000000000000001E-2,2.4E-2,null,{"$f":"SUM(Z10/AL10)","v":0.151},null,{"$f":"SUM(AJ8:AJ9)","v":326},{"$f":"SUM(AK8:AK9)","v":463},{"$f":"SUM(AL8:AL9)","v":789},null,{"$f":"SUM(AN8:AN9)","v":724.96}]
[]
["Grade 8 F/T",{"$f":"Query!B29","v":20},{"$f":"Query!C29","v":23},{"$f":"SUM(B12:C12)","v":43},null,{"$f":"Query!E29","v":0},{"$f":"Query!F29","v":0},{"$f":"SUM(F12:G12)","v":0},null,{"$f":"Query!H29","v":0},{"$f":"Query!I29","v":0},{"$f":"SUM(J12:K12)","v":0},null,{"$f":"Query!K29","v":0},{"$f":"Query!L29","v":0},{"$f":"SUM(N12:O12)","v":0},null,{"$f":"Query!N29","v":0},{"$f":"Query!O29","v":0},{"$f":"SUM(R12:S12)","v":0},null,{"$f":"Query!Q29","v":0},{"$f":"Query!R29","v":0},{"$f":"SUM(V12:W12)","v":0},null,{"$f":"Query!T29","v":6},null,{"$f":"SUM(B12/AJ12)","v":0.87},0.88500000000000001,null,{"$f":"SUM(V12/AJ12)","v":0},0,null,{"$f":"SUM(Z12/AL12)","v":0.122},null,{"$f":"Query!Z29","v":23},{"$f":"Query!AA29","v":26},{"$f":"SUM(AJ12:AK12)","v":49},null,{"$f":"'FTE Query'!D29","v":49}]
["Grade 8 P/T",{"$f":"Query!B30","v":0},{"$f":"Query!C30","v":4},{"$f":"SUM(B13:C13)","v":4},null,{"$f":"Query!E30","v":0},{"$f":"Query!F30","v":0},{"$f":"SUM(F13:G13)","v":0},null,{"$f":"Query!H30","v":0},{"$f":"Query!I30","v":0},{"$f":"SUM(J13:K13)","v":0},null,{"$f":"Query!K30","v":0},{"$f":"Query!L30","v":0},{"$f":"SUM(N13:O13)","v":0},null,{"$f":"Query!N30","v":0},{"$f":"Query!O30","v":0},{"$f":"SUM(R13:S13)","v":0},null,{"$f":"Query!Q30","v":0},{"$f":"Query!R30","v":0},{"$f":"SUM(V13:W13)","v":0},null,{"$f":"Query!T30","v":1},null,{"$f":"IFERROR(B13/AJ13,0)","v":0},0.8,null,{"$f":"IFERROR(V13/AJ13,0)","v":0},0,null,{"$f":"SUM(Z13/AL13)","v":0.2},null,{"$f":"Query!Z30","v":0},{"$f":"Query!AA30","v":5},{"$f":"SUM(AJ13:AK13)","v":5},null,{"$f":"'FTE Query'!D30","v":4.2300000000000004}]
["Grade 8 Total",{"$f":"SUM(B12:B13)","v":20},{"$f":"SUM(C12:C13)","v":27},{"$f":"SUM(D12:D13)","v":47},null,{"$f":"SUM(F12:F13)","v":0},{"$f":"SUM(G12:G13)","v":0},{"$f":"SUM(H12:H13)","v":0},null,{"$f":"SUM(J12:J13)","v":0},{"$f":"SUM(K12:K13)","v":0},{"$f":"SUM(L12:L13)","v":0},null,{"$f":"SUM(N12:N13)","v":0},{"$f":"SUM(O12:O13)","v":0},{"$f":"SUM(P12:P13)","v":0},null,{"$f":"SUM(R12:R13)","v":0},{"$f":"SUM(S12:S13)","v":0},{"$f":"SUM(T12:T13)","v":0},null,{"$f":"SUM(V12:V13)","v":0},{"$f":"SUM(W12:W13)","v":0},{"$f":"SUM(X12:X13)","v":0},null,{"$f":"SUM(Z12:Z13)","v":7},null,0.87,0.871,null,0,0,null,{"$f":"SUM(Z14/AL14)","v":0.13},null,{"$f":"SUM(AJ12:AJ13)","v":23},{"$f":"SUM(AK12:AK13)","v":31},{"$f":"SUM(AL12:AL13)","v":54},null,{"$f":"SUM(AN12:AN13)","v":53.23}]
[]
["Grade ACZ 8 F/T",{"$f":"Query!B32","v":0},{"$f":"Query!C32","v":0},{"$f":"SUM(B16:C16)","v":0},null,{"$f":"Query!E32","v":0},{"$f":"Query!F32","v":0},{"$f":"SUM(F16:G16)","v":0},null,{"$f":"Query!H32","v":0},{"$f":"Query!I32","v":0},{"$f":"SUM(J16:K16)","v":0},null,{"$f":"Query!K32","v":0},{"$f":"Query!L32","v":0},{"$f":"SUM(N16:O16)","v":0},null,{"$f":"Query!N32","v":0},{"$f":"Query!O32","v":0},{"$f":"SUM(R16:S16)","v":0},null,{"$f":"Query!Q32","v":0},{"$f":"Query!R32","v":0},{"$f":"SUM(V16:W16)","v":0},null,{"$f":"Query!T32","v":0},null,{"$f":"IFERROR(B16/AJ16,0)","v":0},0,null,{"$f":"IFERROR(V16/AJ16,0)","v":0},0,null,{"$f":"IFERROR(Z16/AL16,0)","v":0},null,{"$f":"Query!Z32","v":0},{"$f":"Query!AA32","v":0},{"$f":"SUM(AJ16:AK16)","v":0},null,{"$f":"'FTE Query'!D32","v":0}]
["Grade ACZ 8 P/T",{"$f":"Query!B33","v":0},{"$f":"Query!C33","v":0},{"$f":"SUM(B17:C17)","v":0},null,{"$f":"Query!E33","v":0},{"$f":"Query!F33","v":0},{"$f":"SUM(F17:G17)","v":0},null,{"$f":"Query!H33","v":0},{"$f":"Query!I33","v":0},{"$f":"SUM(J17:K17)","v":0},null,{"$f":"Query!K33","v":0},{"$f":"Query!L33","v":0},{"$f":"SUM(N17:O17)","v":0},null,{"$f":"Query!N33","v":0},{"$f":"Query!O33","v":0},{"$f":"SUM(R17:S17)","v":0},null,{"$f":"Query!Q33","v":0},{"$f":"Query!R33","v":0},{"$f":"SUM(V17:W17)","v":0},null,{"$f":"Query!T33","v":0},null,0,0,null,0,0,null,{"$f":"IFERROR(Z17/AL17,0)","v":0},null,{"$f":"Query!Z33","v":0},{"$f":"Query!AA33","v":0},{"$f":"SUM(AJ17:AK17)","v":0},null,{"$f":"'FTE Query'!D33","v":0}]
["Grade ACZ 8 Total",{"$f":"SUM(B16:B17)","v":0},{"$f":"SUM(C16:C17)","v":0},{"$f":"SUM(D16:D17)","v":0},null,{"$f":"SUM(F16:F17)","v":0},{"$f":"SUM(G16:G17)","v":0},{"$f":"SUM(H16:H17)","v":0},null,{"$f":"SUM(J16:J17)","v":0},{"$f":"SUM(K16:K17)","v":0},{"$f":"SUM(L16:L17)","v":0},null,{"$f":"SUM(N16:N17)","v":0},{"$f":"SUM(O16:O17)","v":0},{"$f":"SUM(P16:P17)","v":0},null,{"$f":"SUM(R16:R17)","v":0},{"$f":"SUM(S16:S17)","v":0},{"$f":"SUM(T16:T17)","v":0},null,{"$f":"SUM(V16:V17)","v":0},{"$f":"SUM(W16:W17)","v":0},{"$f":"SUM(X16:X17)","v":0},null,{"$f":"SUM(Z16:Z17)","v":0},null,0,0,null,0,0,null,{"$f":"IFERROR(Z18/AL18,0)","v":0},null,{"$f":"SUM(AJ16:AJ17)","v":0},{"$f":"SUM(AK16:AK17)","v":0},{"$f":"SUM(AL16:AL17)","v":0},null,{"$f":"SUM(AN16:AN17)","v":0}]
[]
["Grade 9-15 F/T",{"$f":"Query!B35","v":14},{"$f":"Query!C35","v":12},{"$f":"SUM(B20:C20)","v":26},null,{"$f":"Query!E35","v":0},{"$f":"Query!F35","v":0},{"$f":"SUM(F20:G20)","v":0},null,{"$f":"Query!H35","v":0},{"$f":"Query!I35","v":0},{"$f":"SUM(J20:K20)","v":0},null,{"$f":"Query!K35","v":0},{"$f":"Query!L35","v":0},{"$f":"SUM(N20:O20)","v":0},null,{"$f":"Query!N35","v":0},{"$f":"Query!O35","v":0},{"$f":"SUM(R20:S20)","v":0},null,{"$f":"Query!Q35","v":0},{"$f":"Query!R35","v":0},{"$f":"SUM(V20:W20)","v":0},null,{"$f":"Query!T35","v":4},null,{"$f":"SUM(B20/AJ20)","v":0.93300000000000005},0.8,null,{"$f":"SUM(V20/AJ20)","v":0},0,null,{"$f":"SUM(Z20/AL20)","v":0.13300000000000001},null,{"$f":"Query!Z35","v":15},{"$f":"Query!AA35","v":15},{"$f":"SUM(AJ20:AK20)","v":30},null,{"$f":"'FTE Query'!D35","v":30}]
["Grade 9-15 P/T",{"$f":"Query!B36","v":0},{"$f":"Query!C36","v":0},{"$f":"SUM(B21:C21)","v":0},null,{"$f":"Query!E36","v":0},{"$f":"Query!F36","v":0},{"$f":"SUM(F21:G21)","v":0},null,{"$f":"Query!H36","v":0},{"$f":"Query!I36","v":0},{"$f":"SUM(J21:K21)","v":0},null,{"$f":"Query!K36","v":0},{"$f":"Query!L36","v":0},{"$f":"SUM(N21:O21)","v":0},null,{"$f":"Query!N36","v":0},{"$f":"Query!O36","v":0},{"$f":"SUM(R21:S21)","v":0},null,{"$f":"Query!Q36","v":0},{"$f":"Query!R36","v":0},{"$f":"SUM(V21:W21)","v":0},null,{"$f":"Query!T36","v":0},null,{"$f":"IFERROR(B21/AJ21,0)","v":0},{"$f":"IFERROR(C21/AK21,0)","v":0},null,{"$f":"IFERROR(V21/AJ21,0)","v":0},{"$f":"IFERROR(W21/AK21,0)","v":0},null,{"$f":"SUM(Z21/AL21)","v":{"$error":"#DIV/0!"}},null,{"$f":"Query!Z36","v":0},{"$f":"Query!AA36","v":0},{"$f":"SUM(AJ21:AK21)","v":0},null,{"$f":"'FTE Query'!D36","v":0}]
["Grade 9-15 Total",{"$f":"SUM(B20:B21)","v":14},{"$f":"SUM(C20:C21)","v":12},{"$f":"SUM(D20:D21)","v":26},null,{"$f":"SUM(F20:F21)","v":0},{"$f":"SUM(G20:G21)","v":0},{"$f":"SUM(H20:H21)","v":0},null,{"$f":"SUM(J20:J21)","v":0},{"$f":"SUM(K20:K21)","v":0},{"$f":"SUM(L20:L21)","v":0},null,{"$f":"SUM(N20:N21)","v":0},{"$f":"SUM(O20:O21)","v":0},{"$f":"SUM(P20:P21)","v":0},null,{"$f":"SUM(R20:R21)","v":0},{"$f":"SUM(S20:S21)","v":0},{"$f":"SUM(T20:T21)","v":0},null,{"$f":"SUM(V20:V21)","v":0},{"$f":"SUM(W20:W21)","v":0},{"$f":"SUM(X20:X21)","v":0},null,{"$f":"SUM(Z20:Z21)","v":4},null,0.93300000000000005,0.8,null,0,0,null,{"$f":"SUM(Z22/AL22)","v":0.13300000000000001},null,{"$f":"SUM(AJ20:AJ21)","v":15},{"$f":"SUM(AK20:AK21)","v":15},{"$f":"SUM(AL20:AL21)","v":30},null,{"$f":"SUM(AN20:AN21)","v":30}]
[]
["Grade ACZ 9-15 F/T",{"$f":"Query!B38","v":0},{"$f":"Query!C38","v":0},{"$f":"SUM(B24:C24)","v":0},null,{"$f":"Query!E38","v":0},{"$f":"Query!F38","v":0},{"$f":"SUM(F24:G24)","v":0},null,{"$f":"Query!H38","v":0},{"$f":"Query!I38","v":0},{"$f":"SUM(J24:K24)","v":0},null,{"$f":"Query!K38","v":0},{"$f":"Query!L38","v":0},{"$f":"SUM(N24:O24)","v":0},null,{"$f":"Query!N38","v":0},{"$f":"Query!O38","v":0},{"$f":"SUM(R24:S24)","v":0},null,{"$f":"Query!Q38","v":0},{"$f":"Query!R38","v":0},{"$f":"SUM(V24:W24)","v":0},null,{"$f":"Query!T38","v":1},null,{"$f":"SUM(B24/AJ24)","v":0},{"$f":"IFERROR(C24/AK24,0)","v":0},null,{"$f":"SUM(V24/AJ24)","v":0},{"$f":"IFERROR(W24/AK24,0)","v":0},null,{"$f":"SUM(Z24/AL24)","v":1},null,{"$f":"Query!Z38","v":1},{"$f":"Query!AA38","v":0},{"$f":"SUM(AJ24:AK24)","v":1},null,{"$f":"'FTE Query'!D38","v":1}]
["Grade ACZ 9-15 P/T",{"$f":"Query!B39","v":0},{"$f":"Query!C39","v":0},{"$f":"SUM(B25:C25)","v":0},null,{"$f":"Query!E39","v":0},{"$f":"Query!F39","v":0},{"$f":"SUM(F25:G25)","v":0},null,{"$f":"Query!H39","v":0},{"$f":"Query!I39","v":0},{"$f":"SUM(J25:K25)","v":0},null,{"$f":"Query!K39","v":0},{"$f":"Query!L39","v":0},{"$f":"SUM(N25:O25)","v":0},null,{"$f":"Query!N39","v":0},{"$f":"Query!O39","v":0},{"$f":"SUM(R25:S25)","v":0},null,{"$f":"Query!Q39","v":0},{"$f":"Query!R39","v":0},{"$f":"SUM(V25:W25)","v":0},null,{"$f":"Query!T39","v":0},null,{"$f":"IFERROR(B25/AJ25,0)","v":0},{"$f":"IFERROR(C25/AK25,0)","v":0},null,{"$f":"IFERROR(V25/AJ25,0)","v":0},{"$f":"IFERROR(W25/AK25,0)","v":0},null,{"$f":"IFERROR(Z25/AL25,0)","v":0},null,{"$f":"Query!Z39","v":0},{"$f":"Query!AA39","v":0},{"$f":"SUM(AJ25:AK25)","v":0},null,{"$f":"'FTE Query'!D39","v":0}]
["Grade ACZ 9-15 Total",{"$f":"SUM(B24:B25)","v":0},{"$f":"SUM(C24:C25)","v":0},{"$f":"SUM(D24:D25)","v":0},null,{"$f":"SUM(F24:F25)","v":0},{"$f":"SUM(G24:G25)","v":0},{"$f":"SUM(H24:H25)","v":0},null,{"$f":"SUM(J24:J25)","v":0},{"$f":"SUM(K24:K25)","v":0},{"$f":"SUM(L24:L25)","v":0},null,{"$f":"SUM(N24:N25)","v":0},{"$f":"SUM(O24:O25)","v":0},{"$f":"SUM(P24:P25)","v":0},null,{"$f":"SUM(R24:R25)","v":0},{"$f":"SUM(S24:S25)","v":0},{"$f":"SUM(T24:T25)","v":0},null,{"$f":"SUM(V24:V25)","v":0},{"$f":"SUM(W24:W25)","v":0},{"$f":"SUM(X24:X25)","v":0},null,{"$f":"SUM(Z24:Z25)","v":1},null,0,{"$f":"IFERROR(C26/AK26,0)","v":0},null,0,{"$f":"IFERROR(W26/AK26,0)","v":0},null,{"$f":"SUM(Z26/AL26)","v":1},null,{"$f":"SUM(AJ24:AJ25)","v":1},{"$f":"SUM(AK24:AK25)","v":0},{"$f":"SUM(AL24:AL25)","v":1},null,{"$f":"SUM(AN24:AN25)","v":1}]
[]
["Other Non Pay & Grading Structure F/T",{"$f":"Query!B41","v":14},{"$f":"Query!C41","v":18},{"$f":"SUM(B28:C28)","v":32},null,{"$f":"Query!E41","v":0},{"$f":"Query!F41","v":0},{"$f":"SUM(F28:G28)","v":0},null,{"$f":"Query!H41","v":0},{"$f":"Query!I41","v":0},{"$f":"SUM(J28:K28)","v":0},null,{"$f":"Query!K41","v":1},{"$f":"Query!L41","v":0},{"$f":"SUM(N28:O28)","v":1},null,{"$f":"Query!N41","v":0},{"$f":"Query!O41","v":0},{"$f":"SUM(R28:S28)","v":0},null,{"$f":"Query!Q41","v":1},{"$f":"Query!R41","v":0},{"$f":"SUM(V28:W28)","v":1},null,{"$f":"Query!T41","v":38},null,{"$f":"SUM(B28/AJ28)","v":0.60899999999999999},0.375,null,{"$f":"SUM(V28/AJ28)","v":4.2999999999999997E-2},{"$f":"SUM(W28/AK28)","v":0},null,{"$f":"SUM(Z28/AL28)","v":0.53500000000000003},null,{"$f":"Query!Z41","v":23},{"$f":"Query!AA41","v":48},{"$f":"SUM(AJ28:AK28)","v":71},null,{"$f":"'FTE Query'!D41","v":71}]
["Other Non Pay & Grading Structure P/T",{"$f":"Query!B42","v":0},{"$f":"Query!C42","v":3},{"$f":"SUM(B29:C29)","v":3},null,{"$f":"Query!E42","v":0},{"$f":"Query!F42","v":0},{"$f":"SUM(F29:G29)","v":0},null,{"$f":"Query!H42","v":0},{"$f":"Query!I42","v":0},{"$f":"SUM(J29:K29)","v":0},null,{"$f":"Query!K42","v":0},{"$f":"Query!L42","v":0},{"$f":"SUM(N29:O29)","v":0},null,{"$f":"Query!N42","v":0},{"$f":"Query!O42","v":0},{"$f":"SUM(R29:S29)","v":0},null,{"$f":"Query!Q42","v":0},{"$f":"Query!R42","v":0},{"$f":"SUM(V29:W29)","v":0},null,{"$f":"Query!T42","v":8},null,{"$f":"IFERROR(B29/AJ29,0)","v":0},0.27300000000000002,null,{"$f":"IFERROR(V29/AJ29,0)","v":0},{"$f":"SUM(W29/AK29)","v":0},null,{"$f":"SUM(Z29/AL29)","v":0.72699999999999998},null,{"$f":"Query!Z42","v":0},{"$f":"Query!AA42","v":11},{"$f":"SUM(AJ29:AK29)","v":11},null,{"$f":"'FTE Query'!D42","v":8}]
["Other Non P&G Structure Total",{"$f":"SUM(B28:B29)","v":14},{"$f":"SUM(C28:C29)","v":21},{"$f":"SUM(D28:D29)","v":35},null,{"$f":"SUM(F28:F29)","v":0},{"$f":"SUM(G28:G29)","v":0},{"$f":"SUM(H28:H29)","v":0},null,{"$f":"SUM(J28:J29)","v":0},{"$f":"SUM(K28:K29)","v":0},{"$f":"SUM(L28:L29)","v":0},null,{"$f":"SUM(N28:N29)","v":1},{"$f":"SUM(O28:O29)","v":0},{"$f":"SUM(P28:P29)","v":1},null,{"$f":"SUM(R28:R29)","v":0},{"$f":"SUM(S28:S29)","v":0},{"$f":"SUM(T28:T29)","v":0},null,{"$f":"SUM(V28:V29)","v":1},{"$f":"SUM(W28:W29)","v":0},{"$f":"SUM(X28:X29)","v":1},null,{"$f":"SUM(Z28:Z29)","v":46},null,0.60899999999999999,0.35599999999999998,null,4.2999999999999997E-2,0,null,0.56100000000000005,null,{"$f":"SUM(AJ28:AJ29)","v":23},{"$f":"SUM(AK28:AK29)","v":59},{"$f":"SUM(AL28:AL29)","v":82},null,{"$f":"SUM(AN28:AN29)","v":79}]
[]
["Total Workforce F/T",{"$f":"SUM(B4,B8,B12,B16,B20,B24,B28)","v":763},{"$f":"SUM(C4,C8,C12,C16,C20,C24,C28)","v":620},{"$f":"SUM(B32:C32)","v":1383},null,{"$f":"SUM(F4,F8,F12,F16,F20,F24,F28)","v":4},{"$f":"SUM(G4,G8,G12,G16,G20,G24,G28)","v":1},{"$f":"SUM(F32:G32)","v":5},null,{"$f":"SUM(J4,J8,J12,J16,J20,J24,J28)","v":1},{"$f":"SUM(K4,K8,K12,K16,K20,K24,K28)","v":2},{"$f":"SUM(J32:K32)","v":3},null,{"$f":"SUM(N4,N8,N12,N16,N20,N24,N28)","v":12},{"$f":"SUM(O4,O8,O12,O16,O20,O24,O28)","v":6},{"$f":"SUM(N32:O32)","v":18},null,{"$f":"SUM(R4,R8,R12,R16,R20,R24,R28)","v":3},{"$f":"SUM(S4,S8,S12,S16,S20,S24,S28)","v":0},{"$f":"SUM(R32:S32)","v":3},null,{"$f":"SUM(V4,V8,V12,V16,V20,V24,V28)","v":20},{"$f":"SUM(W4,W8,W12,W16,W20,W24,W28)","v":9},{"$f":"SUM(V32:W32)","v":29},null,{"$f":"SUM(Z4,Z8,Z12,Z16,Z20,Z24,Z28)","v":272},null,{"$f":"SUM(B32/AJ32)","v":0.82399999999999995},{"$f":"SUM(C32/AK32)","v":0.81799999999999995},null,2.1999999999999999E-2,1.2E-2,null,0.16200000000000001,null,{"$f":"SUM(AJ4,AJ8,AJ12,AJ16,AJ20,AJ24,AJ28)","v":926},{"$f":"SUM(AK4,AK8,AK12,AK16,AK20,AK24,AK28)","v":758},{"$f":"SUM(AJ32:AK32)","v":1684},null,{"$f":"SUM(AN4,AN8,AN12,AN16,AN20,AN24,AN28)","v":1682.44}]
[]
["Total Workforce P/T",{"$f":"SUM(B5,B9,B13,B17,B21,B25,B29)","v":210},{"$f":"SUM(C5,C9,C13,C17,C21,C25,C29)","v":463},{"$f":"SUM(B34:C34)","v":673},null,{"$f":"SUM(F5,F9,F13,F17,F21,F25,F29)","v":1},{"$f":"SUM(G5,G9,G13,G17,G21,G25,G29)","v":4},{"$f":"SUM(F34:G34)","v":5},null,{"$f":"SUM(J5,J9,J13,J17,J21,J25,J29)","v":0},{"$f":"SUM(K5,K9,K13,K17,K21,K25,K29)","v":3},{"$f":"SUM(J34:K34)","v":3},null,{"$f":"SUM(N5,N9,N13,N17,N21,N25,N29)","v":8},{"$f":"SUM(O5,O9,O13,O17,O21,O25,O29)","v":7},{"$f":"SUM(N34:O34)","v":15},null,{"$f":"SUM(R5,R9,R13,R17,R21,R25,R29)","v":2},{"$f":"SUM(S5,S9,S13,S17,S21,S25,S29)","v":2},{"$f":"SUM(R34:S34)","v":4},null,{"$f":"SUM(V5,V9,V13,V17,V21,V25,V29)","v":11},{"$f":"SUM(W5,W9,W13,W17,W21,W25,W29)","v":16},{"$f":"SUM(V34:W34)","v":27},null,{"$f":"SUM(Z5,Z9,Z13,Z17,Z21,Z25,Z29)","v":172},null,{"$f":"SUM(B34/AJ34)","v":0.73199999999999998},{"$f":"SUM(C34/AK34)","v":0.79100000000000004},null,3.7999999999999999E-2,2.7E-2,null,0.19700000000000001,null,{"$f":"SUM(AJ5,AJ9,AJ13,AJ17,AJ21,AJ25,AJ29)","v":287},{"$f":"SUM(AK5,AK9,AK13,AK17,AK21,AK25,AK29)","v":585},{"$f":"SUM(AJ34:AK34)","v":872},null,{"$f":"SUM(AN5,AN9,AN13,AN17,AN21,AN25,AN29)","v":439}]
[]
["Total Workforce",{"$f":"SUM(B32,B34)","v":973},{"$f":"SUM(C32,C34)","v":1083},{"$f":"SUM(B36:C36)","v":2056},null,{"$f":"SUM(F32,F34)","v":5},{"$f":"SUM(G32,G34)","v":5},{"$f":"SUM(F36:G36)","v":10},null,{"$f":"SUM(J32,J34)","v":1},{"$f":"SUM(K32,K34)","v":5},{"$f":"SUM(J36:K36)","v":6},null,{"$f":"SUM(N32,N34)","v":20},{"$f":"SUM(O32,O34)","v":13},{"$f":"SUM(N36:O36)","v":33},null,{"$f":"SUM(R32,R34)","v":5},{"$f":"SUM(S32,S34)","v":2},{"$f":"SUM(R36:S36)","v":7},null,{"$f":"SUM(V32,V34)","v":31},{"$f":"SUM(W32,W34)","v":25},{"$f":"SUM(V36:W36)","v":56},null,{"$f":"SUM(Z32,Z34)","v":444},null,{"$f":"SUM(B36/AJ36)","v":0.80200000000000005},{"$f":"SUM(C36/AK36)","v":0.80600000000000005},null,2.5999999999999999E-2,1.9E-2,null,0.17399999999999999,null,{"$f":"SUM(AJ32,AJ34)","v":1213},{"$f":"SUM(AK32,AK34)","v":1343},{"$f":"SUM(AJ36:AK36)","v":2556},null,{"$f":"SUM(AN32,AN34)","v":2121.44}]
[null,{"$f":"B36/$AL$36","v":0.38069999999999998},{"$f":"C36/$AL$36","v":0.42370000000000002},0.8044,0,2E-3,2E-3,3.8999999999999998E-3,0,4.0000000000000002E-4,2E-3,2.3E-3,0,7.7999999999999996E-3,5.1000000000000004E-3,1.29E-2,0,2E-3,8.0000000000000004E-4,2.7000000000000001E-3,0,1.21E-2,9.7999999999999997E-3,2.1899999999999999E-2,0,0.17369999999999999,0,2.9999999999999997E-4,2.9999999999999997E-4,0,0,0,0,1E-4,0,0.47460000000000002,0.52539999999999998,1,{"$f":"AM36/$AN$36","v":0},1]

{"sheet":"Query","index":5,"n_rows":55,"n_cols":28,"rows_kept":55,"cut":false,"hidden":true,"merged":[]}
["Workforce Profile By Gender & Grade (2011)"]
[]
["Payroll Area",""]
["ZPersonal Area",""]
["Organizational Unit","Culture & Sport Glasgow"]
["Personnel Subarea","]GL Bank["]
["Checkbox for Part-Ti",""]
["ZPrimary Employee ID",""]
["Contract Type",""]
["WPBR Gender/Ethnicity Bandings (2011)",""]
["WP Bandings",""]
[]
["Contract Type","]Casual Work[, ]External[, ]Sessional Work[, ]Agency Staff[, ]Election Worker[, ]Casual Contract[, ]Agency[, ]Ext Chief Position[..."]
["Employee Subgroup","]Teachers 35.00 M1[, ]Teachers 35.00 M2[, ]Skillseekers[, ]External Non Payroll[, ]Traineeship Program["]
["Employment Status","Active"]
["Organizational Unit","]DR00000029[, ]DR00000035[, ]EP10000000[, ]LS00000500[, ]GL00000001[, ]DR00000145[, ]L000000A00[, ]DR00000029[, ]DR00000035[..."]
["Personnel Subarea","]ZZZZ["]
["Employment End",">= 30/09/2017"]
["Employment Start","<= 30/09/2017"]
["ZPersonal Area","]9980..9991[, ]0021[, 0161"]
[]
["","Total White Males","Total White Females","Total White Employees","Total Mixed Males","Total Mixed Females","Total Mixed Employees","Total Other Ethnic Background Males","Total Other Ethnic Background Females","Total Other Ethnic Background","Total Asian Males","Total Asian Females","Total Asian Employees","Total Black Males","Total Black Females","Total Black Employees","Total Black & Ethnic Males","Total Black & Ethnic Females","Total Black & Ethnic Employees","Total Non-Declared","Total White Male Employees %","Total White Female Employees %","Total BEM Male Employees %","Total BEM Female Employees %","Total Non-Declared Employees %","Total Male Employees","Total Female Employees","Total Workforce"]
["Grade 1 - 4 F/T",471,272,743,2,null,2,1,null,1,6,2,8,3,null,3,12,2,14,128,1,1,0,0,0,562,323,885]
["Grade 1 - 4 P/T",191,362,553,1,1,2,null,3,3,8,6,14,2,2,4,11,12,23,139,1,1,0,0,0,263,452,715]
["Grade 1 - 4 Total",662,634,1296,3,1,4,1,3,4,14,8,22,5,2,7,23,14,37,267,1,1,0,0,0,825,775,1600]
["Grade 5 - 7 F/T",244,295,539,2,1,3,null,2,2,5,4,9,null,null,null,7,7,14,95,1,1,0,0,0,302,346,648]
["Grade 5 - 7 P/T",19,94,113,null,3,3,null,null,null,null,1,1,null,null,null,null,4,4,24,1,1,null,0,0,24,117,141]
["Grade 5 - 7 Total",263,389,652,2,4,6,null,2,2,5,5,10,null,null,null,7,11,18,119,1,1,0,0,0,326,463,789]
["Grade 8 F/T",20,23,43,null,null,null,null,null,null,null,null,null,null,null,null,null,null,null,6,1,1,null,null,0,23,26,49]
["Grade 8 P/T",null,4,4,null,null,null,null,null,null,null,null,null,null,null,null,null,null,null,1,null,1,null,null,0,null,5,5]
["Grade 8 Total",20,27,47,null,null,null,null,null,null,null,null,null,null,null,null,null,null,null,7,1,1,null,null,0,23,31,54]
["ACZ Grade 8 F/T"]
["ACZ Grade 8 P/T"]
["ACZ Grade 8 Total"]
["Grade 9 - 15 F/T",14,12,26,null,null,null,null,null,null,null,null,null,null,null,null,null,null,null,4,1,1,null,null,0,15,15,30]
["Grade 9 - 15 P/T"]
["Grade 9 - 15 Total",14,12,26,null,null,null,null,null,null,null,null,null,null,null,null,null,null,null,4,1,1,null,null,0,15,15,30]
["ACZ Grade 9 - 15 F/T",null,null,null,null,null,null,null,null,null,null,null,null,null,null,null,null,null,null,1,null,null,null,null,1,1,null,1]
["ACZ Grade 9 - 15 P/T"]
["ACZ Grade 9 - 15 Total",null,null,null,null,null,null,null,null,null,null,null,null,null,null,null,null,null,null,1,null,null,null,null,1,1,null,1]
["Other (Not Migrated) F/T",14,18,32,0,0,0,0,0,0,1,0,1,0,null,0,1,0,1,38,1,0,0,0,1,23,48,71]
["Other (Not Migrated) P/T",0,3,3,0,0,0,null,0,0,0,0,0,0,0,0,0,0,0,8,"X",0,"X",0,1,0,11,11]
["Other (Not Migrated) Total",14,21,35,0,0,0,0,0,0,1,0,1,0,0,0,1,0,1,46,1,0,0,0,1,23,59,82]
["Total Teaching Staff F/T"]
["Total Teaching Staff P/T"]
["Total Teaching Staff"]
["Total Non-Teaching Staff F/T",763,620,1383,4,1,5,1,2,3,12,6,18,3,null,3,20,9,29,272,1,1,0,0,0,926,758,1684]
["Total Non-Teaching Staff P/T",210,463,673,1,4,5,null,3,3,8,7,15,2,2,4,11,16,27,172,1,1,0,0,0,287,585,872]
["Total Non-Teaching Staff",973,1083,2056,5,5,10,1,5,6,20,13,33,5,2,7,31,25,56,444,1,1,0,0,0,1213,1343,2556]
["Total - All WPBR Grades F/T",749,602,1351,4,1,5,1,2,3,11,6,17,3,null,3,19,9,28,234,1,1,0,0,0,903,710,1613]
["Total - All WPBR Grades P/T",210,460,670,1,4,5,null,3,3,8,7,15,2,2,4,11,16,27,164,1,1,0,0,0,287,574,861]
["Total Workforce - All WPBR Grades",959,1062,2021,5,5,10,1,5,6,19,13,32,5,2,7,30,25,55,398,1,1,0,0,0,1190,1284,2474]
["Total Workforce (All) F/T",763,620,1383,4,1,5,1,2,3,12,6,18,3,null,3,20,9,29,272,1,1,0,0,0,926,758,1684]
["Total Workforce (All) P/T",210,463,673,1,4,5,null,3,3,8,7,15,2,2,4,11,16,27,172,1,1,0,0,0,287,585,872]
["Total Workforce (All)",973,1083,2056,5,5,10,1,5,6,20,13,33,5,2,7,31,25,56,444,1,1,0,0,0,1213,1343,2556]

{"sheet":"FTE Query","index":6,"n_rows":55,"n_cols":4,"rows_kept":55,"cut":false,"hidden":true,"merged":[]}
["Workforce Profile By Gender, Grade & FTE"]
[]
["Payroll Area",""]
["ZPersonal Area",""]
["Organizational Unit","Culture & Sport Glasgow"]
["Personnel Subarea","]GL Bank["]
["Checkbox for Part-Ti",""]
["ZPrimary Employee ID",""]
["Contract Type",""]
["WPBR Gender/Ethnicity Bandings FTE",",Total Male Employees,Total Female Employees,Total Workforce"]
["WP Bandings",""]
[]
["Contract Type","]Casual Work[, ]External[, ]Sessional Work[, ]Agency Staff[, ]Casual Contract[, ]Agency[, ]Ext Chief Position["]
["Employee Subgroup","]Teachers 35.00 M1[, ]Teachers 35.00 M2[, ]Teachers 32.50/None[, ]Skillseekers[, ]External Non Payroll[, ]Traineeship Program["]
["Employment Status","Active"]
["Organizational Unit","]DR00000029[, ]DR00000035[, ]EP10000000[, ]LS00000500[, ]GL00000001[, ]DR00000145[, ]L000000A00[, ]DR00000029[, ]DR00000035[..."]
["Personnel Subarea","]ZZZZ["]
["Employment End",">= 30/09/2017"]
["Employment Start","<= 30/09/2017"]
["ZPersonal Area","]9980..9991[, ]0021[, 0161"]
[]
["","Total Male Employees","Total Female Employees","Total Workforce"]
["Grade 1 - 4 F/T",561.32000000000005,322.13,883.44]
["Grade 1 - 4 P/T",125.28,224.53,349.81]
["Grade 1 - 4 Total",686.59,546.66,1233.25]
["Grade 5 - 7 F/T",302,346,648]
["Grade 5 - 7 P/T",11.59,65.37,76.959999999999994]
["Grade 5 - 7 Total",313.58999999999997,411.37,724.96]
["Grade 8 F/T",23,26,49]
["Grade 8 P/T",null,4.2300000000000004,4.2300000000000004]
["Grade 8 Total",23,30.23,53.23]
["ACZ Grade 8 F/T"]
["ACZ Grade 8 P/T"]
["ACZ Grade 8 Total"]
["Grade 9 - 15 F/T",15,15,30]
["Grade 9 - 15 P/T"]
["Grade 9 - 15 Total",15,15,30]
["ACZ Grade 9 - 15 F/T",1,null,1]
["ACZ Grade 9 - 15 P/T"]
["ACZ Grade 9 - 15 Total",1,null,1]
["Other (Not Migrated) F/T",23,48,71]
["Other (Not Migrated) P/T",0,8,8]
["Other (Not Migrated) Total",23,56,79]
["Total Teaching Staff F/T"]
["Total Teaching Staff P/T"]
["Total Teaching Staff"]
["Total Non-Teaching Staff F/T",925.32,757.13,1682.44]
["Total Non-Teaching Staff P/T",136.86000000000001,301.8,438.66]
["Total Non-Teaching Staff",1062.18,1058.93,2121.11]
["Total - All WPBR Grades F/T",902,709,1611]
["Total - All WPBR Grades P/T",137,294,431]
["Total Workforce - All WPBR Grades",1039,1003,2042]
["Total Workforce (All) F/T",925.32,757.13,1682.44]
["Total Workforce (All) P/T",136.86000000000001,301.8,438.66]
["Total Workforce (All)",1062.18,1058.93,2121.11]

{"sheet":"JobFamily Template","index":7,"n_rows":30,"n_cols":18,"rows_kept":30,"cut":false,"hidden":true,"merged":[[16,1,16,2],[17,1,17,2],[0,2,0,17],[14,1,14,2],[15,1,15,2]]}
[null,null,"JOB FAMILY - EMPLOYEE HEAD COUNT"]
[null,"GROUP OF EMPLOYEES","BS","CV","CA","CF","CU","CR","IP","LS","PC","PH","SE","SR","TS","VE","NON P&GS","TOTAL"]
["Glasgow Life","Male Temp F/T",{"$f":"'JF Query'!B21","v":8},{"$f":"'JF Query'!C21","v":0},{"$f":"'JF Query'!D21","v":1},{"$f":"'JF Query'!E21","v":6},{"$f":"'JF Query'!F21","v":0},{"$f":"'JF Query'!G21","v":0},{"$f":"'JF Query'!H21","v":0},{"$f":"'JF Query'!I21","v":2},{"$f":"'JF Query'!J21","v":0},{"$f":"'JF Query'!K21","v":0},{"$f":"'JF Query'!L21","v":0},{"$f":"'JF Query'!M21","v":7},{"$f":"'JF Query'!N21","v":1},{"$f":"'JF Query'!O21","v":0},{"$f":"'JF Query'!R21","v":8},{"$f":"SUM(C3:Q3)","v":33}]
[null,"Male Temp P/T",{"$f":"'JF Query'!B22","v":0},{"$f":"'JF Query'!C22","v":0},{"$f":"'JF Query'!D22","v":0},{"$f":"'JF Query'!E22","v":0},{"$f":"'JF Query'!F22","v":0},{"$f":"'JF Query'!G22","v":0},{"$f":"'JF Query'!H22","v":0},{"$f":"'JF Query'!I22","v":0},{"$f":"'JF Query'!J22","v":0},{"$f":"'JF Query'!K22","v":0},{"$f":"'JF Query'!L22","v":0},{"$f":"'JF Query'!M22","v":4},{"$f":"'JF Query'!N22","v":0},{"$f":"'JF Query'!O22","v":0},{"$f":"'JF Query'!R22","v":0},{"$f":"SUM(C4:Q4)","v":4}]
[null,"Male Perm F/T",{"$f":"'JF Query'!B23","v":69},{"$f":"'JF Query'!C23","v":0},{"$f":"'JF Query'!D23","v":31},{"$f":"'JF Query'!E23","v":584},{"$f":"'JF Query'!F23","v":0},{"$f":"'JF Query'!G23","v":0},{"$f":"'JF Query'!H23","v":0},{"$f":"'JF Query'!I23","v":14},{"$f":"'JF Query'!J23","v":0},{"$f":"'JF Query'!K23","v":0},{"$f":"'JF Query'!L23","v":0},{"$f":"'JF Query'!M23","v":115},{"$f":"'JF Query'!N23","v":65},{"$f":"'JF Query'!O23","v":0},{"$f":"'JF Query'!R23","v":15},893]
[null,"Male Perm P/T",{"$f":"'JF Query'!B24","v":2},{"$f":"'JF Query'!C24","v":0},{"$f":"'JF Query'!D24","v":5},{"$f":"'JF Query'!E24","v":179},{"$f":"'JF Query'!F24","v":0},{"$f":"'JF Query'!G24","v":0},{"$f":"'JF Query'!H24","v":0},{"$f":"'JF Query'!I24","v":0},{"$f":"'JF Query'!J24","v":0},{"$f":"'JF Query'!K24","v":0},{"$f":"'JF Query'!L24","v":0},{"$f":"'JF Query'!M24","v":91},{"$f":"'JF Query'!N24","v":6},{"$f":"'JF Query'!O24","v":0},{"$f":"'JF Query'!R24","v":0},283]
[null,"Female Temp F/T",{"$f":"'JF Query'!B25","v":23},{"$f":"'JF Query'!C25","v":0},{"$f":"'JF Query'!D25","v":2},{"$f":"'JF Query'!E25","v":2},{"$f":"'JF Query'!F25","v":0},{"$f":"'JF Query'!G25","v":0},{"$f":"'JF Query'!H25","v":0},{"$f":"'JF Query'!I25","v":1},{"$f":"'JF Query'!J25","v":0},{"$f":"'JF Query'!K25","v":0},{"$f":"'JF Query'!L25","v":0},{"$f":"'JF Query'!M25","v":16},{"$f":"'JF Query'!N25","v":4},{"$f":"'JF Query'!O25","v":0},{"$f":"'JF Query'!R25","v":17},{"$f":"SUM(C7:Q7)","v":65}]
[null,"Female Temp P/T",{"$f":"'JF Query'!B26","v":3},{"$f":"'JF Query'!C26","v":0},{"$f":"'JF Query'!D26","v":0},{"$f":"'JF Query'!E26","v":5},{"$f":"'JF Query'!F26","v":0},{"$f":"'JF Query'!G26","v":0},{"$f":"'JF Query'!H26","v":0},{"$f":"'JF Query'!I26","v":0},{"$f":"'JF Query'!J26","v":0},{"$f":"'JF Query'!K26","v":0},{"$f":"'JF Query'!L26","v":0},{"$f":"'JF Query'!M26","v":6},null,{"$f":"'JF Query'!O26","v":0},{"$f":"'JF Query'!R26","v":0},14]
[null,"Female Perm F/T",{"$f":"'JF Query'!B27","v":118},{"$f":"'JF Query'!C27","v":0},{"$f":"'JF Query'!D27","v":65},{"$f":"'JF Query'!E27","v":301},{"$f":"'JF Query'!F27","v":0},{"$f":"'JF Query'!G27","v":0},{"$f":"'JF Query'!H27","v":0},{"$f":"'JF Query'!I27","v":14},{"$f":"'JF Query'!J27","v":0},{"$f":"'JF Query'!K27","v":1},{"$f":"'JF Query'!L27","v":0},{"$f":"'JF Query'!M27","v":138},{"$f":"'JF Query'!N27","v":25},{"$f":"'JF Query'!O27","v":0},{"$f":"'JF Query'!R27","v":31},693]
[null,"Female Perm P/T",{"$f":"'JF Query'!B28","v":25},{"$f":"'JF Query'!C28","v":0},{"$f":"'JF Query'!D28","v":41},{"$f":"'JF Query'!E28","v":327},{"$f":"'JF Query'!F28","v":0},{"$f":"'JF Query'!G28","v":0},{"$f":"'JF Query'!H28","v":0},{"$f":"'JF Query'!I28","v":0},{"$f":"'JF Query'!J28","v":0},{"$f":"'JF Query'!K28","v":1},{"$f":"'JF Query'!L28","v":0},{"$f":"'JF Query'!M28","v":161},{"$f":"'JF Query'!N28","v":4},{"$f":"'JF Query'!O28","v":0},{"$f":"'JF Query'!R28","v":11},570]
[null,"Total",{"$f":"SUM(C3:C10)","v":248},0,145,1404,0,0,0,31,0,2,0,538,105,0,82,2555]
[]
[]
["ABBREVIATIONS"]
["BS","Business Support"]
["CV","Catering"]
["CA","Clerical Admin"]
["CF","Community Facility User Support"]
["CU","Community Standards & Enforcement"]
["CR","Construction Repairs Maintenance"]
["IP","Infrastructure Planning"]
["LS","Leadership"]
["PC","People Care & Support"]
["PH","Physical & Environmental Services"]
["SE","Security"]
["SR","Social Renewal, Learning & People Development"]
["TS","Technical Services"]
["VE","Road Vehicle Operations"]
["TEACH","Teachers"]
["NON P&GS","Non Pay & Grading Structure"]

{"sheet":"JF Query","index":8,"n_rows":29,"n_cols":19,"rows_kept":29,"cut":false,"hidden":true,"merged":[]}
["QSW Breakdown By Job Family excl cas sess"]
[]
["NI Number",""]
["ZPersonal Area",""]
["ZPrimary Employee ID",""]
["Employee Group",""]
["Personnel Subarea","]GL Bank["]
["Organizational Unit","Culture & Sport Glasgow"]
["Job Families Incl Teach",""]
["Breakdown Gender Contract FTPT",""]
[]
["Contract Type","]Casual Work[, ]External[, ]Sessional Work[, ]Agency Staff[, ]Election Worker[, ]Casual Contract[, ]Agency[, ]Contract/Consultant[.."]
["Employee Subgroup","]Teachers 35.00 M2[, ]Skillseekers[, ]External Non Payroll[, ]Traineeship Program["]
["Employment Status","Active"]
["Organizational Unit","]DR00000029[, ]DR00000035[, ]GL00000001[, ]DR00000145[, ]DR00000029[, ]DR00000035[, ]GL00000001[, ]DR00000145["]
["Personnel Subarea","]ZZZZ["]
["Employment End",">= 30/09/2017"]
["Employment Start","<= 30/09/2017"]
[]
["","BS","CV","CA","CF","CU","CR","IP","LS","PC","PH","SE","SR","TS","VE","Teachers","Total Employees","Non WPBR"]
["Male Temp FT",8,null,1,6,null,null,null,2,null,null,null,7,1,null,null,25,8,{"$f":"SUM(Q21+Q23+R21+R23)","v":926}]
["Male Temp PT",null,null,null,null,null,null,null,null,null,null,null,4,null,null,null,4,0]
["Male Perm FT",69,null,31,584,null,null,null,14,null,null,null,115,65,null,null,878,15,{"$f":"SUM(Q22+Q24+R22+R24)","v":287}]
["Male Perm PT",2,null,5,179,null,null,null,null,null,null,null,91,6,null,null,283,0]
["Female Temp FT",23,null,2,2,null,null,null,1,null,null,null,16,4,null,null,48,17,{"$f":"SUM(Q25+Q27+R25+R27)","v":758}]
["Female Temp PT",3,null,null,5,null,null,null,null,null,null,null,6,1,null,null,15,0]
["Female Perm FT",118,null,65,301,null,null,null,14,null,1,null,138,25,null,null,662,31,{"$f":"SUM(Q26+Q28+R26+R28)","v":585}]
["Female Perm PT",25,null,41,327,null,null,null,null,null,1,null,161,4,null,null,559,11]
[null,null,null,null,null,null,null,null,null,null,null,null,null,null,null,null,null,null,{"$f":"SUM(S21:S28)","v":2556}]